Workbook

Sheet Contents
C1: Go to Charts by Pressing Shift and Enter on Menu Item
C3: Sheet Tab | D3: Description | E3: Author
B4: 1 | C4: Contents
B5: 2 | C5: Read Stocks
B6: 3 | C6: Multiple Stock Graph
B7: 4 | C7: Summary
B8: 5 | C8: Yahoo Index
B9: 6 | C9: FRED Indicies
B10: 7 | C10: Exchange Rates
B11: 8 | C11: Commodity Prices
B12: 9 | C12: Yahoo Stocks
B13: 10 | C13: Google Finance Stocks
B14: 11 | C14: Google Index
B15: 12 | C15: International Indicies
B16: 13 | C16: Errors
B17: 14 | C17: General Points
B18: 15 | C18: Forms
B19: 16 | C19: BREAK
B20: 17 | C20: S&P 500
B21: 18 | C21: DAX
B22: 19 | C22: NASDAQCOM
B23: 20 | C23: GDP Inf
B24: 21 | C24: CPI US
B25: 22 | C25: CCUSSP01DEM650N
B26: 23 | C26: INR
B27: 24 | C27: UK
B28: 25 | C28: CFH
B29: 26 | C29: US NOM GNP
B30: 27 | C30: MCOILBRENTEU
B31: 28 | C31: GE
B32: 29 | C32: AAPL
B33: 30 | C33: GOOG
B34: 31 | C34: AMZN

Sheet Read Stocks
M1: Final Applied | N1: Final Applied | O1: Column | P1: Source | S1: Finance.yahoo Index | X1: FRED Index | AF1: Google Index | AN1: FRED Commodities | AV1: Yahoo Stock Prices | BD1: Google Stock Prices | BL1: FRED Exonomic Data
G2: Start Row | H2: Number | I2: Column | J2: Source | M2: Sheet Name | N2: Stock or Index Name | Q2: Counter | R2: Accum | S2: Sheet | T2: Name | U2: Column | V2: Source | X2: Counter | Y2: Counter 1 | Z2: Sheet | AA2: Re-ordered | AB2: Name | AC2: Re-ordered | AD2: Column | AE2: Source | AF2: Counter | AG2: Counter | AH2: Sheet | AI2: Re-ordered | AJ2: Name | AK2: Re-ordered | AL2: Column | AM2: Source | AN2: counter | AO2: Accum | AP2: Sheet | AQ2: Re-ordered | AR2: Name | AS2: Re-ordered | AT2: Column | AU2: Source | AV2: Counter | AW2: Counter 1 | AX2: Sheet | AY2: Re-ordered | AZ2: Name | BA2: Re-ordered | BB2: Column | BC2: Source | BD2: Counter | BE2: Counter 1 | BF2: Sheet | BG2: Re-ordered | BH2: Name | BI2: Re-ordered | BJ2: Column | BK2: Source | BL2: Counter | BM2: Counter 1 | BN2: Sheet | BO2: Re-ordered | BP2: Name | BQ2: Re-ordered | BR2: Column | BS2: Source
F3: TRUE | G3: 1 | H3: ='Yahoo Index'!Total_Tickers*F3 -> 3 | I3: F | J3: yahoo | L3: 1 | M3: =S3&AA3&AI3&AQ3&AY3&BG3&BO3 -> S&P 500 | N3: =T3&AC3&AK3&AS3&BA3&BI3&BQ3 -> US S&P 500 | O3: =U3&AD3&AL3&AT3&BB3&BJ3&BR3 -> F | P3: =V3&AE3&AM3&AU3&BC3&BK3&BS3 -> yahoo | Q3: =G3 -> 1 | R3: =IF(AND($F$3,Q3<=$H$3),Q3,0) -> 1 | S3: =IF(R3,'Yahoo Index'!E55,"") -> S&P 500 | T3: =IF(R3,'Yahoo Index'!F55,"") -> US S&P 500 | U3: =IF(R3,$I$3,"") -> F | V3: =IF(R3,$J$3,"") -> yahoo | X3: =G6 -> 4 | Y3: =IF(AND($F$6,X3<=$H$6),X3) -> FALSE | Z3: =IF($F$6,'FRED Indicies'!E16) -> 0 | AA3: =IFERROR(INDEX(Z:Z,MATCH(L3,Y:Y,0)),"") ->  | AB3: =IF($F$6,'FRED Indicies'!D16) -> 0 | AC3: =IFERROR(INDEX(AB:AB,MATCH(L3,Y:Y,0)),"") ->  | AD3: =IF(AA3<>"",$I$6,"") ->  | AE3: =IF(AA3<>"",$J$6,"") ->  | AF3: =G9 -> 4 | AG3: =IF(AND($F$9,AF3<=$H$9),AF3) -> FALSE | AH3: =IF(AG3,'Google Index'!E30) -> FALSE | AI3: =IFERROR(INDEX(AH:AH,MATCH(Q3,AG:AG,0)),"") ->  | AJ3: =IF(AF3,'Google Index'!F30) -> HT Media | AK3: =IFERROR(INDEX(AJ:AJ,MATCH(Q3,AG:AG,0)),"") ->  | AL3: =IF(AI3<>"",$I$6,"") ->  | AM3: =IF(AK3<>"",$J$6,"") ->  | AN3: =G12 -> 4 | AO3: =IF(AND($F$12,AN3<=$H$12),AN3) -> FALSE | AP3: =IF(AN3,'Commodity Prices'!C16) ->  | AQ3: =IFERROR(INDEX(AP:AP,MATCH(L3,AO:AO,0)),"") ->  | AR3: =IF(AO3,'Commodity Prices'!E16) -> FALSE | AS3: =IFERROR(INDEX(AR:AR,MATCH(L3,AO:AO,0)),"") ->  | AT3: =IF(AQ3<>"",$I$12,"") ->  | AU3: =IF(AS3<>"",$J$12,"") ->  | AV3: =G15 -> 4 | AW3: =IF(AND($F$15,AV3<=$H$15),AV3) -> 4 | AX3: =IF(AW3,'Yahoo Stocks'!D30) -> FSLR | AY3: =IFERROR(INDEX(AX:AX,MATCH(L3,AW:AW,0)),"") ->  | AZ3: =IF(AW3,'Yahoo Stocks'!E30) -> First Solar | BA3: =IFERROR(INDEX(AZ:AZ,MATCH(L3,AW:AW,0)),"") ->  | BB3: =IF(AY3<>"",$I$15,"") ->  | BC3: =IF(BA3<>"",$J$15,"") ->  | BD3: =G18 -> 14 | BE3: =IF(AND($F$18,BD3<=$H$18),BD3) -> FALSE | BF3: =IF(BE3,'Google Finance Stocks'!D27) -> FALSE | BG3: =IFERROR(INDEX(BF:BF,MATCH(Q3,BE:BE,0)),"") ->  | BH3: =IF(BE3,'Google Finance Stocks'!E27) -> FALSE | BI3: =IFERROR(INDEX(BH:BH,MATCH(Q3,BE:BE,0)),"") ->  | BJ3: =IF(BI3<>"",$I$18,"") ->  | BK3: =IF(BI3<>"",$J$18,"") ->  | BL3: =G21 -> 14 | BM3: =IF(AND($F$21,BL3<=$H$21),BL3) -> 14 | BN3: ='Exchange Rates'!D13 -> GDP Inf | BO3: =IFERROR(INDEX(BN:BN,MATCH(L3,BM:BM,0)),"") ->  | BP3: =IF(BM3,'Exchange Rates'!E13) -> Implicit Price Deflator | BQ3: =IFERROR(INDEX(BP:BP,MATCH(L3,BM:BM,0)),"") ->  | BR3: =IF(BQ3<>"",$I$21,"") ->  | BS3: =IF(BQ3<>"",$J$21,"") -> 
L4: 2 | M4: =S4&AA4&AI4&AQ4&AY4&BG4&BO4 -> DAX | N4: =T4&AC4&AK4&AS4&BA4&BI4&BQ4 -> DAX in Euro | O4: =U4&AD4&AL4&AT4&BB4&BJ4&BR4 -> F | P4: =V4&AE4&AM4&AU4&BC4&BK4&BS4 -> yahoo | Q4: =Q3+1 -> 2 | R4: =IF(AND($F$3,Q4<=$H$3),Q4) -> 2 | S4: =IF(R4,'Yahoo Index'!E56,"") -> DAX | T4: =IF(R4,'Yahoo Index'!F56,"") -> DAX in Euro | U4: =IF(R4,$I$3,"") -> F | V4: =IF(R4,$J$3,"") -> yahoo | X4: =X3+1 -> 5 | Y4: FALSE | Z4: =IF($F$6,'FRED Indicies'!E17) -> 0 | AB4: =IF($F$6,'FRED Indicies'!D17) -> 0 | AD4: =IF(AA4<>"",$I$6,"") ->  | AE4: =IF(AA4<>"",$J$6,"") ->  | AF4: =AF3+1 -> 5 | AG4: =IF(AND($F$9,AF4<=$H$9),AF4) -> FALSE | AH4: =IF(AG4,'Google Index'!E31) -> FALSE | AJ4: =IF(AF4,'Google Index'!F31) -> 0 | AL4: =IF(AI4<>"",$I$6,"") ->  | AM4: =IF(AK4<>"",$J$6,"") ->  | AN4: =AN3+1 -> 5 | AO4: =IF(AND($F$12,AN4<=$H$12),AN4) -> FALSE | AP4: =IF(AN4,'Commodity Prices'!C17) ->  | AQ4: =IFERROR(INDEX(AP:AP,MATCH(L4,AO:AO,0)),"") ->  | AR4: =IF(AO4,'Commodity Prices'!E17) -> FALSE | AT4: =IF(AQ4<>"",$I$12,"") ->  | AU4: =IF(AS4<>"",$J$12,"") ->  | AV4: =AV3+1 -> 5 | AW4: =IF(AND($F$15,AV4<=$H$15),AV4) -> 5 | AX4: =IF(AW4,'Yahoo Stocks'!D31) -> JKS | AY4: =IFERROR(INDEX(AX:AX,MATCH(L4,AW:AW,0)),"") ->  | AZ4: =IF(AW4,'Yahoo Stocks'!E31) -> Jinko Solar | BA4: =IFERROR(INDEX(AZ:AZ,MATCH(L4,AW:AW,0)),"") ->  | BB4: =IF(AY4<>"",$I$15,"") ->  | BC4: =IF(BA4<>"",$J$15,"") ->  | BD4: =BD3+1 -> 15 | BE4: =IF(AND($F$18,BD4<=$H$18),BD4) -> FALSE | BF4: =IF(BE4,'Google Finance Stocks'!D28) -> FALSE | BG4: =IFERROR(INDEX(BF:BF,MATCH(Q4,BE:BE,0)),"") ->  | BH4: =IF(BE4,'Google Finance Stocks'!E28) -> FALSE | BI4: =IFERROR(INDEX(BH:BH,MATCH(Q4,BE:BE,0)),"") ->  | BJ4: =IF(BI4<>"",$I$18,"") ->  | BK4: =IF(BI4<>"",$J$18,"") ->  | BL4: =BL3+1 -> 15 | BM4: =IF(AND($F$21,BL4<=$H$21),BL4) -> 15 | BN4: ='Exchange Rates'!D14 -> CPI US | BO4: =IFERROR(INDEX(BN:BN,MATCH(L4,BM:BM,0)),"") ->  | BP4: =IF(BM4,'Exchange Rates'!E14) -> Consumer Price Inflation | BQ4: =IFERROR(INDEX(BP:BP,MATCH(L4,BM:BM,0)),"") ->  | BR4: =IF(BQ4<>"",$I$21,"") ->  | BS4: =IF(BQ4<>"",$J$21,"") -> 
L5: 3 | M5: Mexico | N5: =T5&AC5&AK5&AS5&BA5&BI5&BQ5 -> Mexican Index | O5: F | P5: yahoo | Q5: =Q4+1 -> 3 | R5: 3 | S5: =IF(R5,'Yahoo Index'!E57,"") -> Mexico | T5: =IF(R5,'Yahoo Index'!F57,"") -> Mexican Index | U5: F | V5: yahoo | X5: =X4+1 -> 6 | Y5: FALSE | Z5: =IF($F$6,'FRED Indicies'!E18) -> 0 | AB5: =IF($F$6,'FRED Indicies'!D18) -> 0 | AF5: =AF4+1 -> 6 | AG5: FALSE | AH5: =IF(AG5,'Google Index'!E32) -> FALSE | AJ5: =IF(AF5,'Google Index'!F32) -> 0 | AN5: =AN4+1 -> 6 | AO5: FALSE | AP5: =IF(AN5,'Commodity Prices'!C18) ->  | AR5: =IF(AO5,'Commodity Prices'!E18) -> FALSE | AV5: =AV4+1 -> 6 | AW5: 6 | AX5: =IF(AW5,'Yahoo Stocks'!D32) -> TSL | AZ5: =IF(AW5,'Yahoo Stocks'!E32) -> Trina Solar | BD5: =BD4+1 -> 16 | BE5: FALSE | BF5: =IF(BE5,'Google Finance Stocks'!D29) -> FALSE | BH5: =IF(BE5,'Google Finance Stocks'!E29) -> FALSE | BL5: =BL4+1 -> 16 | BM5: 16 | BN5: ='Exchange Rates'!D15 -> Mex | BP5: =IF(BM5,'Exchange Rates'!E15) -> Mexico / U.S. Foreign Exchange Rate (EXMXUS)
F6: TRUE | G6: =H3+1 -> 4 | H6: ='FRED Indicies'!Total_Index*F6+G6-1 -> 3 | I6: B | J6: FRED | L6: 4 | M6: FSLR | N6: First Solar | O6: F | P6: Yahoo | Q6: 4 | R6: FALSE | S6: =IF(R6,'Yahoo Index'!E58,"") ->  | T6: =IF(R6,'Yahoo Index'!F58,"") ->  | X6: 7 | Y6: FALSE | Z6: =IF($F$6,'FRED Indicies'!E19) -> 0 | AB6: =IF($F$6,'FRED Indicies'!D19) -> 0 | AF6: 7 | AG6: FALSE | AH6: =IF(AG6,'Google Index'!E33) -> FALSE | AJ6: =IF(AF6,'Google Index'!F33) -> 0 | AN6: 7 | AO6: FALSE | AP6: =IF(AN6,'Commodity Prices'!C19) ->  | AR6: =IF(AO6,'Commodity Prices'!E19) -> FALSE | AV6: 7 | AW6: 7 | AX6: =IF(AW6,'Yahoo Stocks'!D33) -> CSIQ | AY6: FSLR | AZ6: =IF(AW6,'Yahoo Stocks'!E33) -> Canadian Solar | BA6: First Solar | BB6: F | BC6: Yahoo | BD6: 17 | BE6: FALSE | BF6: =IF(BE6,'Google Finance Stocks'!D30) -> FALSE | BH6: =IF(BE6,'Google Finance Stocks'!E30) -> FALSE | BL6: 17 | BM6: 17 | BN6: ='Exchange Rates'!D16 -> INR | BP6: =IF(BM6,'Exchange Rates'!E16) -> India / U.S. Foreign Exchange Rate (DEXINUS)
L7: 5 | M7: JKS | N7: Jinko Solar | O7: F | P7: Yahoo | Q7: 5 | R7: FALSE | S7: =IF(R7,'Yahoo Index'!E59,"") ->  | T7: =IF(R7,'Yahoo Index'!F59,"") ->  | X7: 8 | Y7: FALSE | Z7: =IF($F$6,'FRED Indicies'!E20) -> 0 | AB7: =IF($F$6,'FRED Indicies'!D20) -> 0 | AF7: 8 | AG7: FALSE | AH7: =IF(AG7,'Google Index'!E34) -> FALSE | AJ7: =IF(AF7,'Google Index'!F34) -> 0 | AN7: 8 | AO7: FALSE | AP7: =IF(AN7,'Commodity Prices'!C20) ->  | AR7: =IF(AO7,'Commodity Prices'!E20) -> FALSE | AV7: 8 | AW7: 8 | AX7: =IF(AW7,'Yahoo Stocks'!D34) -> JASO | AY7: JKS | AZ7: =IF(AW7,'Yahoo Stocks'!E34) -> JA Solar | BA7: Jinko Solar | BB7: F | BC7: Yahoo | BD7: 18 | BE7: FALSE | BF7: =IF(BE7,'Google Finance Stocks'!D31) -> FALSE | BH7: =IF(BE7,'Google Finance Stocks'!E31) -> FALSE | BL7: 18 | BM7: 18 | BN7: ='Exchange Rates'!D17 -> UK | BP7: =IF(BM7,'Exchange Rates'!E17) -> U.S. / U.K. Foreign Exchange Rate (EXUSUK)
L8: 6 | M8: TSL | N8: Trina Solar | O8: F | P8: Yahoo | Q8: 6 | R8: FALSE | S8: =IF(R8,'Yahoo Index'!E60,"") ->  | T8: =IF(R8,'Yahoo Index'!F60,"") ->  | X8: 9 | Y8: FALSE | Z8: =IF($F$6,'FRED Indicies'!E21) -> 0 | AB8: =IF($F$6,'FRED Indicies'!D21) -> 0 | AF8: 9 | AG8: FALSE | AH8: =IF(AG8,'Google Index'!E35) -> FALSE | AJ8: =IF(AF8,'Google Index'!F35) -> 0 | AN8: 9 | AO8: FALSE | AP8: =IF(AN8,'Commodity Prices'!C21) ->  | AR8: =IF(AO8,'Commodity Prices'!E21) -> FALSE | AV8: 9 | AW8: 9 | AX8: =IF(AW8,'Yahoo Stocks'!D35) -> HQCL | AY8: TSL | AZ8: =IF(AW8,'Yahoo Stocks'!E35) -> Hanwha Q Cells | BA8: Trina Solar | BB8: F | BC8: Yahoo | BD8: 19 | BE8: FALSE | BF8: =IF(BE8,'Google Finance Stocks'!D32) -> FALSE | BH8: =IF(BE8,'Google Finance Stocks'!E32) -> FALSE | BL8: 19 | BM8: 19 | BN8: ='Exchange Rates'!D18 -> CFH | BP8: =IF(BM8,'Exchange Rates'!E18) -> Switzerland / U.S. Foreign Exchange Rate (DEXSZUS)
F9: FALSE | G9: =H6+1 -> 4 | H9: ='Google Index'!D20*F9+G9-1 -> 3 | I9: D | J9: Google | L9: 7 | M9: CSIQ | N9: Canadian Solar | O9: F | P9: Yahoo | Q9: 7 | R9: FALSE | S9: =IF(R9,'Yahoo Index'!E61,"") ->  | T9: =IF(R9,'Yahoo Index'!F61,"") ->  | X9: 10 | Y9: FALSE | Z9: =IF($F$6,'FRED Indicies'!E22) -> 0 | AB9: =IF($F$6,'FRED Indicies'!D22) -> 0 | AF9: 10 | AG9: FALSE | AH9: =IF(AG9,'Google Index'!E36) -> FALSE | AJ9: =IF(AF9,'Google Index'!F36) -> 0 | AN9: 10 | AO9: FALSE | AP9: =IF(AN9,'Commodity Prices'!C22) ->  | AR9: =IF(AO9,'Commodity Prices'!E22) -> FALSE | AV9: 10 | AW9: 10 | AX9: =IF(AW9,'Yahoo Stocks'!D36) -> YGE | AY9: CSIQ | AZ9: =IF(AW9,'Yahoo Stocks'!E36) -> Yingi Green | BA9: Canadian Solar | BB9: F | BC9: Yahoo | BD9: 20 | BE9: FALSE | BF9: =IF(BE9,'Google Finance Stocks'!D33) -> FALSE | BH9: =IF(BE9,'Google Finance Stocks'!E33) -> FALSE | BL9: 20 | BM9: 20 | BN9: ='Exchange Rates'!D19 -> US NOM GNP | BP9: =IF(BM9,'Exchange Rates'!E19) -> Gross National Product (GNP)
L10: 8 | M10: JASO | N10: JA Solar | O10: F | P10: Yahoo | Q10: 8 | R10: FALSE | S10: =IF(R10,'Yahoo Index'!E62,"") ->  | T10: =IF(R10,'Yahoo Index'!F62,"") ->  | X10: 11 | Y10: FALSE | Z10: =IF($F$6,'FRED Indicies'!E23) -> 0 | AB10: =IF($F$6,'FRED Indicies'!D23) -> 0 | AF10: 11 | AG10: FALSE | AH10: =IF(AG10,'Google Index'!E37) -> FALSE | AJ10: =IF(AF10,'Google Index'!F37) -> 0 | AN10: 11 | AO10: FALSE | AP10: =IF(AN10,'Commodity Prices'!C23) ->  | AR10: =IF(AO10,'Commodity Prices'!E23) -> FALSE | AV10: 11 | AW10: 11 | AX10: =IF(AW10,'Yahoo Stocks'!D37) -> 1165.HK | AY10: JASO | AZ10: =IF(AW10,'Yahoo Stocks'!E37) -> Sunfeng | BA10: JA Solar | BB10: F | BC10: Yahoo | BD10: 21 | BE10: FALSE | BF10: =IF(BE10,'Google Finance Stocks'!D34) -> FALSE | BH10: =IF(BE10,'Google Finance Stocks'!E34) -> FALSE | BL10: 21 | BM10: 21 | BN10: ='Exchange Rates'!D20 -> US GDP | BP10: =IF(BM10,'Exchange Rates'!E20) -> Gross Domestic Product (GDP)
L11: 9 | M11: HQCL | N11: Hanwha Q Cells | O11: F | P11: Yahoo | Q11: 9 | R11: FALSE | S11: =IF(R11,'Yahoo Index'!E63,"") ->  | T11: =IF(R11,'Yahoo Index'!F63,"") ->  | X11: 12 | Y11: FALSE | Z11: =IF($F$6,'FRED Indicies'!E24) -> 0 | AB11: =IF($F$6,'FRED Indicies'!D24) -> 0 | AF11: 12 | AG11: FALSE | AH11: =IF(AG11,'Google Index'!E38) -> FALSE | AJ11: =IF(AF11,'Google Index'!F38) -> 0 | AN11: 12 | AO11: FALSE | AP11: =IF(AN11,'Commodity Prices'!C24) ->  | AR11: =IF(AO11,'Commodity Prices'!E24) -> FALSE | AV11: 12 | AW11: 12 | AX11: =IF(AW11,'Yahoo Stocks'!D38) -> 300118.SZ | AY11: HQCL | AZ11: =IF(AW11,'Yahoo Stocks'!E38) -> Risen Energy | BA11: Hanwha Q Cells | BB11: F | BC11: Yahoo | BD11: 22 | BE11: FALSE | BF11: =IF(BE11,'Google Finance Stocks'!D35) -> FALSE | BH11: =IF(BE11,'Google Finance Stocks'!E35) -> FALSE | BL11: 22 | BM11: FALSE | BN11: ='Exchange Rates'!D21 -> 0 | BP11: =IF(BM11,'Exchange Rates'!E21) -> FALSE
F12: TRUE | G12: =H9+1 -> 4 | H12: =Total_Com*F12+G12-1 -> 3 | I12: B | J12: FRED | L12: 10 | M12: YGE | N12: Yingi Green | O12: F | P12: Yahoo | Q12: 10 | R12: FALSE | S12: =IF(R12,'Yahoo Index'!E64,"") ->  | T12: =IF(R12,'Yahoo Index'!F64,"") ->  | X12: 13 | Y12: FALSE | Z12: =IF($F$6,'FRED Indicies'!E25) -> 0 | AB12: =IF($F$6,'FRED Indicies'!D25) -> 0 | AF12: 13 | AG12: FALSE | AH12: =IF(AG12,'Google Index'!E39) -> FALSE | AJ12: =IF(AF12,'Google Index'!F39) -> 0 | AN12: 13 | AO12: FALSE | AP12: =IF(AN12,'Commodity Prices'!C25) ->  | AR12: =IF(AO12,'Commodity Prices'!E25) -> FALSE | AV12: 13 | AW12: 13 | AX12: =IF(AW12,'Yahoo Stocks'!D39) -> 601012.SS | AY12: YGE | AZ12: =IF(AW12,'Yahoo Stocks'!E39) -> Longi Solar | BA12: Yingi Green | BB12: F | BC12: Yahoo | BD12: 23 | BE12: FALSE | BF12: =IF(BE12,'Google Finance Stocks'!D36) -> FALSE | BH12: =IF(BE12,'Google Finance Stocks'!E36) -> FALSE | BL12: 23 | BM12: FALSE | BN12: ='Exchange Rates'!D22 -> 0 | BP12: =IF(BM12,'Exchange Rates'!E22) -> FALSE
L13: 11 | M13: 1165.HK | N13: Sunfeng | O13: F | P13: Yahoo | Q13: 11 | R13: FALSE | S13: =IF(R13,'Yahoo Index'!E65,"") ->  | T13: =IF(R13,'Yahoo Index'!F65,"") ->  | X13: 14 | Y13: FALSE | Z13: =IF($F$6,'FRED Indicies'!E26) -> 0 | AB13: =IF($F$6,'FRED Indicies'!D26) -> 0 | AF13: 14 | AG13: FALSE | AH13: =IF(AG13,'Google Index'!E40) -> FALSE | AJ13: =IF(AF13,'Google Index'!F40) -> 0 | AN13: 14 | AO13: FALSE | AP13: =IF(AN13,'Commodity Prices'!C26) ->  | AR13: =IF(AO13,'Commodity Prices'!E26) -> FALSE | AV13: 14 | AW13: FALSE | AX13: =IF(AW13,'Yahoo Stocks'!D40) -> FALSE | AY13: 1165.HK | AZ13: =IF(AW13,'Yahoo Stocks'!E40) -> FALSE | BA13: Sunfeng | BB13: F | BC13: Yahoo | BD13: 24 | BE13: FALSE | BF13: =IF(BE13,'Google Finance Stocks'!D37) -> FALSE | BH13: =IF(BE13,'Google Finance Stocks'!E37) -> FALSE | BL13: 24 | BM13: FALSE | BN13: ='Exchange Rates'!D23 -> 0 | BP13: =IF(BM13,'Exchange Rates'!E23) -> FALSE
L14: 12 | M14: 300118.SZ | N14: Risen Energy | O14: F | P14: Yahoo | Q14: 12 | R14: FALSE | S14: =IF(R14,'Yahoo Index'!E66,"") ->  | T14: =IF(R14,'Yahoo Index'!F66,"") ->  | X14: 15 | Y14: FALSE | Z14: =IF($F$6,'FRED Indicies'!E27) -> 0 | AB14: =IF($F$6,'FRED Indicies'!D27) -> 0 | AF14: 15 | AG14: FALSE | AH14: =IF(AG14,'Google Index'!E41) -> FALSE | AJ14: =IF(AF14,'Google Index'!F41) -> 0 | AN14: 15 | AO14: FALSE | AP14: =IF(AN14,'Commodity Prices'!C27) ->  | AR14: =IF(AO14,'Commodity Prices'!E27) -> FALSE | AV14: 15 | AW14: FALSE | AX14: =IF(AW14,'Yahoo Stocks'!D41) -> FALSE | AY14: 300118.SZ | AZ14: =IF(AW14,'Yahoo Stocks'!E41) -> FALSE | BA14: Risen Energy | BB14: F | BC14: Yahoo | BD14: 25 | BE14: FALSE | BF14: =IF(BE14,'Google Finance Stocks'!D38) -> FALSE | BH14: =IF(BE14,'Google Finance Stocks'!E38) -> FALSE | BL14: 25 | BM14: FALSE | BN14: ='Exchange Rates'!D24 -> 0 | BP14: =IF(BM14,'Exchange Rates'!E24) -> FALSE
F15: TRUE | G15: =H12+1 -> 4 | H15: =Yahoo_Stock_Tickers*F15+G15-1 -> 13 | I15: F | J15: Yahoo | L15: 13 | M15: 601012.SS | N15: Longi Solar | O15: F | P15: Yahoo | Q15: 13 | R15: FALSE | S15: =IF(R15,'Yahoo Index'!E67,"") ->  | T15: =IF(R15,'Yahoo Index'!F67,"") ->  | X15: 16 | Y15: FALSE | Z15: =IF($F$6,'FRED Indicies'!E28) -> 0 | AB15: =IF($F$6,'FRED Indicies'!D28) -> 0 | AF15: 16 | AG15: FALSE | AH15: =IF(AG15,'Google Index'!E42) -> FALSE | AJ15: =IF(AF15,'Google Index'!F42) -> 0 | AN15: 16 | AO15: FALSE | AP15: =IF(AN15,'Commodity Prices'!C28) ->  | AR15: =IF(AO15,'Commodity Prices'!E28) -> FALSE | AV15: 16 | AW15: FALSE | AX15: =IF(AW15,'Yahoo Stocks'!D42) -> FALSE | AY15: 601012.SS | AZ15: =IF(AW15,'Yahoo Stocks'!E42) -> FALSE | BA15: Longi Solar | BB15: F | BC15: Yahoo | BD15: 26 | BE15: FALSE | BF15: =IF(BE15,'Google Finance Stocks'!D39) -> FALSE | BH15: =IF(BE15,'Google Finance Stocks'!E39) -> FALSE | BL15: 26 | BM15: FALSE | BN15: ='Exchange Rates'!D25 -> 0 | BP15: =IF(BM15,'Exchange Rates'!E25) -> FALSE
L16: 14 | M16: GDP Inf | N16: Implicit Price Deflator | O16: B | P16: FRED | Q16: 14 | R16: FALSE | S16: =IF(R16,'Yahoo Index'!E68,"") ->  | T16: =IF(R16,'Yahoo Index'!F68,"") ->  | X16: 17 | Y16: FALSE | Z16: =IF($F$6,'FRED Indicies'!E29) -> 0 | AB16: =IF($F$6,'FRED Indicies'!D29) -> 0 | AF16: 17 | AG16: FALSE | AH16: =IF(AG16,'Google Index'!E43) -> FALSE | AJ16: =IF(AF16,'Google Index'!F43) -> 0 | AN16: 17 | AO16: FALSE | AP16: =IF(AN16,'Commodity Prices'!C29) ->  | AR16: =IF(AO16,'Commodity Prices'!E29) -> FALSE | AV16: 17 | AW16: FALSE | AX16: =IF(AW16,'Yahoo Stocks'!D43) -> FALSE | AZ16: =IF(AW16,'Yahoo Stocks'!E43) -> FALSE | BD16: 27 | BE16: FALSE | BF16: =IF(BE16,'Google Finance Stocks'!D40) -> FALSE | BH16: =IF(BE16,'Google Finance Stocks'!E40) -> FALSE | BL16: 27 | BM16: FALSE | BN16: ='Exchange Rates'!D26 -> 0 | BO16: GDP Inf | BP16: =IF(BM16,'Exchange Rates'!E26) -> FALSE | BQ16: Implicit Price Deflator | BR16: B | BS16: FRED
L17: 15 | M17: CPI US | N17: Consumer Price Inflation | O17: B | P17: FRED | Q17: 15 | R17: FALSE | S17: =IF(R17,'Yahoo Index'!E69,"") ->  | T17: =IF(R17,'Yahoo Index'!F69,"") ->  | X17: 18 | Y17: FALSE | Z17: =IF($F$6,'FRED Indicies'!E30) -> 0 | AB17: =IF($F$6,'FRED Indicies'!D30) -> 0 | AF17: 18 | AG17: FALSE | AH17: =IF(AG17,'Google Index'!E44) -> FALSE | AJ17: =IF(AF17,'Google Index'!F44) -> 0 | AN17: 18 | AO17: FALSE | AP17: =IF(AN17,'Commodity Prices'!C30) ->  | AR17: =IF(AO17,'Commodity Prices'!E30) -> FALSE | AV17: 18 | AW17: FALSE | AX17: =IF(AW17,'Yahoo Stocks'!D44) -> FALSE | AZ17: =IF(AW17,'Yahoo Stocks'!E44) -> FALSE | BD17: 28 | BE17: FALSE | BF17: =IF(BE17,'Google Finance Stocks'!D41) -> FALSE | BH17: =IF(BE17,'Google Finance Stocks'!E41) -> FALSE | BL17: 28 | BM17: FALSE | BN17: ='Exchange Rates'!D27 -> 0 | BO17: CPI US | BP17: =IF(BM17,'Exchange Rates'!E27) -> FALSE | BQ17: Consumer Price Inflation | BR17: B | BS17: FRED
F18: FALSE | G18: =H15+1 -> 14 | H18: =Google_Tickers*F18+G18-1 -> 13 | I18: D | J18: Google | L18: 16 | M18: Mex | N18: Mexico / U.S. Foreign Exchange Rate (EXMXUS) | O18: B | P18: FRED | Q18: 16 | R18: FALSE | S18: =IF(R18,'Yahoo Index'!E70,"") ->  | T18: =IF(R18,'Yahoo Index'!F70,"") ->  | X18: 19 | Y18: FALSE | Z18: =IF($F$6,'FRED Indicies'!E31) -> 0 | AB18: =IF($F$6,'FRED Indicies'!D31) -> 0 | AF18: 19 | AG18: FALSE | AH18: =IF(AG18,'Google Index'!E45) -> FALSE | AJ18: =IF(AF18,'Google Index'!F45) -> 0 | AN18: 19 | AO18: FALSE | AP18: =IF(AN18,'Commodity Prices'!C31) ->  | AR18: =IF(AO18,'Commodity Prices'!E31) -> FALSE | AV18: 19 | AW18: FALSE | AX18: =IF(AW18,'Yahoo Stocks'!D45) -> FALSE | AZ18: =IF(AW18,'Yahoo Stocks'!E45) -> FALSE | BD18: 29 | BE18: FALSE | BF18: =IF(BE18,'Google Finance Stocks'!D42) -> FALSE | BH18: =IF(BE18,'Google Finance Stocks'!E42) -> FALSE | BL18: 29 | BM18: FALSE | BN18: ='Exchange Rates'!D28 -> 0 | BO18: Mex | BP18: =IF(BM18,'Exchange Rates'!E28) -> FALSE | BQ18: Mexico / U.S. Foreign Exchange Rate (EXMXUS) | BR18: B | BS18: FRED
L19: 17 | M19: INR | N19: India / U.S. Foreign Exchange Rate (DEXINUS) | O19: B | P19: FRED | Q19: 17 | R19: FALSE | S19: =IF(R19,'Yahoo Index'!E71,"") ->  | T19: =IF(R19,'Yahoo Index'!F71,"") ->  | X19: 20 | Y19: FALSE | Z19: =IF($F$6,'FRED Indicies'!E32) -> 0 | AB19: =IF($F$6,'FRED Indicies'!D32) -> 0 | AF19: 20 | AG19: FALSE | AH19: =IF(AG19,'Google Index'!E46) -> FALSE | AJ19: =IF(AF19,'Google Index'!F46) -> 0 | AN19: 20 | AO19: FALSE | AP19: =IF(AN19,'Commodity Prices'!C32) ->  | AR19: =IF(AO19,'Commodity Prices'!E32) -> FALSE | AV19: 20 | AW19: FALSE | AX19: =IF(AW19,'Yahoo Stocks'!D46) -> FALSE | AZ19: =IF(AW19,'Yahoo Stocks'!E46) -> FALSE | BD19: 30 | BE19: FALSE | BF19: =IF(BE19,'Google Finance Stocks'!D43) -> FALSE | BH19: =IF(BE19,'Google Finance Stocks'!E43) -> FALSE | BL19: 30 | BM19: FALSE | BN19: ='Exchange Rates'!D29 -> 0 | BO19: INR | BP19: =IF(BM19,'Exchange Rates'!E29) -> FALSE | BQ19: India / U.S. Foreign Exchange Rate (DEXINUS) | BR19: B | BS19: FRED
L20: 18 | M20: UK | N20: U.S. / U.K. Foreign Exchange Rate (EXUSUK) | O20: B | P20: FRED | Q20: 18 | R20: FALSE | S20: =IF(R20,'Yahoo Index'!E72,"") ->  | T20: =IF(R20,'Yahoo Index'!F72,"") ->  | X20: 21 | Y20: FALSE | Z20: =IF($F$6,'FRED Indicies'!E33) -> 0 | AB20: =IF($F$6,'FRED Indicies'!D33) -> 0 | AF20: 21 | AG20: FALSE | AH20: =IF(AG20,'Google Index'!E47) -> FALSE | AJ20: =IF(AF20,'Google Index'!F47) -> 0 | AN20: 21 | AO20: FALSE | AP20: =IF(AN20,'Commodity Prices'!C33) ->  | AR20: =IF(AO20,'Commodity Prices'!E33) -> FALSE | AV20: 21 | AW20: FALSE | AX20: =IF(AW20,'Yahoo Stocks'!D47) -> FALSE | AZ20: =IF(AW20,'Yahoo Stocks'!E47) -> FALSE | BD20: 31 | BE20: FALSE | BF20: =IF(BE20,'Google Finance Stocks'!D44) -> FALSE | BH20: =IF(BE20,'Google Finance Stocks'!E44) -> FALSE | BL20: 31 | BM20: FALSE | BN20: ='Exchange Rates'!D30 -> 0 | BO20: UK | BP20: =IF(BM20,'Exchange Rates'!E30) -> FALSE | BQ20: U.S. / U.K. Foreign Exchange Rate (EXUSUK) | BR20: B | BS20: FRED
F21: TRUE | G21: =H18+1 -> 14 | H21: ='Exchange Rates'!D5*'Read Stocks'!F21+G21-1 -> 21 | I21: B | J21: FRED | L21: 19 | M21: CFH | N21: Switzerland / U.S. Foreign Exchange Rate (DEXSZUS) | O21: B | P21: FRED | Q21: 19 | R21: FALSE | S21: =IF(R21,'Yahoo Index'!E73,"") ->  | T21: =IF(R21,'Yahoo Index'!F73,"") ->  | X21: 22 | Y21: FALSE | Z21: =IF($F$6,'FRED Indicies'!E34) -> 0 | AB21: =IF($F$6,'FRED Indicies'!D34) -> 0 | AF21: 22 | AG21: FALSE | AH21: =IF(AG21,'Google Index'!E48) -> FALSE | AJ21: =IF(AF21,'Google Index'!F48) -> 0 | AN21: 22 | AO21: FALSE | AP21: =IF(AN21,'Commodity Prices'!C34) ->  | AR21: =IF(AO21,'Commodity Prices'!E34) -> FALSE | AV21: 22 | AW21: FALSE | AX21: =IF(AW21,'Yahoo Stocks'!D48) -> FALSE | AZ21: =IF(AW21,'Yahoo Stocks'!E48) -> FALSE | BD21: 32 | BE21: FALSE | BF21: =IF(BE21,'Google Finance Stocks'!D45) -> FALSE | BH21: =IF(BE21,'Google Finance Stocks'!E45) -> FALSE | BL21: 32 | BM21: FALSE | BN21: ='Exchange Rates'!D31 -> 0 | BO21: CFH | BP21: =IF(BM21,'Exchange Rates'!E31) -> FALSE | BQ21: Switzerland / U.S. Foreign Exchange Rate (DEXSZUS) | BR21: B | BS21: FRED
L22: 20 | M22: US NOM GNP | N22: Gross National Product (GNP) | O22: B | P22: FRED | Q22: 20 | R22: FALSE | S22: =IF(R22,'Yahoo Index'!E74,"") ->  | T22: =IF(R22,'Yahoo Index'!F74,"") ->  | X22: 23 | Y22: FALSE | Z22: =IF($F$6,'FRED Indicies'!E35) -> 0 | AB22: =IF($F$6,'FRED Indicies'!D35) -> 0 | AF22: 23 | AG22: FALSE | AH22: =IF(AG22,'Google Index'!E49) -> FALSE | AJ22: =IF(AF22,'Google Index'!F49) -> 0 | AN22: 23 | AO22: FALSE | AP22: =IF(AN22,'Commodity Prices'!C35) ->  | AR22: =IF(AO22,'Commodity Prices'!E35) -> FALSE | AV22: 23 | AW22: FALSE | AX22: =IF(AW22,'Yahoo Stocks'!D49) -> FALSE | AZ22: =IF(AW22,'Yahoo Stocks'!E49) -> FALSE | BD22: 33 | BE22: FALSE | BF22: =IF(BE22,'Google Finance Stocks'!D46) -> FALSE | BH22: =IF(BE22,'Google Finance Stocks'!E46) -> FALSE | BL22: 33 | BM22: FALSE | BN22: ='Exchange Rates'!D32 -> 0 | BO22: US NOM GNP | BP22: =IF(BM22,'Exchange Rates'!E32) -> FALSE | BQ22: Gross National Product (GNP) | BR22: B | BS22: FRED
L23: 21 | M23: US GDP | N23: Gross Domestic Product (GDP) | O23: B | P23: FRED | Q23: 21 | R23: FALSE | S23: =IF(R23,'Yahoo Index'!E75,"") ->  | T23: =IF(R23,'Yahoo Index'!F75,"") ->  | X23: 24 | Y23: FALSE | Z23: =IF($F$6,'FRED Indicies'!E36) -> 0 | AB23: =IF($F$6,'FRED Indicies'!D36) -> 0 | AF23: 24 | AG23: FALSE | AH23: =IF(AG23,'Google Index'!E50) -> FALSE | AJ23: =IF(AF23,'Google Index'!F50) -> 0 | AN23: 24 | AO23: FALSE | AP23: =IF(AN23,'Commodity Prices'!C36) ->  | AR23: =IF(AO23,'Commodity Prices'!E36) -> FALSE | AV23: 24 | AW23: FALSE | AX23: =IF(AW23,'Yahoo Stocks'!D50) -> FALSE | AZ23: =IF(AW23,'Yahoo Stocks'!E50) -> FALSE | BD23: 34 | BE23: FALSE | BF23: =IF(BE23,'Google Finance Stocks'!D47) -> FALSE | BH23: =IF(BE23,'Google Finance Stocks'!E47) -> FALSE | BL23: 34 | BM23: FALSE | BN23: ='Exchange Rates'!D33 -> 0 | BO23: US GDP | BP23: =IF(BM23,'Exchange Rates'!E33) -> FALSE | BQ23: Gross Domestic Product (GDP) | BR23: B | BS23: FRED
L24: 22 | Q24: 22 | R24: FALSE | S24: =IF(R24,'Yahoo Index'!E76,"") ->  | T24: =IF(R24,'Yahoo Index'!F76,"") ->  | X24: 25 | Y24: FALSE | Z24: =IF($F$6,'FRED Indicies'!E37) -> 0 | AB24: =IF($F$6,'FRED Indicies'!D37) -> 0 | AF24: 25 | AG24: FALSE | AH24: =IF(AG24,'Google Index'!E51) -> FALSE | AJ24: =IF(AF24,'Google Index'!F51) -> 0 | AN24: 25 | AO24: FALSE | AP24: =IF(AN24,'Commodity Prices'!C37) ->  | AR24: =IF(AO24,'Commodity Prices'!E37) -> FALSE | AV24: 25 | AW24: FALSE | AX24: =IF(AW24,'Yahoo Stocks'!D51) -> FALSE | AZ24: =IF(AW24,'Yahoo Stocks'!E51) -> FALSE | BD24: 35 | BE24: FALSE | BF24: =IF(BE24,'Google Finance Stocks'!D48) -> FALSE | BH24: =IF(BE24,'Google Finance Stocks'!E48) -> FALSE | BL24: 35 | BM24: FALSE | BN24: ='Exchange Rates'!D34 -> 0 | BP24: =IF(BM24,'Exchange Rates'!E34) -> FALSE
L25: 23 | Q25: 23 | R25: FALSE | S25: =IF(R25,'Yahoo Index'!E77,"") ->  | T25: =IF(R25,'Yahoo Index'!F77,"") ->  | X25: 26 | Y25: FALSE | Z25: =IF($F$6,'FRED Indicies'!E38) -> 0 | AB25: =IF($F$6,'FRED Indicies'!D38) -> 0 | AF25: 26 | AG25: FALSE | AH25: =IF(AG25,'Google Index'!E52) -> FALSE | AJ25: =IF(AF25,'Google Index'!F52) -> 0 | AN25: 26 | AO25: FALSE | AP25: =IF(AN25,'Commodity Prices'!C38) ->  | AR25: =IF(AO25,'Commodity Prices'!E38) -> FALSE | AV25: 26 | AW25: FALSE | AX25: =IF(AW25,'Yahoo Stocks'!D52) -> FALSE | AZ25: =IF(AW25,'Yahoo Stocks'!E52) -> FALSE | BD25: 36 | BE25: FALSE | BF25: =IF(BE25,'Google Finance Stocks'!D49) -> FALSE | BH25: =IF(BE25,'Google Finance Stocks'!E49) -> FALSE | BL25: 36 | BM25: FALSE | BN25: ='Exchange Rates'!D35 -> 0 | BP25: =IF(BM25,'Exchange Rates'!E35) -> FALSE
L26: 24 | Q26: 24 | R26: FALSE | S26: =IF(R26,'Yahoo Index'!E78,"") ->  | T26: =IF(R26,'Yahoo Index'!F78,"") ->  | X26: 27 | Y26: FALSE | Z26: =IF($F$6,'FRED Indicies'!E39) -> 0 | AB26: =IF($F$6,'FRED Indicies'!D39) -> 0 | AF26: 27 | AG26: FALSE | AH26: =IF(AG26,'Google Index'!E53) -> FALSE | AJ26: =IF(AF26,'Google Index'!F53) -> 0 | AN26: 27 | AO26: FALSE | AP26: =IF(AN26,'Commodity Prices'!C39) ->  | AR26: =IF(AO26,'Commodity Prices'!E39) -> FALSE | AV26: 27 | AW26: FALSE | AX26: =IF(AW26,'Yahoo Stocks'!D53) -> FALSE | AZ26: =IF(AW26,'Yahoo Stocks'!E53) -> FALSE | BD26: 37 | BE26: FALSE | BF26: =IF(BE26,'Google Finance Stocks'!D50) -> FALSE | BH26: =IF(BE26,'Google Finance Stocks'!E50) -> FALSE | BL26: 37 | BM26: FALSE | BN26: ='Exchange Rates'!D36 -> 0 | BP26: =IF(BM26,'Exchange Rates'!E36) -> FALSE
L27: 25 | Q27: 25 | R27: FALSE | S27: =IF(R27,'Yahoo Index'!E79,"") ->  | T27: =IF(R27,'Yahoo Index'!F79,"") ->  | X27: 28 | Y27: FALSE | Z27: =IF($F$6,'FRED Indicies'!E40) -> 0 | AB27: =IF($F$6,'FRED Indicies'!D40) -> 0 | AF27: 28 | AG27: FALSE | AH27: =IF(AG27,'Google Index'!E54) -> FALSE | AJ27: =IF(AF27,'Google Index'!F54) -> 0 | AN27: 28 | AO27: FALSE | AP27: =IF(AN27,'Commodity Prices'!C40) ->  | AR27: =IF(AO27,'Commodity Prices'!E40) -> FALSE | AV27: 28 | AW27: FALSE | AX27: =IF(AW27,'Yahoo Stocks'!D54) -> FALSE | AZ27: =IF(AW27,'Yahoo Stocks'!E54) -> FALSE | BD27: 38 | BE27: FALSE | BF27: =IF(BE27,'Google Finance Stocks'!D51) -> FALSE | BH27: =IF(BE27,'Google Finance Stocks'!E51) -> FALSE | BL27: 38 | BM27: FALSE | BN27: ='Exchange Rates'!D37 -> 0 | BP27: =IF(BM27,'Exchange Rates'!E37) -> FALSE
L28: 26 | Q28: 26 | R28: FALSE | S28: =IF(R28,'Yahoo Index'!E80,"") ->  | T28: =IF(R28,'Yahoo Index'!F80,"") ->  | X28: 29 | Y28: FALSE | Z28: =IF($F$6,'FRED Indicies'!E41) -> 0 | AB28: =IF($F$6,'FRED Indicies'!D41) -> 0 | AF28: 29 | AG28: FALSE | AH28: =IF(AG28,'Google Index'!E55) -> FALSE | AJ28: =IF(AF28,'Google Index'!F55) -> 0 | AN28: 29 | AO28: FALSE | AP28: =IF(AN28,'Commodity Prices'!C41) ->  | AR28: =IF(AO28,'Commodity Prices'!E41) -> FALSE | AV28: 29 | AW28: FALSE | AX28: =IF(AW28,'Yahoo Stocks'!D55) -> FALSE | AZ28: =IF(AW28,'Yahoo Stocks'!E55) -> FALSE | BD28: 39 | BE28: FALSE | BF28: =IF(BE28,'Google Finance Stocks'!D52) -> FALSE | BH28: =IF(BE28,'Google Finance Stocks'!E52) -> FALSE | BL28: 39 | BM28: FALSE | BN28: ='Exchange Rates'!D38 -> 0 | BP28: =IF(BM28,'Exchange Rates'!E38) -> FALSE
L29: 27 | Q29: 27 | R29: FALSE | S29: =IF(R29,'Yahoo Index'!E81,"") ->  | T29: =IF(R29,'Yahoo Index'!F81,"") ->  | X29: 30 | Y29: FALSE | Z29: =IF($F$6,'FRED Indicies'!E42) -> 0 | AB29: =IF($F$6,'FRED Indicies'!D42) -> 0 | AF29: 30 | AG29: FALSE | AH29: =IF(AG29,'Google Index'!E56) -> FALSE | AJ29: =IF(AF29,'Google Index'!F56) -> 0 | AN29: 30 | AO29: FALSE | AP29: =IF(AN29,'Commodity Prices'!C42) ->  | AR29: =IF(AO29,'Commodity Prices'!E42) -> FALSE | AV29: 30 | AW29: FALSE | AX29: =IF(AW29,'Yahoo Stocks'!D56) -> FALSE | AZ29: =IF(AW29,'Yahoo Stocks'!E56) -> FALSE | BD29: 40 | BE29: FALSE | BF29: =IF(BE29,'Google Finance Stocks'!D53) -> FALSE | BH29: =IF(BE29,'Google Finance Stocks'!E53) -> FALSE | BL29: 40 | BM29: FALSE | BN29: ='Exchange Rates'!D39 -> 0 | BP29: =IF(BM29,'Exchange Rates'!E39) -> FALSE
L30: 28 | Q30: 28 | R30: FALSE | S30: =IF(R30,'Yahoo Index'!E82,"") ->  | T30: =IF(R30,'Yahoo Index'!F82,"") ->  | X30: 31 | Y30: FALSE | Z30: =IF($F$6,'FRED Indicies'!E43) -> 0 | AB30: =IF($F$6,'FRED Indicies'!D43) -> 0 | AF30: 31 | AG30: FALSE | AH30: =IF(AG30,'Google Index'!E57) -> FALSE | AJ30: =IF(AF30,'Google Index'!F57) -> 0 | AN30: 31 | AO30: FALSE | AP30: =IF(AN30,'Commodity Prices'!C43) ->  | AR30: =IF(AO30,'Commodity Prices'!E43) -> FALSE | AV30: 31 | AW30: FALSE | AX30: =IF(AW30,'Yahoo Stocks'!D57) -> FALSE | AZ30: =IF(AW30,'Yahoo Stocks'!E57) -> FALSE | BD30: 41 | BE30: FALSE | BF30: =IF(BE30,'Google Finance Stocks'!D54) -> FALSE | BH30: =IF(BE30,'Google Finance Stocks'!E54) -> FALSE | BL30: 41 | BM30: FALSE | BN30: ='Exchange Rates'!D40 -> 0 | BP30: =IF(BM30,'Exchange Rates'!E40) -> FALSE
L31: 29 | Q31: 29 | R31: FALSE | S31: =IF(R31,'Yahoo Index'!E83,"") ->  | T31: =IF(R31,'Yahoo Index'!F83,"") ->  | X31: 32 | Y31: FALSE | Z31: =IF($F$6,'FRED Indicies'!E44) -> 0 | AB31: =IF($F$6,'FRED Indicies'!D44) -> 0 | AF31: 32 | AG31: FALSE | AH31: =IF(AG31,'Google Index'!E58) -> FALSE | AJ31: =IF(AF31,'Google Index'!F58) -> 0 | AN31: 32 | AO31: FALSE | AP31: =IF(AN31,'Commodity Prices'!C44) ->  | AR31: =IF(AO31,'Commodity Prices'!E44) -> FALSE | AV31: 32 | AW31: FALSE | AX31: =IF(AW31,'Yahoo Stocks'!D58) -> FALSE | AZ31: =IF(AW31,'Yahoo Stocks'!E58) -> FALSE | BD31: 42 | BE31: FALSE | BF31: =IF(BE31,'Google Finance Stocks'!D55) -> FALSE | BH31: =IF(BE31,'Google Finance Stocks'!E55) -> FALSE | BL31: 42 | BM31: FALSE | BN31: ='Exchange Rates'!D41 -> 0 | BP31: =IF(BM31,'Exchange Rates'!E41) -> FALSE
L32: 30 | Q32: 30 | R32: FALSE | S32: =IF(R32,'Yahoo Index'!E84,"") ->  | T32: =IF(R32,'Yahoo Index'!F84,"") ->  | X32: 33 | Y32: FALSE | Z32: =IF($F$6,'FRED Indicies'!E45) -> 0 | AB32: =IF($F$6,'FRED Indicies'!D45) -> 0 | AF32: 33 | AG32: FALSE | AH32: =IF(AG32,'Google Index'!E59) -> FALSE | AJ32: =IF(AF32,'Google Index'!F59) -> 0 | AN32: 33 | AO32: FALSE | AP32: =IF(AN32,'Commodity Prices'!C45) ->  | AR32: =IF(AO32,'Commodity Prices'!E45) -> FALSE | AV32: 33 | AW32: FALSE | AX32: =IF(AW32,'Yahoo Stocks'!D59) -> FALSE | AZ32: =IF(AW32,'Yahoo Stocks'!E59) -> FALSE | BD32: 43 | BE32: FALSE | BF32: =IF(BE32,'Google Finance Stocks'!D56) -> FALSE | BH32: =IF(BE32,'Google Finance Stocks'!E56) -> FALSE | BL32: 43 | BM32: FALSE | BN32: ='Exchange Rates'!D42 -> 0 | BP32: =IF(BM32,'Exchange Rates'!E42) -> FALSE
L33: 31 | Q33: 31 | R33: FALSE | S33: =IF(R33,'Yahoo Index'!E85,"") ->  | T33: =IF(R33,'Yahoo Index'!F85,"") ->  | X33: 34 | Y33: FALSE | Z33: =IF($F$6,'FRED Indicies'!E46) -> 0 | AB33: =IF($F$6,'FRED Indicies'!D46) -> 0 | AF33: 34 | AG33: FALSE | AH33: =IF(AG33,'Google Index'!E60) -> FALSE | AJ33: =IF(AF33,'Google Index'!F60) -> 0 | AN33: 34 | AO33: FALSE | AP33: =IF(AN33,'Commodity Prices'!C46) ->  | AR33: =IF(AO33,'Commodity Prices'!E46) -> FALSE | AV33: 34 | AW33: FALSE | AX33: =IF(AW33,'Yahoo Stocks'!D60) -> FALSE | AZ33: =IF(AW33,'Yahoo Stocks'!E60) -> FALSE | BD33: 44 | BE33: FALSE | BF33: =IF(BE33,'Google Finance Stocks'!D57) -> FALSE | BH33: =IF(BE33,'Google Finance Stocks'!E57) -> FALSE | BL33: 44 | BM33: FALSE | BN33: ='Exchange Rates'!D43 -> 0 | BP33: =IF(BM33,'Exchange Rates'!E43) -> FALSE
L34: 32 | Q34: 32 | R34: FALSE | S34: =IF(R34,'Yahoo Index'!E86,"") ->  | T34: =IF(R34,'Yahoo Index'!F86,"") ->  | X34: 35 | Y34: FALSE | Z34: =IF($F$6,'FRED Indicies'!E47) -> 0 | AB34: =IF($F$6,'FRED Indicies'!D47) -> 0 | AF34: 35 | AG34: FALSE | AH34: =IF(AG34,'Google Index'!E61) -> FALSE | AJ34: =IF(AF34,'Google Index'!F61) -> 0 | AN34: 35 | AO34: FALSE | AP34: =IF(AN34,'Commodity Prices'!C47) ->  | AR34: =IF(AO34,'Commodity Prices'!E47) -> FALSE | AV34: 35 | AW34: FALSE | AX34: =IF(AW34,'Yahoo Stocks'!D61) -> FALSE | AZ34: =IF(AW34,'Yahoo Stocks'!E61) -> FALSE | BD34: 45 | BE34: FALSE | BF34: =IF(BE34,'Google Finance Stocks'!D58) -> FALSE | BH34: =IF(BE34,'Google Finance Stocks'!E58) -> FALSE | BL34: 45 | BM34: FALSE | BN34: ='Exchange Rates'!D44 -> 0 | BP34: =IF(BM34,'Exchange Rates'!E44) -> FALSE
L35: 33 | Q35: 33 | R35: FALSE | S35: =IF(R35,'Yahoo Index'!E87,"") ->  | T35: =IF(R35,'Yahoo Index'!F87,"") ->  | X35: 36 | Y35: =IF(AND($F$6,X35<=$H$6),X35) -> FALSE | Z35: =IF($F$6,'FRED Indicies'!E48) -> 0 | AA35: =IFERROR(INDEX(Z:Z,MATCH(L35,Y:Y,0)),"") ->  | AB35: =IF($F$6,'FRED Indicies'!D48) -> 0 | AC35: =IFERROR(INDEX(AB:AB,MATCH(L35,Y:Y,0)),"") ->  | AF35: 36 | AG35: FALSE | AH35: =IF(AG35,'Google Index'!E62) -> FALSE | AI35: =IFERROR(INDEX(AH:AH,MATCH(Q35,AG:AG,0)),"") ->  | AJ35: =IF(AF35,'Google Index'!F62) -> 0 | AK35: =IFERROR(INDEX(AJ:AJ,MATCH(Q35,AG:AG,0)),"") ->  | AN35: 36 | AO35: FALSE | AP35: =IF(AN35,'Commodity Prices'!C48) ->  | AQ35: =IFERROR(INDEX(AP:AP,MATCH(L35,AO:AO,0)),"") ->  | AR35: =IF(AO35,'Commodity Prices'!E48) -> FALSE | AS35: =IFERROR(INDEX(AR:AR,MATCH(L35,AO:AO,0)),"") ->  | AV35: 36 | AW35: FALSE | AX35: =IF(AW35,'Yahoo Stocks'!D62) -> FALSE | AZ35: =IF(AW35,'Yahoo Stocks'!E62) -> FALSE | BD35: 46 | BE35: FALSE | BF35: =IF(BE35,'Google Finance Stocks'!D59) -> FALSE | BH35: =IF(BE35,'Google Finance Stocks'!E59) -> FALSE | BL35: 46 | BM35: FALSE | BN35: ='Exchange Rates'!D45 -> 0 | BP35: =IF(BM35,'Exchange Rates'!E45) -> FALSE
L36: 34 | Q36: 34 | R36: FALSE | S36: =IF(R36,'Yahoo Index'!E88,"") ->  | T36: =IF(R36,'Yahoo Index'!F88,"") ->  | X36: 37 | Y36: FALSE | Z36: =IF($F$6,'FRED Indicies'!E49) -> 0 | AB36: =IF($F$6,'FRED Indicies'!D49) -> 0 | AF36: 37 | AG36: FALSE | AH36: =IF(AG36,'Google Index'!E63) -> FALSE | AJ36: =IF(AF36,'Google Index'!F63) -> 0 | AN36: 37 | AO36: FALSE | AP36: =IF(AN36,'Commodity Prices'!C49) ->  | AR36: =IF(AO36,'Commodity Prices'!E49) -> FALSE | AV36: 37 | AW36: FALSE | AX36: =IF(AW36,'Yahoo Stocks'!D63) -> FALSE | AZ36: =IF(AW36,'Yahoo Stocks'!E63) -> FALSE | BD36: 47 | BE36: FALSE | BF36: =IF(BE36,'Google Finance Stocks'!D60) -> FALSE | BH36: =IF(BE36,'Google Finance Stocks'!E60) -> FALSE | BL36: 47 | BM36: FALSE | BN36: ='Exchange Rates'!D46 -> 0 | BP36: =IF(BM36,'Exchange Rates'!E46) -> FALSE
L37: 35 | Q37: 35 | R37: FALSE | S37: =IF(R37,'Yahoo Index'!E89,"") ->  | T37: =IF(R37,'Yahoo Index'!F89,"") ->  | X37: 38 | Y37: FALSE | Z37: =IF($F$6,'FRED Indicies'!E50) -> 0 | AB37: =IF($F$6,'FRED Indicies'!D50) -> 0 | AF37: 38 | AG37: FALSE | AH37: =IF(AG37,'Google Index'!E64) -> FALSE | AJ37: =IF(AF37,'Google Index'!F64) -> 0 | AN37: 38 | AO37: FALSE | AP37: =IF(AN37,'Commodity Prices'!C50) ->  | AR37: =IF(AO37,'Commodity Prices'!E50) -> FALSE | AV37: 38 | AW37: FALSE | AX37: =IF(AW37,'Yahoo Stocks'!D64) -> FALSE | AZ37: =IF(AW37,'Yahoo Stocks'!E64) -> FALSE | BD37: 48 | BE37: FALSE | BF37: =IF(BE37,'Google Finance Stocks'!D61) -> FALSE | BH37: =IF(BE37,'Google Finance Stocks'!E61) -> FALSE | BL37: 48 | BM37: FALSE | BN37: ='Exchange Rates'!D47 -> 0 | BP37: =IF(BM37,'Exchange Rates'!E47) -> FALSE
L38: 36 | Q38: 36 | R38: FALSE | S38: =IF(R38,'Yahoo Index'!E90,"") ->  | T38: =IF(R38,'Yahoo Index'!F90,"") ->  | X38: 39 | Y38: FALSE | Z38: =IF($F$6,'FRED Indicies'!E51) -> 0 | AB38: =IF($F$6,'FRED Indicies'!D51) -> 0 | AF38: 39 | AG38: FALSE | AH38: =IF(AG38,'Google Index'!E65) -> FALSE | AJ38: =IF(AF38,'Google Index'!F65) -> 0 | AN38: 39 | AO38: FALSE | AP38: =IF(AN38,'Commodity Prices'!C51) ->  | AR38: =IF(AO38,'Commodity Prices'!E51) -> FALSE | AV38: 39 | AW38: FALSE | AX38: =IF(AW38,'Yahoo Stocks'!D65) -> FALSE | AZ38: =IF(AW38,'Yahoo Stocks'!E65) -> FALSE | BD38: 49 | BE38: FALSE | BF38: =IF(BE38,'Google Finance Stocks'!D62) -> FALSE | BH38: =IF(BE38,'Google Finance Stocks'!E62) -> FALSE | BL38: 49 | BM38: FALSE | BN38: ='Exchange Rates'!D48 -> 0 | BP38: =IF(BM38,'Exchange Rates'!E48) -> FALSE
L39: 37 | Q39: 37 | R39: FALSE | S39: =IF(R39,'Yahoo Index'!E91,"") ->  | T39: =IF(R39,'Yahoo Index'!F91,"") ->  | X39: 40 | Y39: FALSE | Z39: =IF($F$6,'FRED Indicies'!E52) -> 0 | AB39: =IF($F$6,'FRED Indicies'!D52) -> 0 | AF39: 40 | AG39: FALSE | AH39: =IF(AG39,'Google Index'!E66) -> FALSE | AJ39: =IF(AF39,'Google Index'!F66) -> 0 | AN39: 40 | AO39: FALSE | AP39: =IF(AN39,'Commodity Prices'!C52) ->  | AR39: =IF(AO39,'Commodity Prices'!E52) -> FALSE | AV39: 40 | AW39: FALSE | AX39: =IF(AW39,'Yahoo Stocks'!D66) -> FALSE | AZ39: =IF(AW39,'Yahoo Stocks'!E66) -> FALSE | BD39: 50 | BE39: FALSE | BF39: =IF(BE39,'Google Finance Stocks'!D63) -> FALSE | BH39: =IF(BE39,'Google Finance Stocks'!E63) -> FALSE | BL39: 50 | BM39: FALSE | BN39: ='Exchange Rates'!D49 -> 0 | BP39: =IF(BM39,'Exchange Rates'!E49) -> FALSE
L40: 38 | Q40: 38 | R40: FALSE | S40: =IF(R40,'Yahoo Index'!E92,"") ->  | T40: =IF(R40,'Yahoo Index'!F92,"") ->  | X40: 41 | Y40: FALSE | Z40: =IF($F$6,'FRED Indicies'!E53) -> 0 | AB40: =IF($F$6,'FRED Indicies'!D53) -> 0 | AF40: 41 | AG40: FALSE | AH40: =IF(AG40,'Google Index'!E67) -> FALSE | AJ40: =IF(AF40,'Google Index'!F67) -> 0 | AN40: 41 | AO40: FALSE | AP40: =IF(AN40,'Commodity Prices'!C53) ->  | AR40: =IF(AO40,'Commodity Prices'!E53) -> FALSE | AV40: 41 | AW40: FALSE | AX40: =IF(AW40,'Yahoo Stocks'!D67) -> FALSE | AZ40: =IF(AW40,'Yahoo Stocks'!E67) -> FALSE | BD40: 51 | BE40: FALSE | BF40: =IF(BE40,'Google Finance Stocks'!D64) -> FALSE | BH40: =IF(BE40,'Google Finance Stocks'!E64) -> FALSE | BL40: 51 | BM40: FALSE | BN40: ='Exchange Rates'!D50 -> 0 | BP40: =IF(BM40,'Exchange Rates'!E50) -> FALSE
L41: 39 | Q41: 39 | R41: FALSE | S41: =IF(R41,'Yahoo Index'!E93,"") ->  | T41: =IF(R41,'Yahoo Index'!F93,"") ->  | X41: 42 | Y41: FALSE | Z41: =IF($F$6,'FRED Indicies'!E54) -> 0 | AB41: =IF($F$6,'FRED Indicies'!D54) -> 0 | AF41: 42 | AG41: FALSE | AH41: =IF(AG41,'Google Index'!E68) -> FALSE | AJ41: =IF(AF41,'Google Index'!F68) -> 0 | AN41: 42 | AO41: FALSE | AP41: =IF(AN41,'Commodity Prices'!C54) ->  | AR41: =IF(AO41,'Commodity Prices'!E54) -> FALSE | AV41: 42 | AW41: FALSE | AX41: =IF(AW41,'Yahoo Stocks'!D68) -> FALSE | AZ41: =IF(AW41,'Yahoo Stocks'!E68) -> FALSE | BD41: 52 | BE41: FALSE | BF41: =IF(BE41,'Google Finance Stocks'!D65) -> FALSE | BH41: =IF(BE41,'Google Finance Stocks'!E65) -> FALSE | BL41: 52 | BM41: FALSE | BN41: ='Exchange Rates'!D51 -> 0 | BP41: =IF(BM41,'Exchange Rates'!E51) -> FALSE
L42: 40 | Q42: 40 | R42: FALSE | S42: =IF(R42,'Yahoo Index'!E94,"") ->  | T42: =IF(R42,'Yahoo Index'!F94,"") ->  | X42: 43 | Y42: FALSE | Z42: =IF($F$6,'FRED Indicies'!E55) -> 0 | AB42: =IF($F$6,'FRED Indicies'!D55) -> 0 | AF42: 43 | AG42: FALSE | AH42: =IF(AG42,'Google Index'!E69) -> FALSE | AJ42: =IF(AF42,'Google Index'!F69) -> 0 | AN42: 43 | AO42: FALSE | AP42: =IF(AN42,'Commodity Prices'!C55) ->  | AR42: =IF(AO42,'Commodity Prices'!E55) -> FALSE | AV42: 43 | AW42: FALSE | AX42: =IF(AW42,'Yahoo Stocks'!D69) -> FALSE | AZ42: =IF(AW42,'Yahoo Stocks'!E69) -> FALSE | BD42: 53 | BE42: FALSE | BF42: =IF(BE42,'Google Finance Stocks'!D66) -> FALSE | BH42: =IF(BE42,'Google Finance Stocks'!E66) -> FALSE | BL42: 53 | BM42: FALSE | BN42: ='Exchange Rates'!D52 -> 0 | BP42: =IF(BM42,'Exchange Rates'!E52) -> FALSE
L43: 41 | Q43: 41 | R43: FALSE | S43: =IF(R43,'Yahoo Index'!E95,"") ->  | T43: =IF(R43,'Yahoo Index'!F95,"") ->  | X43: 44 | Y43: FALSE | Z43: =IF($F$6,'FRED Indicies'!E56) -> 0 | AB43: =IF($F$6,'FRED Indicies'!D56) -> 0 | AF43: 44 | AG43: FALSE | AH43: =IF(AG43,'Google Index'!E70) -> FALSE | AJ43: =IF(AF43,'Google Index'!F70) -> 0 | AN43: 44 | AO43: FALSE | AP43: =IF(AN43,'Commodity Prices'!C56) ->  | AR43: =IF(AO43,'Commodity Prices'!E56) -> FALSE | AV43: 44 | AW43: FALSE | AX43: =IF(AW43,'Yahoo Stocks'!D70) -> FALSE | AZ43: =IF(AW43,'Yahoo Stocks'!E70) -> FALSE | BD43: 54 | BE43: FALSE | BF43: =IF(BE43,'Google Finance Stocks'!D67) -> FALSE | BH43: =IF(BE43,'Google Finance Stocks'!E67) -> FALSE | BL43: 54 | BM43: FALSE | BN43: ='Exchange Rates'!D53 -> 0 | BP43: =IF(BM43,'Exchange Rates'!E53) -> FALSE
L44: 42 | Q44: 42 | R44: FALSE | S44: =IF(R44,'Yahoo Index'!E96,"") ->  | T44: =IF(R44,'Yahoo Index'!F96,"") ->  | X44: 45 | Y44: FALSE | Z44: =IF($F$6,'FRED Indicies'!E57) -> 0 | AB44: =IF($F$6,'FRED Indicies'!D57) -> 0 | AF44: 45 | AG44: FALSE | AH44: =IF(AG44,'Google Index'!E71) -> FALSE | AJ44: =IF(AF44,'Google Index'!F71) -> 0 | AN44: 45 | AO44: FALSE | AP44: =IF(AN44,'Commodity Prices'!C57) ->  | AR44: =IF(AO44,'Commodity Prices'!E57) -> FALSE | AV44: 45 | AW44: FALSE | AX44: =IF(AW44,'Yahoo Stocks'!D71) -> FALSE | AZ44: =IF(AW44,'Yahoo Stocks'!E71) -> FALSE | BD44: 55 | BE44: FALSE | BF44: =IF(BE44,'Google Finance Stocks'!D68) -> FALSE | BH44: =IF(BE44,'Google Finance Stocks'!E68) -> FALSE | BL44: 55 | BM44: FALSE | BN44: ='Exchange Rates'!D54 -> 0 | BP44: =IF(BM44,'Exchange Rates'!E54) -> FALSE
L45: 43 | Q45: 43 | R45: FALSE | S45: =IF(R45,'Yahoo Index'!E97,"") ->  | T45: =IF(R45,'Yahoo Index'!F97,"") ->  | X45: 46 | Y45: FALSE | Z45: =IF($F$6,'FRED Indicies'!E58) -> 0 | AB45: =IF($F$6,'FRED Indicies'!D58) -> 0 | AF45: 46 | AG45: FALSE | AH45: =IF(AG45,'Google Index'!E72) -> FALSE | AJ45: =IF(AF45,'Google Index'!F72) -> 0 | AN45: 46 | AO45: FALSE | AP45: =IF(AN45,'Commodity Prices'!C58) ->  | AR45: =IF(AO45,'Commodity Prices'!E58) -> FALSE | AV45: 46 | AW45: FALSE | AX45: =IF(AW45,'Yahoo Stocks'!D72) -> FALSE | AZ45: =IF(AW45,'Yahoo Stocks'!E72) -> FALSE | BD45: 56 | BE45: FALSE | BF45: =IF(BE45,'Google Finance Stocks'!D69) -> FALSE | BH45: =IF(BE45,'Google Finance Stocks'!E69) -> FALSE | BL45: 56 | BM45: FALSE | BN45: ='Exchange Rates'!D55 -> 0 | BP45: =IF(BM45,'Exchange Rates'!E55) -> FALSE
L46: 44 | Q46: 44 | R46: FALSE | S46: =IF(R46,'Yahoo Index'!E98,"") ->  | T46: =IF(R46,'Yahoo Index'!F98,"") ->  | X46: 47 | Y46: FALSE | Z46: =IF($F$6,'FRED Indicies'!E59) -> 0 | AB46: =IF($F$6,'FRED Indicies'!D59) -> 0 | AF46: 47 | AG46: FALSE | AH46: =IF(AG46,'Google Index'!E73) -> FALSE | AJ46: =IF(AF46,'Google Index'!F73) -> 0 | AN46: 47 | AO46: FALSE | AP46: =IF(AN46,'Commodity Prices'!C59) -> 0 | AR46: =IF(AO46,'Commodity Prices'!E59) -> FALSE | AV46: 47 | AW46: FALSE | AX46: =IF(AW46,'Yahoo Stocks'!D73) -> FALSE | AZ46: =IF(AW46,'Yahoo Stocks'!E73) -> FALSE | BD46: 57 | BE46: FALSE | BF46: =IF(BE46,'Google Finance Stocks'!D70) -> FALSE | BH46: =IF(BE46,'Google Finance Stocks'!E70) -> FALSE | BL46: 57 | BM46: FALSE | BN46: ='Exchange Rates'!D56 -> 0 | BP46: =IF(BM46,'Exchange Rates'!E56) -> FALSE
L47: 45 | Q47: 45 | R47: FALSE | S47: =IF(R47,'Yahoo Index'!E99,"") ->  | T47: =IF(R47,'Yahoo Index'!F99,"") ->  | X47: 48 | Y47: FALSE | Z47: =IF($F$6,'FRED Indicies'!E60) -> 0 | AB47: =IF($F$6,'FRED Indicies'!D60) -> 0 | AF47: 48 | AG47: FALSE | AH47: =IF(AG47,'Google Index'!E74) -> FALSE | AJ47: =IF(AF47,'Google Index'!F74) -> 0 | AN47: 48 | AO47: FALSE | AP47: =IF(AN47,'Commodity Prices'!C60) -> 0 | AR47: =IF(AO47,'Commodity Prices'!E60) -> FALSE | AV47: 48 | AW47: FALSE | AX47: =IF(AW47,'Yahoo Stocks'!D74) -> FALSE | AZ47: =IF(AW47,'Yahoo Stocks'!E74) -> FALSE | BD47: 58 | BE47: FALSE | BF47: =IF(BE47,'Google Finance Stocks'!D71) -> FALSE | BH47: =IF(BE47,'Google Finance Stocks'!E71) -> FALSE | BL47: 58 | BM47: FALSE | BN47: ='Exchange Rates'!D57 -> 0 | BP47: =IF(BM47,'Exchange Rates'!E57) -> FALSE
L48: 46 | Q48: 46 | R48: FALSE | S48: =IF(R48,'Yahoo Index'!E100,"") ->  | T48: =IF(R48,'Yahoo Index'!F100,"") ->  | X48: 49 | Y48: FALSE | Z48: =IF($F$6,'FRED Indicies'!E61) -> 0 | AB48: =IF($F$6,'FRED Indicies'!D61) -> 0 | AF48: 49 | AG48: FALSE | AH48: =IF(AG48,'Google Index'!E75) -> FALSE | AJ48: =IF(AF48,'Google Index'!F75) -> 0 | AN48: 49 | AO48: FALSE | AP48: =IF(AN48,'Commodity Prices'!C61) -> 0 | AR48: =IF(AO48,'Commodity Prices'!E61) -> FALSE | AV48: 49 | AW48: FALSE | AX48: =IF(AW48,'Yahoo Stocks'!D75) -> FALSE | AZ48: =IF(AW48,'Yahoo Stocks'!E75) -> FALSE | BD48: 59 | BE48: FALSE | BF48: =IF(BE48,'Google Finance Stocks'!D72) -> FALSE | BH48: =IF(BE48,'Google Finance Stocks'!E72) -> FALSE | BL48: 59 | BM48: FALSE | BN48: ='Exchange Rates'!D58 -> 0 | BP48: =IF(BM48,'Exchange Rates'!E58) -> FALSE
L49: 47 | Q49: 47 | R49: FALSE | S49: =IF(R49,'Yahoo Index'!E101,"") ->  | T49: =IF(R49,'Yahoo Index'!F101,"") ->  | X49: 50 | Y49: FALSE | Z49: =IF($F$6,'FRED Indicies'!E62) -> 0 | AB49: =IF($F$6,'FRED Indicies'!D62) -> 0 | AF49: 50 | AG49: FALSE | AH49: =IF(AG49,'Google Index'!E76) -> FALSE | AJ49: =IF(AF49,'Google Index'!F76) -> 0 | AN49: 50 | AO49: FALSE | AP49: =IF(AN49,'Commodity Prices'!C62) -> 0 | AR49: =IF(AO49,'Commodity Prices'!E62) -> FALSE | AV49: 50 | AW49: FALSE | AX49: =IF(AW49,'Yahoo Stocks'!D76) -> FALSE | AZ49: =IF(AW49,'Yahoo Stocks'!E76) -> FALSE | BD49: 60 | BE49: FALSE | BF49: =IF(BE49,'Google Finance Stocks'!D73) -> FALSE | BH49: =IF(BE49,'Google Finance Stocks'!E73) -> FALSE | BL49: 60 | BM49: FALSE | BN49: ='Exchange Rates'!D59 -> 0 | BP49: =IF(BM49,'Exchange Rates'!E59) -> FALSE
L50: 48 | Q50: 48 | R50: FALSE | S50: =IF(R50,'Yahoo Index'!E102,"") ->  | T50: =IF(R50,'Yahoo Index'!F102,"") ->  | X50: 51 | Y50: FALSE | Z50: =IF($F$6,'FRED Indicies'!E63) -> 0 | AB50: =IF($F$6,'FRED Indicies'!D63) -> 0 | AF50: 51 | AG50: FALSE | AH50: =IF(AG50,'Google Index'!E77) -> FALSE | AJ50: =IF(AF50,'Google Index'!F77) -> 0 | AN50: 51 | AO50: FALSE | AP50: =IF(AN50,'Commodity Prices'!C63) -> 0 | AR50: =IF(AO50,'Commodity Prices'!E63) -> FALSE | AV50: 51 | AW50: FALSE | AX50: =IF(AW50,'Yahoo Stocks'!D77) -> FALSE | AZ50: =IF(AW50,'Yahoo Stocks'!E77) -> FALSE | BD50: 61 | BE50: FALSE | BF50: =IF(BE50,'Google Finance Stocks'!D74) -> FALSE | BH50: =IF(BE50,'Google Finance Stocks'!E74) -> FALSE | BL50: 61 | BM50: FALSE | BN50: ='Exchange Rates'!D60 -> 0 | BP50: =IF(BM50,'Exchange Rates'!E60) -> FALSE
L51: 49 | Q51: 49 | R51: FALSE | S51: =IF(R51,'Yahoo Index'!E103,"") ->  | T51: =IF(R51,'Yahoo Index'!F103,"") ->  | X51: 52 | Y51: FALSE | Z51: =IF($F$6,'FRED Indicies'!E64) -> 0 | AB51: =IF($F$6,'FRED Indicies'!D64) -> 0 | AF51: 52 | AG51: FALSE | AH51: =IF(AG51,'Google Index'!E78) -> FALSE | AJ51: =IF(AF51,'Google Index'!F78) -> 0 | AN51: 52 | AO51: FALSE | AP51: =IF(AN51,'Commodity Prices'!C64) -> 0 | AR51: =IF(AO51,'Commodity Prices'!E64) -> FALSE | AV51: 52 | AW51: FALSE | AX51: =IF(AW51,'Yahoo Stocks'!D78) -> FALSE | AZ51: =IF(AW51,'Yahoo Stocks'!E78) -> FALSE | BD51: 62 | BE51: FALSE | BF51: =IF(BE51,'Google Finance Stocks'!D75) -> FALSE | BH51: =IF(BE51,'Google Finance Stocks'!E75) -> FALSE | BL51: 62 | BM51: FALSE | BN51: ='Exchange Rates'!D61 -> 0 | BP51: =IF(BM51,'Exchange Rates'!E61) -> FALSE
L52: 50 | Q52: 50 | R52: FALSE | S52: =IF(R52,'Yahoo Index'!E104,"") ->  | T52: =IF(R52,'Yahoo Index'!F104,"") ->  | X52: 53 | Y52: FALSE | Z52: =IF($F$6,'FRED Indicies'!E65) -> 0 | AB52: =IF($F$6,'FRED Indicies'!D65) -> 0 | AF52: 53 | AG52: FALSE | AH52: =IF(AG52,'Google Index'!E79) -> FALSE | AJ52: =IF(AF52,'Google Index'!F79) -> 0 | AN52: 53 | AO52: FALSE | AP52: =IF(AN52,'Commodity Prices'!C65) -> 0 | AR52: =IF(AO52,'Commodity Prices'!E65) -> FALSE | AV52: 53 | AW52: FALSE | AX52: =IF(AW52,'Yahoo Stocks'!D79) -> FALSE | AZ52: =IF(AW52,'Yahoo Stocks'!E79) -> FALSE | BD52: 63 | BE52: FALSE | BF52: =IF(BE52,'Google Finance Stocks'!D76) -> FALSE | BH52: =IF(BE52,'Google Finance Stocks'!E76) -> FALSE | BL52: 63 | BM52: FALSE | BN52: ='Exchange Rates'!D62 -> 0 | BP52: =IF(BM52,'Exchange Rates'!E62) -> FALSE
L53: 51 | M53: =S53&AA53&AI53&AQ53&AY53&BG53&BO53 ->  | N53: =T53&AC53&AK53&AS53&BA53&BI53&BQ53 ->  | O53: =U53&AD53&AL53&AT53&BB53&BJ53&BR53 ->  | P53: =V53&AE53&AM53&AU53&BC53&BK53&BS53 ->  | Q53: 51 | R53: =IF(AND($F$3,Q53<=$H$3),Q53) -> FALSE | S53: =IF(R53,'Yahoo Index'!E105,"") ->  | T53: =IF(R53,'Yahoo Index'!F105,"") ->  | U53: =IF(R53,$I$3,"") ->  | V53: =IF(R53,$J$3,"") ->  | X53: 54 | Y53: =IF(AND($F$6,X53<=$H$6),X53) -> FALSE | Z53: =IF($F$6,'FRED Indicies'!E66) -> 0 | AA53: =IFERROR(INDEX(Z:Z,MATCH(L53,Y:Y,0)),"") ->  | AB53: =IF($F$6,'FRED Indicies'!D66) -> 0 | AC53: =IFERROR(INDEX(AB:AB,MATCH(L53,Y:Y,0)),"") ->  | AD53: =IF(AA53<>"",$I$6,"") ->  | AE53: =IF(AA53<>"",$J$6,"") ->  | AF53: 54 | AG53: =IF(AND($F$9,AF53<=$H$9),AF53) -> FALSE | AH53: =IF(AG53,'Google Index'!E80) -> FALSE | AI53: =IFERROR(INDEX(AH:AH,MATCH(Q53,AG:AG,0)),"") ->  | AJ53: =IF(AF53,'Google Index'!F80) -> 0 | AK53: =IFERROR(INDEX(AJ:AJ,MATCH(Q53,AG:AG,0)),"") ->  | AL53: =IF(AI53<>"",$I$6,"") ->  | AM53: =IF(AK53<>"",$J$6,"") ->  | AN53: 54 | AO53: =IF(AND($F$12,AN53<=$H$12),AN53) -> FALSE | AP53: =IF(AN53,'Commodity Prices'!C66) -> 0 | AQ53: =IFERROR(INDEX(AP:AP,MATCH(L53,AO:AO,0)),"") ->  | AR53: =IF(AO53,'Commodity Prices'!E66) -> FALSE | AS53: =IFERROR(INDEX(AR:AR,MATCH(L53,AO:AO,0)),"") ->  | AT53: =IF(AQ53<>"",$I$12,"") ->  | AU53: =IF(AS53<>"",$J$12,"") ->  | AV53: 54 | AW53: =IF(AND($F$15,AV53<=$H$15),AV53) -> FALSE | AX53: =IF(AW53,'Yahoo Stocks'!D80) -> FALSE | AZ53: =IF(AW53,'Yahoo Stocks'!E80) -> FALSE | BD53: 64 | BE53: =IF(AND($F$18,BD53<=$H$18),BD53) -> FALSE | BF53: =IF(BE53,'Google Finance Stocks'!D77) -> FALSE | BG53: =IFERROR(INDEX(BF:BF,MATCH(Q53,BE:BE,0)),"") ->  | BH53: =IF(BE53,'Google Finance Stocks'!E77) -> FALSE | BI53: =IFERROR(INDEX(BH:BH,MATCH(Q53,BE:BE,0)),"") ->  | BJ53: =IF(BI53<>"",$I$18,"") ->  | BK53: =IF(BI53<>"",$J$18,"") ->  | BL53: 64 | BM53: =IF(AND($F$21,BL53<=$H$21),BL53) -> FALSE | BN53: ='Exchange Rates'!D63 -> 0 | BO53: =IFERROR(INDEX(BN:BN,MATCH(L53,BM:BM,0)),"") ->  | BP53: =IF(BM53,'Exchange Rates'!E63) -> FALSE | BQ53: =IFERROR(INDEX(BP:BP,MATCH(L53,BM:BM,0)),"") ->  | BR53: =IF(BQ53<>"",$I$21,"") ->  | BS53: =IF(BQ53<>"",$J$21,"") -> 
L54: 52 | Q54: 52 | R54: FALSE | S54: =IF(R54,'Yahoo Index'!E106,"") ->  | T54: =IF(R54,'Yahoo Index'!F106,"") ->  | X54: 55 | Y54: FALSE | Z54: =IF($F$6,'FRED Indicies'!E67) -> 0 | AB54: =IF($F$6,'FRED Indicies'!D67) -> 0 | AF54: 55 | AG54: FALSE | AH54: =IF(AG54,'Google Index'!E81) -> FALSE | AJ54: =IF(AF54,'Google Index'!F81) -> 0 | AN54: 55 | AO54: FALSE | AP54: =IF(AN54,'Commodity Prices'!C67) -> 0 | AR54: =IF(AO54,'Commodity Prices'!E67) -> FALSE | AV54: 55 | AW54: FALSE | AX54: =IF(AW54,'Yahoo Stocks'!D81) -> FALSE | AZ54: =IF(AW54,'Yahoo Stocks'!E81) -> FALSE | BD54: 65 | BE54: FALSE | BF54: =IF(BE54,'Google Finance Stocks'!D78) -> FALSE | BH54: =IF(BE54,'Google Finance Stocks'!E78) -> FALSE | BL54: 65 | BM54: FALSE | BN54: ='Exchange Rates'!D64 -> 0 | BP54: =IF(BM54,'Exchange Rates'!E64) -> FALSE
L55: 53 | Q55: 53 | R55: FALSE | S55: =IF(R55,'Yahoo Index'!E107,"") ->  | T55: =IF(R55,'Yahoo Index'!F107,"") ->  | X55: 56 | Y55: FALSE | Z55: =IF($F$6,'FRED Indicies'!E68) -> 0 | AB55: =IF($F$6,'FRED Indicies'!D68) -> 0 | AF55: 56 | AG55: FALSE | AH55: =IF(AG55,'Google Index'!E82) -> FALSE | AJ55: =IF(AF55,'Google Index'!F82) -> 0 | AN55: 56 | AO55: FALSE | AP55: =IF(AN55,'Commodity Prices'!C68) -> 0 | AR55: =IF(AO55,'Commodity Prices'!E68) -> FALSE | AV55: 56 | AW55: FALSE | AX55: =IF(AW55,'Yahoo Stocks'!D82) -> FALSE | AZ55: =IF(AW55,'Yahoo Stocks'!E82) -> FALSE | BD55: 66 | BE55: FALSE | BF55: =IF(BE55,'Google Finance Stocks'!D79) -> FALSE | BH55: =IF(BE55,'Google Finance Stocks'!E79) -> FALSE | BL55: 66 | BM55: FALSE | BN55: ='Exchange Rates'!D65 -> 0 | BP55: =IF(BM55,'Exchange Rates'!E65) -> FALSE
L56: 54 | Q56: 54 | R56: FALSE | S56: =IF(R56,'Yahoo Index'!E108,"") ->  | T56: =IF(R56,'Yahoo Index'!F108,"") ->  | X56: 57 | Y56: FALSE | Z56: =IF($F$6,'FRED Indicies'!E69) -> 0 | AB56: =IF($F$6,'FRED Indicies'!D69) -> 0 | AF56: 57 | AG56: FALSE | AH56: =IF(AG56,'Google Index'!E83) -> FALSE | AJ56: =IF(AF56,'Google Index'!F83) -> 0 | AN56: 57 | AO56: FALSE | AP56: =IF(AN56,'Commodity Prices'!C69) -> 0 | AR56: =IF(AO56,'Commodity Prices'!E69) -> FALSE | AV56: 57 | AW56: FALSE | AX56: =IF(AW56,'Yahoo Stocks'!D83) -> FALSE | AZ56: =IF(AW56,'Yahoo Stocks'!E83) -> FALSE | BD56: 67 | BE56: FALSE | BF56: =IF(BE56,'Google Finance Stocks'!D80) -> FALSE | BH56: =IF(BE56,'Google Finance Stocks'!E80) -> FALSE | BL56: 67 | BM56: FALSE | BN56: ='Exchange Rates'!D66 -> 0 | BP56: =IF(BM56,'Exchange Rates'!E66) -> FALSE
L57: 55 | Q57: 55 | R57: FALSE | S57: =IF(R57,'Yahoo Index'!E109,"") ->  | T57: =IF(R57,'Yahoo Index'!F109,"") ->  | X57: 58 | Y57: FALSE | Z57: =IF($F$6,'FRED Indicies'!E70) -> 0 | AB57: =IF($F$6,'FRED Indicies'!D70) -> 0 | AF57: 58 | AG57: FALSE | AH57: =IF(AG57,'Google Index'!E84) -> FALSE | AJ57: =IF(AF57,'Google Index'!F84) -> 0 | AN57: 58 | AO57: FALSE | AP57: =IF(AN57,'Commodity Prices'!C70) -> 0 | AR57: =IF(AO57,'Commodity Prices'!E70) -> FALSE | AV57: 58 | AW57: FALSE | AX57: =IF(AW57,'Yahoo Stocks'!D84) -> FALSE | AZ57: =IF(AW57,'Yahoo Stocks'!E84) -> FALSE | BD57: 68 | BE57: FALSE | BF57: =IF(BE57,'Google Finance Stocks'!D81) -> FALSE | BH57: =IF(BE57,'Google Finance Stocks'!E81) -> FALSE | BL57: 68 | BM57: FALSE | BN57: ='Exchange Rates'!D67 -> 0 | BP57: =IF(BM57,'Exchange Rates'!E67) -> FALSE
L58: 56 | Q58: 56 | R58: FALSE | S58: =IF(R58,'Yahoo Index'!E110,"") ->  | T58: =IF(R58,'Yahoo Index'!F110,"") ->  | X58: 59 | Y58: FALSE | Z58: =IF($F$6,'FRED Indicies'!E71) -> 0 | AB58: =IF($F$6,'FRED Indicies'!D71) -> 0 | AF58: 59 | AG58: FALSE | AH58: =IF(AG58,'Google Index'!E85) -> FALSE | AJ58: =IF(AF58,'Google Index'!F85) -> 0 | AN58: 59 | AO58: FALSE | AP58: =IF(AN58,'Commodity Prices'!C71) -> 0 | AR58: =IF(AO58,'Commodity Prices'!E71) -> FALSE | AV58: 59 | AW58: FALSE | AX58: =IF(AW58,'Yahoo Stocks'!D85) -> FALSE | AZ58: =IF(AW58,'Yahoo Stocks'!E85) -> FALSE | BD58: 69 | BE58: FALSE | BF58: =IF(BE58,'Google Finance Stocks'!D82) -> FALSE | BH58: =IF(BE58,'Google Finance Stocks'!E82) -> FALSE | BL58: 69 | BM58: FALSE | BN58: ='Exchange Rates'!D68 -> 0 | BP58: =IF(BM58,'Exchange Rates'!E68) -> FALSE
L59: 57 | Q59: 57 | R59: FALSE | S59: =IF(R59,'Yahoo Index'!E111,"") ->  | T59: =IF(R59,'Yahoo Index'!F111,"") ->  | X59: 60 | Y59: FALSE | Z59: =IF($F$6,'FRED Indicies'!E72) -> 0 | AB59: =IF($F$6,'FRED Indicies'!D72) -> 0 | AF59: 60 | AG59: FALSE | AH59: =IF(AG59,'Google Index'!E86) -> FALSE | AJ59: =IF(AF59,'Google Index'!F86) -> 0 | AN59: 60 | AO59: FALSE | AP59: =IF(AN59,'Commodity Prices'!C72) -> 0 | AR59: =IF(AO59,'Commodity Prices'!E72) -> FALSE | AV59: 60 | AW59: FALSE | AX59: =IF(AW59,'Yahoo Stocks'!D86) -> FALSE | AZ59: =IF(AW59,'Yahoo Stocks'!E86) -> FALSE | BD59: 70 | BE59: FALSE | BF59: =IF(BE59,'Google Finance Stocks'!D83) -> FALSE | BH59: =IF(BE59,'Google Finance Stocks'!E83) -> FALSE | BL59: 70 | BM59: FALSE | BN59: ='Exchange Rates'!D69 -> 0 | BP59: =IF(BM59,'Exchange Rates'!E69) -> FALSE
L60: 58 | Q60: 58 | R60: FALSE | S60: =IF(R60,'Yahoo Index'!E112,"") ->  | T60: =IF(R60,'Yahoo Index'!F112,"") ->  | X60: 61 | Y60: FALSE | Z60: =IF($F$6,'FRED Indicies'!E73) -> 0 | AB60: =IF($F$6,'FRED Indicies'!D73) -> 0 | AF60: 61 | AG60: FALSE | AH60: =IF(AG60,'Google Index'!E87) -> FALSE | AJ60: =IF(AF60,'Google Index'!F87) -> 0 | AN60: 61 | AO60: FALSE | AP60: =IF(AN60,'Commodity Prices'!C73) -> 0 | AR60: =IF(AO60,'Commodity Prices'!E73) -> FALSE | AV60: 61 | AW60: FALSE | AX60: =IF(AW60,'Yahoo Stocks'!D87) -> FALSE | AZ60: =IF(AW60,'Yahoo Stocks'!E87) -> FALSE | BD60: 71 | BE60: FALSE | BF60: =IF(BE60,'Google Finance Stocks'!D84) -> FALSE | BH60: =IF(BE60,'Google Finance Stocks'!E84) -> FALSE | BL60: 71 | BM60: FALSE | BN60: ='Exchange Rates'!D70 -> 0 | BP60: =IF(BM60,'Exchange Rates'!E70) -> FALSE
L61: 59 | Q61: 59 | R61: FALSE | S61: =IF(R61,'Yahoo Index'!E113,"") ->  | T61: =IF(R61,'Yahoo Index'!F113,"") ->  | X61: 62 | Y61: FALSE | Z61: =IF($F$6,'FRED Indicies'!E74) -> 0 | AB61: =IF($F$6,'FRED Indicies'!D74) -> 0 | AF61: 62 | AG61: FALSE | AH61: =IF(AG61,'Google Index'!E88) -> FALSE | AJ61: =IF(AF61,'Google Index'!F88) -> 0 | AN61: 62 | AO61: FALSE | AP61: =IF(AN61,'Commodity Prices'!C74) -> 0 | AR61: =IF(AO61,'Commodity Prices'!E74) -> FALSE | AV61: 62 | AW61: FALSE | AX61: =IF(AW61,'Yahoo Stocks'!D88) -> FALSE | AZ61: =IF(AW61,'Yahoo Stocks'!E88) -> FALSE | BD61: 72 | BE61: FALSE | BF61: =IF(BE61,'Google Finance Stocks'!D85) -> FALSE | BH61: =IF(BE61,'Google Finance Stocks'!E85) -> FALSE | BL61: 72 | BM61: FALSE | BN61: ='Exchange Rates'!D71 -> 0 | BP61: =IF(BM61,'Exchange Rates'!E71) -> FALSE
L62: 60 | Q62: 60 | R62: FALSE | S62: =IF(R62,'Yahoo Index'!E114,"") ->  | T62: =IF(R62,'Yahoo Index'!F114,"") ->  | X62: 63 | Y62: FALSE | Z62: =IF($F$6,'FRED Indicies'!E75) -> 0 | AB62: =IF($F$6,'FRED Indicies'!D75) -> 0 | AF62: 63 | AG62: FALSE | AH62: =IF(AG62,'Google Index'!E89) -> FALSE | AJ62: =IF(AF62,'Google Index'!F89) -> 0 | AN62: 63 | AO62: FALSE | AP62: =IF(AN62,'Commodity Prices'!C75) -> 0 | AR62: =IF(AO62,'Commodity Prices'!E75) -> FALSE | AV62: 63 | AW62: FALSE | AX62: =IF(AW62,'Yahoo Stocks'!D89) -> FALSE | AZ62: =IF(AW62,'Yahoo Stocks'!E89) -> FALSE | BD62: 73 | BE62: FALSE | BF62: =IF(BE62,'Google Finance Stocks'!D86) -> FALSE | BH62: =IF(BE62,'Google Finance Stocks'!E86) -> FALSE | BL62: 73 | BM62: FALSE | BN62: ='Exchange Rates'!D72 -> 0 | BP62: =IF(BM62,'Exchange Rates'!E72) -> FALSE
L63: 61 | Q63: 61 | R63: FALSE | S63: =IF(R63,'Yahoo Index'!E115,"") ->  | T63: =IF(R63,'Yahoo Index'!F115,"") ->  | X63: 64 | Y63: FALSE | Z63: =IF($F$6,'FRED Indicies'!E76) -> 0 | AB63: =IF($F$6,'FRED Indicies'!D76) -> 0 | AF63: 64 | AG63: FALSE | AH63: =IF(AG63,'Google Index'!E90) -> FALSE | AJ63: =IF(AF63,'Google Index'!F90) -> 0 | AN63: 64 | AO63: FALSE | AP63: =IF(AN63,'Commodity Prices'!C76) -> 0 | AR63: =IF(AO63,'Commodity Prices'!E76) -> FALSE | AV63: 64 | AW63: FALSE | AX63: =IF(AW63,'Yahoo Stocks'!D90) -> FALSE | AZ63: =IF(AW63,'Yahoo Stocks'!E90) -> FALSE | BD63: 74 | BE63: FALSE | BF63: =IF(BE63,'Google Finance Stocks'!D87) -> FALSE | BH63: =IF(BE63,'Google Finance Stocks'!E87) -> FALSE | BL63: 74 | BM63: FALSE | BN63: ='Exchange Rates'!D73 -> 0 | BP63: =IF(BM63,'Exchange Rates'!E73) -> FALSE
L64: 62 | Q64: 62 | R64: FALSE | S64: =IF(R64,'Yahoo Index'!E116,"") ->  | T64: =IF(R64,'Yahoo Index'!F116,"") ->  | X64: 65 | Y64: FALSE | Z64: =IF($F$6,'FRED Indicies'!E77) -> 0 | AB64: =IF($F$6,'FRED Indicies'!D77) -> 0 | AF64: 65 | AG64: FALSE | AH64: =IF(AG64,'Google Index'!E91) -> FALSE | AJ64: =IF(AF64,'Google Index'!F91) -> 0 | AN64: 65 | AO64: FALSE | AP64: =IF(AN64,'Commodity Prices'!C77) -> 0 | AR64: =IF(AO64,'Commodity Prices'!E77) -> FALSE | AV64: 65 | AW64: FALSE | AX64: =IF(AW64,'Yahoo Stocks'!D91) -> FALSE | AZ64: =IF(AW64,'Yahoo Stocks'!E91) -> FALSE | BD64: 75 | BE64: FALSE | BF64: =IF(BE64,'Google Finance Stocks'!D88) -> FALSE | BH64: =IF(BE64,'Google Finance Stocks'!E88) -> FALSE | BL64: 75 | BM64: FALSE | BN64: ='Exchange Rates'!D74 -> 0 | BP64: =IF(BM64,'Exchange Rates'!E74) -> FALSE
L65: 63 | Q65: 63 | R65: FALSE | S65: =IF(R65,'Yahoo Index'!E117,"") ->  | T65: =IF(R65,'Yahoo Index'!F117,"") ->  | X65: 66 | Y65: FALSE | Z65: =IF($F$6,'FRED Indicies'!E78) -> 0 | AB65: =IF($F$6,'FRED Indicies'!D78) -> 0 | AF65: 66 | AG65: FALSE | AH65: =IF(AG65,'Google Index'!E92) -> FALSE | AJ65: =IF(AF65,'Google Index'!F92) -> 0 | AN65: 66 | AO65: FALSE | AP65: =IF(AN65,'Commodity Prices'!C78) -> 0 | AR65: =IF(AO65,'Commodity Prices'!E78) -> FALSE | AV65: 66 | AW65: FALSE | AX65: =IF(AW65,'Yahoo Stocks'!D92) -> FALSE | AZ65: =IF(AW65,'Yahoo Stocks'!E92) -> FALSE | BD65: 76 | BE65: FALSE | BF65: =IF(BE65,'Google Finance Stocks'!D89) -> FALSE | BH65: =IF(BE65,'Google Finance Stocks'!E89) -> FALSE | BL65: 76 | BM65: FALSE | BN65: ='Exchange Rates'!D75 -> 0 | BP65: =IF(BM65,'Exchange Rates'!E75) -> FALSE
L66: 64 | Q66: 64 | R66: FALSE | S66: =IF(R66,'Yahoo Index'!E118,"") ->  | T66: =IF(R66,'Yahoo Index'!F118,"") ->  | X66: 67 | Y66: FALSE | Z66: =IF($F$6,'FRED Indicies'!E79) -> 0 | AB66: =IF($F$6,'FRED Indicies'!D79) -> 0 | AF66: 67 | AG66: FALSE | AH66: =IF(AG66,'Google Index'!E93) -> FALSE | AJ66: =IF(AF66,'Google Index'!F93) -> 0 | AN66: 67 | AO66: FALSE | AP66: =IF(AN66,'Commodity Prices'!C79) -> 0 | AR66: =IF(AO66,'Commodity Prices'!E79) -> FALSE | AV66: 67 | AW66: FALSE | AX66: =IF(AW66,'Yahoo Stocks'!D93) -> FALSE | AZ66: =IF(AW66,'Yahoo Stocks'!E93) -> FALSE | BD66: 77 | BE66: FALSE | BF66: =IF(BE66,'Google Finance Stocks'!D90) -> FALSE | BH66: =IF(BE66,'Google Finance Stocks'!E90) -> FALSE | BL66: 77 | BM66: FALSE | BN66: ='Exchange Rates'!D76 -> 0 | BP66: =IF(BM66,'Exchange Rates'!E76) -> FALSE
L67: 65 | Q67: 65 | R67: FALSE | S67: =IF(R67,'Yahoo Index'!E119,"") ->  | T67: =IF(R67,'Yahoo Index'!F119,"") ->  | X67: 68 | Y67: FALSE | Z67: =IF($F$6,'FRED Indicies'!E80) -> 0 | AB67: =IF($F$6,'FRED Indicies'!D80) -> 0 | AF67: 68 | AG67: FALSE | AH67: =IF(AG67,'Google Index'!E94) -> FALSE | AJ67: =IF(AF67,'Google Index'!F94) -> 0 | AN67: 68 | AO67: FALSE | AP67: =IF(AN67,'Commodity Prices'!C80) -> 0 | AR67: =IF(AO67,'Commodity Prices'!E80) -> FALSE | AV67: 68 | AW67: FALSE | AX67: =IF(AW67,'Yahoo Stocks'!D94) -> FALSE | AZ67: =IF(AW67,'Yahoo Stocks'!E94) -> FALSE | BD67: 78 | BE67: FALSE | BF67: =IF(BE67,'Google Finance Stocks'!D91) -> FALSE | BH67: =IF(BE67,'Google Finance Stocks'!E91) -> FALSE | BL67: 78 | BM67: FALSE | BN67: ='Exchange Rates'!D77 -> 0 | BP67: =IF(BM67,'Exchange Rates'!E77) -> FALSE
L68: 66 | Q68: 66 | R68: FALSE | S68: =IF(R68,'Yahoo Index'!E120,"") ->  | T68: =IF(R68,'Yahoo Index'!F120,"") ->  | X68: 69 | Y68: FALSE | Z68: =IF($F$6,'FRED Indicies'!E81) -> 0 | AB68: =IF($F$6,'FRED Indicies'!D81) -> 0 | AF68: 69 | AG68: FALSE | AH68: =IF(AG68,'Google Index'!E95) -> FALSE | AJ68: =IF(AF68,'Google Index'!F95) -> 0 | AN68: 69 | AO68: FALSE | AP68: =IF(AN68,'Commodity Prices'!C81) -> 0 | AR68: =IF(AO68,'Commodity Prices'!E81) -> FALSE | AV68: 69 | AW68: FALSE | AX68: =IF(AW68,'Yahoo Stocks'!D95) -> FALSE | AY68: =IFERROR(INDEX(AX:AX,MATCH(L68,AW:AW,0)),"") ->  | AZ68: =IF(AW68,'Yahoo Stocks'!E95) -> FALSE | BA68: =IFERROR(INDEX(AZ:AZ,MATCH(L68,AW:AW,0)),"") ->  | BB68: =IF(AY68<>"",$I$15,"") ->  | BC68: =IF(BA68<>"",$J$15,"") ->  | BD68: 79 | BE68: FALSE | BF68: =IF(BE68,'Google Finance Stocks'!D92) -> FALSE | BH68: =IF(BE68,'Google Finance Stocks'!E92) -> FALSE | BL68: 79 | BM68: FALSE | BN68: ='Exchange Rates'!D78 -> 0 | BP68: =IF(BM68,'Exchange Rates'!E78) -> FALSE
L69: 67 | Q69: =Q68+1 -> 67 | R69: FALSE | S69: =IF(R69,'Yahoo Index'!E121,"") ->  | T69: =IF(R69,'Yahoo Index'!F121,"") ->  | X69: =X68+1 -> 70 | Y69: FALSE | Z69: =IF($F$6,'FRED Indicies'!E82) -> 0 | AB69: =IF($F$6,'FRED Indicies'!D82) -> 0 | AF69: =AF68+1 -> 70 | AG69: FALSE | AH69: =IF(AG69,'Google Index'!E96) -> FALSE | AJ69: =IF(AF69,'Google Index'!F96) -> 0 | AN69: =AN68+1 -> 70 | AO69: FALSE | AP69: =IF(AN69,'Commodity Prices'!C82) -> 0 | AR69: =IF(AO69,'Commodity Prices'!E82) -> FALSE | AV69: =AV68+1 -> 70 | AW69: FALSE | AX69: =IF(AW69,'Yahoo Stocks'!D96) -> FALSE | AZ69: =IF(AW69,'Yahoo Stocks'!E96) -> FALSE | BD69: =BD68+1 -> 80 | BE69: FALSE | BF69: =IF(BE69,'Google Finance Stocks'!D93) -> FALSE | BH69: =IF(BE69,'Google Finance Stocks'!E93) -> FALSE | BL69: =BL68+1 -> 80 | BM69: FALSE | BN69: ='Exchange Rates'!D79 -> 0 | BP69: =IF(BM69,'Exchange Rates'!E79) -> FALSE
L70: 68 | Q70: 68 | R70: FALSE | S70: =IF(R70,'Yahoo Index'!E122,"") ->  | T70: =IF(R70,'Yahoo Index'!F122,"") ->  | X70: 71 | Y70: FALSE | Z70: =IF($F$6,'FRED Indicies'!E83) -> 0 | AB70: =IF($F$6,'FRED Indicies'!D83) -> 0 | AF70: 71 | AG70: FALSE | AH70: =IF(AG70,'Google Index'!E97) -> FALSE | AJ70: =IF(AF70,'Google Index'!F97) -> 0 | AN70: 71 | AO70: FALSE | AP70: =IF(AN70,'Commodity Prices'!C83) -> 0 | AR70: =IF(AO70,'Commodity Prices'!E83) -> FALSE | AV70: 71 | AW70: FALSE | AX70: =IF(AW70,'Yahoo Stocks'!D97) -> FALSE | AZ70: =IF(AW70,'Yahoo Stocks'!E97) -> FALSE | BD70: 81 | BE70: FALSE | BF70: =IF(BE70,'Google Finance Stocks'!D94) -> FALSE | BH70: =IF(BE70,'Google Finance Stocks'!E94) -> FALSE | BL70: 81 | BM70: FALSE | BN70: ='Exchange Rates'!D80 -> 0 | BP70: =IF(BM70,'Exchange Rates'!E80) -> FALSE
L71: 69 | Q71: 69 | R71: FALSE | S71: =IF(R71,'Yahoo Index'!E123,"") ->  | T71: =IF(R71,'Yahoo Index'!F123,"") ->  | X71: 72 | Y71: FALSE | Z71: =IF($F$6,'FRED Indicies'!E84) -> 0 | AB71: =IF($F$6,'FRED Indicies'!D84) -> 0 | AF71: 72 | AG71: FALSE | AH71: =IF(AG71,'Google Index'!E98) -> FALSE | AJ71: =IF(AF71,'Google Index'!F98) -> 0 | AN71: 72 | AO71: FALSE | AP71: =IF(AN71,'Commodity Prices'!C84) -> 0 | AR71: =IF(AO71,'Commodity Prices'!E84) -> FALSE | AV71: 72 | AW71: FALSE | AX71: =IF(AW71,'Yahoo Stocks'!D98) -> FALSE | AZ71: =IF(AW71,'Yahoo Stocks'!E98) -> FALSE | BD71: 82 | BE71: FALSE | BF71: =IF(BE71,'Google Finance Stocks'!D95) -> FALSE | BH71: =IF(BE71,'Google Finance Stocks'!E95) -> FALSE | BL71: 82 | BM71: FALSE | BN71: ='Exchange Rates'!D81 -> 0 | BP71: =IF(BM71,'Exchange Rates'!E81) -> FALSE
L72: 70 | Q72: 70 | R72: FALSE | S72: =IF(R72,'Yahoo Index'!E124,"") ->  | T72: =IF(R72,'Yahoo Index'!F124,"") ->  | X72: 73 | Y72: FALSE | Z72: =IF($F$6,'FRED Indicies'!E85) -> 0 | AB72: =IF($F$6,'FRED Indicies'!D85) -> 0 | AF72: 73 | AG72: FALSE | AH72: =IF(AG72,'Google Index'!E99) -> FALSE | AJ72: =IF(AF72,'Google Index'!F99) -> 0 | AN72: 73 | AO72: FALSE | AP72: =IF(AN72,'Commodity Prices'!C85) -> 0 | AR72: =IF(AO72,'Commodity Prices'!E85) -> FALSE | AV72: 73 | AW72: FALSE | AX72: =IF(AW72,'Yahoo Stocks'!D99) -> FALSE | AZ72: =IF(AW72,'Yahoo Stocks'!E99) -> FALSE | BD72: 83 | BE72: FALSE | BF72: =IF(BE72,'Google Finance Stocks'!D96) -> FALSE | BH72: =IF(BE72,'Google Finance Stocks'!E96) -> FALSE | BL72: 83 | BM72: FALSE | BN72: ='Exchange Rates'!D82 -> 0 | BP72: =IF(BM72,'Exchange Rates'!E82) -> FALSE
L73: 71 | Q73: 71 | R73: FALSE | S73: =IF(R73,'Yahoo Index'!E125,"") ->  | T73: =IF(R73,'Yahoo Index'!F125,"") ->  | X73: 74 | Y73: FALSE | Z73: =IF($F$6,'FRED Indicies'!E86) -> 0 | AB73: =IF($F$6,'FRED Indicies'!D86) -> 0 | AF73: 74 | AG73: FALSE | AH73: =IF(AG73,'Google Index'!E100) -> FALSE | AJ73: =IF(AF73,'Google Index'!F100) -> 0 | AN73: 74 | AO73: FALSE | AP73: =IF(AN73,'Commodity Prices'!C86) -> 0 | AR73: =IF(AO73,'Commodity Prices'!E86) -> FALSE | AV73: 74 | AW73: FALSE | AX73: =IF(AW73,'Yahoo Stocks'!D100) -> FALSE | AZ73: =IF(AW73,'Yahoo Stocks'!E100) -> FALSE | BD73: 84 | BE73: FALSE | BF73: =IF(BE73,'Google Finance Stocks'!D97) -> FALSE | BH73: =IF(BE73,'Google Finance Stocks'!E97) -> FALSE | BL73: 84 | BM73: FALSE | BN73: ='Exchange Rates'!D83 -> 0 | BP73: =IF(BM73,'Exchange Rates'!E83) -> FALSE
L74: 72 | Q74: 72 | R74: FALSE | S74: =IF(R74,'Yahoo Index'!E126,"") ->  | T74: =IF(R74,'Yahoo Index'!F126,"") ->  | X74: 75 | Y74: FALSE | Z74: =IF($F$6,'FRED Indicies'!E87) -> 0 | AB74: =IF($F$6,'FRED Indicies'!D87) -> 0 | AF74: 75 | AG74: FALSE | AH74: =IF(AG74,'Google Index'!E101) -> FALSE | AJ74: =IF(AF74,'Google Index'!F101) -> 0 | AN74: 75 | AO74: FALSE | AP74: =IF(AN74,'Commodity Prices'!C87) -> 0 | AR74: =IF(AO74,'Commodity Prices'!E87) -> FALSE | AV74: 75 | AW74: FALSE | AX74: =IF(AW74,'Yahoo Stocks'!D101) -> FALSE | AZ74: =IF(AW74,'Yahoo Stocks'!E101) -> FALSE | BD74: 85 | BE74: FALSE | BF74: =IF(BE74,'Google Finance Stocks'!D98) -> FALSE | BH74: =IF(BE74,'Google Finance Stocks'!E98) -> FALSE | BL74: 85 | BM74: FALSE | BN74: ='Exchange Rates'!D84 -> 0 | BP74: =IF(BM74,'Exchange Rates'!E84) -> FALSE
L75: 73 | Q75: 73 | R75: FALSE | S75: =IF(R75,'Yahoo Index'!E127,"") ->  | T75: =IF(R75,'Yahoo Index'!F127,"") ->  | X75: 76 | Y75: FALSE | Z75: =IF($F$6,'FRED Indicies'!E88) -> 0 | AB75: =IF($F$6,'FRED Indicies'!D88) -> 0 | AF75: 76 | AG75: FALSE | AH75: =IF(AG75,'Google Index'!E102) -> FALSE | AJ75: =IF(AF75,'Google Index'!F102) -> 0 | AN75: 76 | AO75: FALSE | AP75: =IF(AN75,'Commodity Prices'!C88) -> 0 | AR75: =IF(AO75,'Commodity Prices'!E88) -> FALSE | AV75: 76 | AW75: FALSE | AX75: =IF(AW75,'Yahoo Stocks'!D102) -> FALSE | AZ75: =IF(AW75,'Yahoo Stocks'!E102) -> FALSE | BD75: 86 | BE75: FALSE | BF75: =IF(BE75,'Google Finance Stocks'!D99) -> FALSE | BH75: =IF(BE75,'Google Finance Stocks'!E99) -> FALSE | BL75: 86 | BM75: FALSE | BN75: ='Exchange Rates'!D85 -> 0 | BP75: =IF(BM75,'Exchange Rates'!E85) -> FALSE
L76: 74 | Q76: 74 | R76: FALSE | S76: =IF(R76,'Yahoo Index'!E128,"") ->  | T76: =IF(R76,'Yahoo Index'!F128,"") ->  | X76: 77 | Y76: FALSE | Z76: =IF($F$6,'FRED Indicies'!E89) -> 0 | AB76: =IF($F$6,'FRED Indicies'!D89) -> 0 | AF76: 77 | AG76: FALSE | AH76: =IF(AG76,'Google Index'!E103) -> FALSE | AJ76: =IF(AF76,'Google Index'!F103) -> 0 | AN76: 77 | AO76: FALSE | AP76: =IF(AN76,'Commodity Prices'!C89) -> 0 | AR76: =IF(AO76,'Commodity Prices'!E89) -> FALSE | AV76: 77 | AW76: FALSE | AX76: =IF(AW76,'Yahoo Stocks'!D103) -> FALSE | AZ76: =IF(AW76,'Yahoo Stocks'!E103) -> FALSE | BD76: 87 | BE76: FALSE | BF76: =IF(BE76,'Google Finance Stocks'!D100) -> FALSE | BH76: =IF(BE76,'Google Finance Stocks'!E100) -> FALSE | BL76: 87 | BM76: FALSE | BN76: ='Exchange Rates'!D86 -> 0 | BP76: =IF(BM76,'Exchange Rates'!E86) -> FALSE
L77: 75 | Q77: 75 | R77: FALSE | S77: =IF(R77,'Yahoo Index'!E129,"") ->  | T77: =IF(R77,'Yahoo Index'!F129,"") ->  | X77: 78 | Y77: FALSE | Z77: =IF($F$6,'FRED Indicies'!E90) -> 0 | AB77: =IF($F$6,'FRED Indicies'!D90) -> 0 | AF77: 78 | AG77: FALSE | AH77: =IF(AG77,'Google Index'!E104) -> FALSE | AJ77: =IF(AF77,'Google Index'!F104) -> 0 | AN77: 78 | AO77: FALSE | AP77: =IF(AN77,'Commodity Prices'!C90) -> 0 | AR77: =IF(AO77,'Commodity Prices'!E90) -> FALSE | AV77: 78 | AW77: FALSE | AX77: =IF(AW77,'Yahoo Stocks'!D104) -> FALSE | AZ77: =IF(AW77,'Yahoo Stocks'!E104) -> FALSE | BD77: 88 | BE77: FALSE | BF77: =IF(BE77,'Google Finance Stocks'!D101) -> FALSE | BH77: =IF(BE77,'Google Finance Stocks'!E101) -> FALSE | BL77: 88 | BM77: FALSE | BN77: ='Exchange Rates'!D87 -> 0 | BP77: =IF(BM77,'Exchange Rates'!E87) -> FALSE
L78: 76 | Q78: 76 | R78: FALSE | S78: =IF(R78,'Yahoo Index'!E130,"") ->  | T78: =IF(R78,'Yahoo Index'!F130,"") ->  | X78: 79 | Y78: FALSE | Z78: =IF($F$6,'FRED Indicies'!E91) -> 0 | AB78: =IF($F$6,'FRED Indicies'!D91) -> 0 | AF78: 79 | AG78: FALSE | AH78: =IF(AG78,'Google Index'!E105) -> FALSE | AJ78: =IF(AF78,'Google Index'!F105) -> 0 | AN78: 79 | AO78: FALSE | AP78: =IF(AN78,'Commodity Prices'!C91) -> 0 | AR78: =IF(AO78,'Commodity Prices'!E91) -> FALSE | AV78: 79 | AW78: FALSE | AX78: =IF(AW78,'Yahoo Stocks'!D105) -> FALSE | AZ78: =IF(AW78,'Yahoo Stocks'!E105) -> FALSE | BD78: 89 | BE78: FALSE | BF78: =IF(BE78,'Google Finance Stocks'!D102) -> FALSE | BH78: =IF(BE78,'Google Finance Stocks'!E102) -> FALSE | BL78: 89 | BM78: FALSE | BN78: ='Exchange Rates'!D88 -> 0 | BP78: =IF(BM78,'Exchange Rates'!E88) -> FALSE
L79: 77 | Q79: 77 | R79: FALSE | S79: =IF(R79,'Yahoo Index'!E131,"") ->  | T79: =IF(R79,'Yahoo Index'!F131,"") ->  | X79: 80 | Y79: FALSE | Z79: =IF($F$6,'FRED Indicies'!E92) -> 0 | AB79: =IF($F$6,'FRED Indicies'!D92) -> 0 | AF79: 80 | AG79: FALSE | AH79: =IF(AG79,'Google Index'!E106) -> FALSE | AJ79: =IF(AF79,'Google Index'!F106) -> 0 | AN79: 80 | AO79: FALSE | AP79: =IF(AN79,'Commodity Prices'!C92) -> 0 | AR79: =IF(AO79,'Commodity Prices'!E92) -> FALSE | AV79: 80 | AW79: FALSE | AX79: =IF(AW79,'Yahoo Stocks'!D106) -> FALSE | AZ79: =IF(AW79,'Yahoo Stocks'!E106) -> FALSE | BD79: 90 | BE79: FALSE | BF79: =IF(BE79,'Google Finance Stocks'!D103) -> FALSE | BH79: =IF(BE79,'Google Finance Stocks'!E103) -> FALSE | BL79: 90 | BM79: FALSE | BN79: ='Exchange Rates'!D89 -> 0 | BP79: =IF(BM79,'Exchange Rates'!E89) -> FALSE
L80: 78 | Q80: 78 | R80: FALSE | S80: =IF(R80,'Yahoo Index'!E132,"") ->  | T80: =IF(R80,'Yahoo Index'!F132,"") ->  | X80: 81 | Y80: FALSE | Z80: =IF($F$6,'FRED Indicies'!E93) -> 0 | AB80: =IF($F$6,'FRED Indicies'!D93) -> 0 | AF80: 81 | AG80: FALSE | AH80: =IF(AG80,'Google Index'!E107) -> FALSE | AJ80: =IF(AF80,'Google Index'!F107) -> 0 | AN80: 81 | AO80: FALSE | AP80: =IF(AN80,'Commodity Prices'!C93) -> 0 | AR80: =IF(AO80,'Commodity Prices'!E93) -> FALSE | AV80: 81 | AW80: FALSE | AX80: =IF(AW80,'Yahoo Stocks'!D107) -> FALSE | AZ80: =IF(AW80,'Yahoo Stocks'!E107) -> FALSE | BD80: 91 | BE80: FALSE | BF80: =IF(BE80,'Google Finance Stocks'!D104) -> FALSE | BH80: =IF(BE80,'Google Finance Stocks'!E104) -> FALSE | BL80: 91 | BM80: FALSE | BN80: ='Exchange Rates'!D90 -> 0 | BP80: =IF(BM80,'Exchange Rates'!E90) -> FALSE
L81: 79 | Q81: 79 | R81: FALSE | S81: =IF(R81,'Yahoo Index'!E133,"") ->  | T81: =IF(R81,'Yahoo Index'!F133,"") ->  | X81: 82 | Y81: FALSE | Z81: =IF($F$6,'FRED Indicies'!E94) -> 0 | AB81: =IF($F$6,'FRED Indicies'!D94) -> 0 | AF81: 82 | AG81: FALSE | AH81: =IF(AG81,'Google Index'!E108) -> FALSE | AJ81: =IF(AF81,'Google Index'!F108) -> 0 | AN81: 82 | AO81: FALSE | AP81: =IF(AN81,'Commodity Prices'!C94) -> 0 | AR81: =IF(AO81,'Commodity Prices'!E94) -> FALSE | AV81: 82 | AW81: FALSE | AX81: =IF(AW81,'Yahoo Stocks'!D108) -> FALSE | AZ81: =IF(AW81,'Yahoo Stocks'!E108) -> FALSE | BD81: 92 | BE81: FALSE | BF81: =IF(BE81,'Google Finance Stocks'!D105) -> FALSE | BH81: =IF(BE81,'Google Finance Stocks'!E105) -> FALSE | BL81: 92 | BM81: FALSE | BN81: ='Exchange Rates'!D91 -> 0 | BP81: =IF(BM81,'Exchange Rates'!E91) -> FALSE
L82: 80 | Q82: 80 | R82: FALSE | S82: =IF(R82,'Yahoo Index'!E134,"") ->  | T82: =IF(R82,'Yahoo Index'!F134,"") ->  | X82: 83 | Y82: FALSE | Z82: =IF($F$6,'FRED Indicies'!E95) -> 0 | AB82: =IF($F$6,'FRED Indicies'!D95) -> 0 | AF82: 83 | AG82: FALSE | AH82: =IF(AG82,'Google Index'!E109) -> FALSE | AJ82: =IF(AF82,'Google Index'!F109) -> 0 | AN82: 83 | AO82: FALSE | AP82: =IF(AN82,'Commodity Prices'!C95) -> 0 | AR82: =IF(AO82,'Commodity Prices'!E95) -> FALSE | AV82: 83 | AW82: FALSE | AX82: =IF(AW82,'Yahoo Stocks'!D109) -> FALSE | AZ82: =IF(AW82,'Yahoo Stocks'!E109) -> FALSE | BD82: 93 | BE82: FALSE | BF82: =IF(BE82,'Google Finance Stocks'!D106) -> FALSE | BH82: =IF(BE82,'Google Finance Stocks'!E106) -> FALSE | BL82: 93 | BM82: FALSE | BN82: ='Exchange Rates'!D92 -> 0 | BP82: =IF(BM82,'Exchange Rates'!E92) -> FALSE
L83: 81 | Q83: 81 | R83: FALSE | S83: =IF(R83,'Yahoo Index'!E135,"") ->  | T83: =IF(R83,'Yahoo Index'!F135,"") ->  | X83: 84 | Y83: FALSE | Z83: =IF($F$6,'FRED Indicies'!E96) -> 0 | AB83: =IF($F$6,'FRED Indicies'!D96) -> 0 | AF83: 84 | AG83: FALSE | AH83: =IF(AG83,'Google Index'!E110) -> FALSE | AJ83: =IF(AF83,'Google Index'!F110) -> 0 | AN83: 84 | AO83: FALSE | AP83: =IF(AN83,'Commodity Prices'!C96) -> 0 | AR83: =IF(AO83,'Commodity Prices'!E96) -> FALSE | AV83: 84 | AW83: FALSE | AX83: =IF(AW83,'Yahoo Stocks'!D110) -> FALSE | AZ83: =IF(AW83,'Yahoo Stocks'!E110) -> FALSE | BD83: 94 | BE83: FALSE | BF83: =IF(BE83,'Google Finance Stocks'!D107) -> FALSE | BH83: =IF(BE83,'Google Finance Stocks'!E107) -> FALSE | BL83: 94 | BM83: FALSE | BN83: ='Exchange Rates'!D93 -> 0 | BP83: =IF(BM83,'Exchange Rates'!E93) -> FALSE
L84: 82 | Q84: 82 | R84: FALSE | S84: =IF(R84,'Yahoo Index'!E136,"") ->  | T84: =IF(R84,'Yahoo Index'!F136,"") ->  | X84: 85 | Y84: FALSE | Z84: =IF($F$6,'FRED Indicies'!E97) -> 0 | AB84: =IF($F$6,'FRED Indicies'!D97) -> 0 | AF84: 85 | AG84: FALSE | AH84: =IF(AG84,'Google Index'!E111) -> FALSE | AJ84: =IF(AF84,'Google Index'!F111) -> 0 | AN84: 85 | AO84: FALSE | AP84: =IF(AN84,'Commodity Prices'!C97) -> 0 | AR84: =IF(AO84,'Commodity Prices'!E97) -> FALSE | AV84: 85 | AW84: FALSE | AX84: =IF(AW84,'Yahoo Stocks'!D111) -> FALSE | AZ84: =IF(AW84,'Yahoo Stocks'!E111) -> FALSE | BD84: 95 | BE84: FALSE | BF84: =IF(BE84,'Google Finance Stocks'!D108) -> FALSE | BH84: =IF(BE84,'Google Finance Stocks'!E108) -> FALSE | BL84: 95 | BM84: FALSE | BN84: ='Exchange Rates'!D94 -> 0 | BP84: =IF(BM84,'Exchange Rates'!E94) -> FALSE
L85: 83 | Q85: 83 | R85: FALSE | S85: =IF(R85,'Yahoo Index'!E137,"") ->  | T85: =IF(R85,'Yahoo Index'!F137,"") ->  | X85: 86 | Y85: FALSE | Z85: =IF($F$6,'FRED Indicies'!E98) -> 0 | AB85: =IF($F$6,'FRED Indicies'!D98) -> 0 | AF85: 86 | AG85: FALSE | AH85: =IF(AG85,'Google Index'!E112) -> FALSE | AJ85: =IF(AF85,'Google Index'!F112) -> 0 | AN85: 86 | AO85: FALSE | AP85: =IF(AN85,'Commodity Prices'!C98) -> 0 | AR85: =IF(AO85,'Commodity Prices'!E98) -> FALSE | AV85: 86 | AW85: FALSE | AX85: =IF(AW85,'Yahoo Stocks'!D112) -> FALSE | AZ85: =IF(AW85,'Yahoo Stocks'!E112) -> FALSE | BD85: 96 | BE85: FALSE | BF85: =IF(BE85,'Google Finance Stocks'!D109) -> FALSE | BH85: =IF(BE85,'Google Finance Stocks'!E109) -> FALSE | BL85: 96 | BM85: FALSE | BN85: ='Exchange Rates'!D95 -> 0 | BP85: =IF(BM85,'Exchange Rates'!E95) -> FALSE
L86: 84 | Q86: 84 | R86: FALSE | S86: =IF(R86,'Yahoo Index'!E138,"") ->  | T86: =IF(R86,'Yahoo Index'!F138,"") ->  | X86: 87 | Y86: FALSE | Z86: =IF($F$6,'FRED Indicies'!E99) -> 0 | AB86: =IF($F$6,'FRED Indicies'!D99) -> 0 | AF86: 87 | AG86: FALSE | AH86: =IF(AG86,'Google Index'!E113) -> FALSE | AJ86: =IF(AF86,'Google Index'!F113) -> 0 | AN86: 87 | AO86: FALSE | AP86: =IF(AN86,'Commodity Prices'!C99) -> 0 | AR86: =IF(AO86,'Commodity Prices'!E99) -> FALSE | AV86: 87 | AW86: FALSE | AX86: =IF(AW86,'Yahoo Stocks'!D113) -> FALSE | AZ86: =IF(AW86,'Yahoo Stocks'!E113) -> FALSE | BD86: 97 | BE86: FALSE | BF86: =IF(BE86,'Google Finance Stocks'!D110) -> FALSE | BH86: =IF(BE86,'Google Finance Stocks'!E110) -> FALSE | BL86: 97 | BM86: FALSE | BN86: ='Exchange Rates'!D96 -> 0 | BP86: =IF(BM86,'Exchange Rates'!E96) -> FALSE
L87: 85 | Q87: 85 | R87: FALSE | S87: =IF(R87,'Yahoo Index'!E139,"") ->  | T87: =IF(R87,'Yahoo Index'!F139,"") ->  | X87: 88 | Y87: FALSE | Z87: =IF($F$6,'FRED Indicies'!E100) -> 0 | AB87: =IF($F$6,'FRED Indicies'!D100) -> 0 | AF87: 88 | AG87: FALSE | AH87: =IF(AG87,'Google Index'!E114) -> FALSE | AJ87: =IF(AF87,'Google Index'!F114) -> 0 | AN87: 88 | AO87: FALSE | AP87: =IF(AN87,'Commodity Prices'!C100) -> 0 | AR87: =IF(AO87,'Commodity Prices'!E100) -> FALSE | AV87: 88 | AW87: FALSE | AX87: =IF(AW87,'Yahoo Stocks'!D114) -> FALSE | AZ87: =IF(AW87,'Yahoo Stocks'!E114) -> FALSE | BD87: 98 | BE87: FALSE | BF87: =IF(BE87,'Google Finance Stocks'!D111) -> FALSE | BH87: =IF(BE87,'Google Finance Stocks'!E111) -> FALSE | BL87: 98 | BM87: FALSE | BN87: ='Exchange Rates'!D97 -> 0 | BP87: =IF(BM87,'Exchange Rates'!E97) -> FALSE
L88: 86 | Q88: 86 | R88: FALSE | S88: =IF(R88,'Yahoo Index'!E140,"") ->  | T88: =IF(R88,'Yahoo Index'!F140,"") ->  | X88: 89 | Y88: FALSE | Z88: =IF($F$6,'FRED Indicies'!E101) -> 0 | AB88: =IF($F$6,'FRED Indicies'!D101) -> 0 | AF88: 89 | AG88: FALSE | AH88: =IF(AG88,'Google Index'!E115) -> FALSE | AJ88: =IF(AF88,'Google Index'!F115) -> 0 | AN88: 89 | AO88: FALSE | AP88: =IF(AN88,'Commodity Prices'!C101) -> 0 | AR88: =IF(AO88,'Commodity Prices'!E101) -> FALSE | AV88: 89 | AW88: FALSE | AX88: =IF(AW88,'Yahoo Stocks'!D115) -> FALSE | AZ88: =IF(AW88,'Yahoo Stocks'!E115) -> FALSE | BD88: 99 | BE88: FALSE | BF88: =IF(BE88,'Google Finance Stocks'!D112) -> FALSE | BH88: =IF(BE88,'Google Finance Stocks'!E112) -> FALSE | BL88: 99 | BM88: FALSE | BN88: ='Exchange Rates'!D98 -> 0 | BP88: =IF(BM88,'Exchange Rates'!E98) -> FALSE
L89: 87 | Q89: 87 | R89: FALSE | S89: =IF(R89,'Yahoo Index'!E141,"") ->  | T89: =IF(R89,'Yahoo Index'!F141,"") ->  | X89: 90 | Y89: FALSE | Z89: =IF($F$6,'FRED Indicies'!E102) -> 0 | AB89: =IF($F$6,'FRED Indicies'!D102) -> 0 | AF89: 90 | AG89: FALSE | AH89: =IF(AG89,'Google Index'!E116) -> FALSE | AJ89: =IF(AF89,'Google Index'!F116) -> 0 | AN89: 90 | AO89: FALSE | AP89: =IF(AN89,'Commodity Prices'!C102) -> 0 | AR89: =IF(AO89,'Commodity Prices'!E102) -> FALSE | AV89: 90 | AW89: FALSE | AX89: =IF(AW89,'Yahoo Stocks'!D116) -> FALSE | AZ89: =IF(AW89,'Yahoo Stocks'!E116) -> FALSE | BD89: 100 | BE89: FALSE | BF89: =IF(BE89,'Google Finance Stocks'!D113) -> FALSE | BH89: =IF(BE89,'Google Finance Stocks'!E113) -> FALSE | BL89: 100 | BM89: FALSE | BN89: ='Exchange Rates'!D99 -> 0 | BP89: =IF(BM89,'Exchange Rates'!E99) -> FALSE
L90: 88 | Q90: 88 | R90: FALSE | S90: =IF(R90,'Yahoo Index'!E142,"") ->  | T90: =IF(R90,'Yahoo Index'!F142,"") ->  | X90: 91 | Y90: FALSE | Z90: =IF($F$6,'FRED Indicies'!E103) -> 0 | AB90: =IF($F$6,'FRED Indicies'!D103) -> 0 | AF90: 91 | AG90: FALSE | AH90: =IF(AG90,'Google Index'!E117) -> FALSE | AJ90: =IF(AF90,'Google Index'!F117) -> 0 | AN90: 91 | AO90: FALSE | AP90: =IF(AN90,'Commodity Prices'!C103) -> 0 | AR90: =IF(AO90,'Commodity Prices'!E103) -> FALSE | AV90: 91 | AW90: FALSE | AX90: =IF(AW90,'Yahoo Stocks'!D117) -> FALSE | AZ90: =IF(AW90,'Yahoo Stocks'!E117) -> FALSE | BD90: 101 | BE90: FALSE | BF90: =IF(BE90,'Google Finance Stocks'!D114) -> FALSE | BH90: =IF(BE90,'Google Finance Stocks'!E114) -> FALSE | BL90: 101 | BM90: FALSE | BN90: ='Exchange Rates'!D100 -> 0 | BP90: =IF(BM90,'Exchange Rates'!E100) -> FALSE
L91: 89 | Q91: 89 | R91: FALSE | S91: =IF(R91,'Yahoo Index'!E143,"") ->  | T91: =IF(R91,'Yahoo Index'!F143,"") ->  | X91: 92 | Y91: FALSE | Z91: =IF($F$6,'FRED Indicies'!E104) -> 0 | AB91: =IF($F$6,'FRED Indicies'!D104) -> 0 | AF91: 92 | AG91: FALSE | AH91: =IF(AG91,'Google Index'!E118) -> FALSE | AJ91: =IF(AF91,'Google Index'!F118) -> 0 | AN91: 92 | AO91: FALSE | AP91: =IF(AN91,'Commodity Prices'!C104) -> 0 | AR91: =IF(AO91,'Commodity Prices'!E104) -> FALSE | AV91: 92 | AW91: FALSE | AX91: =IF(AW91,'Yahoo Stocks'!D118) -> FALSE | AZ91: =IF(AW91,'Yahoo Stocks'!E118) -> FALSE | BD91: 102 | BE91: FALSE | BF91: =IF(BE91,'Google Finance Stocks'!D115) -> FALSE | BH91: =IF(BE91,'Google Finance Stocks'!E115) -> FALSE | BL91: 102 | BM91: FALSE | BN91: ='Exchange Rates'!D101 -> 0 | BP91: =IF(BM91,'Exchange Rates'!E101) -> FALSE
L92: 90 | Q92: 90 | R92: FALSE | S92: =IF(R92,'Yahoo Index'!E144,"") ->  | T92: =IF(R92,'Yahoo Index'!F144,"") ->  | X92: 93 | Y92: FALSE | Z92: =IF($F$6,'FRED Indicies'!E105) -> 0 | AB92: =IF($F$6,'FRED Indicies'!D105) -> 0 | AF92: 93 | AG92: FALSE | AH92: =IF(AG92,'Google Index'!E119) -> FALSE | AJ92: =IF(AF92,'Google Index'!F119) -> 0 | AN92: 93 | AO92: FALSE | AP92: =IF(AN92,'Commodity Prices'!C105) -> 0 | AR92: =IF(AO92,'Commodity Prices'!E105) -> FALSE | AV92: 93 | AW92: FALSE | AX92: =IF(AW92,'Yahoo Stocks'!D119) -> FALSE | AZ92: =IF(AW92,'Yahoo Stocks'!E119) -> FALSE | BD92: 103 | BE92: FALSE | BF92: =IF(BE92,'Google Finance Stocks'!D116) -> FALSE | BH92: =IF(BE92,'Google Finance Stocks'!E116) -> FALSE | BL92: 103 | BM92: FALSE | BN92: ='Exchange Rates'!D102 -> 0 | BP92: =IF(BM92,'Exchange Rates'!E102) -> FALSE
L93: 91 | Q93: 91 | R93: FALSE | S93: =IF(R93,'Yahoo Index'!E145,"") ->  | T93: =IF(R93,'Yahoo Index'!F145,"") ->  | X93: 94 | Y93: FALSE | Z93: =IF($F$6,'FRED Indicies'!E106) -> 0 | AB93: =IF($F$6,'FRED Indicies'!D106) -> 0 | AF93: 94 | AG93: FALSE | AH93: =IF(AG93,'Google Index'!E120) -> FALSE | AJ93: =IF(AF93,'Google Index'!F120) -> 0 | AN93: 94 | AO93: FALSE | AP93: =IF(AN93,'Commodity Prices'!C106) -> 0 | AR93: =IF(AO93,'Commodity Prices'!E106) -> FALSE | AV93: 94 | AW93: FALSE | AX93: =IF(AW93,'Yahoo Stocks'!D120) -> FALSE | AZ93: =IF(AW93,'Yahoo Stocks'!E120) -> FALSE | BD93: 104 | BE93: FALSE | BF93: =IF(BE93,'Google Finance Stocks'!D117) -> FALSE | BH93: =IF(BE93,'Google Finance Stocks'!E117) -> FALSE | BL93: 104 | BM93: FALSE | BN93: ='Exchange Rates'!D103 -> 0 | BP93: =IF(BM93,'Exchange Rates'!E103) -> FALSE
L94: 92 | Q94: 92 | R94: FALSE | S94: =IF(R94,'Yahoo Index'!E146,"") ->  | T94: =IF(R94,'Yahoo Index'!F146,"") ->  | X94: 95 | Y94: FALSE | Z94: =IF($F$6,'FRED Indicies'!E107) -> 0 | AB94: =IF($F$6,'FRED Indicies'!D107) -> 0 | AF94: 95 | AG94: FALSE | AH94: =IF(AG94,'Google Index'!E121) -> FALSE | AJ94: =IF(AF94,'Google Index'!F121) -> 0 | AN94: 95 | AO94: FALSE | AP94: =IF(AN94,'Commodity Prices'!C107) -> 0 | AR94: =IF(AO94,'Commodity Prices'!E107) -> FALSE | AV94: 95 | AW94: FALSE | AX94: =IF(AW94,'Yahoo Stocks'!D121) -> FALSE | AZ94: =IF(AW94,'Yahoo Stocks'!E121) -> FALSE | BD94: 105 | BE94: FALSE | BF94: =IF(BE94,'Google Finance Stocks'!D118) -> FALSE | BH94: =IF(BE94,'Google Finance Stocks'!E118) -> FALSE | BL94: 105 | BM94: FALSE | BN94: ='Exchange Rates'!D104 -> 0 | BP94: =IF(BM94,'Exchange Rates'!E104) -> FALSE
L95: 93 | Q95: 93 | R95: FALSE | S95: =IF(R95,'Yahoo Index'!E147,"") ->  | T95: =IF(R95,'Yahoo Index'!F147,"") ->  | X95: 96 | Y95: FALSE | Z95: =IF($F$6,'FRED Indicies'!E108) -> 0 | AB95: =IF($F$6,'FRED Indicies'!D108) -> 0 | AF95: 96 | AG95: FALSE | AH95: =IF(AG95,'Google Index'!E122) -> FALSE | AJ95: =IF(AF95,'Google Index'!F122) -> 0 | AN95: 96 | AO95: FALSE | AP95: =IF(AN95,'Commodity Prices'!C108) -> 0 | AR95: =IF(AO95,'Commodity Prices'!E108) -> FALSE | AV95: 96 | AW95: FALSE | AX95: =IF(AW95,'Yahoo Stocks'!D122) -> FALSE | AZ95: =IF(AW95,'Yahoo Stocks'!E122) -> FALSE | BD95: 106 | BE95: FALSE | BF95: =IF(BE95,'Google Finance Stocks'!D119) -> FALSE | BH95: =IF(BE95,'Google Finance Stocks'!E119) -> FALSE | BL95: 106 | BM95: FALSE | BN95: ='Exchange Rates'!D105 -> 0 | BP95: =IF(BM95,'Exchange Rates'!E105) -> FALSE
L96: 94 | Q96: 94 | R96: FALSE | S96: =IF(R96,'Yahoo Index'!E148,"") ->  | T96: =IF(R96,'Yahoo Index'!F148,"") ->  | X96: 97 | Y96: FALSE | Z96: =IF($F$6,'FRED Indicies'!E109) -> 0 | AB96: =IF($F$6,'FRED Indicies'!D109) -> 0 | AF96: 97 | AG96: FALSE | AH96: =IF(AG96,'Google Index'!E123) -> FALSE | AJ96: =IF(AF96,'Google Index'!F123) -> 0 | AN96: 97 | AO96: FALSE | AP96: =IF(AN96,'Commodity Prices'!C109) -> 0 | AR96: =IF(AO96,'Commodity Prices'!E109) -> FALSE | AV96: 97 | AW96: FALSE | AX96: =IF(AW96,'Yahoo Stocks'!D123) -> FALSE | AZ96: =IF(AW96,'Yahoo Stocks'!E123) -> FALSE | BD96: 107 | BE96: FALSE | BF96: =IF(BE96,'Google Finance Stocks'!D120) -> FALSE | BH96: =IF(BE96,'Google Finance Stocks'!E120) -> FALSE | BL96: 107 | BM96: FALSE | BN96: ='Exchange Rates'!D106 -> 0 | BP96: =IF(BM96,'Exchange Rates'!E106) -> FALSE
L97: 95 | Q97: 95 | R97: FALSE | S97: =IF(R97,'Yahoo Index'!E149,"") ->  | T97: =IF(R97,'Yahoo Index'!F149,"") ->  | X97: 98 | Y97: FALSE | Z97: =IF($F$6,'FRED Indicies'!E110) -> 0 | AB97: =IF($F$6,'FRED Indicies'!D110) -> 0 | AF97: 98 | AG97: FALSE | AH97: =IF(AG97,'Google Index'!E124) -> FALSE | AJ97: =IF(AF97,'Google Index'!F124) -> 0 | AN97: 98 | AO97: FALSE | AP97: =IF(AN97,'Commodity Prices'!C110) -> 0 | AR97: =IF(AO97,'Commodity Prices'!E110) -> FALSE | AV97: 98 | AW97: FALSE | AX97: =IF(AW97,'Yahoo Stocks'!D124) -> FALSE | AZ97: =IF(AW97,'Yahoo Stocks'!E124) -> FALSE | BD97: 108 | BE97: FALSE | BF97: =IF(BE97,'Google Finance Stocks'!D121) -> FALSE | BH97: =IF(BE97,'Google Finance Stocks'!E121) -> FALSE | BL97: 108 | BM97: FALSE | BN97: ='Exchange Rates'!D107 -> 0 | BP97: =IF(BM97,'Exchange Rates'!E107) -> FALSE
L98: 96 | Q98: 96 | R98: FALSE | S98: =IF(R98,'Yahoo Index'!E150,"") ->  | T98: =IF(R98,'Yahoo Index'!F150,"") ->  | X98: 99 | Y98: FALSE | Z98: =IF($F$6,'FRED Indicies'!E111) -> 0 | AB98: =IF($F$6,'FRED Indicies'!D111) -> 0 | AF98: 99 | AG98: FALSE | AH98: =IF(AG98,'Google Index'!E125) -> FALSE | AJ98: =IF(AF98,'Google Index'!F125) -> 0 | AN98: 99 | AO98: FALSE | AP98: =IF(AN98,'Commodity Prices'!C111) -> 0 | AR98: =IF(AO98,'Commodity Prices'!E111) -> FALSE | AV98: 99 | AW98: FALSE | AX98: =IF(AW98,'Yahoo Stocks'!D125) -> FALSE | AZ98: =IF(AW98,'Yahoo Stocks'!E125) -> FALSE | BD98: 109 | BE98: FALSE | BF98: =IF(BE98,'Google Finance Stocks'!D122) -> FALSE | BH98: =IF(BE98,'Google Finance Stocks'!E122) -> FALSE | BL98: 109 | BM98: FALSE | BN98: ='Exchange Rates'!D108 -> 0 | BP98: =IF(BM98,'Exchange Rates'!E108) -> FALSE
L99: 97 | Q99: 97 | R99: FALSE | S99: =IF(R99,'Yahoo Index'!E151,"") ->  | T99: =IF(R99,'Yahoo Index'!F151,"") ->  | X99: 100 | Y99: FALSE | Z99: =IF($F$6,'FRED Indicies'!E112) -> 0 | AB99: =IF($F$6,'FRED Indicies'!D112) -> 0 | AF99: 100 | AG99: FALSE | AH99: =IF(AG99,'Google Index'!E126) -> FALSE | AJ99: =IF(AF99,'Google Index'!F126) -> 0 | AN99: 100 | AO99: FALSE | AP99: =IF(AN99,'Commodity Prices'!C112) -> 0 | AR99: =IF(AO99,'Commodity Prices'!E112) -> FALSE | AV99: 100 | AW99: FALSE | AX99: =IF(AW99,'Yahoo Stocks'!D126) -> FALSE | AZ99: =IF(AW99,'Yahoo Stocks'!E126) -> FALSE | BD99: 110 | BE99: FALSE | BF99: =IF(BE99,'Google Finance Stocks'!D123) -> FALSE | BH99: =IF(BE99,'Google Finance Stocks'!E123) -> FALSE | BL99: 110 | BM99: FALSE | BN99: ='Exchange Rates'!D109 -> 0 | BP99: =IF(BM99,'Exchange Rates'!E109) -> FALSE
L100: 98 | Q100: 98 | R100: FALSE | S100: =IF(R100,'Yahoo Index'!E152,"") ->  | T100: =IF(R100,'Yahoo Index'!F152,"") ->  | X100: 101 | Y100: FALSE | Z100: =IF($F$6,'FRED Indicies'!E113) -> 0 | AB100: =IF($F$6,'FRED Indicies'!D113) -> 0 | AF100: 101 | AG100: FALSE | AH100: =IF(AG100,'Google Index'!E127) -> FALSE | AJ100: =IF(AF100,'Google Index'!F127) -> 0 | AN100: 101 | AO100: FALSE | AP100: =IF(AN100,'Commodity Prices'!C113) -> 0 | AR100: =IF(AO100,'Commodity Prices'!E113) -> FALSE | AV100: 101 | AW100: FALSE | AX100: =IF(AW100,'Yahoo Stocks'!D127) -> FALSE | AZ100: =IF(AW100,'Yahoo Stocks'!E127) -> FALSE | BD100: 111 | BE100: FALSE | BF100: =IF(BE100,'Google Finance Stocks'!D124) -> FALSE | BH100: =IF(BE100,'Google Finance Stocks'!E124) -> FALSE | BL100: 111 | BM100: FALSE | BN100: ='Exchange Rates'!D110 -> 0 | BP100: =IF(BM100,'Exchange Rates'!E110) -> FALSE
L101: 99 | Q101: 99 | R101: FALSE | S101: =IF(R101,'Yahoo Index'!E153,"") ->  | T101: =IF(R101,'Yahoo Index'!F153,"") ->  | X101: 102 | Y101: FALSE | Z101: =IF($F$6,'FRED Indicies'!E114) -> 0 | AB101: =IF($F$6,'FRED Indicies'!D114) -> 0 | AF101: 102 | AG101: FALSE | AH101: =IF(AG101,'Google Index'!E128) -> FALSE | AJ101: =IF(AF101,'Google Index'!F128) -> 0 | AN101: 102 | AO101: FALSE | AP101: =IF(AN101,'Commodity Prices'!C114) -> 0 | AR101: =IF(AO101,'Commodity Prices'!E114) -> FALSE | AV101: 102 | AW101: FALSE | AX101: =IF(AW101,'Yahoo Stocks'!D128) -> FALSE | AZ101: =IF(AW101,'Yahoo Stocks'!E128) -> FALSE | BD101: 112 | BE101: FALSE | BF101: =IF(BE101,'Google Finance Stocks'!D125) -> FALSE | BH101: =IF(BE101,'Google Finance Stocks'!E125) -> FALSE | BL101: 112 | BM101: FALSE | BN101: ='Exchange Rates'!D111 -> 0 | BP101: =IF(BM101,'Exchange Rates'!E111) -> FALSE
L102: 100 | Q102: 100 | R102: FALSE | S102: =IF(R102,'Yahoo Index'!E154,"") ->  | T102: =IF(R102,'Yahoo Index'!F154,"") ->  | X102: 103 | Y102: FALSE | Z102: =IF($F$6,'FRED Indicies'!E115) -> 0 | AB102: =IF($F$6,'FRED Indicies'!D115) -> 0 | AF102: 103 | AG102: FALSE | AH102: =IF(AG102,'Google Index'!E129) -> FALSE | AJ102: =IF(AF102,'Google Index'!F129) -> 0 | AN102: 103 | AO102: FALSE | AP102: =IF(AN102,'Commodity Prices'!C115) -> 0 | AR102: =IF(AO102,'Commodity Prices'!E115) -> FALSE | AV102: 103 | AW102: FALSE | AX102: =IF(AW102,'Yahoo Stocks'!D129) -> FALSE | AZ102: =IF(AW102,'Yahoo Stocks'!E129) -> FALSE | BD102: 113 | BE102: FALSE | BF102: =IF(BE102,'Google Finance Stocks'!D126) -> FALSE | BH102: =IF(BE102,'Google Finance Stocks'!E126) -> FALSE | BL102: 113 | BM102: FALSE | BN102: ='Exchange Rates'!D112 -> 0 | BP102: =IF(BM102,'Exchange Rates'!E112) -> FALSE
L103: 101 | Q103: 101 | R103: FALSE | S103: =IF(R103,'Yahoo Index'!E155,"") ->  | T103: =IF(R103,'Yahoo Index'!F155,"") ->  | X103: 104 | Y103: FALSE | Z103: =IF($F$6,'FRED Indicies'!E116) -> 0 | AB103: =IF($F$6,'FRED Indicies'!D116) -> 0 | AF103: 104 | AG103: FALSE | AH103: =IF(AG103,'Google Index'!E130) -> FALSE | AJ103: =IF(AF103,'Google Index'!F130) -> 0 | AN103: 104 | AO103: FALSE | AP103: =IF(AN103,'Commodity Prices'!C116) -> 0 | AR103: =IF(AO103,'Commodity Prices'!E116) -> FALSE | AV103: 104 | AW103: FALSE | AX103: =IF(AW103,'Yahoo Stocks'!D130) -> FALSE | AZ103: =IF(AW103,'Yahoo Stocks'!E130) -> FALSE | BD103: 114 | BE103: FALSE | BF103: =IF(BE103,'Google Finance Stocks'!D127) -> FALSE | BH103: =IF(BE103,'Google Finance Stocks'!E127) -> FALSE | BL103: 114 | BM103: FALSE | BN103: ='Exchange Rates'!D113 -> 0 | BP103: =IF(BM103,'Exchange Rates'!E113) -> FALSE
L104: 102 | Q104: 102 | R104: FALSE | S104: =IF(R104,'Yahoo Index'!E156,"") ->  | T104: =IF(R104,'Yahoo Index'!F156,"") ->  | X104: 105 | Y104: FALSE | Z104: =IF($F$6,'FRED Indicies'!E117) -> 0 | AB104: =IF($F$6,'FRED Indicies'!D117) -> 0 | AF104: 105 | AG104: FALSE | AH104: =IF(AG104,'Google Index'!E131) -> FALSE | AJ104: =IF(AF104,'Google Index'!F131) -> 0 | AN104: 105 | AO104: FALSE | AP104: =IF(AN104,'Commodity Prices'!C117) -> 0 | AR104: =IF(AO104,'Commodity Prices'!E117) -> FALSE | AV104: 105 | AW104: FALSE | AX104: =IF(AW104,'Yahoo Stocks'!D131) -> FALSE | AZ104: =IF(AW104,'Yahoo Stocks'!E131) -> FALSE | BD104: 115 | BE104: FALSE | BF104: =IF(BE104,'Google Finance Stocks'!D128) -> FALSE | BH104: =IF(BE104,'Google Finance Stocks'!E128) -> FALSE | BL104: 115 | BM104: FALSE | BN104: ='Exchange Rates'!D114 -> 0 | BP104: =IF(BM104,'Exchange Rates'!E114) -> FALSE
L105: 103 | Q105: 103 | R105: FALSE | S105: =IF(R105,'Yahoo Index'!E157,"") ->  | T105: =IF(R105,'Yahoo Index'!F157,"") ->  | X105: 106 | Y105: FALSE | Z105: =IF($F$6,'FRED Indicies'!E118) -> 0 | AB105: =IF($F$6,'FRED Indicies'!D118) -> 0 | AF105: 106 | AG105: FALSE | AH105: =IF(AG105,'Google Index'!E132) -> FALSE | AJ105: =IF(AF105,'Google Index'!F132) -> 0 | AN105: 106 | AO105: FALSE | AP105: =IF(AN105,'Commodity Prices'!C118) -> 0 | AR105: =IF(AO105,'Commodity Prices'!E118) -> FALSE | AV105: 106 | AW105: FALSE | AX105: =IF(AW105,'Yahoo Stocks'!D132) -> FALSE | AZ105: =IF(AW105,'Yahoo Stocks'!E132) -> FALSE | BD105: 116 | BE105: FALSE | BF105: =IF(BE105,'Google Finance Stocks'!D129) -> FALSE | BH105: =IF(BE105,'Google Finance Stocks'!E129) -> FALSE | BL105: 116 | BM105: FALSE | BN105: ='Exchange Rates'!D115 -> 0 | BP105: =IF(BM105,'Exchange Rates'!E115) -> FALSE
L106: 104 | Q106: 104 | R106: FALSE | S106: =IF(R106,'Yahoo Index'!E158,"") ->  | T106: =IF(R106,'Yahoo Index'!F158,"") ->  | X106: 107 | Y106: FALSE | Z106: =IF($F$6,'FRED Indicies'!E119) -> 0 | AB106: =IF($F$6,'FRED Indicies'!D119) -> 0 | AF106: 107 | AG106: FALSE | AH106: =IF(AG106,'Google Index'!E133) -> FALSE | AJ106: =IF(AF106,'Google Index'!F133) -> 0 | AN106: 107 | AO106: FALSE | AP106: =IF(AN106,'Commodity Prices'!C119) -> 0 | AR106: =IF(AO106,'Commodity Prices'!E119) -> FALSE | AV106: 107 | AW106: FALSE | AX106: =IF(AW106,'Yahoo Stocks'!D133) -> FALSE | AZ106: =IF(AW106,'Yahoo Stocks'!E133) -> FALSE | BD106: 117 | BE106: FALSE | BF106: =IF(BE106,'Google Finance Stocks'!D130) -> FALSE | BH106: =IF(BE106,'Google Finance Stocks'!E130) -> FALSE | BL106: 117 | BM106: FALSE | BN106: ='Exchange Rates'!D116 -> 0 | BP106: =IF(BM106,'Exchange Rates'!E116) -> FALSE
L107: 105 | Q107: 105 | R107: FALSE | S107: =IF(R107,'Yahoo Index'!E159,"") ->  | T107: =IF(R107,'Yahoo Index'!F159,"") ->  | X107: 108 | Y107: FALSE | Z107: =IF($F$6,'FRED Indicies'!E120) -> 0 | AB107: =IF($F$6,'FRED Indicies'!D120) -> 0 | AF107: 108 | AG107: FALSE | AH107: =IF(AG107,'Google Index'!E134) -> FALSE | AJ107: =IF(AF107,'Google Index'!F134) -> 0 | AN107: 108 | AO107: FALSE | AP107: =IF(AN107,'Commodity Prices'!C120) -> 0 | AR107: =IF(AO107,'Commodity Prices'!E120) -> FALSE | AV107: 108 | AW107: FALSE | AX107: =IF(AW107,'Yahoo Stocks'!D134) -> FALSE | AZ107: =IF(AW107,'Yahoo Stocks'!E134) -> FALSE | BD107: 118 | BE107: FALSE | BF107: =IF(BE107,'Google Finance Stocks'!D131) -> FALSE | BH107: =IF(BE107,'Google Finance Stocks'!E131) -> FALSE | BL107: 118 | BM107: FALSE | BN107: ='Exchange Rates'!D117 -> 0 | BP107: =IF(BM107,'Exchange Rates'!E117) -> FALSE
L108: 106 | Q108: 106 | R108: FALSE | S108: =IF(R108,'Yahoo Index'!E160,"") ->  | T108: =IF(R108,'Yahoo Index'!F160,"") ->  | X108: 109 | Y108: FALSE | Z108: =IF($F$6,'FRED Indicies'!E121) -> 0 | AB108: =IF($F$6,'FRED Indicies'!D121) -> 0 | AF108: 109 | AG108: FALSE | AH108: =IF(AG108,'Google Index'!E135) -> FALSE | AJ108: =IF(AF108,'Google Index'!F135) -> 0 | AN108: 109 | AO108: FALSE | AP108: =IF(AN108,'Commodity Prices'!C121) -> 0 | AR108: =IF(AO108,'Commodity Prices'!E121) -> FALSE | AV108: 109 | AW108: FALSE | AX108: =IF(AW108,'Yahoo Stocks'!D135) -> FALSE | AZ108: =IF(AW108,'Yahoo Stocks'!E135) -> FALSE | BD108: 119 | BE108: FALSE | BF108: =IF(BE108,'Google Finance Stocks'!D132) -> FALSE | BH108: =IF(BE108,'Google Finance Stocks'!E132) -> FALSE | BL108: 119 | BM108: FALSE | BN108: ='Exchange Rates'!D118 -> 0 | BP108: =IF(BM108,'Exchange Rates'!E118) -> FALSE
L109: 107 | Q109: 107 | R109: FALSE | S109: =IF(R109,'Yahoo Index'!E161,"") ->  | T109: =IF(R109,'Yahoo Index'!F161,"") ->  | X109: 110 | Y109: FALSE | Z109: =IF($F$6,'FRED Indicies'!E122) -> 0 | AB109: =IF($F$6,'FRED Indicies'!D122) -> 0 | AF109: 110 | AG109: FALSE | AH109: =IF(AG109,'Google Index'!E136) -> FALSE | AJ109: =IF(AF109,'Google Index'!F136) -> 0 | AN109: 110 | AO109: FALSE | AP109: =IF(AN109,'Commodity Prices'!C122) -> 0 | AR109: =IF(AO109,'Commodity Prices'!E122) -> FALSE | AV109: 110 | AW109: FALSE | AX109: =IF(AW109,'Yahoo Stocks'!D136) -> FALSE | AZ109: =IF(AW109,'Yahoo Stocks'!E136) -> FALSE | BD109: 120 | BE109: FALSE | BF109: =IF(BE109,'Google Finance Stocks'!D133) -> FALSE | BH109: =IF(BE109,'Google Finance Stocks'!E133) -> FALSE | BL109: 120 | BM109: FALSE | BN109: ='Exchange Rates'!D119 -> 0 | BP109: =IF(BM109,'Exchange Rates'!E119) -> FALSE
L110: 108 | Q110: 108 | R110: FALSE | S110: =IF(R110,'Yahoo Index'!E162,"") ->  | T110: =IF(R110,'Yahoo Index'!F162,"") ->  | X110: 111 | Y110: FALSE | Z110: =IF($F$6,'FRED Indicies'!E123) -> 0 | AB110: =IF($F$6,'FRED Indicies'!D123) -> 0 | AF110: 111 | AG110: FALSE | AH110: =IF(AG110,'Google Index'!E137) -> FALSE | AJ110: =IF(AF110,'Google Index'!F137) -> 0 | AN110: 111 | AO110: FALSE | AP110: =IF(AN110,'Commodity Prices'!C123) -> 0 | AR110: =IF(AO110,'Commodity Prices'!E123) -> FALSE | AV110: 111 | AW110: FALSE | AX110: =IF(AW110,'Yahoo Stocks'!D137) -> FALSE | AZ110: =IF(AW110,'Yahoo Stocks'!E137) -> FALSE | BD110: 121 | BE110: FALSE | BF110: =IF(BE110,'Google Finance Stocks'!D134) -> FALSE | BH110: =IF(BE110,'Google Finance Stocks'!E134) -> FALSE | BL110: 121 | BM110: FALSE | BN110: ='Exchange Rates'!D120 -> 0 | BP110: =IF(BM110,'Exchange Rates'!E120) -> FALSE
L111: 109 | Q111: 109 | R111: FALSE | S111: =IF(R111,'Yahoo Index'!E163,"") ->  | T111: =IF(R111,'Yahoo Index'!F163,"") ->  | X111: 112 | Y111: FALSE | Z111: =IF($F$6,'FRED Indicies'!E124) -> 0 | AB111: =IF($F$6,'FRED Indicies'!D124) -> 0 | AF111: 112 | AG111: FALSE | AH111: =IF(AG111,'Google Index'!E138) -> FALSE | AJ111: =IF(AF111,'Google Index'!F138) -> 0 | AN111: 112 | AO111: FALSE | AP111: =IF(AN111,'Commodity Prices'!C124) -> 0 | AR111: =IF(AO111,'Commodity Prices'!E124) -> FALSE | AV111: 112 | AW111: FALSE | AX111: =IF(AW111,'Yahoo Stocks'!D138) -> FALSE | AZ111: =IF(AW111,'Yahoo Stocks'!E138) -> FALSE | BD111: 122 | BE111: FALSE | BF111: =IF(BE111,'Google Finance Stocks'!D135) -> FALSE | BH111: =IF(BE111,'Google Finance Stocks'!E135) -> FALSE | BL111: 122 | BM111: FALSE | BN111: ='Exchange Rates'!D121 -> 0 | BP111: =IF(BM111,'Exchange Rates'!E121) -> FALSE
L112: 110 | Q112: 110 | R112: FALSE | S112: =IF(R112,'Yahoo Index'!E164,"") ->  | T112: =IF(R112,'Yahoo Index'!F164,"") ->  | X112: 113 | Y112: FALSE | Z112: =IF($F$6,'FRED Indicies'!E125) -> 0 | AB112: =IF($F$6,'FRED Indicies'!D125) -> 0 | AF112: 113 | AG112: FALSE | AH112: =IF(AG112,'Google Index'!E139) -> FALSE | AJ112: =IF(AF112,'Google Index'!F139) -> 0 | AN112: 113 | AO112: FALSE | AP112: =IF(AN112,'Commodity Prices'!C125) -> 0 | AR112: =IF(AO112,'Commodity Prices'!E125) -> FALSE | AV112: 113 | AW112: FALSE | AX112: =IF(AW112,'Yahoo Stocks'!D139) -> FALSE | AZ112: =IF(AW112,'Yahoo Stocks'!E139) -> FALSE | BD112: 123 | BE112: FALSE | BF112: =IF(BE112,'Google Finance Stocks'!D136) -> FALSE | BH112: =IF(BE112,'Google Finance Stocks'!E136) -> FALSE | BL112: 123 | BM112: FALSE | BN112: ='Exchange Rates'!D122 -> 0 | BP112: =IF(BM112,'Exchange Rates'!E122) -> FALSE
L113: 111 | Q113: 111 | R113: FALSE | S113: =IF(R113,'Yahoo Index'!E165,"") ->  | T113: =IF(R113,'Yahoo Index'!F165,"") ->  | X113: 114 | Y113: FALSE | Z113: =IF($F$6,'FRED Indicies'!E126) -> 0 | AB113: =IF($F$6,'FRED Indicies'!D126) -> 0 | AF113: 114 | AG113: FALSE | AH113: =IF(AG113,'Google Index'!E140) -> FALSE | AJ113: =IF(AF113,'Google Index'!F140) -> 0 | AN113: 114 | AO113: FALSE | AP113: =IF(AN113,'Commodity Prices'!C126) -> 0 | AR113: =IF(AO113,'Commodity Prices'!E126) -> FALSE | AV113: 114 | AW113: FALSE | AX113: =IF(AW113,'Yahoo Stocks'!D140) -> FALSE | AZ113: =IF(AW113,'Yahoo Stocks'!E140) -> FALSE | BD113: 124 | BE113: FALSE | BF113: =IF(BE113,'Google Finance Stocks'!D137) -> FALSE | BH113: =IF(BE113,'Google Finance Stocks'!E137) -> FALSE | BL113: 124 | BM113: FALSE | BN113: ='Exchange Rates'!D123 -> 0 | BP113: =IF(BM113,'Exchange Rates'!E123) -> FALSE
L114: 112 | Q114: 112 | R114: FALSE | S114: =IF(R114,'Yahoo Index'!E166,"") ->  | T114: =IF(R114,'Yahoo Index'!F166,"") ->  | X114: 115 | Y114: FALSE | Z114: =IF($F$6,'FRED Indicies'!E127) -> 0 | AB114: =IF($F$6,'FRED Indicies'!D127) -> 0 | AF114: 115 | AG114: FALSE | AH114: =IF(AG114,'Google Index'!E141) -> FALSE | AJ114: =IF(AF114,'Google Index'!F141) -> 0 | AN114: 115 | AO114: FALSE | AP114: =IF(AN114,'Commodity Prices'!C127) -> 0 | AR114: =IF(AO114,'Commodity Prices'!E127) -> FALSE | AV114: 115 | AW114: FALSE | AX114: =IF(AW114,'Yahoo Stocks'!D141) -> FALSE | AZ114: =IF(AW114,'Yahoo Stocks'!E141) -> FALSE | BD114: 125 | BE114: FALSE | BF114: =IF(BE114,'Google Finance Stocks'!D138) -> FALSE | BH114: =IF(BE114,'Google Finance Stocks'!E138) -> FALSE | BL114: 125 | BM114: FALSE | BN114: ='Exchange Rates'!D124 -> 0 | BP114: =IF(BM114,'Exchange Rates'!E124) -> FALSE
L115: 113 | Q115: 113 | R115: FALSE | S115: =IF(R115,'Yahoo Index'!E167,"") ->  | T115: =IF(R115,'Yahoo Index'!F167,"") ->  | X115: 116 | Y115: FALSE | Z115: =IF($F$6,'FRED Indicies'!E128) -> 0 | AB115: =IF($F$6,'FRED Indicies'!D128) -> 0 | AF115: 116 | AG115: FALSE | AH115: =IF(AG115,'Google Index'!E142) -> FALSE | AJ115: =IF(AF115,'Google Index'!F142) -> 0 | AN115: 116 | AO115: FALSE | AP115: =IF(AN115,'Commodity Prices'!C128) -> 0 | AR115: =IF(AO115,'Commodity Prices'!E128) -> FALSE | AV115: 116 | AW115: FALSE | AX115: =IF(AW115,'Yahoo Stocks'!D142) -> FALSE | AZ115: =IF(AW115,'Yahoo Stocks'!E142) -> FALSE | BD115: 126 | BE115: FALSE | BF115: =IF(BE115,'Google Finance Stocks'!D139) -> FALSE | BH115: =IF(BE115,'Google Finance Stocks'!E139) -> FALSE | BL115: 126 | BM115: FALSE | BN115: ='Exchange Rates'!D125 -> 0 | BP115: =IF(BM115,'Exchange Rates'!E125) -> FALSE
L116: 114 | Q116: 114 | R116: FALSE | S116: =IF(R116,'Yahoo Index'!E168,"") ->  | T116: =IF(R116,'Yahoo Index'!F168,"") ->  | X116: 117 | Y116: FALSE | Z116: =IF($F$6,'FRED Indicies'!E129) -> 0 | AB116: =IF($F$6,'FRED Indicies'!D129) -> 0 | AF116: 117 | AG116: FALSE | AH116: =IF(AG116,'Google Index'!E143) -> FALSE | AJ116: =IF(AF116,'Google Index'!F143) -> 0 | AN116: 117 | AO116: FALSE | AP116: =IF(AN116,'Commodity Prices'!C129) -> 0 | AR116: =IF(AO116,'Commodity Prices'!E129) -> FALSE | AV116: 117 | AW116: FALSE | AX116: =IF(AW116,'Yahoo Stocks'!D143) -> FALSE | AZ116: =IF(AW116,'Yahoo Stocks'!E143) -> FALSE | BD116: 127 | BE116: FALSE | BF116: =IF(BE116,'Google Finance Stocks'!D140) -> FALSE | BH116: =IF(BE116,'Google Finance Stocks'!E140) -> FALSE | BL116: 127 | BM116: FALSE | BN116: ='Exchange Rates'!D126 -> 0 | BP116: =IF(BM116,'Exchange Rates'!E126) -> FALSE
L117: 115 | M117: =S117&AA117&AI117&AQ117&AY117&BG117&BO117 ->  | N117: =T117&AC117&AK117&AS117&BA117&BI117&BQ117 ->  | O117: =U117&AD117&AL117&AT117&BB117&BJ117&BR117 ->  | P117: =V117&AE117&AM117&AU117&BC117&BK117&BS117 ->  | Q117: 115 | R117: =IF(AND($F$3,Q117<=$H$3),Q117) -> FALSE | S117: =IF(R117,'Yahoo Index'!E169,"") ->  | T117: =IF(R117,'Yahoo Index'!F169,"") ->  | U117: =IF(R117,$I$3,"") ->  | V117: =IF(R117,$J$3,"") ->  | X117: 118 | Y117: =IF(AND($F$6,X117<=$H$6),X117) -> FALSE | Z117: =IF($F$6,'FRED Indicies'!E130) -> 0 | AA117: =IFERROR(INDEX(Z:Z,MATCH(L117,Y:Y,0)),"") ->  | AB117: =IF($F$6,'FRED Indicies'!D130) -> 0 | AC117: =IFERROR(INDEX(AB:AB,MATCH(L117,Y:Y,0)),"") ->  | AD117: =IF(AA117<>"",$I$6,"") ->  | AE117: =IF(AA117<>"",$J$6,"") ->  | AF117: 118 | AG117: =IF(AND($F$9,AF117<=$H$9),AF117) -> FALSE | AH117: =IF(AG117,'Google Index'!E144) -> FALSE | AI117: =IFERROR(INDEX(AH:AH,MATCH(Q117,AG:AG,0)),"") ->  | AJ117: =IF(AF117,'Google Index'!F144) -> 0 | AK117: =IFERROR(INDEX(AJ:AJ,MATCH(Q117,AG:AG,0)),"") ->  | AL117: =IF(AI117<>"",$I$6,"") ->  | AM117: =IF(AK117<>"",$J$6,"") ->  | AN117: 118 | AO117: =IF(AND($F$12,AN117<=$H$12),AN117) -> FALSE | AP117: =IF(AN117,'Commodity Prices'!C130) -> 0 | AQ117: =IFERROR(INDEX(AP:AP,MATCH(L117,AO:AO,0)),"") ->  | AR117: =IF(AO117,'Commodity Prices'!E130) -> FALSE | AS117: =IFERROR(INDEX(AR:AR,MATCH(L117,AO:AO,0)),"") ->  | AT117: =IF(AQ117<>"",$I$12,"") ->  | AU117: =IF(AS117<>"",$J$12,"") ->  | AV117: 118 | AW117: =IF(AND($F$15,AV117<=$H$15),AV117) -> FALSE | AX117: =IF(AW117,'Yahoo Stocks'!D144) -> FALSE | AZ117: =IF(AW117,'Yahoo Stocks'!E144) -> FALSE | BD117: 128 | BE117: =IF(AND($F$18,BD117<=$H$18),BD117) -> FALSE | BF117: =IF(BE117,'Google Finance Stocks'!D141) -> FALSE | BG117: =IFERROR(INDEX(BF:BF,MATCH(Q117,BE:BE,0)),"") ->  | BH117: =IF(BE117,'Google Finance Stocks'!E141) -> FALSE | BI117: =IFERROR(INDEX(BH:BH,MATCH(Q117,BE:BE,0)),"") ->  | BJ117: =IF(BI117<>"",$I$18,"") ->  | BK117: =IF(BI117<>"",$J$18,"") ->  | BL117: 128 | BM117: =IF(AND($F$21,BL117<=$H$21),BL117) -> FALSE | BN117: ='Exchange Rates'!D127 -> 0 | BO117: =IFERROR(INDEX(BN:BN,MATCH(L117,BM:BM,0)),"") ->  | BP117: =IF(BM117,'Exchange Rates'!E127) -> FALSE | BQ117: =IFERROR(INDEX(BP:BP,MATCH(L117,BM:BM,0)),"") ->  | BR117: =IF(BQ117<>"",$I$21,"") ->  | BS117: =IF(BQ117<>"",$J$21,"") -> 
L118: 116 | Q118: 116 | R118: FALSE | S118: =IF(R118,'Yahoo Index'!E170,"") ->  | T118: =IF(R118,'Yahoo Index'!F170,"") ->  | X118: 119 | Y118: FALSE | Z118: =IF($F$6,'FRED Indicies'!E131) -> 0 | AB118: =IF($F$6,'FRED Indicies'!D131) -> 0 | AF118: 119 | AG118: FALSE | AH118: =IF(AG118,'Google Index'!E145) -> FALSE | AJ118: =IF(AF118,'Google Index'!F145) -> 0 | AN118: 119 | AO118: FALSE | AP118: =IF(AN118,'Commodity Prices'!C131) -> 0 | AR118: =IF(AO118,'Commodity Prices'!E131) -> FALSE | AV118: 119 | AW118: FALSE | AX118: =IF(AW118,'Yahoo Stocks'!D145) -> FALSE | AZ118: =IF(AW118,'Yahoo Stocks'!E145) -> FALSE | BD118: 129 | BE118: FALSE | BF118: =IF(BE118,'Google Finance Stocks'!D142) -> FALSE | BH118: =IF(BE118,'Google Finance Stocks'!E142) -> FALSE | BL118: 129 | BM118: FALSE | BN118: ='Exchange Rates'!D128 -> 0 | BP118: =IF(BM118,'Exchange Rates'!E128) -> FALSE
L119: 117 | Q119: 117 | R119: FALSE | S119: =IF(R119,'Yahoo Index'!E171,"") ->  | T119: =IF(R119,'Yahoo Index'!F171,"") ->  | X119: 120 | Y119: FALSE | Z119: =IF($F$6,'FRED Indicies'!E132) -> 0 | AB119: =IF($F$6,'FRED Indicies'!D132) -> 0 | AF119: 120 | AG119: FALSE | AH119: =IF(AG119,'Google Index'!E146) -> FALSE | AJ119: =IF(AF119,'Google Index'!F146) -> 0 | AN119: 120 | AO119: FALSE | AP119: =IF(AN119,'Commodity Prices'!C132) -> 0 | AR119: =IF(AO119,'Commodity Prices'!E132) -> FALSE | AV119: 120 | AW119: FALSE | AX119: =IF(AW119,'Yahoo Stocks'!D146) -> FALSE | AZ119: =IF(AW119,'Yahoo Stocks'!E146) -> FALSE | BD119: 130 | BE119: FALSE | BF119: =IF(BE119,'Google Finance Stocks'!D143) -> FALSE | BH119: =IF(BE119,'Google Finance Stocks'!E143) -> FALSE | BL119: 130 | BM119: FALSE | BN119: ='Exchange Rates'!D129 -> 0 | BP119: =IF(BM119,'Exchange Rates'!E129) -> FALSE
L120: 118 | Q120: 118 | R120: FALSE | S120: =IF(R120,'Yahoo Index'!E172,"") ->  | T120: =IF(R120,'Yahoo Index'!F172,"") ->  | X120: 121 | Y120: FALSE | Z120: =IF($F$6,'FRED Indicies'!E133) -> 0 | AB120: =IF($F$6,'FRED Indicies'!D133) -> 0 | AF120: 121 | AG120: FALSE | AH120: =IF(AG120,'Google Index'!E147) -> FALSE | AJ120: =IF(AF120,'Google Index'!F147) -> 0 | AN120: 121 | AO120: FALSE | AP120: =IF(AN120,'Commodity Prices'!C133) -> 0 | AR120: =IF(AO120,'Commodity Prices'!E133) -> FALSE | AV120: 121 | AW120: FALSE | AX120: =IF(AW120,'Yahoo Stocks'!D147) -> FALSE | AZ120: =IF(AW120,'Yahoo Stocks'!E147) -> FALSE | BD120: 131 | BE120: FALSE | BF120: =IF(BE120,'Google Finance Stocks'!D144) -> FALSE | BH120: =IF(BE120,'Google Finance Stocks'!E144) -> FALSE | BL120: 131 | BM120: FALSE | BN120: ='Exchange Rates'!D130 -> 0 | BP120: =IF(BM120,'Exchange Rates'!E130) -> FALSE
L121: 119 | Q121: 119 | R121: FALSE | S121: =IF(R121,'Yahoo Index'!E173,"") ->  | T121: =IF(R121,'Yahoo Index'!F173,"") ->  | X121: 122 | Y121: FALSE | Z121: =IF($F$6,'FRED Indicies'!E134) -> 0 | AB121: =IF($F$6,'FRED Indicies'!D134) -> 0 | AF121: 122 | AG121: FALSE | AH121: =IF(AG121,'Google Index'!E148) -> FALSE | AJ121: =IF(AF121,'Google Index'!F148) -> 0 | AN121: 122 | AO121: FALSE | AP121: =IF(AN121,'Commodity Prices'!C134) -> 0 | AR121: =IF(AO121,'Commodity Prices'!E134) -> FALSE | AV121: 122 | AW121: FALSE | AX121: =IF(AW121,'Yahoo Stocks'!D148) -> FALSE | AZ121: =IF(AW121,'Yahoo Stocks'!E148) -> FALSE | BD121: 132 | BE121: FALSE | BF121: =IF(BE121,'Google Finance Stocks'!D145) -> FALSE | BH121: =IF(BE121,'Google Finance Stocks'!E145) -> FALSE | BL121: 132 | BM121: FALSE | BN121: ='Exchange Rates'!D131 -> 0 | BP121: =IF(BM121,'Exchange Rates'!E131) -> FALSE
L122: 120 | Q122: 120 | R122: FALSE | S122: =IF(R122,'Yahoo Index'!E174,"") ->  | T122: =IF(R122,'Yahoo Index'!F174,"") ->  | X122: 123 | Y122: FALSE | Z122: =IF($F$6,'FRED Indicies'!E135) -> 0 | AB122: =IF($F$6,'FRED Indicies'!D135) -> 0 | AF122: 123 | AG122: FALSE | AH122: =IF(AG122,'Google Index'!E149) -> FALSE | AJ122: =IF(AF122,'Google Index'!F149) -> 0 | AN122: 123 | AO122: FALSE | AP122: =IF(AN122,'Commodity Prices'!C135) -> 0 | AR122: =IF(AO122,'Commodity Prices'!E135) -> FALSE | AV122: 123 | AW122: FALSE | AX122: =IF(AW122,'Yahoo Stocks'!D149) -> FALSE | AZ122: =IF(AW122,'Yahoo Stocks'!E149) -> FALSE | BD122: 133 | BE122: FALSE | BF122: =IF(BE122,'Google Finance Stocks'!D146) -> FALSE | BH122: =IF(BE122,'Google Finance Stocks'!E146) -> FALSE | BL122: 133 | BM122: FALSE | BN122: ='Exchange Rates'!D132 -> 0 | BP122: =IF(BM122,'Exchange Rates'!E132) -> FALSE
L123: 121 | Q123: 121 | R123: FALSE | S123: =IF(R123,'Yahoo Index'!E175,"") ->  | T123: =IF(R123,'Yahoo Index'!F175,"") ->  | X123: 124 | Y123: FALSE | Z123: =IF($F$6,'FRED Indicies'!E136) -> 0 | AB123: =IF($F$6,'FRED Indicies'!D136) -> 0 | AF123: 124 | AG123: FALSE | AH123: =IF(AG123,'Google Index'!E150) -> FALSE | AJ123: =IF(AF123,'Google Index'!F150) -> 0 | AN123: 124 | AO123: FALSE | AP123: =IF(AN123,'Commodity Prices'!C136) -> 0 | AR123: =IF(AO123,'Commodity Prices'!E136) -> FALSE | AV123: 124 | AW123: FALSE | AX123: =IF(AW123,'Yahoo Stocks'!D150) -> FALSE | AZ123: =IF(AW123,'Yahoo Stocks'!E150) -> FALSE | BD123: 134 | BE123: FALSE | BF123: =IF(BE123,'Google Finance Stocks'!D147) -> FALSE | BH123: =IF(BE123,'Google Finance Stocks'!E147) -> FALSE | BL123: 134 | BM123: FALSE | BN123: ='Exchange Rates'!D133 -> 0 | BP123: =IF(BM123,'Exchange Rates'!E133) -> FALSE
L124: 122 | Q124: 122 | R124: FALSE | S124: =IF(R124,'Yahoo Index'!E176,"") ->  | T124: =IF(R124,'Yahoo Index'!F176,"") ->  | X124: 125 | Y124: FALSE | Z124: =IF($F$6,'FRED Indicies'!E137) -> 0 | AB124: =IF($F$6,'FRED Indicies'!D137) -> 0 | AF124: 125 | AG124: FALSE | AH124: =IF(AG124,'Google Index'!E151) -> FALSE | AJ124: =IF(AF124,'Google Index'!F151) -> 0 | AN124: 125 | AO124: FALSE | AP124: =IF(AN124,'Commodity Prices'!C137) -> 0 | AR124: =IF(AO124,'Commodity Prices'!E137) -> FALSE | AV124: 125 | AW124: FALSE | AX124: =IF(AW124,'Yahoo Stocks'!D151) -> FALSE | AZ124: =IF(AW124,'Yahoo Stocks'!E151) -> FALSE | BD124: 135 | BE124: FALSE | BF124: =IF(BE124,'Google Finance Stocks'!D148) -> FALSE | BH124: =IF(BE124,'Google Finance Stocks'!E148) -> FALSE | BL124: 135 | BM124: FALSE | BN124: ='Exchange Rates'!D134 -> 0 | BP124: =IF(BM124,'Exchange Rates'!E134) -> FALSE
L125: 123 | Q125: 123 | R125: FALSE | S125: =IF(R125,'Yahoo Index'!E177,"") ->  | T125: =IF(R125,'Yahoo Index'!F177,"") ->  | X125: 126 | Y125: FALSE | Z125: =IF($F$6,'FRED Indicies'!E138) -> 0 | AB125: =IF($F$6,'FRED Indicies'!D138) -> 0 | AF125: 126 | AG125: FALSE | AH125: =IF(AG125,'Google Index'!E152) -> FALSE | AJ125: =IF(AF125,'Google Index'!F152) -> 0 | AN125: 126 | AO125: FALSE | AP125: =IF(AN125,'Commodity Prices'!C138) -> 0 | AR125: =IF(AO125,'Commodity Prices'!E138) -> FALSE | AV125: 126 | AW125: FALSE | AX125: =IF(AW125,'Yahoo Stocks'!D152) -> FALSE | AZ125: =IF(AW125,'Yahoo Stocks'!E152) -> FALSE | BD125: 136 | BE125: FALSE | BF125: =IF(BE125,'Google Finance Stocks'!D149) -> FALSE | BH125: =IF(BE125,'Google Finance Stocks'!E149) -> FALSE | BL125: 136 | BM125: FALSE | BN125: ='Exchange Rates'!D135 -> 0 | BP125: =IF(BM125,'Exchange Rates'!E135) -> FALSE
L126: 124 | Q126: 124 | R126: FALSE | S126: =IF(R126,'Yahoo Index'!E178,"") ->  | T126: =IF(R126,'Yahoo Index'!F178,"") ->  | X126: 127 | Y126: FALSE | Z126: =IF($F$6,'FRED Indicies'!E139) -> 0 | AB126: =IF($F$6,'FRED Indicies'!D139) -> 0 | AF126: 127 | AG126: FALSE | AH126: =IF(AG126,'Google Index'!E153) -> FALSE | AJ126: =IF(AF126,'Google Index'!F153) -> 0 | AN126: 127 | AO126: FALSE | AP126: =IF(AN126,'Commodity Prices'!C139) -> 0 | AR126: =IF(AO126,'Commodity Prices'!E139) -> FALSE | AV126: 127 | AW126: FALSE | AX126: =IF(AW126,'Yahoo Stocks'!D153) -> FALSE | AZ126: =IF(AW126,'Yahoo Stocks'!E153) -> FALSE | BD126: 137 | BE126: FALSE | BF126: =IF(BE126,'Google Finance Stocks'!D150) -> FALSE | BH126: =IF(BE126,'Google Finance Stocks'!E150) -> FALSE | BL126: 137 | BM126: FALSE | BN126: ='Exchange Rates'!D136 -> 0 | BO126: =IFERROR(INDEX(BN:BN,MATCH(L126,BM:BM,0)),"") ->  | BP126: =IF(BM126,'Exchange Rates'!E136) -> FALSE
L127: 125 | Q127: 125 | R127: FALSE | S127: =IF(R127,'Yahoo Index'!E179,"") ->  | T127: =IF(R127,'Yahoo Index'!F179,"") ->  | X127: 128 | Y127: FALSE | Z127: =IF($F$6,'FRED Indicies'!E140) -> 0 | AB127: =IF($F$6,'FRED Indicies'!D140) -> 0 | AF127: 128 | AG127: FALSE | AH127: =IF(AG127,'Google Index'!E154) -> FALSE | AJ127: =IF(AF127,'Google Index'!F154) -> 0 | AN127: 128 | AO127: FALSE | AP127: =IF(AN127,'Commodity Prices'!C140) -> 0 | AR127: =IF(AO127,'Commodity Prices'!E140) -> FALSE | AV127: 128 | AW127: FALSE | AX127: =IF(AW127,'Yahoo Stocks'!D154) -> FALSE | AZ127: =IF(AW127,'Yahoo Stocks'!E154) -> FALSE | BD127: 138 | BE127: FALSE | BF127: =IF(BE127,'Google Finance Stocks'!D151) -> FALSE | BH127: =IF(BE127,'Google Finance Stocks'!E151) -> FALSE | BL127: 138 | BM127: FALSE | BN127: ='Exchange Rates'!D137 -> 0 | BO127: =IFERROR(INDEX(BN:BN,MATCH(L127,BM:BM,0)),"") ->  | BP127: =IF(BM127,'Exchange Rates'!E137) -> FALSE
L128: 126 | M128: =S128&AA128&AI128&AQ128&AY128&BG128&BO128 ->  | N128: =T128&AC128&AK128&AS128&BA128&BI128&BQ128 ->  | O128: =U128&AD128&AL128&AT128&BB128&BJ128&BR128 ->  | P128: =V128&AE128&AM128&AU128&BC128&BK128&BS128 ->  | Q128: 126 | R128: =IF(AND($F$3,Q128<=$H$3),Q128) -> FALSE | X128: 129 | Y128: =IF(AND($F$6,X128<=$H$6),X128) -> FALSE | Z128: =IF($F$6,'FRED Indicies'!E141) -> 0 | AA128: =IFERROR(INDEX(Z:Z,MATCH(L128,Y:Y,0)),"") ->  | AB128: =IF($F$6,'FRED Indicies'!D141) -> 0 | AC128: =IFERROR(INDEX(AB:AB,MATCH(L128,Y:Y,0)),"") ->  | AD128: =IF(AA128<>"",$I$6,"") ->  | AE128: =IF(AA128<>"",$J$6,"") ->  | AF128: 129 | AG128: =IF(AND($F$9,AF128<=$H$9),AF128) -> FALSE | AH128: =IF(AG128,'Google Index'!E155) -> FALSE | AI128: =IFERROR(INDEX(AH:AH,MATCH(Q128,AG:AG,0)),"") ->  | AJ128: =IF(AF128,'Google Index'!F155) -> 0 | AK128: =IFERROR(INDEX(AJ:AJ,MATCH(Q128,AG:AG,0)),"") ->  | AL128: =IF(AI128<>"",$I$6,"") ->  | AM128: =IF(AK128<>"",$J$6,"") ->  | AN128: 129 | AO128: =IF(AND($F$12,AN128<=$H$12),AN128) -> FALSE | AP128: =IF(AN128,'Commodity Prices'!C141) -> 0 | AQ128: =IFERROR(INDEX(AP:AP,MATCH(L128,AO:AO,0)),"") ->  | AR128: =IF(AO128,'Commodity Prices'!E141) -> FALSE | AS128: =IFERROR(INDEX(AR:AR,MATCH(L128,AO:AO,0)),"") ->  | AT128: =IF(AQ128<>"",$I$12,"") ->  | AU128: =IF(AS128<>"",$J$12,"") ->  | AV128: 129 | AW128: =IF(AND($F$15,AV128<=$H$15),AV128) -> FALSE | AX128: =IF(AW128,'Yahoo Stocks'!D155) -> FALSE | AZ128: =IF(AW128,'Yahoo Stocks'!E155) -> FALSE | BD128: 139 | BE128: =IF(AND($F$18,BD128<=$H$18),BD128) -> FALSE | BF128: =IF(BE128,'Google Finance Stocks'!D152) -> FALSE | BG128: =IFERROR(INDEX(BF:BF,MATCH(Q128,BE:BE,0)),"") ->  | BH128: =IF(BE128,'Google Finance Stocks'!E152) -> FALSE | BI128: =IFERROR(INDEX(BH:BH,MATCH(Q128,BE:BE,0)),"") ->  | BJ128: =IF(BI128<>"",$I$18,"") ->  | BK128: =IF(BI128<>"",$J$18,"") ->  | BL128: 139 | BM128: =IF(AND($F$21,BL128<=$H$21),BL128) -> FALSE | BN128: ='Exchange Rates'!D138 -> 0 | BO128: =IFERROR(INDEX(BN:BN,MATCH(L128,BM:BM,0)),"") ->  | BP128: =IF(BM128,'Exchange Rates'!E138) -> FALSE | BQ128: =IFERROR(INDEX(BP:BP,MATCH(L128,BM:BM,0)),"") ->  | BR128: =IF(BQ128<>"",$I$21,"") ->  | BS128: =IF(BQ128<>"",$J$21,"") -> 
L129: 127 | Q129: 127 | R129: FALSE | X129: 130 | Y129: FALSE | Z129: =IF($F$6,'FRED Indicies'!E142) -> 0 | AB129: =IF($F$6,'FRED Indicies'!D142) -> 0 | AF129: 130 | AG129: FALSE | AH129: =IF(AG129,'Google Index'!E156) -> FALSE | AJ129: =IF(AF129,'Google Index'!F156) -> 0 | AN129: 130 | AO129: FALSE | AP129: =IF(AN129,'Commodity Prices'!C142) -> 0 | AR129: =IF(AO129,'Commodity Prices'!E142) -> FALSE | AV129: 130 | AW129: FALSE | AX129: =IF(AW129,'Yahoo Stocks'!D156) -> FALSE | AZ129: =IF(AW129,'Yahoo Stocks'!E156) -> FALSE | BD129: 140 | BE129: FALSE | BF129: =IF(BE129,'Google Finance Stocks'!D153) -> FALSE | BH129: =IF(BE129,'Google Finance Stocks'!E153) -> FALSE | BL129: 140 | BM129: FALSE | BN129: ='Exchange Rates'!D139 -> 0 | BO129: =IFERROR(INDEX(BN:BN,MATCH(L129,BM:BM,0)),"") ->  | BP129: =IF(BM129,'Exchange Rates'!E139) -> FALSE
L130: 128 | Q130: 128 | R130: FALSE | X130: 131 | Y130: FALSE | Z130: =IF($F$6,'FRED Indicies'!E143) -> 0 | AB130: =IF($F$6,'FRED Indicies'!D143) -> 0 | AF130: 131 | AG130: FALSE | AH130: =IF(AG130,'Google Index'!E157) -> FALSE | AJ130: =IF(AF130,'Google Index'!F157) -> 0 | AN130: 131 | AO130: FALSE | AP130: =IF(AN130,'Commodity Prices'!C143) -> 0 | AR130: =IF(AO130,'Commodity Prices'!E143) -> FALSE | AV130: 131 | AW130: FALSE | AX130: =IF(AW130,'Yahoo Stocks'!D157) -> FALSE | AZ130: =IF(AW130,'Yahoo Stocks'!E157) -> FALSE | BD130: 141 | BE130: FALSE | BF130: =IF(BE130,'Google Finance Stocks'!D154) -> FALSE | BH130: =IF(BE130,'Google Finance Stocks'!E154) -> FALSE | BL130: 141 | BM130: FALSE | BN130: ='Exchange Rates'!D140 -> 0 | BP130: =IF(BM130,'Exchange Rates'!E140) -> FALSE
L131: 129 | Q131: 129 | R131: FALSE | X131: 132 | Y131: FALSE | Z131: =IF($F$6,'FRED Indicies'!E144) -> 0 | AB131: =IF($F$6,'FRED Indicies'!D144) -> 0 | AF131: 132 | AG131: FALSE | AH131: =IF(AG131,'Google Index'!E158) -> FALSE | AJ131: =IF(AF131,'Google Index'!F158) -> 0 | AN131: 132 | AO131: FALSE | AP131: =IF(AN131,'Commodity Prices'!C144) -> 0 | AR131: =IF(AO131,'Commodity Prices'!E144) -> FALSE | AV131: 132 | AW131: FALSE | AX131: =IF(AW131,'Yahoo Stocks'!D158) -> FALSE | AZ131: =IF(AW131,'Yahoo Stocks'!E158) -> FALSE | BD131: 142 | BE131: FALSE | BF131: =IF(BE131,'Google Finance Stocks'!D155) -> FALSE | BH131: =IF(BE131,'Google Finance Stocks'!E155) -> FALSE | BL131: 142 | BM131: FALSE | BN131: ='Exchange Rates'!D141 -> 0 | BP131: =IF(BM131,'Exchange Rates'!E141) -> FALSE
L132: 130 | Q132: 130 | R132: FALSE | X132: 133 | Y132: FALSE | Z132: =IF($F$6,'FRED Indicies'!E145) -> 0 | AB132: =IF($F$6,'FRED Indicies'!D145) -> 0 | AF132: 133 | AG132: FALSE | AH132: =IF(AG132,'Google Index'!E159) -> FALSE | AJ132: =IF(AF132,'Google Index'!F159) -> 0 | AN132: 133 | AO132: FALSE | AP132: =IF(AN132,'Commodity Prices'!C145) -> 0 | AR132: =IF(AO132,'Commodity Prices'!E145) -> FALSE | AV132: 133 | AW132: FALSE | AX132: =IF(AW132,'Yahoo Stocks'!D159) -> FALSE | AY132: =IFERROR(INDEX(AX:AX,MATCH(L132,AW:AW,0)),"") ->  | AZ132: =IF(AW132,'Yahoo Stocks'!E159) -> FALSE | BA132: =IFERROR(INDEX(AZ:AZ,MATCH(L132,AW:AW,0)),"") ->  | BB132: =IF(AY132<>"",$I$15,"") ->  | BC132: =IF(BA132<>"",$J$15,"") ->  | BD132: 143 | BE132: FALSE | BF132: =IF(BE132,'Google Finance Stocks'!D156) -> FALSE | BH132: =IF(BE132,'Google Finance Stocks'!E156) -> FALSE | BL132: 143 | BM132: FALSE | BN132: ='Exchange Rates'!D142 -> 0 | BP132: =IF(BM132,'Exchange Rates'!E142) -> FALSE
L133: 131 | Q133: =Q132+1 -> 131 | R133: FALSE | X133: =X132+1 -> 134 | Y133: FALSE | Z133: =IF($F$6,'FRED Indicies'!E146) -> 0 | AB133: =IF($F$6,'FRED Indicies'!D146) -> 0 | AF133: =AF132+1 -> 134 | AG133: FALSE | AH133: =IF(AG133,'Google Index'!E160) -> FALSE | AJ133: =IF(AF133,'Google Index'!F160) -> 0 | AN133: =AN132+1 -> 134 | AO133: FALSE | AP133: =IF(AN133,'Commodity Prices'!C146) -> 0 | AR133: =IF(AO133,'Commodity Prices'!E146) -> FALSE | AV133: =AV132+1 -> 134 | AW133: FALSE | AX133: =IF(AW133,'Yahoo Stocks'!D160) -> FALSE | AZ133: =IF(AW133,'Yahoo Stocks'!E160) -> FALSE | BD133: =BD132+1 -> 144 | BE133: FALSE | BF133: =IF(BE133,'Google Finance Stocks'!D157) -> FALSE | BH133: =IF(BE133,'Google Finance Stocks'!E157) -> FALSE | BL133: =BL132+1 -> 144 | BM133: FALSE | BN133: ='Exchange Rates'!D143 -> 0 | BP133: =IF(BM133,'Exchange Rates'!E143) -> FALSE
L134: 132 | Q134: 132 | R134: FALSE | X134: 135 | Y134: FALSE | Z134: =IF($F$6,'FRED Indicies'!E147) -> 0 | AB134: =IF($F$6,'FRED Indicies'!D147) -> 0 | AF134: 135 | AG134: FALSE | AH134: =IF(AG134,'Google Index'!E161) -> FALSE | AJ134: =IF(AF134,'Google Index'!F161) -> 0 | AN134: 135 | AO134: FALSE | AP134: =IF(AN134,'Commodity Prices'!C147) -> 0 | AR134: =IF(AO134,'Commodity Prices'!E147) -> FALSE | AV134: 135 | AW134: FALSE | AX134: =IF(AW134,'Yahoo Stocks'!D161) -> FALSE | AZ134: =IF(AW134,'Yahoo Stocks'!E161) -> FALSE | BD134: 145 | BE134: FALSE | BF134: =IF(BE134,'Google Finance Stocks'!D158) -> FALSE | BH134: =IF(BE134,'Google Finance Stocks'!E158) -> FALSE | BL134: 145 | BM134: FALSE | BN134: ='Exchange Rates'!D144 -> 0 | BP134: =IF(BM134,'Exchange Rates'!E144) -> FALSE
L135: 133 | M135: =S135&AA135&AI135&AQ135&AY135&BG135&BO135 ->  | N135: =T135&AC135&AK135&AS135&BA135&BI135&BQ135 ->  | O135: =U135&AD135&AL135&AT135&BB135&BJ135&BR135 ->  | P135: =V135&AE135&AM135&AU135&BC135&BK135&BS135 ->  | Q135: 133 | R135: =IF(AND($F$3,Q135<=$H$3),Q135) -> FALSE | X135: 136 | Y135: FALSE | Z135: =IF($F$6,'FRED Indicies'!E148) -> 0 | AB135: =IF($F$6,'FRED Indicies'!D148) -> 0 | AF135: 136 | AG135: FALSE | AH135: =IF(AG135,'Google Index'!E162) -> FALSE | AJ135: =IF(AF135,'Google Index'!F162) -> 0 | AN135: 136 | AO135: FALSE | AP135: =IF(AN135,'Commodity Prices'!C148) -> 0 | AR135: =IF(AO135,'Commodity Prices'!E148) -> FALSE | AV135: 136 | AW135: FALSE | AX135: =IF(AW135,'Yahoo Stocks'!D162) -> FALSE | AZ135: =IF(AW135,'Yahoo Stocks'!E162) -> FALSE | BD135: 146 | BE135: FALSE | BF135: =IF(BE135,'Google Finance Stocks'!D159) -> FALSE | BH135: =IF(BE135,'Google Finance Stocks'!E159) -> FALSE | BL135: 146 | BM135: FALSE | BN135: ='Exchange Rates'!D145 -> 0 | BP135: =IF(BM135,'Exchange Rates'!E145) -> FALSE
L136: 134 | Q136: 134 | R136: FALSE | X136: 137 | Y136: FALSE | Z136: =IF($F$6,'FRED Indicies'!E149) -> 0 | AB136: =IF($F$6,'FRED Indicies'!D149) -> 0 | AF136: 137 | AG136: FALSE | AH136: =IF(AG136,'Google Index'!E163) -> FALSE | AJ136: =IF(AF136,'Google Index'!F163) -> 0 | AN136: 137 | AO136: FALSE | AP136: =IF(AN136,'Commodity Prices'!C149) -> 0 | AR136: =IF(AO136,'Commodity Prices'!E149) -> FALSE | AV136: 137 | AW136: FALSE | AX136: =IF(AW136,'Yahoo Stocks'!D163) -> FALSE | AZ136: =IF(AW136,'Yahoo Stocks'!E163) -> FALSE | BD136: 147 | BE136: FALSE | BF136: =IF(BE136,'Google Finance Stocks'!D160) -> FALSE | BH136: =IF(BE136,'Google Finance Stocks'!E160) -> FALSE | BL136: 147 | BM136: FALSE | BN136: ='Exchange Rates'!D146 -> 0 | BP136: =IF(BM136,'Exchange Rates'!E146) -> FALSE
L137: 135 | Q137: 135 | R137: FALSE | X137: 138 | Y137: FALSE | Z137: =IF($F$6,'FRED Indicies'!E150) -> 0 | AB137: =IF($F$6,'FRED Indicies'!D150) -> 0 | AF137: 138 | AG137: FALSE | AH137: =IF(AG137,'Google Index'!E164) -> FALSE | AJ137: =IF(AF137,'Google Index'!F164) -> 0 | AN137: 138 | AO137: FALSE | AP137: =IF(AN137,'Commodity Prices'!C150) -> 0 | AR137: =IF(AO137,'Commodity Prices'!E150) -> FALSE | AV137: 138 | AW137: FALSE | AX137: =IF(AW137,'Yahoo Stocks'!D164) -> FALSE | AZ137: =IF(AW137,'Yahoo Stocks'!E164) -> FALSE | BD137: 148 | BE137: FALSE | BF137: =IF(BE137,'Google Finance Stocks'!D161) -> FALSE | BH137: =IF(BE137,'Google Finance Stocks'!E161) -> FALSE | BL137: 148 | BM137: FALSE | BN137: ='Exchange Rates'!D147 -> 0 | BP137: =IF(BM137,'Exchange Rates'!E147) -> FALSE
L138: 136 | Q138: 136 | R138: FALSE | X138: 139 | Y138: FALSE | Z138: =IF($F$6,'FRED Indicies'!E151) -> 0 | AB138: =IF($F$6,'FRED Indicies'!D151) -> 0 | AF138: 139 | AG138: FALSE | AH138: =IF(AG138,'Google Index'!E165) -> FALSE | AJ138: =IF(AF138,'Google Index'!F165) -> 0 | AN138: 139 | AO138: FALSE | AP138: =IF(AN138,'Commodity Prices'!C151) -> 0 | AR138: =IF(AO138,'Commodity Prices'!E151) -> FALSE | AV138: 139 | AW138: FALSE | AX138: =IF(AW138,'Yahoo Stocks'!D165) -> FALSE | AZ138: =IF(AW138,'Yahoo Stocks'!E165) -> FALSE | BD138: 149 | BE138: FALSE | BF138: =IF(BE138,'Google Finance Stocks'!D162) -> FALSE | BH138: =IF(BE138,'Google Finance Stocks'!E162) -> FALSE | BL138: 149 | BM138: FALSE | BN138: ='Exchange Rates'!D148 -> 0 | BP138: =IF(BM138,'Exchange Rates'!E148) -> FALSE
L139: 137 | Q139: 137 | R139: FALSE | X139: 140 | Y139: FALSE | Z139: =IF($F$6,'FRED Indicies'!E152) -> 0 | AB139: =IF($F$6,'FRED Indicies'!D152) -> 0 | AF139: 140 | AG139: FALSE | AH139: =IF(AG139,'Google Index'!E166) -> FALSE | AJ139: =IF(AF139,'Google Index'!F166) -> 0 | AN139: 140 | AO139: FALSE | AP139: =IF(AN139,'Commodity Prices'!C152) -> 0 | AR139: =IF(AO139,'Commodity Prices'!E152) -> FALSE | AV139: 140 | AW139: FALSE | AX139: =IF(AW139,'Yahoo Stocks'!D166) -> FALSE | AZ139: =IF(AW139,'Yahoo Stocks'!E166) -> FALSE | BD139: 150 | BE139: FALSE | BF139: =IF(BE139,'Google Finance Stocks'!D163) -> FALSE | BH139: =IF(BE139,'Google Finance Stocks'!E163) -> FALSE | BL139: 150 | BM139: FALSE | BN139: ='Exchange Rates'!D149 -> 0 | BP139: =IF(BM139,'Exchange Rates'!E149) -> FALSE
L140: 138 | Q140: 138 | R140: FALSE | X140: 141 | Y140: FALSE | Z140: =IF($F$6,'FRED Indicies'!E153) -> 0 | AB140: =IF($F$6,'FRED Indicies'!D153) -> 0 | AF140: 141 | AG140: FALSE | AH140: =IF(AG140,'Google Index'!E167) -> FALSE | AJ140: =IF(AF140,'Google Index'!F167) -> 0 | AN140: 141 | AO140: FALSE | AP140: =IF(AN140,'Commodity Prices'!C153) -> 0 | AR140: =IF(AO140,'Commodity Prices'!E153) -> FALSE | AV140: 141 | AW140: FALSE | AX140: =IF(AW140,'Yahoo Stocks'!D167) -> FALSE | AZ140: =IF(AW140,'Yahoo Stocks'!E167) -> FALSE | BD140: 151 | BE140: FALSE | BF140: =IF(BE140,'Google Finance Stocks'!D164) -> FALSE | BH140: =IF(BE140,'Google Finance Stocks'!E164) -> FALSE | BL140: 151 | BM140: FALSE | BN140: ='Exchange Rates'!D150 -> 0 | BP140: =IF(BM140,'Exchange Rates'!E150) -> FALSE
L141: 139 | M141: =S141&AA141&AI141&AQ141&AY141&BG141&BO141 ->  | N141: =T141&AC141&AK141&AS141&BA141&BI141&BQ141 ->  | O141: =U141&AD141&AL141&AT141&BB141&BJ141&BR141 ->  | P141: =V141&AE141&AM141&AU141&BC141&BK141&BS141 ->  | Q141: 139 | R141: FALSE | X141: 142 | Y141: FALSE | Z141: =IF($F$6,'FRED Indicies'!E154) -> 0 | AB141: =IF($F$6,'FRED Indicies'!D154) -> 0 | AF141: 142 | AG141: FALSE | AH141: =IF(AG141,'Google Index'!E168) -> FALSE | AJ141: =IF(AF141,'Google Index'!F168) -> 0 | AN141: 142 | AO141: FALSE | AP141: =IF(AN141,'Commodity Prices'!C154) -> 0 | AR141: =IF(AO141,'Commodity Prices'!E154) -> FALSE | AV141: 142 | AW141: FALSE | AX141: =IF(AW141,'Yahoo Stocks'!D168) -> FALSE | AZ141: =IF(AW141,'Yahoo Stocks'!E168) -> FALSE | BD141: 152 | BE141: FALSE | BF141: =IF(BE141,'Google Finance Stocks'!D165) -> FALSE | BH141: =IF(BE141,'Google Finance Stocks'!E165) -> FALSE | BL141: 152 | BM141: FALSE | BN141: ='Exchange Rates'!D151 -> 0 | BP141: =IF(BM141,'Exchange Rates'!E151) -> FALSE
L142: 140 | Q142: 140 | R142: FALSE | X142: 143 | Y142: FALSE | Z142: =IF($F$6,'FRED Indicies'!E155) -> 0 | AB142: =IF($F$6,'FRED Indicies'!D155) -> 0 | AF142: 143 | AG142: FALSE | AH142: =IF(AG142,'Google Index'!E169) -> FALSE | AJ142: =IF(AF142,'Google Index'!F169) -> 0 | AN142: 143 | AO142: FALSE | AP142: =IF(AN142,'Commodity Prices'!C155) -> 0 | AR142: =IF(AO142,'Commodity Prices'!E155) -> FALSE | AV142: 143 | AW142: FALSE | AX142: =IF(AW142,'Yahoo Stocks'!D169) -> FALSE | AZ142: =IF(AW142,'Yahoo Stocks'!E169) -> FALSE | BD142: 153 | BE142: FALSE | BF142: =IF(BE142,'Google Finance Stocks'!D166) -> FALSE | BH142: =IF(BE142,'Google Finance Stocks'!E166) -> FALSE | BL142: 153 | BM142: FALSE | BN142: ='Exchange Rates'!D152 -> 0 | BP142: =IF(BM142,'Exchange Rates'!E152) -> FALSE
L143: 141 | Q143: 141 | R143: FALSE | X143: 144 | Y143: FALSE | Z143: =IF($F$6,'FRED Indicies'!E156) -> 0 | AB143: =IF($F$6,'FRED Indicies'!D156) -> 0 | AF143: 144 | AG143: FALSE | AH143: =IF(AG143,'Google Index'!E170) -> FALSE | AJ143: =IF(AF143,'Google Index'!F170) -> 0 | AN143: 144 | AO143: FALSE | AP143: =IF(AN143,'Commodity Prices'!C156) -> 0 | AR143: =IF(AO143,'Commodity Prices'!E156) -> FALSE | AV143: 144 | AW143: FALSE | AX143: =IF(AW143,'Yahoo Stocks'!D170) -> FALSE | AZ143: =IF(AW143,'Yahoo Stocks'!E170) -> FALSE | BD143: 154 | BE143: FALSE | BF143: =IF(BE143,'Google Finance Stocks'!D167) -> FALSE | BH143: =IF(BE143,'Google Finance Stocks'!E167) -> FALSE | BL143: 154 | BM143: FALSE | BN143: ='Exchange Rates'!D153 -> 0 | BP143: =IF(BM143,'Exchange Rates'!E153) -> FALSE
L144: 142 | Q144: 142 | R144: FALSE | X144: 145 | Y144: FALSE | Z144: =IF($F$6,'FRED Indicies'!E157) -> 0 | AB144: =IF($F$6,'FRED Indicies'!D157) -> 0 | AF144: 145 | AG144: FALSE | AH144: =IF(AG144,'Google Index'!E171) -> FALSE | AJ144: =IF(AF144,'Google Index'!F171) -> 0 | AN144: 145 | AO144: FALSE | AP144: =IF(AN144,'Commodity Prices'!C157) -> 0 | AR144: =IF(AO144,'Commodity Prices'!E157) -> FALSE | AV144: 145 | AW144: FALSE | AX144: =IF(AW144,'Yahoo Stocks'!D171) -> FALSE | AZ144: =IF(AW144,'Yahoo Stocks'!E171) -> FALSE | BD144: 155 | BE144: FALSE | BF144: =IF(BE144,'Google Finance Stocks'!D168) -> FALSE | BH144: =IF(BE144,'Google Finance Stocks'!E168) -> FALSE | BL144: 155 | BM144: FALSE | BN144: ='Exchange Rates'!D154 -> 0 | BP144: =IF(BM144,'Exchange Rates'!E154) -> FALSE
L145: 143 | Q145: 143 | R145: FALSE | X145: 146 | Y145: FALSE | Z145: =IF($F$6,'FRED Indicies'!E158) -> 0 | AB145: =IF($F$6,'FRED Indicies'!D158) -> 0 | AF145: 146 | AG145: FALSE | AH145: =IF(AG145,'Google Index'!E172) -> FALSE | AJ145: =IF(AF145,'Google Index'!F172) -> 0 | AN145: 146 | AO145: FALSE | AP145: =IF(AN145,'Commodity Prices'!C158) -> 0 | AR145: =IF(AO145,'Commodity Prices'!E158) -> FALSE | AV145: 146 | AW145: FALSE | AX145: =IF(AW145,'Yahoo Stocks'!D172) -> FALSE | AZ145: =IF(AW145,'Yahoo Stocks'!E172) -> FALSE | BD145: 156 | BE145: FALSE | BF145: =IF(BE145,'Google Finance Stocks'!D169) -> FALSE | BH145: =IF(BE145,'Google Finance Stocks'!E169) -> FALSE | BL145: 156 | BM145: FALSE | BN145: ='Exchange Rates'!D155 -> 0 | BP145: =IF(BM145,'Exchange Rates'!E155) -> FALSE
L146: 144 | Q146: 144 | R146: FALSE | X146: 147 | Y146: FALSE | Z146: =IF($F$6,'FRED Indicies'!E159) -> 0 | AB146: =IF($F$6,'FRED Indicies'!D159) -> 0 | AF146: 147 | AG146: FALSE | AH146: =IF(AG146,'Google Index'!E173) -> FALSE | AJ146: =IF(AF146,'Google Index'!F173) -> 0 | AN146: 147 | AO146: FALSE | AP146: =IF(AN146,'Commodity Prices'!C159) -> 0 | AR146: =IF(AO146,'Commodity Prices'!E159) -> FALSE | AV146: 147 | AW146: FALSE | AX146: =IF(AW146,'Yahoo Stocks'!D173) -> FALSE | AZ146: =IF(AW146,'Yahoo Stocks'!E173) -> FALSE | BD146: 157 | BE146: FALSE | BF146: =IF(BE146,'Google Finance Stocks'!D170) -> FALSE | BH146: =IF(BE146,'Google Finance Stocks'!E170) -> FALSE | BL146: 157 | BM146: FALSE | BN146: ='Exchange Rates'!D156 -> 0 | BP146: =IF(BM146,'Exchange Rates'!E156) -> FALSE
L147: 145 | Q147: 145 | R147: FALSE | X147: 148 | Y147: FALSE | Z147: =IF($F$6,'FRED Indicies'!E160) -> 0 | AB147: =IF($F$6,'FRED Indicies'!D160) -> 0 | AF147: 148 | AG147: FALSE | AH147: =IF(AG147,'Google Index'!E174) -> FALSE | AJ147: =IF(AF147,'Google Index'!F174) -> 0 | AN147: 148 | AO147: FALSE | AP147: =IF(AN147,'Commodity Prices'!C160) -> 0 | AR147: =IF(AO147,'Commodity Prices'!E160) -> FALSE | AV147: 148 | AW147: FALSE | AX147: =IF(AW147,'Yahoo Stocks'!D174) -> FALSE | AZ147: =IF(AW147,'Yahoo Stocks'!E174) -> FALSE | BD147: 158 | BE147: FALSE | BF147: =IF(BE147,'Google Finance Stocks'!D171) -> FALSE | BH147: =IF(BE147,'Google Finance Stocks'!E171) -> FALSE | BL147: 158 | BM147: FALSE | BN147: ='Exchange Rates'!D157 -> 0 | BP147: =IF(BM147,'Exchange Rates'!E157) -> FALSE
L148: 146 | Q148: 146 | R148: FALSE | X148: 149 | Y148: FALSE | Z148: =IF($F$6,'FRED Indicies'!E161) -> 0 | AB148: =IF($F$6,'FRED Indicies'!D161) -> 0 | AF148: 149 | AG148: FALSE | AH148: =IF(AG148,'Google Index'!E175) -> FALSE | AJ148: =IF(AF148,'Google Index'!F175) -> 0 | AN148: 149 | AO148: FALSE | AP148: =IF(AN148,'Commodity Prices'!C161) -> 0 | AR148: =IF(AO148,'Commodity Prices'!E161) -> FALSE | AV148: 149 | AW148: FALSE | AX148: =IF(AW148,'Yahoo Stocks'!D175) -> FALSE | AZ148: =IF(AW148,'Yahoo Stocks'!E175) -> FALSE | BD148: 159 | BE148: FALSE | BF148: =IF(BE148,'Google Finance Stocks'!D172) -> FALSE | BH148: =IF(BE148,'Google Finance Stocks'!E172) -> FALSE | BL148: 159 | BM148: FALSE | BN148: ='Exchange Rates'!D158 -> 0 | BP148: =IF(BM148,'Exchange Rates'!E158) -> FALSE
L149: 147 | Q149: 147 | R149: FALSE | X149: 150 | Y149: FALSE | Z149: =IF($F$6,'FRED Indicies'!E162) -> 0 | AB149: =IF($F$6,'FRED Indicies'!D162) -> 0 | AF149: 150 | AG149: FALSE | AH149: =IF(AG149,'Google Index'!E176) -> FALSE | AJ149: =IF(AF149,'Google Index'!F176) -> 0 | AN149: 150 | AO149: FALSE | AP149: =IF(AN149,'Commodity Prices'!C162) -> 0 | AR149: =IF(AO149,'Commodity Prices'!E162) -> FALSE | AV149: 150 | AW149: FALSE | AX149: =IF(AW149,'Yahoo Stocks'!D176) -> FALSE | AZ149: =IF(AW149,'Yahoo Stocks'!E176) -> FALSE | BD149: 160 | BE149: FALSE | BF149: =IF(BE149,'Google Finance Stocks'!D173) -> FALSE | BH149: =IF(BE149,'Google Finance Stocks'!E173) -> FALSE | BL149: 160 | BM149: FALSE | BN149: ='Exchange Rates'!D159 -> 0 | BP149: =IF(BM149,'Exchange Rates'!E159) -> FALSE
L150: 148 | Q150: 148 | R150: FALSE | X150: 151 | Y150: FALSE | Z150: =IF($F$6,'FRED Indicies'!E163) -> 0 | AB150: =IF($F$6,'FRED Indicies'!D163) -> 0 | AF150: 151 | AG150: FALSE | AH150: =IF(AG150,'Google Index'!E177) -> FALSE | AJ150: =IF(AF150,'Google Index'!F177) -> 0 | AN150: 151 | AO150: FALSE | AP150: =IF(AN150,'Commodity Prices'!C163) -> 0 | AR150: =IF(AO150,'Commodity Prices'!E163) -> FALSE | AV150: 151 | AW150: FALSE | AX150: =IF(AW150,'Yahoo Stocks'!D177) -> FALSE | AZ150: =IF(AW150,'Yahoo Stocks'!E177) -> FALSE | BD150: 161 | BE150: FALSE | BF150: =IF(BE150,'Google Finance Stocks'!D174) -> FALSE | BH150: =IF(BE150,'Google Finance Stocks'!E174) -> FALSE | BL150: 161 | BM150: FALSE | BN150: ='Exchange Rates'!D160 -> 0 | BP150: =IF(BM150,'Exchange Rates'!E160) -> FALSE
L151: 149 | Q151: 149 | R151: FALSE | X151: 152 | Y151: FALSE | Z151: =IF($F$6,'FRED Indicies'!E164) -> 0 | AB151: =IF($F$6,'FRED Indicies'!D164) -> 0 | AF151: 152 | AG151: FALSE | AH151: =IF(AG151,'Google Index'!E178) -> FALSE | AJ151: =IF(AF151,'Google Index'!F178) -> 0 | AN151: 152 | AO151: FALSE | AP151: =IF(AN151,'Commodity Prices'!C164) -> 0 | AR151: =IF(AO151,'Commodity Prices'!E164) -> FALSE | AV151: 152 | AW151: FALSE | AX151: =IF(AW151,'Yahoo Stocks'!D178) -> FALSE | AZ151: =IF(AW151,'Yahoo Stocks'!E178) -> FALSE | BD151: 162 | BE151: FALSE | BF151: =IF(BE151,'Google Finance Stocks'!D175) -> FALSE | BH151: =IF(BE151,'Google Finance Stocks'!E175) -> FALSE | BL151: 162 | BM151: FALSE | BN151: ='Exchange Rates'!D161 -> 0 | BP151: =IF(BM151,'Exchange Rates'!E161) -> FALSE
L152: 150 | Q152: 150 | R152: FALSE | X152: 153 | Y152: FALSE | Z152: =IF($F$6,'FRED Indicies'!E165) -> 0 | AB152: =IF($F$6,'FRED Indicies'!D165) -> 0 | AF152: 153 | AG152: FALSE | AH152: =IF(AG152,'Google Index'!E179) -> FALSE | AJ152: =IF(AF152,'Google Index'!F179) -> 0 | AN152: 153 | AO152: FALSE | AP152: =IF(AN152,'Commodity Prices'!C165) -> 0 | AR152: =IF(AO152,'Commodity Prices'!E165) -> FALSE | AV152: 153 | AW152: FALSE | AX152: =IF(AW152,'Yahoo Stocks'!D179) -> FALSE | AZ152: =IF(AW152,'Yahoo Stocks'!E179) -> FALSE | BD152: 163 | BE152: FALSE | BF152: =IF(BE152,'Google Finance Stocks'!D176) -> FALSE | BH152: =IF(BE152,'Google Finance Stocks'!E176) -> FALSE | BL152: 163 | BM152: FALSE | BN152: ='Exchange Rates'!D162 -> 0 | BP152: =IF(BM152,'Exchange Rates'!E162) -> FALSE
L153: 151 | Q153: 151 | R153: FALSE | X153: 154 | Y153: FALSE | Z153: =IF($F$6,'FRED Indicies'!E166) -> 0 | AB153: =IF($F$6,'FRED Indicies'!D166) -> 0 | AF153: 154 | AG153: FALSE | AH153: =IF(AG153,'Google Index'!E180) -> FALSE | AJ153: =IF(AF153,'Google Index'!F180) -> 0 | AN153: 154 | AO153: FALSE | AP153: =IF(AN153,'Commodity Prices'!C166) -> 0 | AR153: =IF(AO153,'Commodity Prices'!E166) -> FALSE | AV153: 154 | AW153: FALSE | AX153: =IF(AW153,'Yahoo Stocks'!D180) -> FALSE | AZ153: =IF(AW153,'Yahoo Stocks'!E180) -> FALSE | BD153: 164 | BE153: FALSE | BF153: =IF(BE153,'Google Finance Stocks'!D177) -> FALSE | BH153: =IF(BE153,'Google Finance Stocks'!E177) -> FALSE | BL153: 164 | BM153: FALSE | BN153: ='Exchange Rates'!D163 -> 0 | BP153: =IF(BM153,'Exchange Rates'!E163) -> FALSE
L154: 152 | X154: 155 | Y154: FALSE | Z154: =IF($F$6,'FRED Indicies'!E167) -> 0 | AB154: =IF($F$6,'FRED Indicies'!D167) -> 0 | AF154: 155 | AG154: FALSE | AH154: =IF(AG154,'Google Index'!E181) -> FALSE | AJ154: =IF(AF154,'Google Index'!F181) -> 0 | AN154: 155 | AO154: FALSE | AP154: =IF(AN154,'Commodity Prices'!C167) -> 0 | AR154: =IF(AO154,'Commodity Prices'!E167) -> FALSE | AV154: 155 | AW154: FALSE | AX154: =IF(AW154,'Yahoo Stocks'!D181) -> FALSE | AZ154: =IF(AW154,'Yahoo Stocks'!E181) -> FALSE | BD154: 165 | BE154: FALSE | BF154: =IF(BE154,'Google Finance Stocks'!D178) -> FALSE | BH154: =IF(BE154,'Google Finance Stocks'!E178) -> FALSE | BL154: 165 | BM154: FALSE | BN154: ='Exchange Rates'!D164 -> 0 | BP154: =IF(BM154,'Exchange Rates'!E164) -> FALSE
L155: 153 | X155: 156 | Y155: FALSE | Z155: =IF($F$6,'FRED Indicies'!E168) -> 0 | AB155: =IF($F$6,'FRED Indicies'!D168) -> 0 | AF155: 156 | AG155: FALSE | AH155: =IF(AG155,'Google Index'!E182) -> FALSE | AJ155: =IF(AF155,'Google Index'!F182) -> 0 | AN155: 156 | AO155: FALSE | AP155: =IF(AN155,'Commodity Prices'!C168) -> 0 | AR155: =IF(AO155,'Commodity Prices'!E168) -> FALSE | AV155: 156 | AW155: FALSE | AX155: =IF(AW155,'Yahoo Stocks'!D182) -> FALSE | AZ155: =IF(AW155,'Yahoo Stocks'!E182) -> FALSE | BD155: 166 | BE155: FALSE | BF155: =IF(BE155,'Google Finance Stocks'!D179) -> FALSE | BH155: =IF(BE155,'Google Finance Stocks'!E179) -> FALSE | BL155: 166 | BM155: FALSE | BN155: ='Exchange Rates'!D165 -> 0 | BP155: =IF(BM155,'Exchange Rates'!E165) -> FALSE
L156: 154 | X156: 157 | Y156: FALSE | Z156: =IF($F$6,'FRED Indicies'!E169) -> 0 | AB156: =IF($F$6,'FRED Indicies'!D169) -> 0 | AF156: 157 | AG156: FALSE | AH156: =IF(AG156,'Google Index'!E183) -> FALSE | AJ156: =IF(AF156,'Google Index'!F183) -> 0 | AN156: 157 | AO156: FALSE | AP156: =IF(AN156,'Commodity Prices'!C169) -> 0 | AR156: =IF(AO156,'Commodity Prices'!E169) -> FALSE | AV156: 157 | AW156: FALSE | AX156: =IF(AW156,'Yahoo Stocks'!D183) -> FALSE | AZ156: =IF(AW156,'Yahoo Stocks'!E183) -> FALSE | BD156: 167 | BE156: FALSE | BF156: =IF(BE156,'Google Finance Stocks'!D180) -> FALSE | BH156: =IF(BE156,'Google Finance Stocks'!E180) -> FALSE | BL156: 167 | BM156: FALSE | BN156: ='Exchange Rates'!D166 -> 0 | BP156: =IF(BM156,'Exchange Rates'!E166) -> FALSE
L157: 155 | X157: 158 | Y157: FALSE | Z157: =IF($F$6,'FRED Indicies'!E170) -> 0 | AB157: =IF($F$6,'FRED Indicies'!D170) -> 0 | AF157: 158 | AG157: FALSE | AH157: =IF(AG157,'Google Index'!E184) -> FALSE | AJ157: =IF(AF157,'Google Index'!F184) -> 0 | AN157: 158 | AO157: FALSE | AP157: =IF(AN157,'Commodity Prices'!C170) -> 0 | AR157: =IF(AO157,'Commodity Prices'!E170) -> FALSE | AV157: 158 | AW157: FALSE | AX157: =IF(AW157,'Yahoo Stocks'!D184) -> FALSE | AZ157: =IF(AW157,'Yahoo Stocks'!E184) -> FALSE | BD157: 168 | BE157: FALSE | BF157: =IF(BE157,'Google Finance Stocks'!D181) -> FALSE | BH157: =IF(BE157,'Google Finance Stocks'!E181) -> FALSE | BL157: 168 | BM157: FALSE | BN157: ='Exchange Rates'!D167 -> 0 | BP157: =IF(BM157,'Exchange Rates'!E167) -> FALSE
L158: 156 | X158: 159 | Y158: FALSE | Z158: =IF($F$6,'FRED Indicies'!E171) -> 0 | AB158: =IF($F$6,'FRED Indicies'!D171) -> 0 | AF158: 159 | AG158: FALSE | AH158: =IF(AG158,'Google Index'!E185) -> FALSE | AJ158: =IF(AF158,'Google Index'!F185) -> 0 | AN158: 159 | AO158: FALSE | AP158: =IF(AN158,'Commodity Prices'!C171) -> 0 | AR158: =IF(AO158,'Commodity Prices'!E171) -> FALSE | AV158: 159 | AW158: FALSE | AX158: =IF(AW158,'Yahoo Stocks'!D185) -> FALSE | AZ158: =IF(AW158,'Yahoo Stocks'!E185) -> FALSE | BD158: 169 | BE158: FALSE | BF158: =IF(BE158,'Google Finance Stocks'!D182) -> FALSE | BH158: =IF(BE158,'Google Finance Stocks'!E182) -> FALSE | BL158: 169 | BM158: FALSE | BN158: ='Exchange Rates'!D168 -> 0 | BP158: =IF(BM158,'Exchange Rates'!E168) -> FALSE
L159: 157 | X159: 160 | Y159: FALSE | Z159: =IF($F$6,'FRED Indicies'!E172) -> 0 | AB159: =IF($F$6,'FRED Indicies'!D172) -> 0 | AF159: 160 | AG159: FALSE | AH159: =IF(AG159,'Google Index'!E186) -> FALSE | AJ159: =IF(AF159,'Google Index'!F186) -> 0 | AN159: 160 | AO159: FALSE | AP159: =IF(AN159,'Commodity Prices'!C172) -> 0 | AR159: =IF(AO159,'Commodity Prices'!E172) -> FALSE | AV159: 160 | AW159: FALSE | AX159: =IF(AW159,'Yahoo Stocks'!D186) -> FALSE | AZ159: =IF(AW159,'Yahoo Stocks'!E186) -> FALSE | BD159: 170 | BE159: FALSE | BF159: =IF(BE159,'Google Finance Stocks'!D183) -> FALSE | BH159: =IF(BE159,'Google Finance Stocks'!E183) -> FALSE | BL159: 170 | BM159: FALSE | BN159: ='Exchange Rates'!D169 -> 0 | BP159: =IF(BM159,'Exchange Rates'!E169) -> FALSE
L160: 158 | X160: 161 | Y160: FALSE | Z160: =IF($F$6,'FRED Indicies'!E173) -> 0 | AB160: =IF($F$6,'FRED Indicies'!D173) -> 0 | AF160: 161 | AG160: FALSE | AH160: =IF(AG160,'Google Index'!E187) -> FALSE | AJ160: =IF(AF160,'Google Index'!F187) -> 0 | AN160: 161 | AO160: FALSE | AP160: =IF(AN160,'Commodity Prices'!C173) -> 0 | AR160: =IF(AO160,'Commodity Prices'!E173) -> FALSE | AV160: 161 | AW160: FALSE | AX160: =IF(AW160,'Yahoo Stocks'!D187) -> FALSE | AZ160: =IF(AW160,'Yahoo Stocks'!E187) -> FALSE | BD160: 171 | BE160: FALSE | BF160: =IF(BE160,'Google Finance Stocks'!D184) -> FALSE | BH160: =IF(BE160,'Google Finance Stocks'!E184) -> FALSE | BL160: 171 | BM160: FALSE | BN160: ='Exchange Rates'!D170 -> 0 | BP160: =IF(BM160,'Exchange Rates'!E170) -> FALSE
L161: 159 | X161: 162 | Y161: FALSE | Z161: =IF($F$6,'FRED Indicies'!E174) -> 0 | AB161: =IF($F$6,'FRED Indicies'!D174) -> 0 | AF161: 162 | AG161: FALSE | AH161: =IF(AG161,'Google Index'!E188) -> FALSE | AJ161: =IF(AF161,'Google Index'!F188) -> 0 | AN161: 162 | AO161: FALSE | AP161: =IF(AN161,'Commodity Prices'!C174) -> 0 | AR161: =IF(AO161,'Commodity Prices'!E174) -> FALSE | AV161: 162 | AW161: FALSE | AX161: =IF(AW161,'Yahoo Stocks'!D188) -> FALSE | AZ161: =IF(AW161,'Yahoo Stocks'!E188) -> FALSE | BD161: 172 | BE161: FALSE | BF161: =IF(BE161,'Google Finance Stocks'!D185) -> FALSE | BH161: =IF(BE161,'Google Finance Stocks'!E185) -> FALSE | BL161: 172 | BM161: FALSE | BN161: ='Exchange Rates'!D171 -> 0 | BP161: =IF(BM161,'Exchange Rates'!E171) -> FALSE
L162: 160 | X162: 163 | Y162: FALSE | Z162: =IF($F$6,'FRED Indicies'!E175) -> 0 | AB162: =IF($F$6,'FRED Indicies'!D175) -> 0 | AF162: 163 | AG162: FALSE | AH162: =IF(AG162,'Google Index'!E189) -> FALSE | AJ162: =IF(AF162,'Google Index'!F189) -> 0 | AN162: 163 | AO162: FALSE | AP162: =IF(AN162,'Commodity Prices'!C175) -> 0 | AR162: =IF(AO162,'Commodity Prices'!E175) -> FALSE | AV162: 163 | AW162: FALSE | AX162: =IF(AW162,'Yahoo Stocks'!D189) -> FALSE | AZ162: =IF(AW162,'Yahoo Stocks'!E189) -> FALSE | BD162: 173 | BE162: FALSE | BF162: =IF(BE162,'Google Finance Stocks'!D186) -> FALSE | BH162: =IF(BE162,'Google Finance Stocks'!E186) -> FALSE | BL162: 173 | BM162: FALSE | BN162: ='Exchange Rates'!D172 -> 0 | BP162: =IF(BM162,'Exchange Rates'!E172) -> FALSE
L163: 161 | X163: 164 | Y163: FALSE | Z163: =IF($F$6,'FRED Indicies'!E176) -> 0 | AB163: =IF($F$6,'FRED Indicies'!D176) -> 0 | AF163: 164 | AG163: FALSE | AH163: =IF(AG163,'Google Index'!E190) -> FALSE | AJ163: =IF(AF163,'Google Index'!F190) -> 0 | AN163: 164 | AO163: FALSE | AP163: =IF(AN163,'Commodity Prices'!C176) -> 0 | AR163: =IF(AO163,'Commodity Prices'!E176) -> FALSE | AV163: 164 | AW163: FALSE | AX163: =IF(AW163,'Yahoo Stocks'!D190) -> FALSE | AZ163: =IF(AW163,'Yahoo Stocks'!E190) -> FALSE | BD163: 174 | BE163: FALSE | BF163: =IF(BE163,'Google Finance Stocks'!D187) -> FALSE | BH163: =IF(BE163,'Google Finance Stocks'!E187) -> FALSE | BL163: 174 | BM163: FALSE | BN163: ='Exchange Rates'!D173 -> 0 | BP163: =IF(BM163,'Exchange Rates'!E173) -> FALSE
L164: 162 | X164: 165 | Y164: FALSE | Z164: =IF($F$6,'FRED Indicies'!E177) -> 0 | AB164: =IF($F$6,'FRED Indicies'!D177) -> 0 | AF164: 165 | AG164: FALSE | AH164: =IF(AG164,'Google Index'!E191) -> FALSE | AJ164: =IF(AF164,'Google Index'!F191) -> 0 | AN164: 165 | AO164: FALSE | AP164: =IF(AN164,'Commodity Prices'!C177) -> 0 | AR164: =IF(AO164,'Commodity Prices'!E177) -> FALSE | AV164: 165 | AW164: FALSE | AX164: =IF(AW164,'Yahoo Stocks'!D191) -> FALSE | AZ164: =IF(AW164,'Yahoo Stocks'!E191) -> FALSE | BD164: 175 | BE164: FALSE | BF164: =IF(BE164,'Google Finance Stocks'!D188) -> FALSE | BH164: =IF(BE164,'Google Finance Stocks'!E188) -> FALSE | BL164: 175 | BM164: FALSE | BN164: ='Exchange Rates'!D174 -> 0 | BP164: =IF(BM164,'Exchange Rates'!E174) -> FALSE
L165: 163 | X165: 166 | Y165: FALSE | Z165: =IF($F$6,'FRED Indicies'!E178) -> 0 | AB165: =IF($F$6,'FRED Indicies'!D178) -> 0 | AF165: 166 | AG165: FALSE | AH165: =IF(AG165,'Google Index'!E192) -> FALSE | AJ165: =IF(AF165,'Google Index'!F192) -> 0 | AN165: 166 | AO165: FALSE | AP165: =IF(AN165,'Commodity Prices'!C178) -> 0 | AR165: =IF(AO165,'Commodity Prices'!E178) -> FALSE | AV165: 166 | AW165: FALSE | AX165: =IF(AW165,'Yahoo Stocks'!D192) -> FALSE | AZ165: =IF(AW165,'Yahoo Stocks'!E192) -> FALSE | BD165: 176 | BE165: FALSE | BF165: =IF(BE165,'Google Finance Stocks'!D189) -> FALSE | BH165: =IF(BE165,'Google Finance Stocks'!E189) -> FALSE | BL165: 176 | BM165: FALSE | BN165: ='Exchange Rates'!D175 -> 0 | BP165: =IF(BM165,'Exchange Rates'!E175) -> FALSE
L166: 164 | X166: 167 | Y166: FALSE | Z166: =IF($F$6,'FRED Indicies'!E179) -> 0 | AB166: =IF($F$6,'FRED Indicies'!D179) -> 0 | AF166: 167 | AG166: FALSE | AH166: =IF(AG166,'Google Index'!E193) -> FALSE | AJ166: =IF(AF166,'Google Index'!F193) -> 0 | AN166: 167 | AO166: FALSE | AP166: =IF(AN166,'Commodity Prices'!C179) -> 0 | AR166: =IF(AO166,'Commodity Prices'!E179) -> FALSE | AV166: 167 | AW166: FALSE | AX166: =IF(AW166,'Yahoo Stocks'!D193) -> FALSE | AZ166: =IF(AW166,'Yahoo Stocks'!E193) -> FALSE | BD166: 177 | BE166: FALSE | BF166: =IF(BE166,'Google Finance Stocks'!D190) -> FALSE | BH166: =IF(BE166,'Google Finance Stocks'!E190) -> FALSE | BL166: 177 | BM166: FALSE | BN166: ='Exchange Rates'!D176 -> 0 | BP166: =IF(BM166,'Exchange Rates'!E176) -> FALSE
L167: 165 | X167: 168 | Y167: FALSE | Z167: =IF($F$6,'FRED Indicies'!E180) -> 0 | AB167: =IF($F$6,'FRED Indicies'!D180) -> 0 | AF167: 168 | AG167: FALSE | AH167: =IF(AG167,'Google Index'!E194) -> FALSE | AJ167: =IF(AF167,'Google Index'!F194) -> 0 | AN167: 168 | AO167: FALSE | AP167: =IF(AN167,'Commodity Prices'!C180) -> 0 | AR167: =IF(AO167,'Commodity Prices'!E180) -> FALSE | AV167: 168 | AW167: FALSE | AX167: =IF(AW167,'Yahoo Stocks'!D194) -> FALSE | AZ167: =IF(AW167,'Yahoo Stocks'!E194) -> FALSE | BD167: 178 | BE167: FALSE | BF167: =IF(BE167,'Google Finance Stocks'!D191) -> FALSE | BH167: =IF(BE167,'Google Finance Stocks'!E191) -> FALSE | BL167: 178 | BM167: FALSE | BN167: ='Exchange Rates'!D177 -> 0 | BP167: =IF(BM167,'Exchange Rates'!E177) -> FALSE
L168: 166 | X168: 169 | Y168: FALSE | Z168: =IF($F$6,'FRED Indicies'!E181) -> 0 | AB168: =IF($F$6,'FRED Indicies'!D181) -> 0 | AF168: 169 | AG168: FALSE | AH168: =IF(AG168,'Google Index'!E195) -> FALSE | AJ168: =IF(AF168,'Google Index'!F195) -> 0 | AN168: 169 | AO168: FALSE | AP168: =IF(AN168,'Commodity Prices'!C181) -> 0 | AR168: =IF(AO168,'Commodity Prices'!E181) -> FALSE | AV168: 169 | AW168: FALSE | AX168: =IF(AW168,'Yahoo Stocks'!D195) -> FALSE | AZ168: =IF(AW168,'Yahoo Stocks'!E195) -> FALSE | BD168: 179 | BE168: FALSE | BF168: =IF(BE168,'Google Finance Stocks'!D192) -> FALSE | BH168: =IF(BE168,'Google Finance Stocks'!E192) -> FALSE | BL168: 179 | BM168: FALSE | BN168: ='Exchange Rates'!D178 -> 0 | BP168: =IF(BM168,'Exchange Rates'!E178) -> FALSE
L169: 167 | X169: 170 | Y169: FALSE | Z169: =IF($F$6,'FRED Indicies'!E182) -> 0 | AB169: =IF($F$6,'FRED Indicies'!D182) -> 0 | AF169: 170 | AG169: FALSE | AH169: =IF(AG169,'Google Index'!E196) -> FALSE | AJ169: =IF(AF169,'Google Index'!F196) -> 0 | AN169: 170 | AO169: FALSE | AP169: =IF(AN169,'Commodity Prices'!C182) -> 0 | AR169: =IF(AO169,'Commodity Prices'!E182) -> FALSE | AV169: 170 | AW169: FALSE | AX169: =IF(AW169,'Yahoo Stocks'!D196) -> FALSE | AZ169: =IF(AW169,'Yahoo Stocks'!E196) -> FALSE | BD169: 180 | BE169: FALSE | BF169: =IF(BE169,'Google Finance Stocks'!D193) -> FALSE | BH169: =IF(BE169,'Google Finance Stocks'!E193) -> FALSE | BL169: 180 | BM169: FALSE | BN169: ='Exchange Rates'!D179 -> 0 | BP169: =IF(BM169,'Exchange Rates'!E179) -> FALSE
L170: 168 | X170: 171 | Y170: FALSE | Z170: =IF($F$6,'FRED Indicies'!E183) -> 0 | AB170: =IF($F$6,'FRED Indicies'!D183) -> 0 | AF170: 171 | AG170: FALSE | AH170: =IF(AG170,'Google Index'!E197) -> FALSE | AJ170: =IF(AF170,'Google Index'!F197) -> 0 | AN170: 171 | AO170: FALSE | AP170: =IF(AN170,'Commodity Prices'!C183) -> 0 | AR170: =IF(AO170,'Commodity Prices'!E183) -> FALSE | AV170: 171 | AW170: FALSE | AX170: =IF(AW170,'Yahoo Stocks'!D197) -> FALSE | AZ170: =IF(AW170,'Yahoo Stocks'!E197) -> FALSE | BD170: 181 | BE170: FALSE | BF170: =IF(BE170,'Google Finance Stocks'!D194) -> FALSE | BH170: =IF(BE170,'Google Finance Stocks'!E194) -> FALSE | BL170: 181 | BM170: FALSE | BN170: ='Exchange Rates'!D180 -> 0 | BP170: =IF(BM170,'Exchange Rates'!E180) -> FALSE
L171: 169 | X171: 172 | Y171: FALSE | Z171: =IF($F$6,'FRED Indicies'!E184) -> 0 | AB171: =IF($F$6,'FRED Indicies'!D184) -> 0 | AF171: 172 | AG171: FALSE | AH171: =IF(AG171,'Google Index'!E198) -> FALSE | AJ171: =IF(AF171,'Google Index'!F198) -> 0 | AN171: 172 | AO171: FALSE | AP171: =IF(AN171,'Commodity Prices'!C184) -> 0 | AR171: =IF(AO171,'Commodity Prices'!E184) -> FALSE | AV171: 172 | AW171: FALSE | AX171: =IF(AW171,'Yahoo Stocks'!D198) -> FALSE | AZ171: =IF(AW171,'Yahoo Stocks'!E198) -> FALSE | BD171: 182 | BE171: FALSE | BF171: =IF(BE171,'Google Finance Stocks'!D195) -> FALSE | BH171: =IF(BE171,'Google Finance Stocks'!E195) -> FALSE | BL171: 182 | BM171: FALSE | BN171: ='Exchange Rates'!D181 -> 0 | BP171: =IF(BM171,'Exchange Rates'!E181) -> FALSE
L172: 170 | BD172: 183 | BE172: =IF(AND($F$18,BD172<=$H$18),BD172) -> FALSE | BF172: =IF(BE172,'Google Finance Stocks'!D196) -> FALSE | BG172: =IFERROR(INDEX(BF:BF,MATCH(Q172,BE:BE,0)),"") ->  | BH172: =IF(BE172,'Google Finance Stocks'!E196) -> FALSE | BI172: =IFERROR(INDEX(BH:BH,MATCH(Q172,BE:BE,0)),"") ->  | BJ172: =IF(BI172<>"",$I$18,"") ->  | BK172: =IF(BI172<>"",$J$18,"") ->  | BL172: 183 | BM172: =IF(AND($F$21,BL172<=$H$21),BL172) -> FALSE | BN172: ='Exchange Rates'!D182 -> 0 | BO172: =IFERROR(INDEX(BN:BN,MATCH(L172,BM:BM,0)),"") ->  | BP172: =IF(BM172,'Exchange Rates'!E182) -> FALSE | BQ172: =IFERROR(INDEX(BP:BP,MATCH(L172,BM:BM,0)),"") ->  | BR172: =IF(BQ172<>"",$I$21,"") ->  | BS172: =IF(BQ172<>"",$J$21,"") -> 
L173: 171 | BD173: 184 | BE173: FALSE | BF173: =IF(BE173,'Google Finance Stocks'!D197) -> FALSE | BH173: =IF(BE173,'Google Finance Stocks'!E197) -> FALSE | BL173: 184 | BM173: FALSE | BN173: ='Exchange Rates'!D183 -> 0 | BP173: =IF(BM173,'Exchange Rates'!E183) -> FALSE
L174: 172 | BD174: 185 | BE174: FALSE | BF174: =IF(BE174,'Google Finance Stocks'!D198) -> FALSE | BH174: =IF(BE174,'Google Finance Stocks'!E198) -> FALSE | BL174: 185 | BM174: FALSE | BN174: ='Exchange Rates'!D184 -> 0 | BP174: =IF(BM174,'Exchange Rates'!E184) -> FALSE
L175: 173 | BD175: 186 | BE175: FALSE | BF175: =IF(BE175,'Google Finance Stocks'!D199) -> FALSE | BH175: =IF(BE175,'Google Finance Stocks'!E199) -> FALSE | BL175: 186 | BM175: FALSE | BN175: ='Exchange Rates'!D185 -> 0 | BP175: =IF(BM175,'Exchange Rates'!E185) -> FALSE
L176: 174 | BD176: 187 | BE176: FALSE | BF176: =IF(BE176,'Google Finance Stocks'!D200) -> FALSE | BH176: =IF(BE176,'Google Finance Stocks'!E200) -> FALSE | BL176: 187 | BM176: FALSE | BN176: ='Exchange Rates'!D186 -> 0 | BP176: =IF(BM176,'Exchange Rates'!E186) -> FALSE
BD177: 188 | BE177: FALSE | BF177: =IF(BE177,'Google Finance Stocks'!D201) -> FALSE | BH177: =IF(BE177,'Google Finance Stocks'!E201) -> FALSE | BL177: 188 | BM177: FALSE | BN177: ='Exchange Rates'!D187 -> 0 | BP177: =IF(BM177,'Exchange Rates'!E187) -> FALSE
BD178: 189 | BE178: FALSE | BF178: =IF(BE178,'Google Finance Stocks'!D202) -> FALSE | BH178: =IF(BE178,'Google Finance Stocks'!E202) -> FALSE | BL178: 189 | BM178: FALSE | BN178: ='Exchange Rates'!D188 -> 0 | BP178: =IF(BM178,'Exchange Rates'!E188) -> FALSE
BD179: 190 | BE179: FALSE | BF179: =IF(BE179,'Google Finance Stocks'!D203) -> FALSE | BH179: =IF(BE179,'Google Finance Stocks'!E203) -> FALSE | BL179: 190 | BM179: FALSE | BN179: ='Exchange Rates'!D189 -> 0 | BP179: =IF(BM179,'Exchange Rates'!E189) -> FALSE
BD180: 191 | BE180: FALSE | BF180: =IF(BE180,'Google Finance Stocks'!D204) -> FALSE | BH180: =IF(BE180,'Google Finance Stocks'!E204) -> FALSE | BL180: 191 | BM180: FALSE | BN180: ='Exchange Rates'!D190 -> 0 | BP180: =IF(BM180,'Exchange Rates'!E190) -> FALSE
BD181: 192 | BE181: FALSE | BF181: =IF(BE181,'Google Finance Stocks'!D205) -> FALSE | BH181: =IF(BE181,'Google Finance Stocks'!E205) -> FALSE | BL181: 192 | BM181: FALSE | BN181: ='Exchange Rates'!D191 -> 0 | BP181: =IF(BM181,'Exchange Rates'!E191) -> FALSE
BD182: 193 | BE182: FALSE | BF182: =IF(BE182,'Google Finance Stocks'!D206) -> FALSE | BH182: =IF(BE182,'Google Finance Stocks'!E206) -> FALSE | BL182: 193 | BM182: FALSE | BN182: ='Exchange Rates'!D192 -> 0 | BP182: =IF(BM182,'Exchange Rates'!E192) -> FALSE
BD183: 194 | BE183: FALSE | BF183: =IF(BE183,'Google Finance Stocks'!D207) -> FALSE | BH183: =IF(BE183,'Google Finance Stocks'!E207) -> FALSE | BL183: 194 | BM183: FALSE | BN183: ='Exchange Rates'!D193 -> 0 | BP183: =IF(BM183,'Exchange Rates'!E193) -> FALSE
BD184: 195 | BE184: FALSE | BF184: =IF(BE184,'Google Finance Stocks'!D208) -> FALSE | BH184: =IF(BE184,'Google Finance Stocks'!E208) -> FALSE | BL184: 195 | BM184: FALSE | BN184: ='Exchange Rates'!D194 -> 0 | BP184: =IF(BM184,'Exchange Rates'!E194) -> FALSE
BD185: 196 | BE185: FALSE | BF185: =IF(BE185,'Google Finance Stocks'!D209) -> FALSE | BH185: =IF(BE185,'Google Finance Stocks'!E209) -> FALSE | BL185: 196 | BM185: FALSE | BN185: ='Exchange Rates'!D195 -> 0 | BP185: =IF(BM185,'Exchange Rates'!E195) -> FALSE
BD186: 197 | BE186: FALSE | BF186: =IF(BE186,'Google Finance Stocks'!D210) -> FALSE | BH186: =IF(BE186,'Google Finance Stocks'!E210) -> FALSE | BL186: 197 | BM186: FALSE | BN186: ='Exchange Rates'!D196 -> 0 | BP186: =IF(BM186,'Exchange Rates'!E196) -> FALSE
BD187: 198 | BE187: FALSE | BF187: =IF(BE187,'Google Finance Stocks'!D211) -> FALSE | BH187: =IF(BE187,'Google Finance Stocks'!E211) -> FALSE | BL187: 198 | BM187: FALSE | BN187: ='Exchange Rates'!D197 -> 0 | BP187: =IF(BM187,'Exchange Rates'!E197) -> FALSE
BD188: 199 | BE188: FALSE | BF188: =IF(BE188,'Google Finance Stocks'!D212) -> FALSE | BH188: =IF(BE188,'Google Finance Stocks'!E212) -> FALSE | BL188: 199 | BM188: FALSE | BN188: ='Exchange Rates'!D198 -> 0 | BP188: =IF(BM188,'Exchange Rates'!E198) -> FALSE
BD189: 200 | BE189: FALSE | BF189: =IF(BE189,'Google Finance Stocks'!D213) -> FALSE | BH189: =IF(BE189,'Google Finance Stocks'!E213) -> FALSE | BL189: 200 | BM189: FALSE | BN189: ='Exchange Rates'!D199 -> 0 | BP189: =IF(BM189,'Exchange Rates'!E199) -> FALSE
BD190: 201 | BE190: FALSE | BF190: =IF(BE190,'Google Finance Stocks'!D214) -> FALSE | BH190: =IF(BE190,'Google Finance Stocks'!E214) -> FALSE | BL190: 201 | BM190: FALSE | BN190: ='Exchange Rates'!D200 -> 0 | BP190: =IF(BM190,'Exchange Rates'!E200) -> FALSE
BD191: 202 | BE191: FALSE | BF191: =IF(BE191,'Google Finance Stocks'!D215) -> FALSE | BH191: =IF(BE191,'Google Finance Stocks'!E215) -> FALSE | BL191: 202 | BM191: FALSE | BN191: ='Exchange Rates'!D201 -> 0 | BP191: =IF(BM191,'Exchange Rates'!E201) -> FALSE
BD192: 203 | BE192: FALSE | BF192: =IF(BE192,'Google Finance Stocks'!D216) -> FALSE | BH192: =IF(BE192,'Google Finance Stocks'!E216) -> FALSE | BL192: 203 | BM192: FALSE | BN192: ='Exchange Rates'!D202 -> 0 | BP192: =IF(BM192,'Exchange Rates'!E202) -> FALSE
BD193: 204 | BE193: FALSE | BF193: =IF(BE193,'Google Finance Stocks'!D217) -> FALSE | BH193: =IF(BE193,'Google Finance Stocks'!E217) -> FALSE | BL193: 204 | BM193: FALSE | BN193: ='Exchange Rates'!D203 -> 0 | BP193: =IF(BM193,'Exchange Rates'!E203) -> FALSE
BD194: 205 | BE194: FALSE | BF194: =IF(BE194,'Google Finance Stocks'!D218) -> FALSE | BH194: =IF(BE194,'Google Finance Stocks'!E218) -> FALSE | BL194: 205 | BM194: FALSE | BN194: ='Exchange Rates'!D204 -> 0 | BP194: =IF(BM194,'Exchange Rates'!E204) -> FALSE
BD195: 206 | BE195: FALSE | BF195: =IF(BE195,'Google Finance Stocks'!D219) -> FALSE | BH195: =IF(BE195,'Google Finance Stocks'!E219) -> FALSE | BL195: 206 | BM195: FALSE | BN195: ='Exchange Rates'!D205 -> 0 | BP195: =IF(BM195,'Exchange Rates'!E205) -> FALSE
BD196: 207 | BE196: FALSE | BF196: =IF(BE196,'Google Finance Stocks'!D220) -> FALSE | BH196: =IF(BE196,'Google Finance Stocks'!E220) -> FALSE | BL196: 207 | BM196: FALSE | BN196: ='Exchange Rates'!D206 -> 0 | BP196: =IF(BM196,'Exchange Rates'!E206) -> FALSE
BD197: =BD196+1 -> 208 | BE197: FALSE | BF197: =IF(BE197,'Google Finance Stocks'!D221) -> FALSE | BH197: =IF(BE197,'Google Finance Stocks'!E221) -> FALSE | BL197: =BL196+1 -> 208 | BM197: FALSE | BN197: ='Exchange Rates'!D207 -> 0 | BP197: =IF(BM197,'Exchange Rates'!E207) -> FALSE
BD198: 209 | BE198: FALSE | BF198: =IF(BE198,'Google Finance Stocks'!D222) -> FALSE | BH198: =IF(BE198,'Google Finance Stocks'!E222) -> FALSE | BL198: 209 | BM198: FALSE | BN198: ='Exchange Rates'!D208 -> 0 | BP198: =IF(BM198,'Exchange Rates'!E208) -> FALSE
BD199: 210 | BE199: FALSE | BF199: =IF(BE199,'Google Finance Stocks'!D223) -> FALSE | BH199: =IF(BE199,'Google Finance Stocks'!E223) -> FALSE | BL199: 210 | BM199: FALSE | BN199: ='Exchange Rates'!D209 -> 0 | BP199: =IF(BM199,'Exchange Rates'!E209) -> FALSE
BD200: 211 | BE200: FALSE | BF200: =IF(BE200,'Google Finance Stocks'!D224) -> FALSE | BH200: =IF(BE200,'Google Finance Stocks'!E224) -> FALSE | BL200: 211 | BM200: FALSE | BN200: ='Exchange Rates'!D210 -> 0 | BP200: =IF(BM200,'Exchange Rates'!E210) -> FALSE
... 6 more rows

Sheet Multiple Stock Graph
C1: Index | K1: IRR | L1: Vol | M1: Beta | AA1: Start | AB1: Final | AC1: Years
J2: =O26 -> US S&P 500 | K2: =Summary!K4 -> 0.0714065465 | L2: =Summary!AT5 -> 0.3004572574 | M2: =Summary!AT3 -> 1 | Y2: =J2 -> US S&P 500 | AA2: =Summary!D3 -> 1950-01-01 | AB2: =Summary!K3 -> 2.565151669 | AC2: =Summary!E4 -> 14.65790914
B3: Comparison vs Base | G3: Counter | H3: Match | I3: Selection
A4: 1 | B4: ='Read Stocks'!M3 -> S&P 500 | C4: ='Read Stocks'!N3 -> US S&P 500 | D4: FALSE | F4: =D4*1 -> 0 | G4: 1 | H4: =MATCH(G4,F$1:F$555,0) -> 6 | I4: =INDEX(B:B,H4) -> Mexico | J4: =INDEX(C:C,H4) -> Mexican Index | K4: =IFERROR(TRANSPOSE(Summary!BA4:BF4),"") -> 0.1291673632 | L4: =IFERROR(TRANSPOSE(Summary!AU5:AZ5),"") -> 0.1607070095 | M4: =IFERROR(TRANSPOSE(Summary!AU3:AZ3),"") -> 0.7897920665 | Y4: =J4 -> Mexican Index | AA4: =TRANSPOSE(Summary!AB2:AG2) -> 1991-11-01 | AB4: =TRANSPOSE(Summary!BA3:BF3) -> 5.254946526
A5: 2 | B5: ='Read Stocks'!M4 -> DAX | C5: ='Read Stocks'!N4 -> DAX in Euro | D5: FALSE | F5: =F4+D5 -> 0 | G5: 2 | H5: =MATCH(G5,F$1:F$555,0) ->  | I5: =INDEX(B:B,H5) ->  | J5: =INDEX(C:C,H5) ->  | Y5: =J5 ->  | AB5: 1
A6: 3 | B6: ='Read Stocks'!M5 -> Mexico | C6: ='Read Stocks'!N5 -> Mexican Index | D6: TRUE | F6: 1 | G6: 3 | AB6: 1
A7: 4 | B7: ='Read Stocks'!M6 -> FSLR | C7: ='Read Stocks'!N6 -> First Solar | D7: FALSE | F7: 1 | G7: 4 | AB7: 1
A8: 5 | B8: ='Read Stocks'!M7 -> JKS | C8: ='Read Stocks'!N7 -> Jinko Solar | D8: FALSE | F8: 1 | G8: 5 | AB8: 1
A9: 6 | B9: ='Read Stocks'!M8 -> TSL | C9: ='Read Stocks'!N8 -> Trina Solar | D9: FALSE | F9: 1 | G9: 6 | AB9: 1
A10: 7 | B10: ='Read Stocks'!M9 -> CSIQ | C10: ='Read Stocks'!N9 -> Canadian Solar | D10: FALSE | F10: 1 | G10: 7
A11: 8 | B11: ='Read Stocks'!M10 -> JASO | C11: ='Read Stocks'!N10 -> JA Solar | D11: FALSE | F11: 1 | G11: 8
A12: 9 | B12: ='Read Stocks'!M11 -> HQCL | C12: ='Read Stocks'!N11 -> Hanwha Q Cells | D12: FALSE | F12: 1 | G12: 9
A13: 10 | B13: ='Read Stocks'!M12 -> YGE | C13: ='Read Stocks'!N12 -> Yingi Green | D13: FALSE | F13: 1 | G13: 10
A14: 11 | B14: ='Read Stocks'!M13 -> 1165.HK | C14: ='Read Stocks'!N13 -> Sunfeng | D14: FALSE | F14: 1 | G14: 11
A15: 12 | B15: ='Read Stocks'!M14 -> 300118.SZ | C15: ='Read Stocks'!N14 -> Risen Energy | D15: FALSE | F15: 1 | G15: 12 | J15: =J2 -> US S&P 500 | K15: 0 | L15: =IFERROR(INDEX('Read Stocks'!$BN$3:$BN$11,'Multiple Stock Graph'!K15),"USD") -> USD
A16: 13 | B16: ='Read Stocks'!M15 -> 601012.SS | C16: ='Read Stocks'!N15 -> Longi Solar | D16: FALSE | F16: 1 | G16: 13 | J16: =J4 -> Mexican Index | K16: 0 | L16: =IFERROR(INDEX('Read Stocks'!$BN$3:$BN$11,'Multiple Stock Graph'!K16),"USD") -> USD
A17: 14 | B17: ='Read Stocks'!M16 -> GDP Inf | C17: ='Read Stocks'!N16 -> Implicit Price Deflator | D17: FALSE | F17: 1 | G17: 14 | J17: =J5 ->  | K17: 0 | L17: =IFERROR(INDEX('Read Stocks'!$BN$3:$BN$11,'Multiple Stock Graph'!K17),"USD") -> USD
A18: 15 | B18: ='Read Stocks'!M17 -> CPI US | C18: ='Read Stocks'!N17 -> Consumer Price Inflation | D18: FALSE | F18: 1 | G18: 15 | K18: 0 | L18: =IFERROR(INDEX('Read Stocks'!$BN$3:$BN$11,'Multiple Stock Graph'!K18),"USD") -> USD
A19: 16 | B19: ='Read Stocks'!M18 -> Mex | C19: ='Read Stocks'!N18 -> Mexico / U.S. Foreign Exchange Rate (EXMXUS) | D19: FALSE | F19: 1 | G19: 16 | K19: 0 | L19: =IFERROR(INDEX('Read Stocks'!$BN$3:$BN$11,'Multiple Stock Graph'!K19),"USD") -> USD
A20: 17 | B20: ='Read Stocks'!M19 -> INR | C20: ='Read Stocks'!N19 -> India / U.S. Foreign Exchange Rate (DEXINUS) | D20: FALSE | F20: 1 | G20: 17 | K20: 0 | L20: =IFERROR(INDEX('Read Stocks'!$BN$3:$BN$11,'Multiple Stock Graph'!K20),"USD") -> USD
A21: 18 | B21: ='Read Stocks'!M20 -> UK | C21: ='Read Stocks'!N20 -> U.S. / U.K. Foreign Exchange Rate (EXUSUK) | D21: FALSE | F21: 1 | G21: 18 | K21: 0 | L21: =IFERROR(INDEX('Read Stocks'!$BN$3:$BN$11,'Multiple Stock Graph'!K21),"USD") -> USD
A22: 19 | B22: ='Read Stocks'!M21 -> CFH | C22: ='Read Stocks'!N21 -> Switzerland / U.S. Foreign Exchange Rate (DEXSZUS) | D22: FALSE | F22: 1 | G22: 19
A23: 20 | B23: ='Read Stocks'!M22 -> US NOM GNP | C23: ='Read Stocks'!N22 -> Gross National Product (GNP) | D23: FALSE | F23: 1 | G23: 20
A24: 21 | B24: ='Read Stocks'!M23 -> US GDP | C24: ='Read Stocks'!N23 -> Gross Domestic Product (GDP) | D24: FALSE | F24: 1 | G24: 21
A25: 22 | B25: ='Read Stocks'!M24 ->  | C25: ='Read Stocks'!N24 ->  | D25: FALSE | F25: 1 | G25: 22
A26: 23 | B26: ='Read Stocks'!M25 ->  | C26: ='Read Stocks'!N25 ->  | D26: FALSE | F26: 1 | G26: 23 | L26: Primary Stock | N26: =Forms!J4 -> 1 | O26: =INDEX(C4:C195,Forms!J4) -> US S&P 500
A27: 24 | B27: ='Read Stocks'!M26 ->  | C27: ='Read Stocks'!N26 ->  | D27: FALSE | F27: 1 | G27: 24 | L27: Use the Drop Down Box for Selecting the Stock
A28: 25 | B28: ='Read Stocks'!M27 ->  | C28: ='Read Stocks'!N27 ->  | D28: FALSE | F28: 1 | G28: 25 | L28: Use the check boxes for comparison
A29: 26 | B29: ='Read Stocks'!M28 ->  | C29: ='Read Stocks'!N28 ->  | D29: FALSE | F29: 1 | G29: 26 | L29: Use the first check box for index in computing beta and other statistics
A30: 27 | B30: ='Read Stocks'!M29 ->  | C30: ='Read Stocks'!N29 ->  | D30: FALSE | F30: 1 | G30: 27
A31: 28 | B31: ='Read Stocks'!M30 ->  | C31: ='Read Stocks'!N30 ->  | D31: FALSE | F31: 1 | G31: 28
A32: 29 | B32: ='Read Stocks'!M31 ->  | C32: ='Read Stocks'!N31 ->  | D32: FALSE | F32: 1 | G32: 29
A33: 30 | B33: ='Read Stocks'!M32 ->  | C33: ='Read Stocks'!N32 ->  | D33: FALSE | F33: 1 | G33: 30
A34: 31 | B34: ='Read Stocks'!M33 ->  | C34: ='Read Stocks'!N33 ->  | D34: FALSE | F34: 1 | G34: 31
A35: 32 | B35: ='Read Stocks'!M34 ->  | C35: ='Read Stocks'!N34 ->  | D35: FALSE | F35: 1 | G35: 32
A36: 33 | B36: ='Read Stocks'!M35 ->  | C36: ='Read Stocks'!N35 ->  | D36: FALSE | F36: 1 | G36: 33
A37: 34 | B37: ='Read Stocks'!M36 ->  | C37: ='Read Stocks'!N36 ->  | D37: FALSE | F37: 1 | G37: 34
A38: 35 | B38: ='Read Stocks'!M37 ->  | C38: ='Read Stocks'!N37 ->  | D38: FALSE | F38: 1 | G38: 35
A39: 36 | B39: ='Read Stocks'!M38 ->  | C39: ='Read Stocks'!N38 ->  | D39: FALSE | F39: 1 | G39: 36
A40: 37 | B40: ='Read Stocks'!M39 ->  | C40: ='Read Stocks'!N39 ->  | D40: FALSE | F40: 1 | G40: 37
A41: 38 | B41: ='Read Stocks'!M40 ->  | C41: ='Read Stocks'!N40 ->  | D41: FALSE | F41: 1 | G41: 38
A42: 39 | B42: ='Read Stocks'!M41 ->  | C42: ='Read Stocks'!N41 ->  | D42: FALSE | F42: 1 | G42: 39
A43: 40 | B43: ='Read Stocks'!M42 ->  | C43: ='Read Stocks'!N42 ->  | D43: FALSE | F43: 1 | G43: 40
A44: 41 | B44: ='Read Stocks'!M43 ->  | C44: ='Read Stocks'!N43 ->  | D44: FALSE | F44: =F43+D44 -> 1 | G44: 41 | I44: =INDEX(B:B,H44) -> 
A45: 42 | B45: ='Read Stocks'!M44 ->  | C45: ='Read Stocks'!N44 ->  | D45: FALSE | F45: =F44+D45 -> 1 | G45: 42
A46: 43 | B46: ='Read Stocks'!M45 ->  | C46: ='Read Stocks'!N45 ->  | D46: FALSE | F46: 1 | G46: 43
A47: 44 | B47: ='Read Stocks'!M46 ->  | C47: ='Read Stocks'!N46 ->  | D47: FALSE | F47: 1 | G47: 44
A48: 45 | B48: ='Read Stocks'!M47 ->  | C48: ='Read Stocks'!N47 ->  | D48: FALSE | F48: 1 | G48: 45
A49: 46 | B49: ='Read Stocks'!M48 ->  | C49: ='Read Stocks'!N48 ->  | D49: FALSE | F49: =F48+D49 -> 1 | G49: 45 | I49: =INDEX(B:B,H49) -> 
A50: 47 | B50: ='Read Stocks'!M49 ->  | C50: ='Read Stocks'!N49 ->  | D50: FALSE | F50: 1 | G50: 45
A51: 48 | B51: ='Read Stocks'!M50 ->  | C51: ='Read Stocks'!N50 ->  | D51: FALSE | F51: 1 | G51: 45
A52: 49 | B52: ='Read Stocks'!M51 ->  | C52: ='Read Stocks'!N51 ->  | D52: FALSE | F52: 1 | G52: 45
A53: 50 | B53: ='Read Stocks'!M52 ->  | C53: ='Read Stocks'!N52 ->  | D53: FALSE | F53: 1 | G53: 45
A54: 51 | B54: ='Read Stocks'!M53 ->  | C54: ='Read Stocks'!N53 ->  | D54: FALSE | F54: 1 | G54: 45
A55: 52 | B55: ='Read Stocks'!M54 ->  | C55: ='Read Stocks'!N54 ->  | D55: FALSE | F55: 1 | G55: 45
A56: 53 | B56: ='Read Stocks'!M55 ->  | C56: ='Read Stocks'!N55 ->  | D56: FALSE | F56: 1 | G56: 45
A57: 54 | B57: ='Read Stocks'!M56 ->  | C57: ='Read Stocks'!N56 ->  | D57: FALSE | F57: 1 | G57: 45
A58: 55 | B58: ='Read Stocks'!M57 ->  | C58: ='Read Stocks'!N57 ->  | D58: FALSE | F58: 1 | G58: 45
A59: 56 | B59: ='Read Stocks'!M58 ->  | C59: ='Read Stocks'!N58 ->  | D59: FALSE | F59: 1 | G59: 45
A60: 57 | B60: ='Read Stocks'!M59 ->  | C60: ='Read Stocks'!N59 ->  | D60: FALSE | F60: 1 | G60: 45
A61: 58 | B61: ='Read Stocks'!M60 ->  | C61: ='Read Stocks'!N60 ->  | D61: FALSE | F61: 1 | G61: 45
A62: 59 | B62: ='Read Stocks'!M61 ->  | C62: ='Read Stocks'!N61 ->  | D62: FALSE | F62: 1 | G62: 45
A63: 60 | B63: ='Read Stocks'!M62 ->  | C63: ='Read Stocks'!N62 ->  | D63: FALSE | F63: 1 | G63: 45
A64: 61 | B64: ='Read Stocks'!M63 ->  | C64: ='Read Stocks'!N63 ->  | D64: FALSE | F64: 1 | G64: 45
A65: 62 | B65: ='Read Stocks'!M64 ->  | C65: ='Read Stocks'!N64 ->  | D65: FALSE | F65: 1 | G65: 45
A66: 63 | B66: ='Read Stocks'!M65 ->  | C66: ='Read Stocks'!N65 ->  | D66: FALSE | F66: 1 | G66: 45
A67: 64 | B67: ='Read Stocks'!M66 ->  | C67: ='Read Stocks'!N66 ->  | D67: FALSE | F67: 1 | G67: 45
A68: 65 | B68: ='Read Stocks'!M67 ->  | C68: ='Read Stocks'!N67 ->  | D68: FALSE | F68: 1 | G68: 45
A69: 66 | B69: ='Read Stocks'!M68 ->  | C69: ='Read Stocks'!N68 ->  | D69: FALSE | F69: 1 | G69: 45 | H69: =MATCH(G69,F$1:F$555,0) ->  | J69: =INDEX(C:C,H69) -> 
A70: 67 | B70: ='Read Stocks'!M69 ->  | C70: ='Read Stocks'!N69 ->  | D70: FALSE | F70: 1 | G70: 45
A71: 68 | B71: ='Read Stocks'!M70 ->  | C71: ='Read Stocks'!N70 ->  | D71: FALSE | F71: 1 | G71: 45
A72: 69 | B72: ='Read Stocks'!M71 ->  | C72: ='Read Stocks'!N71 ->  | D72: FALSE | F72: 1 | G72: 45
A73: 70 | B73: ='Read Stocks'!M72 ->  | C73: ='Read Stocks'!N72 ->  | D73: FALSE | F73: 1 | G73: 45
A74: 71 | B74: ='Read Stocks'!M73 ->  | C74: ='Read Stocks'!N73 ->  | D74: FALSE | F74: 1 | G74: 45
A75: 72 | B75: ='Read Stocks'!M74 ->  | C75: ='Read Stocks'!N74 ->  | D75: FALSE | F75: 1 | G75: 45
A76: 73 | B76: ='Read Stocks'!M75 ->  | C76: ='Read Stocks'!N75 ->  | D76: FALSE | F76: 1 | G76: 45
A77: 74 | B77: ='Read Stocks'!M76 ->  | C77: ='Read Stocks'!N76 ->  | D77: FALSE | F77: 1 | G77: 45
A78: 75 | B78: ='Read Stocks'!M77 ->  | C78: ='Read Stocks'!N77 ->  | D78: FALSE | F78: 1 | G78: 45
A79: 76 | B79: ='Read Stocks'!M78 ->  | C79: ='Read Stocks'!N78 ->  | D79: FALSE | F79: 1 | G79: 45
A80: 77 | B80: ='Read Stocks'!M79 ->  | C80: ='Read Stocks'!N79 ->  | D80: FALSE | F80: 1 | G80: 45
A81: 78 | B81: ='Read Stocks'!M80 ->  | C81: ='Read Stocks'!N80 ->  | D81: FALSE | F81: 1 | G81: 45
A82: 79 | B82: ='Read Stocks'!M81 ->  | C82: ='Read Stocks'!N81 ->  | D82: FALSE | F82: 1 | G82: 45
A83: 80 | B83: ='Read Stocks'!M82 ->  | C83: ='Read Stocks'!N82 ->  | D83: FALSE | F83: 1 | G83: 45
A84: 81 | B84: ='Read Stocks'!M83 ->  | C84: ='Read Stocks'!N83 ->  | D84: FALSE | F84: 1 | G84: 45
A85: 82 | B85: ='Read Stocks'!M84 ->  | C85: ='Read Stocks'!N84 ->  | D85: FALSE | F85: 1 | G85: 45
A86: 83 | B86: ='Read Stocks'!M85 ->  | C86: ='Read Stocks'!N85 ->  | D86: FALSE | F86: 1 | G86: 45
A87: 84 | B87: ='Read Stocks'!M86 ->  | C87: ='Read Stocks'!N86 ->  | D87: FALSE | F87: 1 | G87: 45
A88: 85 | B88: ='Read Stocks'!M87 ->  | C88: ='Read Stocks'!N87 ->  | D88: FALSE | F88: 1 | G88: 45
A89: 86 | B89: ='Read Stocks'!M88 ->  | C89: ='Read Stocks'!N88 ->  | D89: FALSE | F89: 1 | G89: 45
A90: 87 | B90: ='Read Stocks'!M89 ->  | C90: ='Read Stocks'!N89 ->  | D90: FALSE | F90: 1 | G90: 45
A91: 88 | B91: ='Read Stocks'!M90 ->  | C91: ='Read Stocks'!N90 ->  | D91: FALSE | F91: 1 | G91: 45
A92: 89 | B92: ='Read Stocks'!M91 ->  | C92: ='Read Stocks'!N91 ->  | D92: FALSE | F92: 1 | G92: 45
A93: 90 | B93: ='Read Stocks'!M92 ->  | C93: ='Read Stocks'!N92 ->  | D93: FALSE | F93: 1 | G93: 45
A94: 91 | B94: ='Read Stocks'!M93 ->  | C94: ='Read Stocks'!N93 ->  | D94: FALSE | F94: 1 | G94: 45
A95: 92 | B95: ='Read Stocks'!M94 ->  | C95: ='Read Stocks'!N94 ->  | D95: FALSE | F95: 1 | G95: 45
A96: 93 | B96: ='Read Stocks'!M95 ->  | C96: ='Read Stocks'!N95 ->  | D96: FALSE | F96: 1 | G96: 45
A97: 94 | B97: ='Read Stocks'!M96 ->  | C97: ='Read Stocks'!N96 ->  | D97: FALSE | F97: 1 | G97: 45
A98: 95 | B98: ='Read Stocks'!M97 ->  | C98: ='Read Stocks'!N97 ->  | D98: FALSE | F98: 1 | G98: 45
A99: 96 | B99: ='Read Stocks'!M98 ->  | C99: ='Read Stocks'!N98 ->  | D99: FALSE | F99: 1 | G99: 45
A100: 97 | B100: ='Read Stocks'!M99 ->  | C100: ='Read Stocks'!N99 ->  | D100: FALSE | F100: 1 | G100: 45
A101: 98 | B101: ='Read Stocks'!M100 ->  | C101: ='Read Stocks'!N100 ->  | D101: FALSE | F101: 1 | G101: 45
A102: 99 | B102: ='Read Stocks'!M101 ->  | C102: ='Read Stocks'!N101 ->  | D102: FALSE | F102: 1 | G102: 45
A103: 100 | B103: ='Read Stocks'!M102 ->  | C103: ='Read Stocks'!N102 ->  | D103: FALSE | F103: 1 | G103: 45
A104: 101 | B104: ='Read Stocks'!M103 ->  | C104: ='Read Stocks'!N103 ->  | D104: FALSE | F104: 1 | G104: 45
A105: 102 | B105: ='Read Stocks'!M104 ->  | C105: ='Read Stocks'!N104 ->  | D105: FALSE | F105: 1 | G105: 45
A106: 103 | B106: ='Read Stocks'!M105 ->  | C106: ='Read Stocks'!N105 ->  | D106: FALSE | F106: 1 | G106: 45
A107: 104 | B107: ='Read Stocks'!M106 ->  | C107: ='Read Stocks'!N106 ->  | D107: FALSE | F107: 1 | G107: 45
A108: 105 | B108: ='Read Stocks'!M107 ->  | C108: ='Read Stocks'!N107 ->  | D108: FALSE | F108: 1 | G108: 45
A109: 106 | B109: ='Read Stocks'!M108 ->  | C109: ='Read Stocks'!N108 ->  | D109: FALSE | F109: 1 | G109: 45
A110: 107 | B110: ='Read Stocks'!M109 ->  | C110: ='Read Stocks'!N109 ->  | D110: FALSE | F110: 1 | G110: 45
A111: 108 | B111: ='Read Stocks'!M110 ->  | C111: ='Read Stocks'!N110 ->  | D111: FALSE | F111: 1 | G111: 45
A112: 109 | B112: ='Read Stocks'!M111 ->  | C112: ='Read Stocks'!N111 ->  | D112: FALSE | F112: 1 | G112: 45
A113: 110 | B113: ='Read Stocks'!M112 ->  | C113: ='Read Stocks'!N112 ->  | D113: FALSE | F113: =F112+D113 -> 1 | G113: 45 | I113: =INDEX(B:B,H113) -> 
A114: 111 | B114: ='Read Stocks'!M113 ->  | C114: ='Read Stocks'!N113 ->  | D114: FALSE | F114: 1 | G114: 45
A115: 112 | B115: ='Read Stocks'!M114 ->  | C115: ='Read Stocks'!N114 ->  | D115: FALSE | F115: 1 | G115: 45
A116: 113 | B116: ='Read Stocks'!M115 ->  | C116: ='Read Stocks'!N115 ->  | D116: FALSE | F116: 1 | G116: 45
A117: 114 | B117: ='Read Stocks'!M116 ->  | C117: ='Read Stocks'!N116 ->  | D117: FALSE | F117: 1 | G117: 45
A118: 115 | B118: ='Read Stocks'!M117 ->  | C118: ='Read Stocks'!N117 ->  | D118: FALSE | F118: 1 | G118: 45
A119: 116 | B119: ='Read Stocks'!M118 ->  | C119: ='Read Stocks'!N118 ->  | D119: FALSE | F119: 1 | G119: 45
A120: 117 | B120: ='Read Stocks'!M119 ->  | C120: ='Read Stocks'!N119 ->  | D120: FALSE | F120: 1 | G120: 45
A121: 118 | B121: ='Read Stocks'!M120 ->  | C121: ='Read Stocks'!N120 ->  | D121: FALSE | F121: 1 | G121: 45
A122: 119 | B122: ='Read Stocks'!M121 ->  | C122: ='Read Stocks'!N121 ->  | D122: FALSE | F122: 1 | G122: 45
A123: 120 | B123: ='Read Stocks'!M122 ->  | C123: ='Read Stocks'!N122 ->  | D123: FALSE | F123: 1 | G123: 45
A124: 121 | B124: ='Read Stocks'!M123 ->  | C124: ='Read Stocks'!N123 ->  | D124: FALSE | F124: 1 | G124: 45
A125: 122 | B125: ='Read Stocks'!M124 ->  | C125: ='Read Stocks'!N124 ->  | D125: FALSE | F125: 1 | G125: 45
A126: 123 | B126: ='Read Stocks'!M125 ->  | C126: ='Read Stocks'!N125 ->  | D126: FALSE | F126: 1 | G126: 45
A127: 124 | B127: ='Read Stocks'!M126 ->  | C127: ='Read Stocks'!N126 ->  | D127: FALSE | F127: 1 | G127: 45
A128: 125 | B128: ='Read Stocks'!M127 ->  | C128: ='Read Stocks'!N127 ->  | D128: FALSE | F128: 1 | G128: 45
A129: 126 | B129: ='Read Stocks'!M128 ->  | C129: ='Read Stocks'!N128 ->  | D129: FALSE | F129: 1 | G129: 45
A130: 127 | B130: ='Read Stocks'!M129 ->  | C130: ='Read Stocks'!N129 ->  | D130: FALSE | F130: 1 | G130: 45
A131: 128 | B131: ='Read Stocks'!M130 ->  | C131: ='Read Stocks'!N130 ->  | D131: FALSE | F131: 1 | G131: 45
A132: 129 | B132: ='Read Stocks'!M131 ->  | C132: ='Read Stocks'!N131 ->  | D132: FALSE | F132: 1 | G132: 45
A133: 130 | B133: ='Read Stocks'!M132 ->  | C133: ='Read Stocks'!N132 ->  | D133: FALSE | F133: 1 | G133: 45 | H133: =MATCH(G133,F$1:F$555,0) ->  | J133: =INDEX(C:C,H133) -> 
A134: 131 | B134: ='Read Stocks'!M133 ->  | C134: ='Read Stocks'!N133 ->  | D134: FALSE | F134: 1 | G134: 45
A135: 132 | B135: ='Read Stocks'!M134 ->  | C135: ='Read Stocks'!N134 ->  | D135: FALSE | F135: 1 | G135: 45
A136: 133 | B136: ='Read Stocks'!M135 ->  | C136: ='Read Stocks'!N135 ->  | D136: FALSE | F136: 1 | G136: 45
A137: 134 | B137: ='Read Stocks'!M136 ->  | C137: ='Read Stocks'!N136 ->  | D137: FALSE | F137: 1 | G137: 45
A138: 135 | B138: ='Read Stocks'!M137 ->  | C138: ='Read Stocks'!N137 ->  | D138: FALSE | F138: 1 | G138: 45
A139: 136 | B139: ='Read Stocks'!M138 ->  | C139: ='Read Stocks'!N138 ->  | D139: FALSE | F139: 1 | G139: 45
A140: 137 | B140: ='Read Stocks'!M139 ->  | C140: ='Read Stocks'!N139 ->  | D140: FALSE | F140: 1 | G140: 45
A141: 138 | B141: ='Read Stocks'!M140 ->  | C141: ='Read Stocks'!N140 ->  | D141: FALSE | F141: 1 | G141: 45
A142: 139 | B142: ='Read Stocks'!M141 ->  | C142: ='Read Stocks'!N141 ->  | D142: FALSE | F142: 1 | G142: 45
A143: 140 | B143: ='Read Stocks'!M142 ->  | C143: ='Read Stocks'!N142 ->  | D143: FALSE | F143: 1 | G143: 45
A144: 141 | B144: ='Read Stocks'!M143 ->  | C144: ='Read Stocks'!N143 ->  | D144: FALSE | F144: 1 | G144: 45
A145: 142 | B145: ='Read Stocks'!M144 ->  | C145: ='Read Stocks'!N144 ->  | D145: FALSE | F145: 1 | G145: 45
A146: 143 | B146: ='Read Stocks'!M145 ->  | C146: ='Read Stocks'!N145 ->  | D146: FALSE | F146: 1 | G146: 45
A147: 144 | B147: ='Read Stocks'!M146 ->  | C147: ='Read Stocks'!N146 ->  | D147: FALSE | F147: 1 | G147: 45
A148: 145 | B148: ='Read Stocks'!M147 ->  | C148: ='Read Stocks'!N147 ->  | D148: FALSE | F148: 1 | G148: 45
A149: 146 | B149: ='Read Stocks'!M148 ->  | C149: ='Read Stocks'!N148 ->  | D149: FALSE | F149: 1 | G149: 45
A150: 147 | B150: ='Read Stocks'!M149 ->  | C150: ='Read Stocks'!N149 ->  | D150: FALSE | F150: 1 | G150: 45
A151: 148 | B151: ='Read Stocks'!M150 ->  | C151: ='Read Stocks'!N150 ->  | D151: FALSE | F151: 1 | G151: 45
A152: 149 | B152: ='Read Stocks'!M151 ->  | C152: ='Read Stocks'!N151 ->  | D152: FALSE | F152: 1 | G152: 45
A153: 150 | B153: ='Read Stocks'!M152 ->  | C153: ='Read Stocks'!N152 ->  | D153: FALSE | F153: 1 | G153: 45
A154: 151 | B154: ='Read Stocks'!M153 ->  | C154: ='Read Stocks'!N153 ->  | D154: FALSE | F154: 1 | G154: 45
A155: 152 | B155: ='Read Stocks'!M154 ->  | C155: ='Read Stocks'!N154 ->  | D155: FALSE | F155: 1 | G155: 45
A156: 153 | B156: ='Read Stocks'!M155 ->  | C156: ='Read Stocks'!N155 ->  | D156: FALSE | F156: 1 | G156: 45
A157: 154 | B157: ='Read Stocks'!M156 ->  | C157: ='Read Stocks'!N156 ->  | D157: FALSE | F157: 1 | G157: 45
A158: 155 | B158: ='Read Stocks'!M157 ->  | C158: ='Read Stocks'!N157 ->  | D158: FALSE | F158: 1 | G158: 45
A159: 156 | B159: ='Read Stocks'!M158 ->  | C159: ='Read Stocks'!N158 ->  | D159: FALSE | F159: 1 | G159: 45
A160: 157 | B160: ='Read Stocks'!M159 ->  | C160: ='Read Stocks'!N159 ->  | D160: FALSE | F160: 1 | G160: 45
A161: 158 | B161: ='Read Stocks'!M160 ->  | C161: ='Read Stocks'!N160 ->  | D161: FALSE | F161: 1 | G161: 45
A162: 159 | B162: ='Read Stocks'!M161 ->  | C162: ='Read Stocks'!N161 ->  | D162: FALSE | F162: 1 | G162: 45
A163: 160 | B163: ='Read Stocks'!M162 ->  | C163: ='Read Stocks'!N162 ->  | D163: FALSE | F163: 1 | G163: 45
A164: 161 | B164: ='Read Stocks'!M163 ->  | C164: ='Read Stocks'!N163 ->  | D164: FALSE | F164: 1 | G164: 45
A165: 162 | B165: ='Read Stocks'!M164 ->  | C165: ='Read Stocks'!N164 ->  | D165: FALSE | F165: 1 | G165: 45
A166: 163 | B166: ='Read Stocks'!M165 ->  | C166: ='Read Stocks'!N165 ->  | D166: FALSE | F166: 1 | G166: 45
A167: 164 | B167: ='Read Stocks'!M166 ->  | C167: ='Read Stocks'!N166 ->  | D167: FALSE | F167: 1 | G167: 45
A168: 165 | B168: ='Read Stocks'!M167 ->  | C168: ='Read Stocks'!N167 ->  | D168: FALSE | F168: 1 | G168: 45
A169: 166 | B169: ='Read Stocks'!M168 ->  | C169: ='Read Stocks'!N168 ->  | D169: FALSE | F169: 1 | G169: 45
A170: 167 | B170: ='Read Stocks'!M169 ->  | C170: ='Read Stocks'!N169 ->  | D170: FALSE | F170: 1 | G170: 45
A171: 168 | B171: ='Read Stocks'!M170 ->  | C171: ='Read Stocks'!N170 ->  | D171: FALSE | F171: 1 | G171: 45
A172: 169 | B172: ='Read Stocks'!M171 ->  | C172: ='Read Stocks'!N171 ->  | D172: FALSE | F172: 1 | G172: 45
A173: 170 | B173: ='Read Stocks'!M172 ->  | C173: ='Read Stocks'!N172 ->  | D173: FALSE | F173: 1 | G173: 45
A174: 171 | B174: ='Read Stocks'!M173 ->  | C174: ='Read Stocks'!N173 ->  | D174: FALSE | F174: 1 | G174: 45
A175: 172 | B175: ='Read Stocks'!M174 ->  | C175: ='Read Stocks'!N174 ->  | D175: FALSE | F175: 1 | G175: 45
A176: 173 | B176: ='Read Stocks'!M175 ->  | C176: ='Read Stocks'!N175 ->  | D176: FALSE | F176: 1 | G176: 45
A177: 174 | B177: ='Read Stocks'!M176 ->  | C177: ='Read Stocks'!N176 ->  | D177: FALSE | F177: =F176+D177 -> 1 | G177: 45 | I177: =INDEX(B:B,H177) -> 
A178: 175 | B178: ='Read Stocks'!M177 -> 0 | C178: ='Read Stocks'!N177 -> 0 | D178: FALSE | F178: 1 | G178: 45
A179: 176 | B179: ='Read Stocks'!M178 -> 0 | C179: ='Read Stocks'!N178 -> 0 | D179: FALSE | F179: 1 | G179: 45
A180: 177 | B180: ='Read Stocks'!M179 -> 0 | C180: ='Read Stocks'!N179 -> 0 | D180: FALSE | F180: 1 | G180: 45
A181: 178 | B181: ='Read Stocks'!M180 -> 0 | C181: ='Read Stocks'!N180 -> 0 | D181: FALSE | F181: 1 | G181: 45
A182: 179 | B182: ='Read Stocks'!M181 -> 0 | C182: ='Read Stocks'!N181 -> 0 | D182: FALSE | F182: 1 | G182: 45
A183: 180 | B183: ='Read Stocks'!M182 -> 0 | C183: ='Read Stocks'!N182 -> 0 | D183: FALSE | F183: 1 | G183: 45
A184: 181 | B184: ='Read Stocks'!M183 -> 0 | C184: ='Read Stocks'!N183 -> 0 | D184: FALSE | F184: 1 | G184: 45
A185: 182 | B185: ='Read Stocks'!M184 -> 0 | C185: ='Read Stocks'!N184 -> 0 | D185: FALSE | F185: 1 | G185: 45
A186: 183 | B186: ='Read Stocks'!M185 -> 0 | C186: ='Read Stocks'!N185 -> 0 | D186: FALSE | F186: 1 | G186: 45
A187: 184 | B187: ='Read Stocks'!M186 -> 0 | C187: ='Read Stocks'!N186 -> 0 | D187: FALSE | F187: 1 | G187: 45
A188: 185 | B188: ='Read Stocks'!M187 -> 0 | C188: ='Read Stocks'!N187 -> 0 | D188: FALSE | F188: 1 | G188: 45
A189: 186 | B189: ='Read Stocks'!M188 -> 0 | C189: ='Read Stocks'!N188 -> 0 | D189: FALSE | F189: 1 | G189: 45
A190: 187 | B190: ='Read Stocks'!M189 -> 0 | C190: ='Read Stocks'!N189 -> 0 | D190: FALSE | F190: 1 | G190: 45
A191: 188 | B191: ='Read Stocks'!M190 -> 0 | C191: ='Read Stocks'!N190 -> 0 | D191: FALSE | F191: 1 | G191: 45
A192: 189 | B192: ='Read Stocks'!M191 -> 0 | C192: ='Read Stocks'!N191 -> 0 | D192: FALSE | F192: 1 | G192: 45
A193: 190 | B193: ='Read Stocks'!M192 -> 0 | C193: ='Read Stocks'!N192 -> 0 | D193: FALSE | F193: 1 | G193: 45
A194: 191 | B194: ='Read Stocks'!M193 -> 0 | C194: ='Read Stocks'!N193 -> 0 | D194: FALSE | F194: 1 | G194: 45
A195: 192 | B195: ='Read Stocks'!M194 -> 0 | C195: ='Read Stocks'!N194 -> 0 | D195: FALSE | F195: 1 | G195: 45
D196: FALSE | F196: 1 | G196: 45
D197: FALSE | F197: 1 | G197: 45 | H197: =MATCH(G197,F$1:F$555,0) ->  | J197: =INDEX(C:C,H197) -> 
D198: FALSE | F198: 1 | G198: 45
D199: FALSE | F199: 1 | G199: 45
D200: FALSE | F200: 1 | G200: 45
... 100 more rows

Sheet Summary
C1: Selected Start | D1: =Forms!G9 -> 2004-01-01 | G1: Index No (Frms) | I1: =Forms!J4 -> 1 | L1: Graph Code | M1: =Forms!P7 -> 3 | N1: Height | O1: =COUNT(D10:D853) -> 177 | P1: Graph Cols | Q1: =COUNTIF('Multiple Stock Graph'!D:D,TRUE)+2 -> 3 | AS1: Periods in Yr | AU1: =IF(D6,52,12) -> 12
C2: End Date | D2: =MIN(Forms!L9,MAX(A:A)) -> 2018-09-01 | G2: Col to Read | I2: =INDEX('Read Stocks'!O3:O202,Summary!I1) -> F | N2: This is the data that is graphed | AB2: =MIN(INDIRECT(AB5&"!A:A")) -> 1991-11-01 | AC2: =MIN(INDIRECT(AC5&"!A:A")) ->  | BN2: First two are inflation, next 5 are exchange rates with multiplication
C3: Start of Series | D3: =IFERROR(MIN(INDIRECT("'"&$G$7&"'!A:A")),start_of_date) -> 1950-01-01 | J3: Final Val | K3: =LOOKUP(D2,$D$10:$D$837,K10:K837) -> 2.565151669 | AH3: Exchange Rate Adjustments | AN3: Adjusted Values for Exchange Rate | AS3: Beta | AT3: =SLOPE(AT10:AT837,$AT$10:$AT$837) -> 1 | AU3: =SLOPE(AU12:AU837,AT12:AT837) -> 0.7897920665 | BA3: =LOOKUP($D$2,$D:$D,BA:BA) -> 5.254946526 | BB3: 1 | BC3: 1 | BD3: 1 | BE3: 1 | BF3: 1
C4: Final Start | D4: =MAX(D3,D1) -> 2004-01-01 | E4: =(D2-D4-1)/365.4 -> 14.65790914 | G4: No Re-calc | J4: IRR | K4: =(K3)^(1/($E$4-1))-1 -> 0.0714065465 | V4: Raw Values without Re-calc | AB4: Re-orded Lookup Value for Raw Value with Adjusted Date | AS4: Std Dev | AT4: =STDEV(AT10:AT837) -> 0.08673453923 | AU4: 0.04639211761 | BA4: =IF(BA3<>1,(BA3)^(1/($E$4-1))-1,"") -> 0.1291673632 | BB4: =IF(BB3<>1,(BB3)^(1/($E$4-1))-1,"") ->  | BG4: Raw Retrieval of Inflation and Exchange Indirect | BN4: Exchange Rate with Lookup
D5: Monhly Switch | M5: Single | O5: Main | P5: Comparators from Choose and Data to Right | V5: =TRANSPOSE('Multiple Stock Graph'!I4:I9) -> Mexico | AB5: =V5 -> Mexico | AC5: =W5 ->  | AS5: Volatiltiy | AT5: =AT4*$AU$1^0.5 -> 0.3004572574 | AU5: =AU4*$AU$1^0.5 -> 0.1607070095
A6: Base | D6: FALSE | F6: Base Stock | G6: Base Stock | H6: Exc Rate/Infl | I6: Adj for Inf/Exc | J6: Change | K6: Index | M6: Graph | O6: Item | P6: First Comparator(Stats) | V6: =MATCH(V5,'Read Stocks'!$M:$M,0) -> 5 | W6: =MATCH(W5,'Read Stocks'!$M:$M,0) ->  | X6: =MATCH(X5,'Read Stocks'!$M:$M,0) ->  | Y6: =MATCH(Y5,'Read Stocks'!$M:$M,0) ->  | Z6: =MATCH(Z5,'Read Stocks'!$M:$M,0) ->  | AA6: =MATCH(AA5,'Read Stocks'!$M:$M,0) ->  | AH6: FALSE | AI6: FALSE | AJ6: FALSE | AK6: FALSE | AL6: FALSE | AM6: FALSE | AT6: Growth Rate | AU6: Growth Rate | BA6: Index | BG6: =BN6 -> GDP Inf | BH6: =BO6 -> CPI US | BI6: Mex | BJ6: INR | BK6: UK | BN6: =TRANSPOSE('Exchange Rates'!D13:D47) -> GDP Inf | BO6: CPI US | BP6: Mex | BQ6: INR | BR6: UK | BS6: CFH | BT6: US NOM GNP
A7: Date | B7: Monthly | C7: Weekely | D7: Month or Day | E7: Date Selected | F7: =Forms!K4 -> 0 | G7: =Forms!L4 -> S&P 500 | H7: Adjustment | I7: =G7 -> S&P 500 | J7: =G7 -> S&P 500 | K7: =J7 -> S&P 500 | L7: X-Axis | M7: =CHOOSE($M$1,G7,J7,K7) -> S&P 500 | N7: x-axis | O7: =INDEX('Read Stocks'!N3:N202,Summary!I1) -> US S&P 500 | P7: =TRANSPOSE('Multiple Stock Graph'!J4:J9) -> Mexican Index | V7: =INDEX('Read Stocks'!$O:$O,Summary!V6) -> F | W7: =INDEX('Read Stocks'!$O:$O,Summary!W6) ->  | X7: =INDEX('Read Stocks'!$O:$O,Summary!X6) ->  | Y7: =INDEX('Read Stocks'!$O:$O,Summary!Y6) ->  | Z7: =INDEX('Read Stocks'!$O:$O,Summary!Z6) ->  | AA7: =INDEX('Read Stocks'!$O:$O,Summary!AA6) ->  | AH7: =TRANSPOSE('Multiple Stock Graph'!K16:K21) -> 0 | AI7: 0 | AJ7: 0 | AK7: 0 | AL7: 0 | AM7: 0 | AN7: =P7 -> Mexican Index | AT7: =J7 -> S&P 500 | AU7: =V5 -> Mexico | BA7: =AU7 -> Mexico | BN7: B | BO7: B | BP7: B | BQ7: B | BR7: B | BS7: B | BT7: B
A8: Copied | B8: Date | C8: Date | D8: Date | E8: Switch | F8: Raw Data | G8: Raw Data | H8: ='Multiple Stock Graph'!K15 -> 0 | P8: 1 | Q8: 2 | R8: 3 | S8: 4 | T8: 5 | U8: 6 | V8: 1 | W8: 2 | X8: 3 | Y8: 4 | Z8: 5 | AA8: 6 | AH8: =IFERROR(INDEX($BN$6:$BT$6,AH7),"") ->  | AI8: =IFERROR(INDEX($BN$6:$BT$6,AI7),"") ->  | AN8: 1 | AO8: 2 | AP8: 3 | AQ8: 4 | AR8: 5 | AS8: 6 | BN8: Divide | BO8: Divide | BP8: Multply | BQ8: Multply | BR8: Multply | BS8: Multply | BT8: Multply
F9: =I2 -> F | G9: =I2 -> F | K9: 1 | O9: =O7 -> US S&P 500 | P9: =P7 -> Mexican Index | Q9: =Q7 ->  | BA9: 1 | BB9: 1 | BC9: 1 | BD9: 1 | BE9: 1 | BF9: 1
A10: 1950-01-01 | B10: =MAX(D3,D1) -> 2004-01-01 | C10: =B10 -> 2004-01-01 | D10: =IF($D$6,C10,B10) -> 2004-01-01 | E10: =AND(D10>=$D$4,D10<=$D$2) -> TRUE | F10: =LOOKUP(D10,A:A,G:G) -> 1131.130005 | G10: =IFERROR(LOOKUP($A10,INDIRECT("'"&G$7&"'!A:A"),INDIRECT("'"&G$7&"'!"&$G$9&":"&$G$9)),0) -> 17.049999 | H10: =IF(H$8,INDEX($BN10:$BT10,H$8),1) -> 1 | I10: =IF(ISNUMBER(F10),F10,I11)*H10 -> 1131.130005 | J10: =IFERROR(LN(G10/G9),FALSE) -> FALSE | K10: =IF($E10,(K9*(1+J10)),1) -> 1 | L10: =IF(E10,D10,NA()) -> 2004-01-01 | M10: =CHOOSE($M$1,I10,J10,K10) -> 1 | N10: =L10 -> 2004-01-01 | O10: =M10 -> 1 | P10: =CHOOSE($M$1,AN10,AU10,BA10) -> 1 | Q10: =CHOOSE($M$1,AO10,AV10,BB10) -> 1 | R10: =CHOOSE($M$1,AP10,AW10,BC10) -> 1 | S10: =CHOOSE($M$1,AQ10,AX10,BD10) -> 1 | T10: =CHOOSE($M$1,AR10,AY10,BE10) -> 1 | U10: =CHOOSE($M$1,AS10,AZ10,BF10) -> 1 | V10: =LOOKUP($A10,INDIRECT("'"&V$5&"'!A:A"),INDIRECT("'"&V$5&"'!"&V$7&":"&V$7)) ->  | W10: =LOOKUP($A10,INDIRECT("'"&W$5&"'!A:A"),INDIRECT("'"&W$5&"'!"&W$7&":"&W$7)) ->  | X10: =LOOKUP($A10,INDIRECT("'"&X$5&"'!A:A"),INDIRECT("'"&X$5&"'!"&X$7&":"&X$7)) ->  | AB10: =IF(ISNUMBER(LOOKUP($D10,$A:$A,V:V)),LOOKUP($D10,$A:$A,V:V),AB9) -> 9428.769531 | AC10: =IF(ISNUMBER(LOOKUP($D10,$A:$A,W:W)),LOOKUP($D10,$A:$A,W:W),AC9) -> 0 | AD10: 0 | AE10: 0 | AF10: 0 | AG10: 0 | AH10: =IF(AH$7,INDEX($BN10:$BT10,AH$7),1) -> 1 | AI10: =IF(AI$7,INDEX($BN10:$BT10,AI$7),1) -> 1 | AJ10: 1 | AK10: 1 | AL10: 1 | AM10: 1 | AN10: =IFERROR(IF(ISNUMBER(AB10)>0.1,AB10,AN11)*AH10,AN11) -> 9428.769531 | AO10: =IFERROR(IF(ISNUMBER(AC10)>0.1,AC10,AO11)*AI10,AO11) -> 0 | AP10: 0 | AQ10: 0 | AR10: 0 | AS10: =IF(ISNUMBER(AG10)>0.1,AG10,AS11) -> 0 | AT10: =J10 -> FALSE | AU10: =IF(E10,IFERROR(LN(AN10/AN9),FALSE)) -> FALSE | AV10: =IF(E10,IFERROR(LN(AO10/AO9),FALSE)) -> FALSE | AW10: =IF(E10,IFERROR(LN(AP10/AP9),FALSE)) -> FALSE | AX10: =IF(E10,IFERROR(LN(AQ10/AQ9),FALSE)) -> FALSE | AY10: =IF(E10,IFERROR(LN(AR10/AR9),FALSE)) -> FALSE | AZ10: =IF(E10,IFERROR(LN(AS10/AS9),FALSE)) -> FALSE | BA10: 1 | BB10: 1 | BC10: 1 | BD10: 1 | BE10: 1 | BF10: 1 | BG10: =IFERROR(LOOKUP($A10,INDIRECT("'"&BN$6&"'!A:A"),INDIRECT("'"&BN$6&"'!"&BN$7&":"&BN$7)),0) -> 12.853 | BH10: =IFERROR(LOOKUP($A10,INDIRECT("'"&BO$6&"'!A:A"),INDIRECT("'"&BO$6&"'!"&BO$7&":"&BO$7)),0) -> 23.51 | BI10: 0 | BJ10: 0 | BK10: 0 | BL10: 0 | BM10: 282.056 | BN10: =IFERROR(1/IFERROR(LOOKUP($D10,$A:$A,BG:BG)*1,0),1) -> 0.01193032689 | BO10: =IFERROR(1/IFERROR(LOOKUP($D10,$A:$A,BH:BH)*1,0),1) -> 0.005367686527 | BP10: =IFERROR(LOOKUP($D10,$A:$A,BI:BI)*1,0) -> 10.9203 | BQ10: 0 | BR10: 1.8255 | BS10: 0 | BT10: 12018.97
A11: 1950-02-01 | B11: =IF(B10<=$D$2,EOMONTH(B10,1)) -> 2004-02-29 | C11: =IF(C10<=$D$2,C10+7) -> 2004-01-08 | D11: =IF($D$6,C11,B11) -> 2004-02-29 | E11: =AND(D11>=$D$4,D10<=$D$2) -> TRUE | F11: =LOOKUP(D11,A:A,G:G) -> 1144.939941 | G11: =IFERROR(LOOKUP($A11,INDIRECT("'"&G$7&"'!A:A"),INDIRECT("'"&G$7&"'!"&$G$9&":"&$G$9)),0) -> 17.219999 | H11: =IF(H$8,INDEX($BN11:$BT11,H$8),1) -> 1 | I11: =IF(ISNUMBER(F11),F11,I12)*H11 -> 1144.939941 | J11: =IFERROR(LN(I11/I10),FALSE) -> 0.01213504488 | K11: =IF($E11,(K10*I11/I10),1) -> 1.012208973 | L11: =IF(E11,D11,NA()) -> 2004-02-29 | M11: =CHOOSE($M$1,I11,J11,K11) -> 1.012208973 | N11: =L11 -> 2004-02-29 | O11: =M11 -> 1.012208973 | P11: =IFERROR(CHOOSE($M$1,AN11,AU11,BA11),1) -> 1.059714077 | Q11: 1 | R11: 1 | S11: 1 | T11: 1 | U11: 1 | V11: =LOOKUP($A11,INDIRECT("'"&V$5&"'!A:A"),INDIRECT("'"&V$5&"'!"&V$7&":"&V$7)) ->  | Y11: =LOOKUP($A11,INDIRECT("'"&Y$5&"'!A:A"),INDIRECT("'"&Y$5&"'!"&Y$7&":"&Y$7)) ->  | AB11: =IF(ISNUMBER(LOOKUP($D11,$A:$A,V:V)),LOOKUP($D11,$A:$A,V:V),AB10) -> 9991.799805 | AC11: =IF(ISNUMBER(LOOKUP($D11,$A:$A,W:W)),LOOKUP($D11,$A:$A,W:W),AC10) -> 0 | AD11: =IF(ISNUMBER(LOOKUP($D11,$A:$A,X:X)),LOOKUP($D11,$A:$A,X:X),AD10) -> 0 | AE11: =IF(ISNUMBER(LOOKUP($D11,$A:$A,Y:Y)),LOOKUP($D11,$A:$A,Y:Y),AE10) -> 0 | AF11: =IF(ISNUMBER(LOOKUP($D11,$A:$A,Z:Z)),LOOKUP($D11,$A:$A,Z:Z),AF10) -> 0 | AG11: =IF(ISNUMBER(LOOKUP($D11,$A:$A,AA:AA)),LOOKUP($D11,$A:$A,AA:AA),AG10) -> 0 | AH11: =IF(AH$7,INDEX($BN11:$BT11,AH$7),1) -> 1 | AI11: 1 | AJ11: 1 | AK11: 1 | AL11: 1 | AM11: 1 | AN11: =IFERROR(IF(ISNUMBER(AB11)>0.1,AB11,AN12)*AH11,AN12) -> 9991.799805 | AO11: =IFERROR(IF(ISNUMBER(AC11)>0.1,AC11,AO12)*AI11,AO12) -> 0 | AP11: =IFERROR(IF(ISNUMBER(AD11)>0.1,AD11,AP12)*AJ11,AP12) -> 0 | AQ11: =IFERROR(IF(ISNUMBER(AE11)>0.1,AE11,AQ12)*AK11,AQ12) -> 0 | AR11: =IFERROR(IF(ISNUMBER(AF11)>0.1,AF11,AR12)*AL11,AR12) -> 0 | AS11: =IF(ISNUMBER(AG11)>0.1,AG11,AS12) -> 0 | AT11: =J11 -> 0.01213504488 | AU11: =IF(E11,IFERROR(LN(AN11/AN10),FALSE)) -> 0.05799913348 | AV11: =IF(E11,IFERROR(LN(AO11/AO10),FALSE)) -> FALSE | AW11: =IF(E11,IFERROR(LN(AP11/AP10),FALSE)) -> FALSE | AX11: =IF(E11,IFERROR(LN(AQ11/AQ10),FALSE)) -> FALSE | AY11: =IF(E11,IFERROR(LN(AR11/AR10),FALSE)) -> FALSE | AZ11: =IF(E11,IFERROR(LN(AS11/AS10),FALSE)) -> FALSE | BA11: =IFERROR(IF($E11,BA10*AN11/AN10,1),1) -> 1.059714077 | BB11: =IFERROR(IF($E11,BB10*AO11/AO10,1),1) -> 1 | BC11: =IFERROR(IF($E11,BC10*AP11/AP10,1),1) -> 1 | BD11: =IFERROR(IF($E11,BD10*AQ11/AQ10,1),1) -> 1 | BE11: 1 | BF11: 1 | BG11: =IFERROR(LOOKUP($A11,INDIRECT("'"&BN$6&"'!A:A"),INDIRECT("'"&BN$6&"'!"&BN$7&":"&BN$7)),0) -> 12.853 | BH11: =IFERROR(LOOKUP($A11,INDIRECT("'"&BO$6&"'!A:A"),INDIRECT("'"&BO$6&"'!"&BO$7&":"&BO$7)),0) -> 23.61 | BI11: =IFERROR(LOOKUP($A11,INDIRECT("'"&BP$6&"'!A:A"),INDIRECT("'"&BP$6&"'!"&BP$7&":"&BP$7)),0) -> 0 | BJ11: =IFERROR(LOOKUP($A11,INDIRECT("'"&BQ$6&"'!A:A"),INDIRECT("'"&BQ$6&"'!"&BQ$7&":"&BQ$7)),0) -> 0 | BK11: =IFERROR(LOOKUP($A11,INDIRECT("'"&BR$6&"'!A:A"),INDIRECT("'"&BR$6&"'!"&BR$7&":"&BR$7)),0) -> 0 | BL11: =IFERROR(LOOKUP($A11,INDIRECT("'"&BS$6&"'!A:A"),INDIRECT("'"&BS$6&"'!"&BS$7&":"&BS$7)),0) -> 0 | BM11: =IFERROR(LOOKUP($A11,INDIRECT("'"&BT$6&"'!A:A"),INDIRECT("'"&BT$6&"'!"&BT$7&":"&BT$7)),0) -> 282.056 | BN11: =IFERROR(1/IFERROR(LOOKUP($D11,$A:$A,BG:BG)*1,0),1) -> 0.01193032689 | BO11: =IFERROR(1/IFERROR(LOOKUP($D11,$A:$A,BH:BH)*1,0),1) -> 0.005356186395 | BP11: =IFERROR(LOOKUP($D11,$A:$A,BI:BI)*1,BP10) -> 11.0319 | BQ11: 45.32 | BR11: 1.8673 | BS11: 1.2593 | BT11: 12018.97
A12: 1950-03-01 | B12: =IF(B11<=$D$2,EOMONTH(B11,1)) -> 2004-03-31 | C12: =IF(C11<=$D$2,C11+7) -> 2004-01-15 | D12: =IF($D$6,C12,B12) -> 2004-03-31 | E12: =AND(D12>=$D$4,D11<=$D$2) -> TRUE | F12: 1126.209961 | G12: 17.290001 | H12: 1 | I12: 1126.209961 | J12: =IFERROR(LN(I12/I11),FALSE) -> -0.01649420377 | K12: =IF($E12,(K11*I12/I11),1) -> 0.9956503285 | L12: 2004-03-31 | M12: 0.9956503285 | N12: 2004-03-31 | O12: =M12 -> 0.9956503285 | P12: =IFERROR(CHOOSE($M$1,AN12,AU12,BA12),1) -> 1.115468987 | Q12: =IFERROR(CHOOSE($M$1,AO12,AV12,BB12),1) -> 1 | R12: =IFERROR(CHOOSE($M$1,AP12,AW12,BC12),1) -> 1 | S12: =IFERROR(CHOOSE($M$1,AQ12,AX12,BD12),1) -> 1 | T12: =IFERROR(CHOOSE($M$1,AR12,AY12,BE12),1) -> 1 | U12: =IFERROR(CHOOSE($M$1,AS12,AZ12,BF12),1) -> 1 | AB12: 10517.5 | AC12: 0 | AD12: 0 | AE12: 0 | AF12: 0 | AG12: 0 | AH12: 1 | AI12: 1 | AJ12: 1 | AK12: 1 | AL12: 1 | AM12: 1 | AN12: 10517.5 | AO12: 0 | AP12: 0 | AQ12: 0 | AR12: 0 | AS12: 0 | AT12: =J12 -> -0.01649420377 | AU12: 0.05127579939 | AV12: FALSE | AW12: FALSE | AX12: FALSE | AY12: FALSE | AZ12: FALSE | BA12: =IFERROR(IF($E12,BA11*AN12/AN11,1),1) -> 1.115468987 | BB12: =IFERROR(IF($E12,BB11*AO12/AO11,1),1) -> 1 | BC12: =IFERROR(IF($E12,BC11*AP12/AP11,1),1) -> 1 | BD12: =IFERROR(IF($E12,BD11*AQ12/AQ11,1),1) -> 1 | BE12: =IFERROR(IF($E12,BE11*AR12/AR11,1),1) -> 1 | BF12: =IFERROR(IF($E12,BF11*AS12/AS11,1),1) -> 1 | BG12: 12.853 | BH12: 23.64 | BI12: 0 | BJ12: 0 | BK12: 0 | BL12: 0 | BM12: 282.056 | BN12: 0.01193032689 | BO12: 0.005344735436 | BP12: =IFERROR(LOOKUP($D12,$A:$A,BI:BI)*1,BP11) -> 11.019 | BQ12: =IFERROR(LOOKUP($D12,$A:$A,BJ:BJ)*1,BQ11) -> 45.32 | BR12: =IFERROR(LOOKUP($D12,$A:$A,BK:BK)*1,BR11) -> 1.8261 | BS12: =IFERROR(LOOKUP($D12,$A:$A,BL:BL)*1,BS11) -> 1.2703 | BT12: =IFERROR(LOOKUP($D12,$A:$A,BM:BM)*1,BT11) -> 12018.97
A13: 1950-04-01 | B13: 2004-04-30 | C13: 2004-01-22 | D13: =IF($D$6,C13,B13) -> 2004-04-30 | E13: TRUE | F13: 1107.300049 | G13: 18.07 | H13: 1 | I13: 1107.300049 | J13: -0.01693331461 | K13: =IF($E13,(K12*I13/I12),1) -> 0.9789326108 | L13: =IF(E13,D13,NA()) -> 2004-04-30 | M13: =CHOOSE($M$1,I13,J13,K13) -> 0.9789326108 | N13: =L13 -> 2004-04-30 | O13: =M13 -> 0.9789326108 | P13: =IFERROR(CHOOSE($M$1,AN13,AU13,BA13),1) -> 1.055082516 | Q13: =IFERROR(CHOOSE($M$1,AO13,AV13,BB13),1) -> 1 | R13: =IFERROR(CHOOSE($M$1,AP13,AW13,BC13),1) -> 1 | S13: =IFERROR(CHOOSE($M$1,AQ13,AX13,BD13),1) -> 1 | T13: =IFERROR(CHOOSE($M$1,AR13,AY13,BE13),1) -> 1 | U13: =IFERROR(CHOOSE($M$1,AS13,AZ13,BF13),1) -> 1 | AB13: 9948.129883 | AC13: 0 | AD13: 0 | AE13: 0 | AF13: 0 | AG13: 0 | AH13: 1 | AI13: 1 | AJ13: 1 | AK13: 1 | AL13: 1 | AM13: 1 | AN13: 9948.129883 | AO13: 0 | AP13: 0 | AQ13: 0 | AR13: 0 | AS13: 0 | AT13: =J13 -> -0.01693331461 | AU13: -0.05565595443 | AV13: FALSE | AW13: FALSE | AX13: FALSE | AY13: FALSE | AZ13: FALSE | BA13: 1.055082516 | BB13: 1 | BC13: 1 | BD13: 1 | BE13: 1 | BF13: 1 | BG13: 12.897 | BH13: 23.65 | BI13: 0 | BJ13: 0 | BK13: 0 | BL13: 0 | BM13: 291.699 | BN13: 0.01183375935 | BO13: 0.005336179296 | BP13: 11.2701 | BQ13: 43.4 | BR13: 1.8031 | BS13: 1.2627 | BT13: 12182.398
A14: 1950-05-01 | B14: 2004-05-31 | C14: 2004-01-29 | D14: 2004-05-31 | E14: TRUE | F14: 1120.680054 | G14: 18.780001 | H14: 1 | I14: 1120.680054 | J14: 0.01201102814 | K14: 0.9907614943 | L14: 2004-05-31 | M14: 0.9907614943 | N14: 2004-05-31 | O14: 0.9907614943 | P14: 1.064432639 | Q14: 1 | R14: 1 | S14: 1 | T14: 1 | U14: 1 | AB14: 10036.29004 | AC14: 0 | AD14: 0 | AE14: 0 | AF14: 0 | AG14: 0 | AH14: 1 | AI14: 1 | AJ14: 1 | AK14: 1 | AL14: 1 | AM14: 1 | AN14: 10036.29004 | AO14: 0 | AP14: 0 | AQ14: 0 | AR14: 0 | AS14: 0 | AT14: 0.01201102814 | AU14: 0.008822945899 | AV14: FALSE | AW14: FALSE | AX14: FALSE | AY14: FALSE | AZ14: FALSE | BA14: 1.064432639 | BB14: 1 | BC14: 1 | BD14: 1 | BE14: 1 | BF14: 1 | BG14: 12.897 | BH14: 23.77 | BI14: 0 | BJ14: 0 | BK14: 0 | BL14: 0 | BM14: 291.699 | BN14: 0.01183375935 | BO14: 0.005313496281 | BP14: 11.5199 | BQ14: 44.52 | BR14: 1.786 | BS14: 1.2984 | BT14: 12182.398
A15: 1950-06-01 | B15: 2004-06-30 | C15: 2004-02-05 | D15: 2004-06-30 | E15: TRUE | F15: 1140.839966 | G15: 17.690001 | H15: 1 | I15: 1140.839966 | J15: 0.01782911126 | K15: 1.008584302 | L15: 2004-06-30 | M15: 1.008584302 | N15: 2004-06-30 | O15: 1.008584302 | P15: 1.090473182 | Q15: 1 | R15: 1 | S15: 1 | T15: 1 | U15: 1 | AB15: 10281.82031 | AC15: 0 | AD15: 0 | AE15: 0 | AF15: 0 | AG15: 0 | AH15: 1 | AI15: 1 | AJ15: 1 | AK15: 1 | AL15: 1 | AM15: 1 | AN15: 10281.82031 | AO15: 0 | AP15: 0 | AQ15: 0 | AR15: 0 | AS15: 0 | AT15: 0.01782911126 | AU15: 0.02416978965 | AV15: FALSE | AW15: FALSE | AX15: FALSE | AY15: FALSE | AZ15: FALSE | BA15: 1.090473182 | BB15: 1 | BC15: 1 | BD15: 1 | BE15: 1 | BF15: 1 | BG15: 12.897 | BH15: 23.88 | BI15: 0 | BJ15: 0 | BK15: 0 | BL15: 0 | BM15: 291.699 | BN15: 0.01183375935 | BO15: 0.005293806247 | BP15: 11.3926 | BQ15: 45.43 | BR15: 1.8279 | BS15: 1.251 | BT15: 12182.398
A16: 1950-07-01 | B16: 2004-07-31 | C16: 2004-02-12 | D16: 2004-07-31 | E16: TRUE | F16: 1101.719971 | G16: 17.84 | H16: 1 | I16: 1101.719971 | J16: -0.03489223474 | K16: 0.9739994219 | L16: 2004-07-31 | M16: 0.9739994219 | N16: 2004-07-31 | O16: 0.9739994219 | P16: 1.072927874 | Q16: 1 | R16: 1 | S16: 1 | T16: 1 | U16: 1 | AB16: 10116.38965 | AC16: 0 | AD16: 0 | AE16: 0 | AF16: 0 | AG16: 0 | AH16: 1 | AI16: 1 | AJ16: 1 | AK16: 1 | AL16: 1 | AM16: 1 | AN16: 10116.38965 | AO16: 0 | AP16: 0 | AQ16: 0 | AR16: 0 | AS16: 0 | AT16: -0.03489223474 | AU16: -0.01622047154 | AV16: FALSE | AW16: FALSE | AX16: FALSE | AY16: FALSE | AZ16: FALSE | BA16: 1.072927874 | BB16: 1 | BC16: 1 | BD16: 1 | BE16: 1 | BF16: 1 | BG16: 13.177 | BH16: 24.07 | BI16: 0 | BJ16: 0 | BK16: 0 | BL16: 0 | BM16: 309.76 | BN16: 0.01175696012 | BO16: 0.005288207298 | BP16: 11.4678 | BQ16: 45.88 | BR16: 1.8438 | BS16: 1.2509 | BT16: 12386.854
A17: 1950-08-01 | B17: 2004-08-31 | C17: 2004-02-19 | D17: 2004-08-31 | E17: TRUE | F17: 1104.23999 | G17: 18.42 | H17: 1 | I17: 1104.23999 | J17: 0.002284737838 | K17: 0.9762272994 | L17: 2004-08-31 | M17: 0.9762272994 | N17: 2004-08-31 | O17: 0.9762272994 | P17: 1.08861716 | Q17: 1 | R17: 1 | S17: 1 | T17: 1 | U17: 1 | AB17: 10264.32031 | AC17: 0 | AD17: 0 | AE17: 0 | AF17: 0 | AG17: 0 | AH17: 1 | AI17: 1 | AJ17: 1 | AK17: 1 | AL17: 1 | AM17: 1 | AN17: 10264.32031 | AO17: 0 | AP17: 0 | AQ17: 0 | AR17: 0 | AS17: 0 | AT17: 0.002284737838 | AU17: 0.01451698819 | AV17: FALSE | AW17: FALSE | AX17: FALSE | AY17: FALSE | AZ17: FALSE | BA17: 1.08861716 | BB17: 1 | BC17: 1 | BD17: 1 | BE17: 1 | BF17: 1 | BG17: 13.177 | BH17: 24.2 | BI17: 0 | BJ17: 0 | BK17: 0 | BL17: 0 | BM17: 309.76 | BN17: 0.01175696012 | BO17: 0.005285412262 | BP17: 11.3953 | BQ17: 46.4 | BR17: 1.8203 | BS17: 1.2796 | BT17: 12386.854
A18: 1950-09-01 | B18: 2004-09-30 | C18: 2004-02-26 | D18: 2004-09-30 | E18: TRUE | F18: 1114.579956 | G18: 19.450001 | H18: 1 | I18: 1114.579956 | J18: 0.009320306381 | K18: 0.9853685704 | L18: 2004-09-30 | M18: 0.9853685704 | N18: 2004-09-30 | O18: 0.9853685704 | P18: 1.162120898 | Q18: 1 | R18: 1 | S18: 1 | T18: 1 | U18: 1 | AB18: 10957.37012 | AC18: 0 | AD18: 0 | AE18: 0 | AF18: 0 | AG18: 0 | AH18: 1 | AI18: 1 | AJ18: 1 | AK18: 1 | AL18: 1 | AM18: 1 | AN18: 10957.37012 | AO18: 0 | AP18: 0 | AQ18: 0 | AR18: 0 | AS18: 0 | AT18: 0.009320306381 | AU18: 0.06533846565 | AV18: FALSE | AW18: FALSE | AX18: FALSE | AY18: FALSE | AZ18: FALSE | BA18: 1.162120898 | BB18: 1 | BC18: 1 | BD18: 1 | BE18: 1 | BF18: 1 | BG18: 13.177 | BH18: 24.34 | BI18: 0 | BJ18: 0 | BK18: 0 | BL18: 0 | BM18: 309.76 | BN18: 0.01175696012 | BO18: 0.005268703899 | BP18: 11.487 | BQ18: 46.34 | BR18: 1.7937 | BS18: 1.2615 | BT18: 12386.854
A19: 1950-10-01 | B19: 2004-10-31 | C19: 2004-03-04 | D19: 2004-10-31 | E19: TRUE | F19: 1130.199951 | G19: 19.530001 | H19: 1 | I19: 1130.199951 | J19: 0.013916952 | K19: 0.9991777656 | L19: 2004-10-31 | M19: 0.9991777656 | N19: 2004-10-31 | O19: 0.9991777656 | P19: 1.226496158 | Q19: 1 | R19: 1 | S19: 1 | T19: 1 | U19: 1 | AB19: 11564.34961 | AC19: 0 | AD19: 0 | AE19: 0 | AF19: 0 | AG19: 0 | AH19: 1 | AI19: 1 | AJ19: 1 | AK19: 1 | AL19: 1 | AM19: 1 | AN19: 11564.34961 | AO19: 0 | AP19: 0 | AQ19: 0 | AR19: 0 | AS19: 0 | AT19: 0.013916952 | AU19: 0.05391475633 | AV19: FALSE | AW19: FALSE | AX19: FALSE | AY19: FALSE | AZ19: FALSE | BA19: 1.226496158 | BB19: 1 | BC19: 1 | BD19: 1 | BE19: 1 | BF19: 1 | BG19: 13.425 | BH19: 24.5 | BI19: 0 | BJ19: 0 | BK19: 0 | BL19: 0 | BM19: 321.554 | BN19: 0.01166697779 | BO19: 0.005241090147 | BP19: 11.4037 | BQ19: 45.85 | BR19: 1.8077 | BS19: 1.2496 | BT19: 12579.436
A20: 1950-11-01 | B20: 2004-11-30 | C20: 2004-03-11 | D20: 2004-11-30 | E20: TRUE | F20: 1173.819946 | G20: 19.51 | H20: 1 | I20: 1173.819946 | J20: 0.03786877681 | K20: 1.037740968 | L20: 2004-11-30 | M20: 1.037740968 | N20: 2004-11-30 | O20: 1.037740968 | P20: 1.283576798 | Q20: 1 | R20: 1 | S20: 1 | T20: 1 | U20: 1 | AB20: 12102.54981 | AC20: 0 | AD20: 0 | AE20: 0 | AF20: 0 | AG20: 0 | AH20: 1 | AI20: 1 | AJ20: 1 | AK20: 1 | AL20: 1 | AM20: 1 | AN20: 12102.54981 | AO20: 0 | AP20: 0 | AQ20: 0 | AR20: 0 | AS20: 0 | AT20: 0.03786877681 | AU20: 0.04548910186 | AV20: FALSE | AW20: FALSE | AX20: FALSE | AY20: FALSE | AZ20: FALSE | BA20: 1.283576798 | BB20: 1 | BC20: 1 | BD20: 1 | BE20: 1 | BF20: 1 | BG20: 13.425 | BH20: 24.6 | BI20: 0 | BJ20: 0 | BK20: 0 | BL20: 0 | BM20: 321.554 | BN20: 0.01166697779 | BO20: 0.00521648409 | BP20: 11.371 | BQ20: 45.33 | BR20: 1.8607 | BS20: 1.2028 | BT20: 12579.436
A21: 1950-12-01 | B21: 2004-12-31 | C21: 2004-03-18 | D21: 2004-12-31 | E21: TRUE | F21: 1211.920044 | G21: 20.41 | H21: 1 | I21: 1211.920044 | J21: 0.0319425735 | K21: 1.071424185 | L21: 2004-12-31 | M21: 1.071424185 | N21: 2004-12-31 | O21: 1.071424185 | P21: 1.370049383 | Q21: 1 | R21: 1 | S21: 1 | T21: 1 | U21: 1 | AB21: 12917.87988 | AC21: 0 | AD21: 0 | AE21: 0 | AF21: 0 | AG21: 0 | AH21: 1 | AI21: 1 | AJ21: 1 | AK21: 1 | AL21: 1 | AM21: 1 | AN21: 12917.87988 | AO21: 0 | AP21: 0 | AQ21: 0 | AR21: 0 | AS21: 0 | AT21: 0.0319425735 | AU21: 0.06519623106 | AV21: FALSE | AW21: FALSE | AX21: FALSE | AY21: FALSE | AZ21: FALSE | BA21: 1.370049383 | BB21: 1 | BC21: 1 | BD21: 1 | BE21: 1 | BF21: 1 | BG21: 13.425 | BH21: 24.98 | BI21: 0 | BJ21: 0 | BK21: 0 | BL21: 0 | BM21: 321.554 | BN21: 0.01166697779 | BO21: 0.00521648409 | BP21: 11.2012 | BQ21: 44.3 | BR21: 1.9286 | BS21: 1.144 | BT21: 12579.436
A22: 1951-01-01 | B22: 2005-01-31 | C22: 2004-03-25 | D22: 2005-01-31 | E22: TRUE | F22: 1181.27002 | G22: 21.66 | H22: 1 | I22: 1181.27002 | J22: -0.02561576734 | K22: 1.044327367 | L22: 2005-01-31 | M22: 1.044327367 | N22: 2005-01-31 | O22: 1.044327367 | P22: 1.389059312 | Q22: 1 | R22: 1 | S22: 1 | T22: 1 | U22: 1 | AB22: 13097.12012 | AC22: 0 | AD22: 0 | AE22: 0 | AF22: 0 | AG22: 0 | AH22: 1 | AI22: 1 | AJ22: 1 | AK22: 1 | AL22: 1 | AM22: 1 | AN22: 13097.12012 | AO22: 0 | AP22: 0 | AQ22: 0 | AR22: 0 | AS22: 0 | AT22: -0.02561576734 | AU22: 0.0137799785 | AV22: FALSE | AW22: FALSE | AX22: FALSE | AY22: FALSE | AZ22: FALSE | BA22: 1.389059312 | BB22: 1 | BC22: 1 | BD22: 1 | BE22: 1 | BF22: 1 | BG22: 13.909 | BH22: 25.38 | BI22: 0 | BJ22: 0 | BK22: 0 | BL22: 0 | BM22: 337.537 | BN22: 0.01157527983 | BO22: 0.005219206681 | BP22: 11.2627 | BQ22: 43.27 | BR22: 1.8797 | BS22: 1.1412 | BT22: 12851.097
A23: 1951-02-01 | B23: 2005-02-28 | C23: 2004-04-01 | D23: 2005-02-28 | E23: TRUE | F23: 1203.599976 | G23: 21.799999 | H23: 1 | I23: 1203.599976 | J23: 0.018726898 | K23: 1.064068649 | L23: 2005-02-28 | M23: 1.064068649 | N23: 2005-02-28 | O23: 1.064068649 | P23: 1.462487753 | Q23: 1 | R23: 1 | S23: 1 | T23: 1 | U23: 1 | AB23: 13789.45996 | AC23: 0 | AD23: 0 | AE23: 0 | AF23: 0 | AG23: 0 | AH23: 1 | AI23: 1 | AJ23: 1 | AK23: 1 | AL23: 1 | AM23: 1 | AN23: 13789.45996 | AO23: 0 | AP23: 0 | AQ23: 0 | AR23: 0 | AS23: 0 | AT23: 0.018726898 | AU23: 0.05151216176 | AV23: FALSE | AW23: FALSE | AX23: FALSE | AY23: FALSE | AZ23: FALSE | BA23: 1.462487753 | BB23: 1 | BC23: 1 | BD23: 1 | BE23: 1 | BF23: 1 | BG23: 13.909 | BH23: 25.83 | BI23: 0 | BJ23: 0 | BK23: 0 | BL23: 0 | BM23: 337.537 | BN23: 0.01157527983 | BO23: 0.005197505198 | BP23: 11.1373 | BQ23: 43.66 | BR23: 1.8871 | BS23: 1.1937 | BT23: 12851.097
A24: 1951-03-01 | B24: 2005-03-31 | C24: 2004-04-08 | D24: 2005-03-31 | E24: TRUE | F24: 1180.589966 | G24: 21.4 | H24: 1 | I24: 1180.589966 | J24: -0.01930276111 | K24: 1.043726151 | L24: 2005-03-31 | M24: 1.043726151 | N24: 2005-03-31 | O24: 1.043726151 | P24: 1.34449149 | Q24: 1 | R24: 1 | S24: 1 | T24: 1 | U24: 1 | AB24: 12676.90039 | AC24: 0 | AD24: 0 | AE24: 0 | AF24: 0 | AG24: 0 | AH24: 1 | AI24: 1 | AJ24: 1 | AK24: 1 | AL24: 1 | AM24: 1 | AN24: 12676.90039 | AO24: 0 | AP24: 0 | AQ24: 0 | AR24: 0 | AS24: 0 | AT24: -0.01930276111 | AU24: -0.08412305893 | AV24: FALSE | AW24: FALSE | AX24: FALSE | AY24: FALSE | AZ24: FALSE | BA24: 1.34449149 | BB24: 1 | BC24: 1 | BD24: 1 | BE24: 1 | BF24: 1 | BG24: 13.909 | BH24: 25.88 | BI24: 0 | BJ24: 0 | BK24: 0 | BL24: 0 | BM24: 337.537 | BN24: 0.01157527983 | BO24: 0.005178663905 | BP24: 11.1552 | BQ24: 43.58 | BR24: 1.9043 | BS24: 1.1654 | BT24: 12851.097
A25: 1951-04-01 | B25: 2005-04-30 | C25: 2004-04-15 | D25: 2005-04-30 | E25: TRUE | F25: 1156.849976 | G25: 22.43 | H25: 1 | I25: 1156.849976 | J25: -0.02031351129 | K25: 1.022738298 | L25: 2005-04-30 | M25: 1.022738298 | N25: 2005-04-30 | O25: 1.022738298 | P25: 1.306956352 | Q25: 1 | R25: 1 | S25: 1 | T25: 1 | U25: 1 | AB25: 12322.99023 | AC25: 0 | AD25: 0 | AE25: 0 | AF25: 0 | AG25: 0 | AH25: 1 | AI25: 1 | AJ25: 1 | AK25: 1 | AL25: 1 | AM25: 1 | AN25: 12322.99023 | AO25: 0 | AP25: 0 | AQ25: 0 | AR25: 0 | AS25: 0 | AT25: -0.02031351129 | AU25: -0.02831482801 | AV25: FALSE | AW25: FALSE | AX25: FALSE | AY25: FALSE | AZ25: FALSE | BA25: 1.306956352 | BB25: 1 | BC25: 1 | BD25: 1 | BE25: 1 | BF25: 1 | BG25: 14.002 | BH25: 25.92 | BI25: 0 | BJ25: 0 | BK25: 0 | BL25: 0 | BM25: 345.973 | BN25: 0.01149478137 | BO25: 0.005162622612 | BP25: 11.1121 | BQ25: 43.62 | BR25: 1.8961 | BS25: 1.2042 | BT25: 12987.61
A26: 1951-05-01 | B26: 2005-05-31 | C26: 2004-04-22 | D26: 2005-05-31 | E26: TRUE | F26: 1191.5 | G26: 21.52 | H26: 1 | I26: 1191.5 | J26: 0.02951224413 | K26: 1.053371403 | L26: 2005-05-31 | M26: 1.053371403 | N26: 2005-05-31 | O26: 1.053371403 | P26: 1.374982134 | Q26: 1 | R26: 1 | S26: 1 | T26: 1 | U26: 1 | Y26: =LOOKUP($A26,INDIRECT("'"&Y$5&"'!A:A"),INDIRECT("'"&Y$5&"'!"&Y$7&":"&Y$7)) ->  | AB26: 12964.38965 | AC26: 0 | AD26: 0 | AE26: 0 | AF26: 0 | AG26: 0 | AH26: 1 | AI26: 1 | AJ26: 1 | AK26: 1 | AL26: 1 | AM26: 1 | AN26: 12964.38965 | AO26: 0 | AP26: 0 | AQ26: 0 | AR26: 0 | AS26: 0 | AT26: 0.02951224413 | AU26: 0.05073969853 | AV26: FALSE | AW26: FALSE | AX26: FALSE | AY26: FALSE | AZ26: FALSE | BA26: 1.374982134 | BB26: 1 | BC26: 1 | BD26: 1 | BE26: 1 | BF26: 1 | BG26: 14.002 | BH26: 25.99 | BI26: 0 | BJ26: 0 | BK26: 0 | BL26: 0 | BM26: 345.973 | BN26: 0.01149478137 | BO26: 0.005165289256 | BP26: 10.9764 | BQ26: 43.48 | BR26: 1.8559 | BS26: 1.1898 | BT26: 12987.61
A27: 1951-06-01 | B27: 2005-06-30 | C27: 2004-04-29 | D27: 2005-06-30 | E27: TRUE | F27: 1191.329956 | G27: 20.959999 | H27: 1 | I27: 1191.329956 | J27: -0.0001427244104 | K27: 1.053221072 | L27: 2005-06-30 | M27: 1.053221072 | N27: 2005-06-30 | O27: 1.053221072 | P27: 1.430317057 | Q27: 1 | R27: 1 | S27: 1 | T27: 1 | U27: 1 | AB27: 13486.12988 | AC27: 0 | AD27: 0 | AE27: 0 | AF27: 0 | AG27: 0 | AH27: 1 | AI27: 1 | AJ27: 1 | AK27: 1 | AL27: 1 | AM27: 1 | AN27: 13486.12988 | AO27: 0 | AP27: 0 | AQ27: 0 | AR27: 0 | AS27: 0 | AT27: -0.0001427244104 | AU27: 0.03945540023 | AV27: FALSE | AW27: FALSE | AX27: FALSE | AY27: FALSE | AZ27: FALSE | BA27: 1.430317057 | BB27: 1 | BC27: 1 | BD27: 1 | BE27: 1 | BF27: 1 | BG27: 14.002 | BH27: 25.93 | BI27: 0 | BJ27: 0 | BK27: 0 | BL27: 0 | BM27: 345.973 | BN27: 0.01149478137 | BO27: 0.005162622612 | BP27: 10.8197 | BQ27: 43.71 | BR27: 1.8177 | BS27: 1.2529 | BT27: 12987.61
A28: 1951-07-01 | B28: 2005-07-31 | C28: 2004-05-06 | D28: 2005-07-31 | E28: TRUE | F28: 1234.180054 | G28: 22.4 | H28: 1 | I28: 1234.180054 | J28: 0.03533653255 | K28: 1.09110363 | L28: 2005-07-31 | M28: 1.09110363 | N28: 2005-07-31 | O28: 1.09110363 | P28: 1.528265179 | Q28: 1 | R28: 1 | S28: 1 | T28: 1 | U28: 1 | AB28: 14409.66016 | AC28: 0 | AD28: 0 | AE28: 0 | AF28: 0 | AG28: 0 | AH28: 1 | AI28: 1 | AJ28: 1 | AK28: 1 | AL28: 1 | AM28: 1 | AN28: 14409.66016 | AO28: 0 | AP28: 0 | AQ28: 0 | AR28: 0 | AS28: 0 | AT28: 0.03533653255 | AU28: 0.06623708462 | AV28: FALSE | AW28: FALSE | AX28: FALSE | AY28: FALSE | AZ28: FALSE | BA28: 1.528265179 | BB28: 1 | BC28: 1 | BD28: 1 | BE28: 1 | BF28: 1 | BG28: 14.01 | BH28: 25.91 | BI28: 0 | BJ28: 0 | BK28: 0 | BL28: 0 | BM28: 353.381 | BN28: 0.01139172733 | BO28: 0.005130836326 | BP28: 10.6724 | BQ28: 43.45 | BR28: 1.7507 | BS28: 1.2965 | BT28: 13230.073
A29: 1951-08-01 | B29: 2005-08-31 | C29: 2004-05-13 | D29: 2005-08-31 | E29: TRUE | F29: 1220.329956 | G29: 23.280001 | H29: 1 | I29: 1220.329956 | J29: -0.01128554778 | K29: 1.07885915 | L29: 2005-08-31 | M29: 1.07885915 | N29: 2005-08-31 | O29: 1.07885915 | P29: 1.51060967 | Q29: 1 | R29: 1 | S29: 1 | T29: 1 | U29: 1 | AB29: 14243.19043 | AC29: 0 | AD29: 0 | AE29: 0 | AF29: 0 | AG29: 0 | AH29: 1 | AI29: 1 | AJ29: 1 | AK29: 1 | AL29: 1 | AM29: 1 | AN29: 14243.19043 | AO29: 0 | AP29: 0 | AQ29: 0 | AR29: 0 | AS29: 0 | AT29: -0.01128554778 | AU29: -0.01161989789 | AV29: FALSE | AW29: FALSE | AX29: FALSE | AY29: FALSE | AZ29: FALSE | BA29: 1.51060967 | BB29: 1 | BC29: 1 | BD29: 1 | BE29: 1 | BF29: 1 | BG29: 14.01 | BH29: 25.86 | BI29: 0 | BJ29: 0 | BK29: 0 | BL29: 0 | BM29: 353.381 | BN29: 0.01139172733 | BO29: 0.005099439062 | BP29: 10.6862 | BQ29: 43.37 | BR29: 1.7944 | BS29: 1.278 | BT29: 13230.073
A30: 1951-09-01 | B30: 2005-09-30 | C30: 2004-05-20 | D30: 2005-09-30 | E30: TRUE | F30: 1228.810059 | G30: 23.26 | H30: 1 | I30: 1228.810059 | J30: 0.006924991497 | K30: 1.086356169 | L30: 2005-09-30 | M30: 1.086356169 | N30: 2005-09-30 | O30: 1.086356169 | P30: 1.709669541 | Q30: 1 | R30: 1 | S30: 1 | T30: 1 | U30: 1 | AB30: 16120.08008 | AC30: 0 | AD30: 0 | AE30: 0 | AF30: 0 | AG30: 0 | AH30: 1 | AI30: 1 | AJ30: 1 | AK30: 1 | AL30: 1 | AM30: 1 | AN30: 16120.08008 | AO30: 0 | AP30: 0 | AQ30: 0 | AR30: 0 | AS30: 0 | AT30: 0.006924991497 | AU30: 0.1237867767 | AV30: FALSE | AW30: FALSE | AX30: FALSE | AY30: FALSE | AZ30: FALSE | BA30: 1.709669541 | BB30: 1 | BC30: 1 | BD30: 1 | BE30: 1 | BF30: 1 | BG30: 14.01 | BH30: 26.03 | BI30: 0 | BJ30: 0 | BK30: 0 | BL30: 0 | BM30: 353.381 | BN30: 0.01139172733 | BO30: 0.005030181087 | BP30: 10.7858 | BQ30: 43.94 | BR30: 1.8064 | BS30: 1.24 | BT30: 13230.073
A31: 1951-10-01 | B31: 2005-10-31 | C31: 2004-05-27 | D31: 2005-10-31 | E31: TRUE | F31: 1207.01001 | G31: 22.940001 | H31: 1 | I31: 1207.01001 | J31: -0.01790003404 | K31: 1.067083363 | L31: 2005-10-31 | M31: 1.067083363 | N31: 2005-10-31 | O31: 1.067083363 | P31: 1.671451446 | Q31: 1 | R31: 1 | S31: 1 | T31: 1 | U31: 1 | AB31: 15759.73047 | AC31: 0 | AD31: 0 | AE31: 0 | AF31: 0 | AG31: 0 | AH31: 1 | AI31: 1 | AJ31: 1 | AK31: 1 | AL31: 1 | AM31: 1 | AN31: 15759.73047 | AO31: 0 | AP31: 0 | AQ31: 0 | AR31: 0 | AS31: 0 | AT31: -0.01790003404 | AU31: -0.02260772262 | AV31: FALSE | AW31: FALSE | AX31: FALSE | AY31: FALSE | AZ31: FALSE | BA31: 1.671451446 | BB31: 1 | BC31: 1 | BD31: 1 | BE31: 1 | BF31: 1 | BG31: 14.17 | BH31: 26.16 | BI31: 0 | BJ31: 0 | BK31: 0 | BL31: 0 | BM31: 358.33 | BN31: 0.01130083965 | BO31: 0.005022601708 | BP31: 10.8354 | BQ31: 43.94 | BR31: 1.7651 | BS31: 1.289 | BT31: 13389.59
A32: 1951-11-01 | B32: 2005-11-30 | C32: 2004-06-03 | D32: 2005-11-30 | E32: TRUE | F32: 1249.47998 | G32: 22.879999 | H32: 1 | I32: 1249.47998 | J32: 0.03458121339 | K32: 1.104629861 | L32: 2005-11-30 | M32: 1.104629861 | N32: 2005-11-30 | O32: 1.104629861 | P32: 1.785064412 | Q32: 1 | R32: 1 | S32: 1 | T32: 1 | U32: 1 | AB32: 16830.96094 | AC32: 0 | AD32: 0 | AE32: 0 | AF32: 0 | AG32: 0 | AH32: 1 | AI32: 1 | AJ32: 1 | AK32: 1 | AL32: 1 | AM32: 1 | AN32: 16830.96094 | AO32: 0 | AP32: 0 | AQ32: 0 | AR32: 0 | AS32: 0 | AT32: 0.03458121339 | AU32: 0.06576212124 | AV32: FALSE | AW32: FALSE | AX32: FALSE | AY32: FALSE | AZ32: FALSE | BA32: 1.785064412 | BB32: 1 | BC32: 1 | BD32: 1 | BE32: 1 | BF32: 1 | BG32: 14.17 | BH32: 26.32 | BI32: 0 | BJ32: 0 | BK32: 0 | BL32: 0 | BM32: 358.33 | BN32: 0.01130083965 | BO32: 0.005047955578 | BP32: 10.6715 | BQ32: 45.02 | BR32: 1.7349 | BS32: 1.2903 | BT32: 13389.59
A33: 1951-12-01 | B33: 2005-12-31 | C33: 2004-06-10 | D33: 2005-12-31 | E33: TRUE | F33: 1248.290039 | G33: 23.77 | H33: 1 | I33: 1248.290039 | J33: -0.0009528027648 | K33: 1.103577868 | L33: 2005-12-31 | M33: 1.103577868 | N33: 2005-12-31 | O33: 1.103577868 | P33: 1.88812664 | Q33: 1 | R33: 1 | S33: 1 | T33: 1 | U33: 1 | AB33: 17802.71094 | AC33: 0 | AD33: 0 | AE33: 0 | AF33: 0 | AG33: 0 | AH33: 1 | AI33: 1 | AJ33: 1 | AK33: 1 | AL33: 1 | AM33: 1 | AN33: 17802.71094 | AO33: 0 | AP33: 0 | AQ33: 0 | AR33: 0 | AS33: 0 | AT33: -0.0009528027648 | AU33: 0.05613064228 | AV33: FALSE | AW33: FALSE | AX33: FALSE | AY33: FALSE | AZ33: FALSE | BA33: 1.88812664 | BB33: 1 | BC33: 1 | BD33: 1 | BE33: 1 | BF33: 1 | BG33: 14.17 | BH33: 26.47 | BI33: 0 | BJ33: 0 | BK33: 0 | BL33: 0 | BM33: 358.33 | BN33: 0.01130083965 | BO33: 0.005047955578 | BP33: 10.6266 | BQ33: 45.97 | BR33: 1.7458 | BS33: 1.321 | BT33: 13389.59
A34: 1952-01-01 | B34: 2006-01-31 | C34: 2004-06-17 | D34: 2006-01-31 | E34: TRUE | F34: 1280.079956 | G34: 24.139999 | H34: 1 | I34: 1280.079956 | J34: 0.02514789561 | K34: 1.131682433 | L34: 2006-01-31 | M34: 1.131682433 | N34: 2006-01-31 | O34: 1.131682433 | P34: 2.005256311 | Q34: 1 | R34: 1 | S34: 1 | T34: 1 | U34: 1 | AB34: 18907.09961 | AC34: 0 | AD34: 0 | AE34: 0 | AF34: 0 | AG34: 0 | AH34: 1 | AI34: 1 | AJ34: 1 | AK34: 1 | AL34: 1 | AM34: 1 | AN34: 18907.09961 | AO34: 0 | AP34: 0 | AQ34: 0 | AR34: 0 | AS34: 0 | AT34: 0.02514789561 | AU34: 0.06018674663 | AV34: FALSE | AW34: FALSE | AX34: FALSE | AY34: FALSE | AZ34: FALSE | BA34: 2.005256311 | BB34: 1 | BC34: 1 | BD34: 1 | BE34: 1 | BF34: 1 | BG34: 14.163 | BH34: 26.45 | BI34: 0 | BJ34: 0 | BK34: 0 | BL34: 0 | BM34: 361.821 | BN34: 0.01122246288 | BO34: 0.005017561465 | BP34: 10.5422 | BQ34: 44.95 | BR34: 1.7686 | BS34: 1.3148 | BT34: 13662.717
A35: 1952-02-01 | B35: 2006-02-28 | C35: 2004-06-24 | D35: 2006-02-28 | E35: TRUE | F35: 1280.660034 | G35: 23.26 | H35: 1 | I35: 1280.660034 | J35: 0.0004530549858 | K35: 1.132195263 | L35: 2006-02-28 | M35: 1.132195263 | N35: 2006-02-28 | O35: 1.132195263 | P35: 1.983961985 | Q35: 1 | R35: 1 | S35: 1 | T35: 1 | U35: 1 | AB35: 18706.32031 | AC35: 0 | AD35: 0 | AE35: 0 | AF35: 0 | AG35: 0 | AH35: 1 | AI35: 1 | AJ35: 1 | AK35: 1 | AL35: 1 | AM35: 1 | AN35: 18706.32031 | AO35: 0 | AP35: 0 | AQ35: 0 | AR35: 0 | AS35: 0 | AT35: 0.0004530549858 | AU35: -0.01067604081 | AV35: FALSE | AW35: FALSE | AX35: FALSE | AY35: FALSE | AZ35: FALSE | BA35: 1.983961985 | BB35: 1 | BC35: 1 | BD35: 1 | BE35: 1 | BF35: 1 | BG35: 14.163 | BH35: 26.41 | BI35: 0 | BJ35: 0 | BK35: 0 | BL35: 0 | BM35: 361.821 | BN35: 0.01122246288 | BO35: 0.005015045135 | BP35: 10.4842 | BQ35: 44.13 | BR35: 1.748 | BS35: 1.2841 | BT35: 13662.717
A36: 1952-03-01 | B36: 2006-03-31 | C36: 2004-07-01 | D36: 2006-03-31 | E36: TRUE | F36: 1294.869995 | G36: 24.370001 | H36: 1 | I36: 1294.869995 | J36: 0.01103470356 | K36: 1.144757887 | L36: 2006-03-31 | M36: 1.144757887 | N36: 2006-03-31 | O36: 1.144757887 | P36: 2.044023963 | Q36: 1 | R36: 1 | S36: 1 | T36: 1 | U36: 1 | AB36: 19272.63086 | AC36: 0 | AD36: 0 | AE36: 0 | AF36: 0 | AG36: 0 | AH36: 1 | AI36: 1 | AJ36: 1 | AK36: 1 | AL36: 1 | AM36: 1 | AN36: 19272.63086 | AO36: 0 | AP36: 0 | AQ36: 0 | AR36: 0 | AS36: 0 | AT36: 0.01103470356 | AU36: 0.02982454785 | AV36: FALSE | AW36: FALSE | AX36: FALSE | AY36: FALSE | AZ36: FALSE | BA36: 2.044023963 | BB36: 1 | BC36: 1 | BD36: 1 | BE36: 1 | BF36: 1 | BG36: 14.163 | BH36: 26.39 | BI36: 0 | BJ36: 0 | BK36: 0 | BL36: 0 | BM36: 361.821 | BN36: 0.01122246288 | BO36: 0.005007511267 | BP36: 10.7493 | BQ36: 44.35 | BR36: 1.7442 | BS36: 1.3165 | BT36: 13662.717
A37: 1952-04-01 | B37: 2006-04-30 | C37: 2004-07-08 | D37: 2006-04-30 | E37: TRUE | F37: 1310.609985 | G37: 23.32 | H37: 1 | I37: 1310.609985 | J37: 0.01208236609 | K37: 1.158673167 | L37: 2006-04-30 | M37: 1.158673167 | N37: 2006-04-30 | O37: 1.158673167 | P37: 2.189701359 | Q37: 1 | R37: 1 | S37: 1 | T37: 1 | U37: 1 | AB37: 20646.18945 | AC37: 0 | AD37: 0 | AE37: 0 | AF37: 0 | AG37: 0 | AH37: 1 | AI37: 1 | AJ37: 1 | AK37: 1 | AL37: 1 | AM37: 1 | AN37: 20646.18945 | AO37: 0 | AP37: 0 | AQ37: 0 | AR37: 0 | AS37: 0 | AT37: 0.01208236609 | AU37: 0.068844773 | AV37: FALSE | AW37: FALSE | AX37: FALSE | AY37: FALSE | AZ37: FALSE | BA37: 2.189701359 | BB37: 1 | BC37: 1 | BD37: 1 | BE37: 1 | BF37: 1 | BG37: 14.18 | BH37: 26.46 | BI37: 0 | BJ37: 0 | BK37: 0 | BL37: 0 | BM37: 363.049 | BN37: 0.01112941281 | BO37: 0.004982561036 | BP37: 11.0489 | BQ37: 44.48 | BR37: 1.768 | BS37: 1.3025 | BT37: 13802.956
A38: 1952-05-01 | B38: 2006-05-31 | C38: 2004-07-15 | D38: 2006-05-31 | E38: TRUE | F38: 1270.089966 | G38: 23.860001 | H38: 1 | I38: 1270.089966 | J38: -0.03140492891 | K38: 1.122850566 | L38: 2006-05-31 | M38: 1.122850566 | N38: 2006-05-31 | O38: 1.122850566 | P38: 1.980949885 | Q38: 1 | R38: 1 | S38: 1 | T38: 1 | U38: 1 | AB38: 18677.91992 | AC38: 0 | AD38: 0 | AE38: 0 | AF38: 0 | AG38: 0 | AH38: 1 | AI38: 1 | AJ38: 1 | AK38: 1 | AL38: 1 | AM38: 1 | AN38: 18677.91992 | AO38: 0 | AP38: 0 | AQ38: 0 | AR38: 0 | AS38: 0 | AT38: -0.03140492891 | AU38: -0.1001886989 | AV38: FALSE | AW38: FALSE | AX38: FALSE | AY38: FALSE | AZ38: FALSE | BA38: 1.980949885 | BB38: 1 | BC38: 1 | BD38: 1 | BE38: 1 | BF38: 1 | BG38: 14.18 | BH38: 26.47 | BI38: 0 | BJ38: 0 | BK38: 0 | BL38: 0 | BM38: 363.049 | BN38: 0.01112941281 | BO38: 0.004967709886 | BP38: 11.0908 | BQ38: 44.77 | BR38: 1.8687 | BS38: 1.2386 | BT38: 13802.956
A39: 1952-06-01 | B39: 2006-06-30 | C39: 2004-07-22 | D39: 2006-06-30 | E39: TRUE | F39: 1270.199951 | G39: 24.959999 | H39: 1 | I39: 1270.199951 | J39: 8.659247855e-05 | K39: 1.1229478 | L39: 2006-06-30 | M39: 1.1229478 | N39: 2006-06-30 | O39: 1.1229478 | P39: 2.030717779 | Q39: 1 | R39: 1 | S39: 1 | T39: 1 | U39: 1 | AB39: 19147.16992 | AC39: 0 | AD39: 0 | AE39: 0 | AF39: 0 | AG39: 0 | AH39: 1 | AI39: 1 | AJ39: 1 | AK39: 1 | AL39: 1 | AM39: 1 | AN39: 19147.16992 | AO39: 0 | AP39: 0 | AQ39: 0 | AR39: 0 | AS39: 0 | AT39: 8.659247855e-05 | AU39: 0.02481284656 | AV39: FALSE | AW39: FALSE | AX39: FALSE | AY39: FALSE | AZ39: FALSE | BA39: 2.030717779 | BB39: 1 | BC39: 1 | BD39: 1 | BE39: 1 | BF39: 1 | BG39: 14.18 | BH39: 26.53 | BI39: 0 | BJ39: 0 | BK39: 0 | BL39: 0 | BM39: 363.049 | BN39: 0.01112941281 | BO39: 0.004955401388 | BP39: 11.3934 | BQ39: 46.19 | BR39: 1.8435 | BS39: 1.2197 | BT39: 13802.956
A40: 1952-07-01 | B40: 2006-07-31 | C40: 2004-07-29 | D40: 2006-07-31 | E40: TRUE | F40: 1276.660034 | G40: 25.4 | H40: 1 | I40: 1276.660034 | J40: 0.005072989401 | K40: 1.128658977 | L40: 2006-07-31 | M40: 1.128658977 | N40: 2006-07-31 | O40: 1.128658977 | P40: 2.131341701 | Q40: 1 | R40: 1 | S40: 1 | T40: 1 | U40: 1 | AB40: 20095.92969 | AC40: 0 | AD40: 0 | AE40: 0 | AF40: 0 | AG40: 0 | AH40: 1 | AI40: 1 | AJ40: 1 | AK40: 1 | AL40: 1 | AM40: 1 | AN40: 20095.92969 | AO40: 0 | AP40: 0 | AQ40: 0 | AR40: 0 | AS40: 0 | AT40: 0.005072989401 | AU40: 0.04836237152 | AV40: FALSE | AW40: FALSE | AX40: FALSE | AY40: FALSE | AZ40: FALSE | BA40: 2.131341701 | BB40: 1 | BC40: 1 | BD40: 1 | BE40: 1 | BF40: 1 | BG40: 14.339 | BH40: 26.68 | BI40: 0 | BJ40: 0 | BK40: 0 | BL40: 0 | BM40: 369.683 | BN40: 0.01105204408 | BO40: 0.004928536225 | BP40: 10.983 | BQ40: 45.87 | BR40: 1.8443 | BS40: 1.2247 | BT40: 13907.106
A41: 1952-08-01 | B41: 2006-08-31 | C41: 2004-08-05 | D41: 2006-08-31 | E41: TRUE | F41: 1303.819946 | G41: 25.030001 | H41: 1 | I41: 1303.819946 | J41: 0.02105105654 | K41: 1.152670286 | L41: 2006-08-31 | M41: 1.152670286 | N41: 2006-08-31 | O41: 1.152670286 | P41: 2.232459871 | Q41: 1 | R41: 1 | S41: 1 | T41: 1 | U41: 1 | AB41: 21049.34961 | AC41: 0 | AD41: 0 | AE41: 0 | AF41: 0 | AG41: 0 | AH41: 1 | AI41: 1 | AJ41: 1 | AK41: 1 | AL41: 1 | AM41: 1 | AN41: 21049.34961 | AO41: 0 | AP41: 0 | AQ41: 0 | AR41: 0 | AS41: 0 | AT41: 0.02105105654 | AU41: 0.04635237074 | AV41: FALSE | AW41: FALSE | AX41: FALSE | AY41: FALSE | AZ41: FALSE | BA41: 2.232459871 | BB41: 1 | BC41: 1 | BD41: 1 | BE41: 1 | BF41: 1 | BG41: 14.339 | BH41: 26.69 | BI41: 0 | BJ41: 0 | BK41: 0 | BL41: 0 | BM41: 369.683 | BN41: 0.01105204408 | BO41: 0.004906771344 | BP41: 10.8735 | BQ41: 46.51 | BR41: 1.8941 | BS41: 1.2317 | BT41: 13907.106
A42: 1952-09-01 | B42: 2006-09-30 | C42: 2004-08-12 | D42: 2006-09-30 | E42: TRUE | F42: 1335.849976 | G42: 24.540001 | H42: 1 | I42: 1335.849976 | J42: 0.02426939965 | K42: 1.180987128 | L42: 2006-09-30 | M42: 1.180987128 | N42: 2006-09-30 | O42: 1.180987128 | P42: 2.326614231 | Q42: 1 | R42: 1 | S42: 1 | T42: 1 | U42: 1 | AB42: 21937.10938 | AC42: 0 | AD42: 0 | AE42: 0 | AF42: 0 | AG42: 0 | AH42: 1 | AI42: 1 | AJ42: 1 | AK42: 1 | AL42: 1 | AM42: 1 | AN42: 21937.10938 | AO42: 0 | AP42: 0 | AQ42: 0 | AR42: 0 | AS42: 0 | AT42: 0.02426939965 | AU42: 0.04131003258 | AV42: FALSE | AW42: FALSE | AX42: FALSE | AY42: FALSE | AZ42: FALSE | BA42: 2.326614231 | BB42: 1 | BC42: 1 | BD42: 1 | BE42: 1 | BF42: 1 | BG42: 14.339 | BH42: 26.63 | BI42: 0 | BJ42: 0 | BK42: 0 | BL42: 0 | BM42: 369.683 | BN42: 0.01105204408 | BO42: 0.004930966469 | BP42: 10.9888 | BQ42: 46.38 | BR42: 1.8839 | BS42: 1.2308 | BT42: 13907.106
A43: 1952-10-01 | B43: 2006-10-31 | C43: 2004-08-19 | D43: 2006-10-31 | E43: TRUE | F43: 1377.939941 | G43: 24.52 | H43: 1 | I43: 1377.939941 | J43: 0.03102181207 | K43: 1.218197674 | L43: 2006-10-31 | M43: 1.218197674 | N43: 2006-10-31 | O43: 1.218197674 | P43: 2.444322045 | Q43: 1 | R43: 1 | S43: 1 | T43: 1 | U43: 1 | AB43: 23046.94922 | AC43: 0 | AD43: 0 | AE43: 0 | AF43: 0 | AG43: 0 | AH43: 1 | AI43: 1 | AJ43: 1 | AK43: 1 | AL43: 1 | AM43: 1 | AN43: 23046.94922 | AO43: 0 | AP43: 0 | AQ43: 0 | AR43: 0 | AS43: 0 | AT43: 0.03102181207 | AU43: 0.04935371096 | AV43: FALSE | AW43: FALSE | AX43: FALSE | AY43: FALSE | AZ43: FALSE | BA43: 2.444322045 | BB43: 1 | BC43: 1 | BD43: 1 | BE43: 1 | BF43: 1 | BG43: 14.378 | BH43: 26.69 | BI43: 0 | BJ43: 0 | BK43: 0 | BL43: 0 | BM43: 382.751 | BN43: 0.0110113968 | BO43: 0.004952947003 | BP43: 10.8854 | BQ43: 45.95 | BR43: 1.8765 | BS43: 1.2504 | BT43: 14087.456
A44: 1952-11-01 | B44: 2006-11-30 | C44: 2004-08-26 | D44: 2006-11-30 | E44: TRUE | F44: 1400.630005 | G44: 25.66 | H44: 1 | I44: 1400.630005 | J44: 0.01633255151 | K44: 1.238257317 | L44: 2006-11-30 | M44: 1.238257317 | N44: 2006-11-30 | O44: 1.238257317 | P44: 2.647430259 | Q44: 1 | R44: 1 | S44: 1 | T44: 1 | U44: 1 | AB44: 24962.00977 | AC44: 0 | AD44: 0 | AE44: 0 | AF44: 0 | AG44: 0 | AH44: 1 | AI44: 1 | AJ44: 1 | AK44: 1 | AL44: 1 | AM44: 1 | AN44: 24962.00977 | AO44: 0 | AP44: 0 | AQ44: 0 | AR44: 0 | AS44: 0 | AT44: 0.01633255151 | AU44: 0.07982165397 | AV44: FALSE | AW44: FALSE | AX44: FALSE | AY44: FALSE | AZ44: FALSE | BA44: 2.647430259 | BB44: 1 | BC44: 1 | BD44: 1 | BE44: 1 | BF44: 1 | BG44: 14.378 | BH44: 26.69 | BI44: 0 | BJ44: 0 | BK44: 0 | BL44: 0 | BM44: 382.751 | BN44: 0.0110113968 | BO44: 0.00495049505 | BP44: 10.9133 | BQ44: 44.79 | BR44: 1.9125 | BS44: 1.2433 | BT44: 14087.456
A45: 1952-12-01 | B45: 2006-12-31 | C45: 2004-09-02 | D45: 2006-12-31 | E45: TRUE | F45: 1418.300049 | G45: 26.57 | H45: 1 | I45: 1418.300049 | J45: 0.0125368669 | K45: 1.253878902 | L45: 2006-12-31 | M45: 1.253878902 | N45: 2006-12-31 | O45: 1.253878902 | P45: 2.805065945 | Q45: 1 | R45: 1 | S45: 1 | T45: 1 | U45: 1 | AB45: 26448.32031 | AC45: 0 | AD45: 0 | AE45: 0 | AF45: 0 | AG45: 0 | AH45: 1 | AI45: 1 | AJ45: 1 | AK45: 1 | AL45: 1 | AM45: 1 | AN45: 26448.32031 | AO45: 0 | AP45: 0 | AQ45: 0 | AR45: 0 | AS45: 0 | AT45: 0.0125368669 | AU45: 0.05783759232 | AV45: FALSE | AW45: FALSE | AX45: FALSE | AY45: FALSE | AZ45: FALSE | BA45: 2.805065945 | BB45: 1 | BC45: 1 | BD45: 1 | BE45: 1 | BF45: 1 | BG45: 14.378 | BH45: 26.71 | BI45: 0 | BJ45: 0 | BK45: 0 | BL45: 0 | BM45: 382.751 | BN45: 0.0110113968 | BO45: 0.004923682915 | BP45: 10.8546 | BQ45: 44.5 | BR45: 1.9629 | BS45: 1.1947 | BT45: 14087.456
A46: 1953-01-01 | B46: 2007-01-31 | C46: 2004-09-09 | D46: 2007-01-31 | E46: TRUE | F46: 1438.23999 | G46: 26.379999 | H46: 1 | I46: 1438.23999 | J46: 0.01396113102 | K46: 1.271507239 | L46: 2007-01-31 | M46: 1.271507239 | N46: 2007-01-31 | O46: 1.271507239 | P46: 2.923126941 | Q46: 1 | R46: 1 | S46: 1 | T46: 1 | U46: 1 | AB46: 27561.49023 | AC46: 0 | AD46: 0 | AE46: 0 | AF46: 0 | AG46: 0 | AH46: 1 | AI46: 1 | AJ46: 1 | AK46: 1 | AL46: 1 | AM46: 1 | AN46: 27561.49023 | AO46: 0 | AP46: 0 | AQ46: 0 | AR46: 0 | AS46: 0 | AT46: 0.01396113102 | AU46: 0.04122686498 | AV46: FALSE | AW46: FALSE | AX46: FALSE | AY46: FALSE | AZ46: FALSE | BA46: 2.923126941 | BB46: 1 | BC46: 1 | BD46: 1 | BE46: 1 | BF46: 1 | BG46: 14.381 | BH46: 26.64 | BI46: 0 | BJ46: 0 | BK46: 0 | BL46: 0 | BM46: 389.888 | BN46: 0.01090417412 | BO46: 0.004915526674 | BP46: 10.9559 | BQ46: 44.5 | BR46: 1.9587 | BS46: 1.1947 | BT46: 14260.827
A47: 1953-02-01 | B47: 2007-02-28 | C47: 2004-09-16 | D47: 2007-02-28 | E47: TRUE | F47: 1406.819946 | G47: 25.9 | H47: 1 | I47: 1406.819946 | J47: -0.0220883371 | K47: 1.243729668 | L47: 2007-02-28 | M47: 1.243729668 | N47: 2007-02-28 | O47: 1.243729668 | P47: 2.825283737 | Q47: 1 | R47: 1 | S47: 1 | T47: 1 | U47: 1 | AB47: 26638.94922 | AC47: 0 | AD47: 0 | AE47: 0 | AF47: 0 | AG47: 0 | AH47: 1 | AI47: 1 | AJ47: 1 | AK47: 1 | AL47: 1 | AM47: 1 | AN47: 26638.94922 | AO47: 0 | AP47: 0 | AQ47: 0 | AR47: 0 | AS47: 0 | AT47: -0.0220883371 | AU47: -0.03404511587 | AV47: FALSE | AW47: FALSE | AX47: FALSE | AY47: FALSE | AZ47: FALSE | BA47: 2.825283737 | BB47: 1 | BC47: 1 | BD47: 1 | BE47: 1 | BF47: 1 | BG47: 14.381 | BH47: 26.59 | BI47: 0 | BJ47: 0 | BK47: 0 | BL47: 0 | BM47: 389.888 | BN47: 0.01090417412 | BO47: 0.00489653619 | BP47: 10.9951 | BQ47: 44.01 | BR47: 1.9589 | BS47: 1.2427 | BT47: 14260.827
A48: 1953-03-01 | B48: 2007-03-31 | C48: 2004-09-23 | D48: 2007-03-31 | E48: TRUE | F48: 1420.859985 | G48: 25.290001 | H48: 1 | I48: 1420.859985 | J48: 0.009930511743 | K48: 1.256142069 | L48: 2007-03-31 | M48: 1.256142069 | N48: 2007-03-31 | O48: 1.256142069 | P48: 3.048933306 | Q48: 1 | R48: 1 | S48: 1 | T48: 1 | U48: 1 | AB48: 28747.68945 | AC48: 0 | AD48: 0 | AE48: 0 | AF48: 0 | AG48: 0 | AH48: 1 | AI48: 1 | AJ48: 1 | AK48: 1 | AL48: 1 | AM48: 1 | AN48: 28747.68945 | AO48: 0 | AP48: 0 | AQ48: 0 | AR48: 0 | AS48: 0 | AT48: 0.009930511743 | AU48: 0.076182996 | AV48: FALSE | AW48: FALSE | AX48: FALSE | AY48: FALSE | AZ48: FALSE | BA48: 3.048933306 | BB48: 1 | BC48: 1 | BD48: 1 | BE48: 1 | BF48: 1 | BG48: 14.381 | BH48: 26.63 | BI48: 0 | BJ48: 0 | BK48: 0 | BL48: 0 | BM48: 389.888 | BN48: 0.01090417412 | BO48: 0.004871205331 | BP48: 11.1144 | BQ48: 44.11 | BR48: 1.9474 | BS48: 1.2226 | BT48: 14260.827
A49: 1953-04-01 | B49: 2007-04-30 | C49: 2004-09-30 | D49: 2007-04-30 | E49: TRUE | F49: 1482.369995 | G49: 24.620001 | H49: 1 | I49: 1482.369995 | J49: 0.04237984342 | K49: 1.310521327 | L49: 2007-04-30 | M49: 1.310521327 | N49: 2007-04-30 | O49: 1.310521327 | P49: 3.07534412 | Q49: 1 | R49: 1 | S49: 1 | T49: 1 | U49: 1 | AB49: 28996.71094 | AC49: 0 | AD49: 0 | AE49: 0 | AF49: 0 | AG49: 0 | AH49: 1 | AI49: 1 | AJ49: 1 | AK49: 1 | AL49: 1 | AM49: 1 | AN49: 28996.71094 | AO49: 0 | AP49: 0 | AQ49: 0 | AR49: 0 | AS49: 0 | AT49: 0.04237984342 | AU49: 0.008625010462 | AV49: FALSE | AW49: FALSE | AX49: FALSE | AY49: FALSE | AZ49: FALSE | BA49: 3.07534412 | BB49: 1 | BC49: 1 | BD49: 1 | BE49: 1 | BF49: 1 | BG49: 14.409 | BH49: 26.69 | BI49: 0 | BJ49: 0 | BK49: 0 | BL49: 0 | BM49: 393.801 | BN49: 0.01083411881 | BO49: 0.004856632217 | BP49: 10.9802 | BQ49: 43.1 | BR49: 1.9879 | BS49: 1.2126 | BT49: 14456.794
A50: 1953-05-01 | B50: 2007-05-31 | C50: 2004-10-07 | D50: 2007-05-31 | E50: TRUE | F50: 1530.619995 | G50: 24.540001 | H50: 1 | I50: 1530.619995 | J50: 0.03203072385 | K50: 1.353177785 | L50: 2007-05-31 | M50: 1.353177785 | N50: 2007-05-31 | O50: 1.353177785 | P50: 3.330122858 | Q50: 1 | R50: 1 | S50: 1 | T50: 1 | U50: 1 | AB50: 31398.96094 | AC50: 0 | AD50: 0 | AE50: 0 | AF50: 0 | AG50: 0 | AH50: 1 | AI50: 1 | AJ50: 1 | AK50: 1 | AL50: 1 | AM50: 1 | AN50: 31398.96094 | AO50: 0 | AP50: 0 | AQ50: 0 | AR50: 0 | AS50: 0 | AT50: 0.03203072385 | AU50: 0.0795923936 | AV50: FALSE | AW50: FALSE | AX50: FALSE | AY50: FALSE | AZ50: FALSE | BA50: 3.330122858 | BB50: 1 | BC50: 1 | BD50: 1 | BE50: 1 | BF50: 1 | BG50: 14.409 | BH50: 26.7 | BI50: 0 | BJ50: 0 | BK50: 0 | BL50: 0 | BM50: 393.801 | BN50: 0.01083411881 | BO50: 0.004836642403 | BP50: 10.8221 | BQ50: 41 | BR50: 1.9842 | BS50: 1.2151 | BT50: 14456.794
A51: 1953-06-01 | B51: 2007-06-30 | C51: 2004-10-14 | D51: 2007-06-30 | E51: TRUE | F51: 1503.349976 | G51: 24.139999 | H51: 1 | I51: 1503.349976 | J51: -0.01797694352 | K51: 1.329069134 | L51: 2007-06-30 | M51: 1.329069134 | N51: 2007-06-30 | O51: 1.329069134 | P51: 3.303829909 | Q51: 1 | R51: 1 | S51: 1 | T51: 1 | U51: 1 | AB51: 31151.05078 | AC51: 0 | AD51: 0 | AE51: 0 | AF51: 0 | AG51: 0 | AH51: 1 | AI51: 1 | AJ51: 1 | AK51: 1 | AL51: 1 | AM51: 1 | AN51: 31151.05078 | AO51: 0 | AP51: 0 | AQ51: 0 | AR51: 0 | AS51: 0 | AT51: -0.01797694352 | AU51: -0.007926823618 | AV51: FALSE | AW51: FALSE | AX51: FALSE | AY51: FALSE | AZ51: FALSE | BA51: 3.303829909 | BB51: 1 | BC51: 1 | BD51: 1 | BE51: 1 | BF51: 1 | BG51: 14.409 | BH51: 26.77 | BI51: 0 | BJ51: 0 | BK51: 0 | BL51: 0 | BM51: 393.801 | BN51: 0.01083411881 | BO51: 0.004825463003 | BP51: 10.833 | BQ51: 40.27 | BR51: 1.9867 | BS51: 1.2299 | BT51: 14456.794
A52: 1953-07-01 | B52: 2007-07-31 | C52: 2004-10-21 | D52: 2007-07-31 | E52: TRUE | F52: 1455.27002 | G52: 24.75 | H52: 1 | I52: 1455.27002 | J52: -0.03250447113 | K52: 1.286563007 | L52: 2007-07-31 | M52: 1.286563007 | N52: 2007-07-31 | O52: 1.286563007 | P52: 3.251713816 | Q52: 1 | R52: 1 | S52: 1 | T52: 1 | U52: 1 | AB52: 30659.66016 | AC52: 0 | AD52: 0 | AE52: 0 | AF52: 0 | AG52: 0 | AH52: 1 | AI52: 1 | AJ52: 1 | AK52: 1 | AL52: 1 | AM52: 1 | AN52: 30659.66016 | AO52: 0 | AP52: 0 | AQ52: 0 | AR52: 0 | AS52: 0 | AT52: -0.03250447113 | AU52: -0.0159001885 | AV52: FALSE | AW52: FALSE | AX52: FALSE | AY52: FALSE | AZ52: FALSE | BA52: 3.251713816 | BB52: 1 | BC52: 1 | BD52: 1 | BE52: 1 | BF52: 1 | BG52: 14.47 | BH52: 26.79 | BI52: 0 | BJ52: 0 | BK52: 0 | BL52: 0 | BM52: 392.98 | BN52: 0.01077864965 | BO52: 0.004816886076 | BP52: 10.8146 | BQ52: 40.58 | BR52: 2.0355 | BS52: 1.224 | BT52: 14666.605
A53: 1953-08-01 | B53: 2007-08-31 | C53: 2004-10-28 | D53: 2007-08-31 | E53: TRUE | F53: 1473.98999 | G53: 23.32 | H53: 1 | I53: 1473.98999 | J53: 0.01278153854 | K53: 1.303112802 | L53: 2007-08-31 | M53: 1.303112802 | N53: 2007-08-31 | O53: 1.303112802 | P53: 3.218644731 | Q53: 1 | R53: 1 | S53: 1 | T53: 1 | U53: 1 | AB53: 30347.85938 | AC53: 0 | AD53: 0 | AE53: 0 | AF53: 0 | AG53: 0 | AH53: 1 | AI53: 1 | AJ53: 1 | AK53: 1 | AL53: 1 | AM53: 1 | AN53: 30347.85938 | AO53: 0 | AP53: 0 | AQ53: 0 | AR53: 0 | AS53: 0 | AT53: 0.01278153854 | AU53: -0.01022180539 | AV53: FALSE | AW53: FALSE | AX53: FALSE | AY53: FALSE | AZ53: FALSE | BA53: 3.218644731 | BB53: 1 | BC53: 1 | BD53: 1 | BE53: 1 | BF53: 1 | BG53: 14.47 | BH53: 26.85 | BI53: 0 | BJ53: 0 | BK53: 0 | BL53: 0 | BM53: 392.98 | BN53: 0.01077864965 | BO53: 0.00481540158 | BP53: 11.0438 | BQ53: 40.25 | BR53: 2.011 | BS53: 1.2013 | BT53: 14666.605
A54: 1953-09-01 | B54: 2007-09-30 | C54: 2004-11-04 | D54: 2007-09-30 | E54: TRUE | F54: 1526.75 | G54: 23.35 | H54: 1 | I54: 1526.75 | J54: 0.03516829042 | K54: 1.349756432 | L54: 2007-09-30 | M54: 1.349756432 | N54: 2007-09-30 | O54: 1.349756432 | P54: 3.213164703 | Q54: 1 | R54: 1 | S54: 1 | T54: 1 | U54: 1 | AB54: 30296.18945 | AC54: 0 | AD54: 0 | AE54: 0 | AF54: 0 | AG54: 0 | AH54: 1 | AI54: 1 | AJ54: 1 | AK54: 1 | AL54: 1 | AM54: 1 | AN54: 30296.18945 | AO54: 0 | AP54: 0 | AQ54: 0 | AR54: 0 | AS54: 0 | AT54: 0.03516829042 | AU54: -0.001704039737 | AV54: FALSE | AW54: FALSE | AX54: FALSE | AY54: FALSE | AZ54: FALSE | BA54: 3.213164703 | BB54: 1 | BC54: 1 | BD54: 1 | BE54: 1 | BF54: 1 | BG54: 14.47 | BH54: 26.89 | BI54: 0 | BJ54: 0 | BK54: 0 | BL54: 0 | BM54: 392.98 | BN54: 0.01077864965 | BO54: 0.004795082164 | BP54: 11.0319 | BQ54: 40.63 | BR54: 2.0184 | BS54: 1.2071 | BT54: 14666.605
A55: 1953-10-01 | B55: 2007-10-31 | C55: 2004-11-11 | D55: 2007-10-31 | E55: TRUE | F55: 1549.380005 | G55: 24.540001 | H55: 1 | I55: 1549.380005 | J55: 0.01471356102 | K55: 1.369762979 | L55: 2007-10-31 | M55: 1.369762979 | N55: 2007-10-31 | O55: 1.369762979 | P55: 3.336455496 | Q55: 1 | R55: 1 | S55: 1 | T55: 1 | U55: 1 | AB55: 31458.66992 | AC55: 0 | AD55: 0 | AE55: 0 | AF55: 0 | AG55: 0 | AH55: 1 | AI55: 1 | AJ55: 1 | AK55: 1 | AL55: 1 | AM55: 1 | AN55: 31458.66992 | AO55: 0 | AP55: 0 | AQ55: 0 | AR55: 0 | AS55: 0 | AT55: 0.01471356102 | AU55: 0.03765267437 | AV55: FALSE | AW55: FALSE | AX55: FALSE | AY55: FALSE | AZ55: FALSE | BA55: 3.336455496 | BB55: 1 | BC55: 1 | BD55: 1 | BE55: 1 | BF55: 1 | BG55: 14.497 | BH55: 26.95 | BI55: 0 | BJ55: 0 | BK55: 0 | BL55: 0 | BM55: 387.798 | BN55: 0.01073594933 | BO55: 0.004780343229 | BP55: 10.8214 | BQ55: 39.7 | BR55: 2.0449 | BS55: 1.1683 | BT55: 14859.307
A56: 1953-11-01 | B56: 2007-11-30 | C56: 2004-11-18 | D56: 2007-11-30 | E56: TRUE | F56: 1481.140015 | G56: 24.76 | H56: 1 | I56: 1481.140015 | J56: -0.04504278247 | K56: 1.309433936 | L56: 2007-11-30 | M56: 1.309433936 | N56: 2007-11-30 | O56: 1.309433936 | P56: 3.157413004 | Q56: 1 | R56: 1 | S56: 1 | T56: 1 | U56: 1 | AB56: 29770.51953 | AC56: 0 | AD56: 0 | AE56: 0 | AF56: 0 | AG56: 0 | AH56: 1 | AI56: 1 | AJ56: 1 | AK56: 1 | AL56: 1 | AM56: 1 | AN56: 29770.51953 | AO56: 0 | AP56: 0 | AQ56: 0 | AR56: 0 | AS56: 0 | AT56: -0.04504278247 | AU56: -0.05515599198 | AV56: FALSE | AW56: FALSE | AX56: FALSE | AY56: FALSE | AZ56: FALSE | BA56: 3.157413004 | BB56: 1 | BC56: 1 | BD56: 1 | BE56: 1 | BF56: 1 | BG56: 14.497 | BH56: 26.85 | BI56: 0 | BJ56: 0 | BK56: 0 | BL56: 0 | BM56: 387.798 | BN56: 0.01073594933 | BO56: 0.004743068006 | BP56: 10.8811 | BQ56: 39.22 | BR56: 2.0701 | BS56: 1.1591 | BT56: 14859.307
A57: 1953-12-01 | B57: 2007-12-31 | C57: 2004-11-25 | D57: 2007-12-31 | E57: TRUE | F57: 1468.359985 | G57: 24.809999 | H57: 1 | I57: 1468.359985 | J57: -0.008665950148 | K57: 1.298135474 | L57: 2007-12-31 | M57: 1.298135474 | N57: 2007-12-31 | O57: 1.298135474 | P57: 3.13262828 | Q57: 1 | R57: 1 | S57: 1 | T57: 1 | U57: 1 | AB57: 29536.83008 | AC57: 0 | AD57: 0 | AE57: 0 | AF57: 0 | AG57: 0 | AH57: 1 | AI57: 1 | AJ57: 1 | AK57: 1 | AL57: 1 | AM57: 1 | AN57: 29536.83008 | AO57: 0 | AP57: 0 | AQ57: 0 | AR57: 0 | AS57: 0 | AT57: -0.008665950148 | AU57: -0.007880664504 | AV57: FALSE | AW57: FALSE | AX57: FALSE | AY57: FALSE | AZ57: FALSE | BA57: 3.13262828 | BB57: 1 | BC57: 1 | BD57: 1 | BE57: 1 | BF57: 1 | BG57: 14.497 | BH57: 26.87 | BI57: 0 | BJ57: 0 | BK57: 0 | BL57: 0 | BM57: 387.798 | BN57: 0.01073594933 | BO57: 0.004729362246 | BP57: 10.8463 | BQ57: 39.52 | BR57: 2.0161 | BS57: 1.1287 | BT57: 14859.307
A58: 1954-01-01 | B58: 2008-01-31 | C58: 2004-12-02 | D58: 2008-01-31 | E58: TRUE | F58: 1378.550049 | G58: 26.08 | H58: 1 | I58: 1378.550049 | J58: -0.06311386384 | K58: 1.218737053 | L58: 2008-01-31 | M58: 1.218737053 | N58: 2008-01-31 | O58: 1.218737053 | P58: 3.053806812 | Q58: 1 | R58: 1 | S58: 1 | T58: 1 | U58: 1 | AB58: 28793.64062 | AC58: 0 | AD58: 0 | AE58: 0 | AF58: 0 | AG58: 0 | AH58: 1 | AI58: 1 | AJ58: 1 | AK58: 1 | AL58: 1 | AM58: 1 | AN58: =IFERROR(IF(ISNUMBER(AB58)>0.1,AB58,AN59)*AH58,AN59) -> 28793.64062 | AO58: 0 | AP58: 0 | AQ58: 0 | AR58: 0 | AS58: 0 | AT58: -0.06311386384 | AU58: -0.02548341074 | AV58: FALSE | AW58: FALSE | AX58: FALSE | AY58: FALSE | AZ58: FALSE | BA58: 3.053806812 | BB58: 1 | BC58: 1 | BD58: 1 | BE58: 1 | BF58: 1 | BG58: 14.543 | BH58: 26.94 | BI58: 0 | BJ58: 0 | BK58: 0 | BL58: 0 | BM58: 387.345 | BN58: 0.01069644557 | BO58: 0.004713112822 | BP58: 10.9057 | BQ58: 39.52 | BR58: 1.9702 | BS58: 1.1287 | BT58: 14812.719
A59: 1954-02-01 | B59: 2008-02-29 | C59: 2004-12-09 | D59: 2008-02-29 | E59: TRUE | F59: 1330.630005 | G59: 26.15 | H59: 1 | I59: 1330.630005 | J59: -0.03537973963 | K59: 1.176372299 | L59: 2008-02-29 | M59: 1.176372299 | N59: 2008-02-29 | O59: 1.176372299 | P59: 3.067051266 | Q59: 1 | R59: 1 | S59: 1 | T59: 1 | U59: 1 | AB59: 28918.51953 | AC59: 0 | AD59: 0 | AE59: 0 | AF59: 0 | AG59: 0 | AH59: 1 | AI59: 1 | AJ59: 1 | AK59: 1 | AL59: 1 | AM59: 1 | AN59: 28918.51953 | AO59: 0 | AP59: 0 | AQ59: 0 | AR59: 0 | AS59: 0 | AT59: -0.03537973963 | AU59: 0.004327652979 | AV59: FALSE | AW59: FALSE | AX59: FALSE | AY59: FALSE | AZ59: FALSE | BA59: 3.067051266 | BB59: 1 | BC59: 1 | BD59: 1 | BE59: 1 | BF59: 1 | BG59: 14.543 | BH59: 26.99 | BI59: 0 | BJ59: 0 | BK59: 0 | BL59: 0 | BM59: 387.345 | BN59: 0.01069644557 | BO59: 0.004701744818 | BP59: 10.7679 | BQ59: 39.12 | BR59: 1.9646 | BS59: 1.0821 | BT59: 14812.719
A60: 1954-03-01 | B60: 2008-03-31 | C60: 2004-12-16 | D60: 2008-03-31 | E60: TRUE | F60: 1322.699951 | G60: 26.940001 | H60: 1 | I60: 1322.699951 | J60: -0.005977453044 | K60: 1.169361563 | L60: 2008-03-31 | M60: 1.169361563 | N60: 2008-03-31 | O60: 1.169361563 | P60: 3.278581594 | Q60: 1 | R60: 1 | S60: 1 | T60: 1 | U60: 1 | AB60: 30912.99023 | AC60: 0 | AD60: 0 | AE60: 0 | AF60: 0 | AG60: 0 | AH60: 1 | AI60: 1 | AJ60: 1 | AK60: 1 | AL60: 1 | AM60: 1 | AN60: 30912.99023 | AO60: 0 | AP60: 0 | AQ60: 0 | AR60: 0 | AS60: 0 | AT60: -0.005977453044 | AU60: 0.06669428738 | AV60: FALSE | AW60: FALSE | AX60: FALSE | AY60: FALSE | AZ60: FALSE | BA60: 3.278581594 | BB60: 1 | BC60: 1 | BD60: 1 | BE60: 1 | BF60: 1 | BG60: 14.543 | BH60: 26.93 | BI60: 0 | BJ60: 0 | BK60: 0 | BL60: 0 | BM60: 387.345 | BN60: 0.01069644557 | BO60: 0.004684981822 | BP60: 10.7328 | BQ60: 39.96 | BR60: 2.0015 | BS60: 1.0435 | BT60: 14812.719
A61: 1954-04-01 | B61: 2008-04-30 | C61: 2004-12-23 | D61: 2008-04-30 | E61: TRUE | F61: 1385.589966 | G61: 28.26 | H61: 1 | I61: 1385.589966 | J61: 0.04645095217 | K61: 1.224960844 | L61: 2008-04-30 | M61: 1.224960844 | N61: 2008-04-30 | O61: 1.224960844 | P61: 3.211597235 | Q61: 1 | R61: 1 | S61: 1 | T61: 1 | U61: 1 | AB61: 30281.41016 | AC61: 0 | AD61: 0 | AE61: 0 | AF61: 0 | AG61: 0 | AH61: 1 | AI61: 1 | AJ61: 1 | AK61: 1 | AL61: 1 | AM61: 1 | AN61: 30281.41016 | AO61: 0 | AP61: 0 | AQ61: 0 | AR61: 0 | AS61: 0 | AT61: 0.04645095217 | AU61: -0.02064249346 | AV61: FALSE | AW61: FALSE | AX61: FALSE | AY61: FALSE | AZ61: FALSE | BA61: 3.211597235 | BB61: 1 | BC61: 1 | BD61: 1 | BE61: 1 | BF61: 1 | BG61: 14.556 | BH61: 26.86 | BI61: 0 | BJ61: 0 | BK61: 0 | BL61: 0 | BM61: 388.119 | BN61: 0.01063942973 | BO61: 0.004674164026 | BP61: 10.5146 | BQ61: 39.88 | BR61: 1.9816 | BS61: 1.0108 | BT61: 14971.515
A62: 1954-05-01 | B62: 2008-05-31 | C62: 2004-12-30 | D62: 2008-05-31 | E62: TRUE | F62: 1400.380005 | G62: 29.190001 | H62: 1 | I62: 1400.380005 | J62: 0.01061761476 | K62: 1.238036299 | L62: 2008-05-31 | M62: 1.238036299 | N62: 2008-05-31 | O62: 1.238036299 | P62: 3.391266548 | Q62: 1 | R62: 1 | S62: 1 | T62: 1 | U62: 1 | AB62: 31975.4707 | AC62: 0 | AD62: 0 | AE62: 0 | AF62: 0 | AG62: 0 | AH62: 1 | AI62: 1 | AJ62: 1 | AK62: 1 | AL62: 1 | AM62: 1 | AN62: 31975.4707 | AO62: 0 | AP62: 0 | AQ62: 0 | AR62: 0 | AS62: 0 | AT62: 0.01061761476 | AU62: 0.0544350703 | AV62: FALSE | AW62: FALSE | AX62: FALSE | AY62: FALSE | AZ62: FALSE | BA62: 3.391266548 | BB62: 1 | BC62: 1 | BD62: 1 | BE62: 1 | BF62: 1 | BG62: 14.556 | BH62: 26.93 | BI62: 0 | BJ62: 0 | BK62: 0 | BL62: 0 | BM62: 388.119 | BN62: 0.01063942973 | BO62: 0.00464666741 | BP62: 10.4381 | BQ62: 40.58 | BR62: 1.965 | BS62: 1.0478 | BT62: 14971.515
A63: 1954-06-01 | B63: 2008-06-30 | C63: 2005-01-06 | D63: 2008-06-30 | E63: TRUE | F63: 1280 | G63: 29.209999 | H63: 1 | I63: 1280 | J63: -0.089883554 | K63: 1.131611746 | L63: 2008-06-30 | M63: 1.131611746 | N63: 2008-06-30 | O63: 1.131611746 | P63: 3.117638005 | Q63: 1 | R63: 1 | S63: 1 | T63: 1 | U63: 1 | AB63: 29395.49023 | AC63: 0 | AD63: 0 | AE63: 0 | AF63: 0 | AG63: 0 | AH63: 1 | AI63: 1 | AJ63: 1 | AK63: 1 | AL63: 1 | AM63: 1 | AN63: 29395.49023 | AO63: 0 | AP63: 0 | AQ63: 0 | AR63: 0 | AS63: 0 | AT63: -0.089883554 | AU63: -0.08412779915 | AV63: FALSE | AW63: FALSE | AX63: FALSE | AY63: FALSE | AZ63: FALSE | BA63: 3.117638005 | BB63: 1 | BC63: 1 | BD63: 1 | BE63: 1 | BF63: 1 | BG63: 14.556 | BH63: 26.94 | BI63: 0 | BJ63: 0 | BK63: 0 | BL63: 0 | BM63: 388.119 | BN63: 0.01063942973 | BO63: 0.00459848342 | BP63: 10.3269 | BQ63: 42.15 | BR63: 1.9664 | BS63: 1.0426 | BT63: 14971.515
A64: 1954-07-01 | B64: 2008-07-31 | C64: 2005-01-13 | D64: 2008-07-31 | E64: TRUE | F64: 1267.380005 | G64: 30.879999 | H64: 1 | I64: 1267.380005 | J64: -0.009908296541 | K64: 1.120454766 | L64: 2008-07-31 | M64: 1.120454766 | N64: 2008-07-31 | O64: 1.120454766 | P64: 2.916713516 | Q64: 1 | R64: 1 | S64: 1 | T64: 1 | U64: 1 | AB64: 27501.01953 | AC64: 0 | AD64: 0 | AE64: 0 | AF64: 0 | AG64: 0 | AH64: 1 | AI64: 1 | AJ64: 1 | AK64: 1 | AL64: 1 | AM64: 1 | AN64: 27501.01953 | AO64: 0 | AP64: 0 | AQ64: 0 | AR64: 0 | AS64: 0 | AT64: -0.009908296541 | AU64: -0.06661819134 | AV64: FALSE | AW64: FALSE | AX64: FALSE | AY64: FALSE | AZ64: FALSE | BA64: 2.916713516 | BB64: 1 | BC64: 1 | BD64: 1 | BE64: 1 | BF64: 1 | BG64: 14.575 | BH64: 26.86 | BI64: 0 | BJ64: 0 | BK64: 0 | BL64: 0 | BM64: 393.034 | BN64: 0.01056077727 | BO64: 0.004565876466 | BP64: 10.2094 | BQ64: 43.23 | BR64: 1.9888 | BS64: 1.0183 | BT64: 15020.055
A65: 1954-08-01 | B65: 2008-08-31 | C65: 2005-01-20 | D65: 2008-08-31 | E65: TRUE | F65: 1282.829956 | G65: 29.83 | H65: 1 | I65: 1282.829956 | J65: 0.01211675922 | K65: 1.13411363 | L65: 2008-08-31 | M65: 1.13411363 | N65: 2008-08-31 | O65: 1.13411363 | P65: 2.788379772 | Q65: 1 | R65: 1 | S65: 1 | T65: 1 | U65: 1 | AB65: 26290.99023 | AC65: 0 | AD65: 0 | AE65: 0 | AF65: 0 | AG65: 0 | AH65: 1 | AI65: 1 | AJ65: 1 | AK65: 1 | AL65: 1 | AM65: 1 | AN65: 26290.99023 | AO65: 0 | AP65: 0 | AQ65: 0 | AR65: 0 | AS65: 0 | AT65: 0.01211675922 | AU65: -0.044996774 | AV65: FALSE | AW65: FALSE | AX65: FALSE | AY65: FALSE | AZ65: FALSE | BA65: 2.788379772 | BB65: 1 | BC65: 1 | BD65: 1 | BE65: 1 | BF65: 1 | BG65: 14.575 | BH65: 26.85 | BI65: 0 | BJ65: 0 | BK65: 0 | BL65: 0 | BM65: 393.034 | BN65: 0.01056077727 | BO65: 0.004572682793 | BP65: 10.1154 | BQ65: 42.26 | BR65: 1.8865 | BS65: 1.048 | BT65: 15020.055
A66: 1954-09-01 | B66: 2008-09-30 | C66: 2005-01-27 | D66: 2008-09-30 | E66: TRUE | F66: 1166.359985 | G66: 32.310001 | H66: 1 | I66: 1166.359985 | J66: -0.09518076534 | K66: 1.031145827 | L66: 2008-09-30 | M66: 1.031145827 | N66: 2008-09-30 | O66: 1.031145827 | P66: 2.639676398 | Q66: 1 | R66: 1 | S66: 1 | T66: 1 | U66: 1 | Y66: =LOOKUP($A66,INDIRECT("'"&Y$5&"'!A:A"),INDIRECT("'"&Y$5&"'!"&Y$7&":"&Y$7)) ->  | AB66: 24888.90039 | AC66: 0 | AD66: 0 | AE66: 0 | AF66: 0 | AG66: 0 | AH66: =IF(AH$7,INDEX($BN66:$BT66,AH$7),1) -> 1 | AI66: 1 | AJ66: 1 | AK66: 1 | AL66: 1 | AM66: 1 | AN66: 24888.90039 | AO66: 0 | AP66: 0 | AQ66: 0 | AR66: 0 | AS66: 0 | AT66: -0.09518076534 | AU66: -0.05480436718 | AV66: FALSE | AW66: FALSE | AX66: FALSE | AY66: FALSE | AZ66: FALSE | BA66: 2.639676398 | BB66: 1 | BC66: 1 | BD66: 1 | BE66: 1 | BF66: 1 | BG66: 14.575 | BH66: 26.81 | BI66: 0 | BJ66: 0 | BK66: 0 | BL66: 0 | BM66: 393.034 | BN66: 0.01056077727 | BO66: 0.004568776071 | BP66: 10.6633 | BQ66: 42.26 | BR66: 1.7973 | BS66: 1.048 | BT66: 15020.055
A67: 1954-10-01 | B67: 2008-10-31 | C67: 2005-02-03 | D67: 2008-10-31 | E67: TRUE | F67: 968.75 | G67: 31.68 | H67: 1 | I67: 968.75 | J67: -0.1856364736 | K67: 0.8564444367 | L67: 2008-10-31 | M67: 0.8564444367 | N67: 2008-10-31 | O67: 0.8564444367 | P67: 2.168397504 | Q67: 1 | R67: 1 | S67: 1 | T67: 1 | U67: 1 | AB67: 20445.32031 | AC67: 0 | AD67: 0 | AE67: 0 | AF67: 0 | AG67: 0 | AH67: 1 | AI67: 1 | AJ67: 1 | AK67: 1 | AL67: 1 | AM67: 1 | AN67: 20445.32031 | AO67: 0 | AP67: 0 | AQ67: 0 | AR67: 0 | AS67: 0 | AT67: -0.1856364736 | AU67: -0.1966679159 | AV67: FALSE | AW67: FALSE | AX67: FALSE | AY67: FALSE | AZ67: FALSE | BA67: 2.168397504 | BB67: 1 | BC67: 1 | BD67: 1 | BE67: 1 | BF67: 1 | BG67: 14.615 | BH67: 26.72 | BI67: 0 | BJ67: 0 | BK67: 0 | BL67: 0 | BM67: 402.077 | BN67: 0.01052786726 | BO67: 0.004608401115 | BP67: 12.6593 | BQ67: 46.47 | BR67: 1.6862 | BS67: 1.1209 | BT67: 14665.524
A68: 1954-11-01 | B68: 2008-11-30 | C68: 2005-02-10 | D68: 2008-11-30 | E68: TRUE | F68: 896.23999 | G68: 34.240002 | H68: 1 | I68: 896.23999 | J68: -0.07779835757 | K68: 0.7923403906 | L68: 2008-11-30 | M68: 0.7923403906 | N68: 2008-11-30 | O68: 0.7923403906 | P68: 2.177879164 | Q68: 1 | R68: 1 | S68: 1 | T68: 1 | U68: 1 | AB68: 20534.7207 | AC68: 0 | AD68: 0 | AE68: 0 | AF68: 0 | AG68: 0 | AH68: 1 | AI68: 1 | AJ68: 1 | AK68: 1 | AL68: 1 | AM68: 1 | AN68: 20534.7207 | AO68: 0 | AP68: 0 | AQ68: 0 | AR68: 0 | AS68: 0 | AT68: -0.07779835757 | AU68: 0.004363125542 | AV68: FALSE | AW68: FALSE | AX68: FALSE | AY68: FALSE | AZ68: FALSE | BA68: 2.177879164 | BB68: 1 | BC68: 1 | BD68: 1 | BE68: 1 | BF68: 1 | BG68: 14.615 | BH68: 26.78 | BI68: 0 | BJ68: 0 | BK68: 0 | BL68: 0 | BM68: 402.077 | BN68: 0.01052786726 | BO68: 0.004691465755 | BP68: 13.1186 | BQ68: 49.4 | BR68: 1.5327 | BS68: 1.1669 | BT68: 14665.524
A69: 1954-12-01 | B69: 2008-12-31 | C69: 2005-02-17 | D69: 2008-12-31 | E69: TRUE | F69: 903.25 | G69: 35.98 | H69: 1 | I69: 903.25 | J69: 0.007791146935 | K69: 0.7985377419 | L69: 2008-12-31 | M69: 0.7985377419 | N69: 2008-12-31 | O69: 0.7985377419 | P69: 2.373620464 | Q69: 1 | R69: 1 | S69: 1 | T69: 1 | U69: 1 | AB69: 22380.32031 | AC69: 0 | AD69: 0 | AE69: 0 | AF69: 0 | AG69: 0 | AH69: 1 | AI69: 1 | AJ69: 1 | AK69: 1 | AL69: 1 | AM69: 1 | AN69: 22380.32031 | AO69: 0 | AP69: 0 | AQ69: 0 | AR69: 0 | AS69: 0 | AT69: 0.007791146935 | AU69: 0.08606486895 | AV69: FALSE | AW69: FALSE | AX69: FALSE | AY69: FALSE | AZ69: FALSE | BA69: 2.373620464 | BB69: 1 | BC69: 1 | BD69: 1 | BE69: 1 | BF69: 1 | BG69: 14.615 | BH69: 26.77 | BI69: 0 | BJ69: 0 | BK69: 0 | BL69: 0 | BM69: 402.077 | BN69: 0.01052786726 | BO69: 0.004730413722 | BP69: 13.4167 | BQ69: 49.94 | BR69: 1.4854 | BS69: 1.2076 | BT69: 14665.524
A70: 1955-01-01 | B70: 2009-01-31 | C70: 2005-02-24 | D70: 2009-01-31 | E70: TRUE | F70: 825.880005 | G70: 36.630001 | H70: 1 | I70: 825.880005 | J70: -0.08954987946 | K70: 0.7301371207 | L70: 2009-01-31 | M70: 0.7301371207 | N70: 2009-01-31 | O70: 0.7301371207 | P70: 2.075047074 | Q70: 1 | R70: 1 | S70: 1 | T70: 1 | U70: 1 | AB70: 19565.14062 | AC70: 0 | AD70: 0 | AE70: 0 | AF70: 0 | AG70: 0 | AH70: 1 | AI70: 1 | AJ70: 1 | AK70: 1 | AL70: 1 | AM70: 1 | AN70: 19565.14062 | AO70: 0 | AP70: 0 | AQ70: 0 | AR70: 0 | AS70: 0 | AT70: -0.08954987946 | AU70: -0.134432572 | AV70: FALSE | AW70: FALSE | AX70: FALSE | AY70: FALSE | AZ70: FALSE | BA70: 2.075047074 | BB70: 1 | BC70: 1 | BD70: 1 | BE70: 1 | BF70: 1 | BG70: 14.683 | BH70: 26.77 | BI70: 0 | BJ70: 0 | BK70: 0 | BL70: 0 | BM70: 415.496 | BN70: 0.01052897574 | BO70: 0.004718472347 | BP70: 13.8839 | BQ70: 49.94 | BR70: 1.4462 | BS70: 1.2076 | BT70: 14511.592
A71: 1955-02-01 | B71: 2009-02-28 | C71: 2005-03-03 | D71: 2009-02-28 | E71: TRUE | F71: 735.090027 | G71: 36.759998 | H71: 1 | I71: 735.090027 | J71: -0.1164565131 | K71: 0.6498722726 | L71: 2009-02-28 | M71: 0.6498722726 | N71: 2009-02-28 | O71: 0.6498722726 | P71: 1.882767378 | Q71: 1 | R71: 1 | S71: 1 | T71: 1 | U71: 1 | AB71: 17752.17969 | AC71: 0 | AD71: 0 | AE71: 0 | AF71: 0 | AG71: 0 | AH71: 1 | AI71: 1 | AJ71: 1 | AK71: 1 | AL71: 1 | AM71: 1 | AN71: 17752.17969 | AO71: 0 | AP71: 0 | AQ71: 0 | AR71: 0 | AS71: 0 | AT71: -0.1164565131 | AU71: -0.09724113551 | AV71: FALSE | AW71: FALSE | AX71: FALSE | AY71: FALSE | AZ71: FALSE | BA71: 1.882767378 | BB71: 1 | BC71: 1 | BD71: 1 | BE71: 1 | BF71: 1 | BG71: 14.683 | BH71: 26.82 | BI71: 0 | BJ71: 0 | BK71: 0 | BL71: 0 | BM71: 415.496 | BN71: 0.01052897574 | BO71: 0.004701346936 | BP71: 14.6066 | BQ71: 48.83 | BR71: 1.4422 | BS71: 1.1612 | BT71: 14511.592
A72: 1955-03-01 | B72: 2009-03-31 | C72: 2005-03-10 | D72: 2009-03-31 | E72: TRUE | F72: 797.869995 | G72: 36.580002 | H72: 1 | I72: 797.869995 | J72: 0.08195269322 | K72: 0.7053742642 | L72: 2009-03-31 | M72: 0.7053742642 | N72: 2009-03-31 | O72: 0.7053742642 | P72: 2.081581264 | Q72: 1 | R72: 1 | S72: 1 | T72: 1 | U72: 1 | AB72: 19626.75 | AC72: 0 | AD72: 0 | AE72: 0 | AF72: 0 | AG72: 0 | AH72: 1 | AI72: 1 | AJ72: 1 | AK72: 1 | AL72: 1 | AM72: 1 | AN72: 19626.75 | AO72: 0 | AP72: 0 | AQ72: 0 | AR72: 0 | AS72: 0 | AT72: 0.08195269322 | AU72: 0.100385124 | AV72: FALSE | AW72: FALSE | AX72: FALSE | AY72: FALSE | AZ72: FALSE | BA72: 2.081581264 | BB72: 1 | BC72: 1 | BD72: 1 | BE72: 1 | BF72: 1 | BG72: 14.683 | BH72: 26.79 | BI72: 0 | BJ72: 0 | BK72: 0 | BL72: 0 | BM72: 415.496 | BN72: 0.01052897574 | BO72: 0.004705993082 | BP72: 14.6466 | BQ72: 50.88 | BR72: 1.417 | BS72: 1.1672 | BT72: 14511.592
A73: 1955-04-01 | B73: 2009-04-30 | C73: 2005-03-17 | D73: 2009-04-30 | E73: TRUE | F73: 872.809998 | G73: 37.959999 | H73: 1 | I73: 872.809998 | J73: 0.0897722189 | K73: 0.7716265983 | L73: 2009-04-30 | M73: 0.7716265983 | N73: 2009-04-30 | O73: 0.7716265983 | P73: 2.322556463 | Q73: 1 | R73: 1 | S73: 1 | T73: 1 | U73: 1 | AB73: 21898.84961 | AC73: 0 | AD73: 0 | AE73: 0 | AF73: 0 | AG73: 0 | AH73: 1 | AI73: 1 | AJ73: 1 | AK73: 1 | AL73: 1 | AM73: 1 | AN73: 21898.84961 | AO73: 0 | AP73: 0 | AQ73: 0 | AR73: 0 | AS73: 0 | AT73: 0.0897722189 | AU73: 0.1095406745 | AV73: FALSE | AW73: FALSE | AX73: FALSE | AY73: FALSE | AZ73: FALSE | BA73: 2.322556463 | BB73: 1 | BC73: 1 | BD73: 1 | BE73: 1 | BF73: 1 | BG73: 14.744 | BH73: 26.79 | BI73: 0 | BJ73: 0 | BK73: 0 | BL73: 0 | BM73: 423.93 | BN73: 0.01054429659 | BO73: 0.004701258527 | BP73: 13.4035 | BQ73: 50.48 | BR73: 1.4712 | BS73: 1.1465 | BT73: 14468.341
A74: 1955-05-01 | B74: 2009-05-31 | C74: 2005-03-24 | D74: 2009-05-31 | E74: TRUE | F74: 919.140015 | G74: 37.91 | H74: 1 | I74: 919.140015 | J74: 0.05172057703 | K74: 0.8125856541 | L74: 2009-05-31 | M74: 0.8125856541 | N74: 2009-05-31 | O74: 0.8125856541 | P74: 2.580581788 | Q74: 1 | R74: 1 | S74: 1 | T74: 1 | U74: 1 | AB74: 24331.71094 | AC74: 0 | AD74: 0 | AE74: 0 | AF74: 0 | AG74: 0 | AH74: 1 | AI74: 1 | AJ74: 1 | AK74: 1 | AL74: 1 | AM74: 1 | AN74: 24331.71094 | AO74: 0 | AP74: 0 | AQ74: 0 | AR74: 0 | AS74: 0 | AT74: 0.05172057703 | AU74: 0.1053463703 | AV74: FALSE | AW74: FALSE | AX74: FALSE | AY74: FALSE | AZ74: FALSE | BA74: 2.580581788 | BB74: 1 | BC74: 1 | BD74: 1 | BE74: 1 | BF74: 1 | BG74: 14.744 | BH74: 26.77 | BI74: 0 | BJ74: 0 | BK74: 0 | BL74: 0 | BM74: 423.93 | BN74: 0.01054429659 | BO74: 0.004694350818 | BP74: 13.1895 | BQ74: 49.65 | BR74: 1.5418 | BS74: 1.1364 | BT74: 14468.341
A75: 1955-06-01 | B75: =IF(B74<=$D$2,EOMONTH(B74,1)) -> 2009-06-30 | C75: 2005-03-31 | D75: 2009-06-30 | E75: TRUE | F75: =LOOKUP(D75,A:A,G:G) -> 919.320007 | G75: =IFERROR(LOOKUP($A75,INDIRECT("'"&G$7&"'!A:A"),INDIRECT("'"&G$7&"'!"&$G$9&":"&$G$9)),0) -> 41.029999 | H75: =IF(H$8,INDEX($BN75:$BT75,H$8),1) -> 1 | I75: =IF(ISNUMBER(F75),F75,I76)*H75 -> 919.320007 | J75: 0.0001958073588 | K75: 0.8127447799 | L75: 2009-06-30 | M75: 0.8127447799 | N75: 2009-06-30 | O75: 0.8127447799 | P75: 2.584470941 | Q75: 1 | R75: 1 | S75: 1 | T75: 1 | U75: 1 | V75: =LOOKUP($A75,INDIRECT("'"&V$5&"'!A:A"),INDIRECT("'"&V$5&"'!"&V$7&":"&V$7)) ->  | AB75: =IF(ISNUMBER(LOOKUP($D75,$A:$A,V:V)),LOOKUP($D75,$A:$A,V:V),AB74) -> 24368.38086 | AC75: =IF(ISNUMBER(LOOKUP($D75,$A:$A,W:W)),LOOKUP($D75,$A:$A,W:W),AC74) -> 0 | AD75: =IF(ISNUMBER(LOOKUP($D75,$A:$A,X:X)),LOOKUP($D75,$A:$A,X:X),AD74) -> 0 | AE75: =IF(ISNUMBER(LOOKUP($D75,$A:$A,Y:Y)),LOOKUP($D75,$A:$A,Y:Y),AE74) -> 0 | AF75: =IF(ISNUMBER(LOOKUP($D75,$A:$A,Z:Z)),LOOKUP($D75,$A:$A,Z:Z),AF74) -> 0 | AG75: =IF(ISNUMBER(LOOKUP($D75,$A:$A,AA:AA)),LOOKUP($D75,$A:$A,AA:AA),AG74) -> 0 | AH75: 1 | AI75: 1 | AJ75: 1 | AK75: 1 | AL75: 1 | AM75: 1 | AN75: =IFERROR(IF(ISNUMBER(AB75)>0.1,AB75,AN76)*AH75,AN76) -> 24368.38086 | AO75: =IFERROR(IF(ISNUMBER(AC75)>0.1,AC75,AO76)*AI75,AO76) -> 0 | AP75: =IFERROR(IF(ISNUMBER(AD75)>0.1,AD75,AP76)*AJ75,AP76) -> 0 | AQ75: =IFERROR(IF(ISNUMBER(AE75)>0.1,AE75,AQ76)*AK75,AQ76) -> 0 | AR75: =IFERROR(IF(ISNUMBER(AF75)>0.1,AF75,AR76)*AL75,AR76) -> 0 | AS75: =IF(ISNUMBER(AG75)>0.1,AG75,AS76) -> 0 | AT75: 0.0001958073588 | AU75: =IF(E75,IFERROR(LN(AN75/AN74),FALSE)) -> 0.001505949027 | AV75: =IF(E75,IFERROR(LN(AO75/AO74),FALSE)) -> FALSE | AW75: =IF(E75,IFERROR(LN(AP75/AP74),FALSE)) -> FALSE | AX75: =IF(E75,IFERROR(LN(AQ75/AQ74),FALSE)) -> FALSE | AY75: =IF(E75,IFERROR(LN(AR75/AR74),FALSE)) -> FALSE | AZ75: =IF(E75,IFERROR(LN(AS75/AS74),FALSE)) -> FALSE | BA75: 2.584470941 | BB75: 1 | BC75: 1 | BD75: 1 | BE75: 1 | BF75: 1 | BG75: =IFERROR(LOOKUP($A75,INDIRECT("'"&BN$6&"'!A:A"),INDIRECT("'"&BN$6&"'!"&BN$7&":"&BN$7)),0) -> 14.744 | BH75: =IFERROR(LOOKUP($A75,INDIRECT("'"&BO$6&"'!A:A"),INDIRECT("'"&BO$6&"'!"&BO$7&":"&BO$7)),0) -> 26.71 | BI75: =IFERROR(LOOKUP($A75,INDIRECT("'"&BP$6&"'!A:A"),INDIRECT("'"&BP$6&"'!"&BP$7&":"&BP$7)),0) -> 0 | BJ75: =IFERROR(LOOKUP($A75,INDIRECT("'"&BQ$6&"'!A:A"),INDIRECT("'"&BQ$6&"'!"&BQ$7&":"&BQ$7)),0) -> 0 | BK75: =IFERROR(LOOKUP($A75,INDIRECT("'"&BR$6&"'!A:A"),INDIRECT("'"&BR$6&"'!"&BR$7&":"&BR$7)),0) -> 0 | BL75: =IFERROR(LOOKUP($A75,INDIRECT("'"&BS$6&"'!A:A"),INDIRECT("'"&BS$6&"'!"&BS$7&":"&BS$7)),0) -> 0 | BM75: =IFERROR(LOOKUP($A75,INDIRECT("'"&BT$6&"'!A:A"),INDIRECT("'"&BT$6&"'!"&BT$7&":"&BT$7)),0) -> 423.93 | BN75: =IFERROR(1/IFERROR(LOOKUP($D75,$A:$A,BG:BG)*1,0),1) -> 0.01054429659 | BO75: =IFERROR(1/IFERROR(LOOKUP($D75,$A:$A,BH:BH)*1,0),1) -> 0.004655710229 | BP75: 13.3414 | BQ75: 46.78 | BR75: 1.6369 | BS75: 1.0688 | BT75: 14468.341
A76: 1955-07-01 | B76: 2009-07-31 | C76: =IF(C75<=$D$2,C75+7) -> 2005-04-07 | D76: 2009-07-31 | E76: =AND(D76>=$D$4,D75<=$D$2) -> TRUE | F76: 987.47998 | G76: 43.52 | H76: 1 | I76: 987.47998 | J76: =IFERROR(LN(I76/I75),FALSE) -> 0.07152194922 | K76: 0.8730030816 | L76: 2009-07-31 | M76: 0.8730030816 | N76: 2009-07-31 | O76: 0.8730030816 | P76: 2.868189737 | Q76: 1 | R76: 1 | S76: 1 | T76: 1 | U76: 1 | AB76: 27043.5 | AC76: 0 | AD76: 0 | AE76: 0 | AF76: 0 | AG76: 0 | AH76: 1 | AI76: 1 | AJ76: 1 | AK76: 1 | AL76: 1 | AM76: 1 | AN76: 27043.5 | AO76: 0 | AP76: 0 | AQ76: 0 | AR76: 0 | AS76: 0 | AT76: 0.07152194922 | AU76: 0.1041602552 | AV76: FALSE | AW76: FALSE | AX76: FALSE | AY76: FALSE | AZ76: FALSE | BA76: =IFERROR(IF($E76,BA75*AN76/AN75,1),1) -> 2.868189737 | BB76: =IFERROR(IF($E76,BB75*AO76/AO75,1),1) -> 1 | BC76: =IFERROR(IF($E76,BC75*AP76/AP75,1),1) -> 1 | BD76: =IFERROR(IF($E76,BD75*AQ76/AQ75,1),1) -> 1 | BE76: =IFERROR(IF($E76,BE75*AR76/AR75,1),1) -> 1 | BF76: =IFERROR(IF($E76,BF75*AS76/AS75,1),1) -> 1 | BG76: 14.847 | BH76: 26.76 | BI76: 0 | BJ76: 0 | BK76: 0 | BL76: 0 | BM76: 432.668 | BN76: 0.01053319008 | BO76: 0.004657097883 | BP76: =IFERROR(LOOKUP($D76,$A:$A,BI:BI)*1,BP75) -> 13.3623 | BQ76: =IFERROR(LOOKUP($D76,$A:$A,BJ:BJ)*1,BQ75) -> 47.75 | BR76: =IFERROR(LOOKUP($D76,$A:$A,BK:BK)*1,BR75) -> 1.6378 | BS76: =IFERROR(LOOKUP($D76,$A:$A,BL:BL)*1,BS75) -> 1.072 | BT76: =IFERROR(LOOKUP($D76,$A:$A,BM:BM)*1,BT75) -> 14591.831
A77: 1955-08-01 | B77: 2009-08-31 | C77: 2005-04-14 | D77: =IF($D$6,C77,B77) -> 2009-08-31 | E77: TRUE | F77: 1020.619995 | G77: 43.18 | H77: 1 | I77: 1020.619995 | J77: 0.0330093367 | K77: =IF($E77,(K76*I77/I76),1) -> 0.9023012302 | L77: =IF(E77,D77,NA()) -> 2009-08-31 | M77: =CHOOSE($M$1,I77,J77,K77) -> 0.9023012302 | N77: =L77 -> 2009-08-31 | O77: =M77 -> 0.9023012302 | P77: =IFERROR(CHOOSE($M$1,AN77,AU77,BA77),1) -> 2.983416778 | Q77: =IFERROR(CHOOSE($M$1,AO77,AV77,BB77),1) -> 1 | R77: =IFERROR(CHOOSE($M$1,AP77,AW77,BC77),1) -> 1 | S77: =IFERROR(CHOOSE($M$1,AQ77,AX77,BD77),1) -> 1 | T77: =IFERROR(CHOOSE($M$1,AR77,AY77,BE77),1) -> 1 | U77: =IFERROR(CHOOSE($M$1,AS77,AZ77,BF77),1) -> 1 | AB77: 28129.94922 | AC77: 0 | AD77: 0 | AE77: 0 | AF77: 0 | AG77: 0 | AH77: 1 | AI77: 1 | AJ77: 1 | AK77: 1 | AL77: 1 | AM77: 1 | AN77: 28129.94922 | AO77: 0 | AP77: 0 | AQ77: 0 | AR77: 0 | AS77: 0 | AT77: =J77 -> 0.0330093367 | AU77: 0.03938813661 | AV77: FALSE | AW77: FALSE | AX77: FALSE | AY77: FALSE | AZ77: FALSE | BA77: 2.983416778 | BB77: 1 | BC77: 1 | BD77: 1 | BE77: 1 | BF77: 1 | BG77: 14.847 | BH77: 26.72 | BI77: 0 | BJ77: 0 | BK77: 0 | BL77: 0 | BM77: 432.668 | BN77: 0.01053319008 | BO77: 0.00464155585 | BP77: 13.0063 | BQ77: 47.91 | BR77: 1.6532 | BS77: 1.0668 | BT77: 14591.831
A78: 1955-09-01 | B78: 2009-09-30 | C78: 2005-04-21 | D78: 2009-09-30 | E78: TRUE | F78: 1057.079956 | G78: 43.669998 | H78: 1 | I78: 1057.079956 | J78: 0.03510006743 | K78: 0.934534449 | L78: 2009-09-30 | M78: 0.934534449 | N78: 2009-09-30 | O78: 0.934534449 | P78: 3.100323975 | Q78: 1 | R78: 1 | S78: 1 | T78: 1 | U78: 1 | AB78: 29232.24023 | AC78: 0 | AD78: 0 | AE78: 0 | AF78: 0 | AG78: 0 | AH78: 1 | AI78: 1 | AJ78: 1 | AK78: 1 | AL78: 1 | AM78: 1 | AN78: 29232.24023 | AO78: 0 | AP78: 0 | AQ78: 0 | AR78: 0 | AS78: 0 | AT78: 0.03510006743 | AU78: 0.03843740051 | AV78: FALSE | AW78: FALSE | AX78: FALSE | AY78: FALSE | AZ78: FALSE | BA78: 3.100323975 | BB78: 1 | BC78: 1 | BD78: 1 | BE78: 1 | BF78: 1 | BG78: 14.847 | BH78: 26.85 | BI78: 0 | BJ78: 0 | BK78: 0 | BL78: 0 | BM78: 432.668 | BN78: 0.01053319008 | BO78: 0.0046326108 | BP78: 13.406 | BQ78: 49.05 | BR78: 1.6323 | BS78: 1.0653 | BT78: 14591.831
A79: 1955-10-01 | B79: 2009-10-31 | C79: 2005-04-28 | D79: 2009-10-31 | E79: TRUE | F79: 1036.189941 | G79: 42.34 | H79: 1 | I79: 1036.189941 | J79: -0.01995988054 | K79: 0.9160661784 | L79: 2009-10-31 | M79: 0.9160661784 | N79: 2009-10-31 | O79: 0.9160661784 | P79: 3.038151394 | Q79: 1 | R79: 1 | S79: 1 | T79: 1 | U79: 1 | AB79: 28646.0293 | AC79: 0 | AD79: 0 | AE79: 0 | AF79: 0 | AG79: 0 | AH79: 1 | AI79: 1 | AJ79: 1 | AK79: 1 | AL79: 1 | AM79: 1 | AN79: 28646.0293 | AO79: 0 | AP79: 0 | AQ79: 0 | AR79: 0 | AS79: 0 | AT79: -0.01995988054 | AU79: -0.0202573777 | AV79: FALSE | AW79: FALSE | AX79: FALSE | AY79: FALSE | AZ79: FALSE | BA79: 3.038151394 | BB79: 1 | BC79: 1 | BD79: 1 | BE79: 1 | BF79: 1 | BG79: 14.995 | BH79: 26.82 | BI79: 0 | BJ79: 0 | BK79: 0 | BL79: 0 | BM79: 439.619 | BN79: 0.01049769576 | BO79: 0.004618745641 | BP79: 13.2275 | BQ79: 47.72 | BR79: 1.6212 | BS79: 1.0424 | BT79: 14791.715
A80: 1955-11-01 | B80: 2009-11-30 | C80: 2005-05-05 | D80: 2009-11-30 | E80: TRUE | F80: 1095.630005 | G80: 45.509998 | H80: 1 | I80: 1095.630005 | J80: 0.05577907709 | K80: 0.9686154555 | L80: 2009-11-30 | M80: 0.9686154555 | N80: 2009-11-30 | O80: 0.9686154555 | P80: 3.283260798 | Q80: 1 | R80: 1 | S80: 1 | T80: 1 | U80: 1 | AB80: 30957.10938 | AC80: 0 | AD80: 0 | AE80: 0 | AF80: 0 | AG80: 0 | AH80: 1 | AI80: 1 | AJ80: 1 | AK80: 1 | AL80: 1 | AM80: 1 | AN80: 30957.10938 | AO80: 0 | AP80: 0 | AQ80: 0 | AR80: 0 | AS80: 0 | AT80: 0.05577907709 | AU80: 0.07758783784 | AV80: FALSE | AW80: FALSE | AX80: FALSE | AY80: FALSE | AZ80: FALSE | BA80: 3.283260798 | BB80: 1 | BC80: 1 | BD80: 1 | BE80: 1 | BF80: 1 | BG80: 14.995 | BH80: 26.88 | BI80: 0 | BJ80: 0 | BK80: 0 | BL80: 0 | BM80: 439.619 | BN80: 0.01049769576 | BO80: 0.00460333097 | BP80: 13.1115 | BQ80: 46.9 | BR80: 1.6599 | BS80: 1.0238 | BT80: 14791.715
A81: 1955-12-01 | B81: 2009-12-31 | C81: 2005-05-12 | D81: 2009-12-31 | E81: TRUE | F81: 1115.099976 | G81: 45.48 | H81: 1 | I81: 1115.099976 | J81: 0.01761452061 | K81: 0.9858283054 | L81: 2009-12-31 | M81: 0.9858283054 | N81: 2009-12-31 | O81: 0.9858283054 | P81: 3.406645013 | Q81: 1 | R81: 1 | S81: 1 | T81: 1 | U81: 1 | AB81: 32120.4707 | AC81: 0 | AD81: 0 | AE81: 0 | AF81: 0 | AG81: 0 | AH81: 1 | AI81: 1 | AJ81: 1 | AK81: 1 | AL81: 1 | AM81: 1 | AN81: 32120.4707 | AO81: 0 | AP81: 0 | AQ81: 0 | AR81: 0 | AS81: 0 | AT81: 0.01761452061 | AU81: 0.03689086556 | AV81: FALSE | AW81: FALSE | AX81: FALSE | AY81: FALSE | AZ81: FALSE | BA81: 3.406645013 | BB81: 1 | BC81: 1 | BD81: 1 | BE81: 1 | BF81: 1 | BG81: 14.995 | BH81: 26.87 | BI81: 0 | BJ81: 0 | BK81: 0 | BL81: 0 | BM81: 439.619 | BN81: 0.01049769576 | BO81: 0.004600937671 | BP81: 12.8622 | BQ81: 46.21 | BR81: 1.6226 | BS81: 0.9984 | BT81: 14791.715
A82: 1956-01-01 | B82: 2010-01-31 | C82: 2005-05-19 | D82: 2010-01-31 | E82: TRUE | F82: 1073.869995 | G82: 43.82 | H82: 1 | I82: 1073.869995 | J82: -0.03767512419 | K82: 0.949378047 | L82: 2010-01-31 | M82: 0.949378047 | N82: 2010-01-31 | O82: 0.949378047 | P82: 3.223284785 | Q82: 1 | R82: 1 | S82: 1 | T82: 1 | U82: 1 | AB82: 30391.60938 | AC82: 0 | AD82: 0 | AE82: 0 | AF82: 0 | AG82: 0 | AH82: 1 | AI82: 1 | AJ82: 1 | AK82: 1 | AL82: 1 | AM82: 1 | AN82: 30391.60938 | AO82: 0 | AP82: 0 | AQ82: 0 | AR82: 0 | AS82: 0 | AT82: -0.03767512419 | AU82: -0.05532698057 | AV82: FALSE | AW82: FALSE | AX82: FALSE | AY82: FALSE | AZ82: FALSE | BA82: 3.223284785 | BB82: 1 | BC82: 1 | BD82: 1 | BE82: 1 | BF82: 1 | BG82: 15.144 | BH82: 26.83 | BI82: 0 | BJ82: 0 | BK82: 0 | BL82: 0 | BM82: 442.597 | BN82: 0.01047131384 | BO82: 0.00459795483 | BP82: 12.8096 | BQ82: 46.21 | BR82: 1.6158 | BS82: 0.9984 | BT82: 14915.441
A83: 1956-02-01 | B83: 2010-02-28 | C83: 2005-05-26 | D83: 2010-02-28 | E83: TRUE | F83: 1104.48999 | G83: 45.34 | H83: 1 | I83: 1104.48999 | J83: 0.02811473964 | K83: 0.9764483173 | L83: 2010-02-28 | M83: 0.9764483173 | N83: 2010-02-28 | O83: 0.9764483173 | P83: 3.355107892 | Q83: 1 | R83: 1 | S83: 1 | T83: 1 | U83: 1 | AB83: 31634.53906 | AC83: 0 | AD83: 0 | AE83: 0 | AF83: 0 | AG83: 0 | AH83: 1 | AI83: 1 | AJ83: 1 | AK83: 1 | AL83: 1 | AM83: 1 | AN83: 31634.53906 | AO83: 0 | AP83: 0 | AQ83: 0 | AR83: 0 | AS83: 0 | AT83: 0.02811473964 | AU83: 0.0400829691 | AV83: FALSE | AW83: FALSE | AX83: FALSE | AY83: FALSE | AZ83: FALSE | BA83: 3.355107892 | BB83: 1 | BC83: 1 | BD83: 1 | BE83: 1 | BF83: 1 | BG83: 15.144 | BH83: 26.86 | BI83: 0 | BJ83: 0 | BK83: 0 | BL83: 0 | BM83: 442.597 | BN83: 0.01047131384 | BO83: 0.004602335225 | BP83: 12.9396 | BQ83: 46.27 | BR83: 1.5618 | BS83: 1.0586 | BT83: 14915.441
A84: 1956-03-01 | B84: 2010-03-31 | C84: 2005-06-02 | D84: 2010-03-31 | E84: TRUE | F84: 1169.430054 | G84: 48.48 | H84: 1 | I84: 1169.430054 | J84: 0.05713281588 | K84: 1.033859989 | L84: 2010-03-31 | M84: 1.033859989 | N84: 2010-03-31 | O84: 1.033859989 | P84: 3.528183564 | Q84: 1 | R84: 1 | S84: 1 | T84: 1 | U84: 1 | AB84: 33266.42969 | AC84: 0 | AD84: 0 | AE84: 0 | AF84: 0 | AG84: 0 | AH84: 1 | AI84: 1 | AJ84: 1 | AK84: 1 | AL84: 1 | AM84: 1 | AN84: 33266.42969 | AO84: 0 | AP84: 0 | AQ84: 0 | AR84: 0 | AS84: 0 | AT84: 0.05713281588 | AU84: 0.050299239 | AV84: FALSE | AW84: FALSE | AX84: FALSE | AY84: FALSE | AZ84: FALSE | BA84: 3.528183564 | BB84: 1 | BC84: 1 | BD84: 1 | BE84: 1 | BF84: 1 | BG84: 15.144 | BH84: 26.89 | BI84: 0 | BJ84: 0 | BK84: 0 | BL84: 0 | BM84: 442.597 | BN84: 0.01047131384 | BO84: 0.004600810663 | BP84: 12.5673 | BQ84: 46.01 | BR84: 1.5058 | BS84: 1.0827 | BT84: 14915.441
A85: 1956-04-01 | B85: 2010-04-30 | C85: 2005-06-09 | D85: 2010-04-30 | E85: TRUE | F85: 1186.689941 | G85: 48.380001 | H85: 1 | I85: 1186.689941 | J85: 0.01465137242 | K85: 1.049118966 | L85: 2010-04-30 | M85: 1.049118966 | N85: 2010-04-30 | O85: 1.049118966 | P85: 3.466764163 | Q85: 1 | R85: 1 | S85: 1 | T85: 1 | U85: 1 | AB85: 32687.32031 | AC85: 0 | AD85: 0 | AE85: 0 | AF85: 0 | AG85: 0 | AH85: 1 | AI85: 1 | AJ85: 1 | AK85: 1 | AL85: 1 | AM85: 1 | AN85: 32687.32031 | AO85: 0 | AP85: 0 | AQ85: 0 | AR85: 0 | AS85: 0 | AT85: 0.01465137242 | AU85: -0.01756152632 | AV85: FALSE | AW85: FALSE | AX85: FALSE | AY85: FALSE | AZ85: FALSE | BA85: 3.466764163 | BB85: 1 | BC85: 1 | BD85: 1 | BE85: 1 | BF85: 1 | BG85: 15.234 | BH85: 26.93 | BI85: 0 | BJ85: 0 | BK85: 0 | BL85: 0 | BM85: 448.848 | BN85: 0.01042285524 | BO85: 0.004599752533 | BP85: 12.2396 | BQ85: 44.79 | BR85: 1.5332 | BS85: 1.0559 | BT85: 15121.332
A86: 1956-05-01 | B86: 2010-05-31 | C86: 2005-06-16 | D86: 2010-05-31 | E86: TRUE | F86: 1089.410034 | G86: 45.200001 | H86: 1 | I86: 1089.410034 | J86: -0.08553157271 | K86: 0.9631165553 | L86: 2010-05-31 | M86: 0.9631165553 | N86: 2010-05-31 | O86: 0.9631165553 | P86: 3.397954441 | Q86: 1 | R86: 1 | S86: 1 | T86: 1 | U86: 1 | AB86: 32038.5293 | AC86: 0 | AD86: 0 | AE86: 0 | AF86: 0 | AG86: 0 | AH86: 1 | AI86: 1 | AJ86: 1 | AK86: 1 | AL86: 1 | AM86: 1 | AN86: 32038.5293 | AO86: 0 | AP86: 0 | AQ86: 0 | AR86: 0 | AS86: 0 | AT86: -0.08553157271 | AU86: -0.02004802564 | AV86: FALSE | AW86: FALSE | AX86: FALSE | AY86: FALSE | AZ86: FALSE | BA86: 3.397954441 | BB86: 1 | BC86: 1 | BD86: 1 | BE86: 1 | BF86: 1 | BG86: 15.234 | BH86: 27.03 | BI86: 0 | BJ86: 0 | BK86: 0 | BL86: 0 | BM86: 448.848 | BN86: 0.01042285524 | BO86: 0.004602144599 | BP86: 12.7262 | BQ86: 44.2 | BR86: 1.4669 | BS86: 1.0767 | BT86: 15121.332
A87: 1956-06-01 | B87: 2010-06-30 | C87: 2005-06-23 | D87: 2010-06-30 | E87: TRUE | F87: 1030.709961 | G87: 46.970001 | H87: 1 | I87: 1030.709961 | J87: -0.05538844918 | K87: 0.9112214833 | L87: 2010-06-30 | M87: 0.9112214833 | N87: 2010-06-30 | O87: 0.9112214833 | P87: 3.304457766 | Q87: 1 | R87: 1 | S87: 1 | T87: 1 | U87: 1 | AB87: 31156.9707 | AC87: 0 | AD87: 0 | AE87: 0 | AF87: 0 | AG87: 0 | AH87: 1 | AI87: 1 | AJ87: 1 | AK87: 1 | AL87: 1 | AM87: 1 | AN87: 31156.9707 | AO87: 0 | AP87: 0 | AQ87: 0 | AR87: 0 | AS87: 0 | AT87: -0.05538844918 | AU87: -0.02790122027 | AV87: FALSE | AW87: FALSE | AX87: FALSE | AY87: FALSE | AZ87: FALSE | BA87: 3.304457766 | BB87: 1 | BC87: 1 | BD87: 1 | BE87: 1 | BF87: 1 | BG87: 15.234 | BH87: 27.15 | BI87: 0 | BJ87: 0 | BK87: 0 | BL87: 0 | BM87: 448.848 | BN87: 0.01042285524 | BO87: 0.004604072763 | BP87: 12.7102 | BQ87: 47.08 | BR87: 1.4768 | BS87: 1.1548 | BT87: 15121.332
A88: 1956-07-01 | B88: 2010-07-31 | C88: 2005-06-30 | D88: 2010-07-31 | E88: TRUE | F88: 1101.599976 | G88: 49.389999 | H88: 1 | I88: 1101.599976 | J88: 0.06651579933 | K88: 0.9738933378 | L88: 2010-07-31 | M88: 0.9738933378 | N88: 2010-07-31 | O88: 0.9738933378 | P88: 3.426612574 | Q88: 1 | R88: 1 | S88: 1 | T88: 1 | U88: 1 | AB88: 32308.74023 | AC88: 0 | AD88: 0 | AE88: 0 | AF88: 0 | AG88: 0 | AH88: 1 | AI88: 1 | AJ88: 1 | AK88: 1 | AL88: 1 | AM88: 1 | AN88: 32308.74023 | AO88: 0 | AP88: 0 | AQ88: 0 | AR88: 0 | AS88: 0 | AT88: 0.06651579933 | AU88: 0.03629979032 | AV88: FALSE | AW88: FALSE | AX88: FALSE | AY88: FALSE | AZ88: FALSE | BA88: 3.426612574 | BB88: 1 | BC88: 1 | BD88: 1 | BE88: 1 | BF88: 1 | BG88: 15.425 | BH88: 27.29 | BI88: 0 | BJ88: 0 | BK88: 0 | BL88: 0 | BM88: 454.125 | BN88: 0.0103926337 | BO88: 0.004595482641 | BP88: 12.8038 | BQ88: 46.59 | BR88: 1.5304 | BS88: 1.0675 | BT88: 15269.06
A89: 1956-08-01 | B89: 2010-08-31 | C89: 2005-07-07 | D89: 2010-08-31 | E89: TRUE | F89: 1049.329956 | G89: 47.509998 | H89: 1 | I89: 1049.329956 | J89: -0.04861182332 | K89: 0.9276828935 | L89: 2010-08-31 | M89: 0.9276828935 | N89: 2010-08-31 | O89: 0.9276828935 | P89: 3.359913455 | Q89: 1 | R89: 1 | S89: 1 | T89: 1 | U89: 1 | AB89: 31679.84961 | AC89: 0 | AD89: 0 | AE89: 0 | AF89: 0 | AG89: 0 | AH89: 1 | AI89: 1 | AJ89: 1 | AK89: 1 | AL89: 1 | AM89: 1 | AN89: 31679.84961 | AO89: 0 | AP89: 0 | AQ89: 0 | AR89: 0 | AS89: 0 | AT89: -0.04861182332 | AU89: -0.01965696936 | AV89: FALSE | AW89: FALSE | AX89: FALSE | AY89: FALSE | AZ89: FALSE | BA89: 3.359913455 | BB89: 1 | BC89: 1 | BD89: 1 | BE89: 1 | BF89: 1 | BG89: 15.425 | BH89: 27.31 | BI89: 0 | BJ89: 0 | BK89: 0 | BL89: 0 | BM89: 454.125 | BN89: 0.0103926337 | BO89: 0.00458877677 | BP89: 12.766 | BQ89: 46.35 | BR89: 1.5661 | BS89: 1.041 | BT89: 15269.06
A90: 1956-09-01 | B90: 2010-09-30 | C90: 2005-07-14 | D90: 2010-09-30 | E90: TRUE | F90: 1141.199951 | G90: 45.349998 | H90: 1 | I90: 1141.199951 | J90: 0.08392847409 | K90: 1.008902554 | L90: 2010-09-30 | M90: 1.008902554 | N90: 2010-09-30 | O90: 1.008902554 | P90: 3.534961771 | Q90: 1 | R90: 1 | S90: 1 | T90: 1 | U90: 1 | AB90: 33330.33984 | AC90: 0 | AD90: 0 | AE90: 0 | AF90: 0 | AG90: 0 | AH90: 1 | AI90: 1 | AJ90: 1 | AK90: 1 | AL90: 1 | AM90: 1 | AN90: 33330.33984 | AO90: 0 | AP90: 0 | AQ90: 0 | AR90: 0 | AS90: 0 | AT90: 0.08392847409 | AU90: 0.05078726886 | AV90: FALSE | AW90: FALSE | AX90: FALSE | AY90: FALSE | AZ90: FALSE | BA90: 3.534961771 | BB90: 1 | BC90: 1 | BD90: 1 | BE90: 1 | BF90: 1 | BG90: 15.425 | BH90: 27.35 | BI90: 0 | BJ90: 0 | BK90: 0 | BL90: 0 | BM90: 454.125 | BN90: 0.0103926337 | BO90: 0.004581376704 | BP90: 12.7977 | BQ90: 46.74 | BR90: 1.5591 | BS90: 1.0149 | BT90: 15269.06
A91: 1956-10-01 | B91: 2010-10-31 | C91: 2005-07-21 | D91: 2010-10-31 | E91: TRUE | F91: 1183.26001 | G91: 45.580002 | H91: 1 | I91: 1183.26001 | J91: 0.0361930521 | K91: 1.046086661 | L91: 2010-10-31 | M91: 1.046086661 | N91: 2010-10-31 | O91: 1.046086661 | P91: 3.772307578 | Q91: 1 | R91: 1 | S91: 1 | T91: 1 | U91: 1 | AB91: 35568.21875 | AC91: 0 | AD91: 0 | AE91: 0 | AF91: 0 | AG91: 0 | AH91: 1 | AI91: 1 | AJ91: 1 | AK91: 1 | AL91: 1 | AM91: 1 | AN91: 35568.21875 | AO91: 0 | AP91: 0 | AQ91: 0 | AR91: 0 | AS91: 0 | AT91: 0.0361930521 | AU91: 0.06498441879 | AV91: FALSE | AW91: FALSE | AX91: FALSE | AY91: FALSE | AZ91: FALSE | BA91: 3.772307578 | BB91: 1 | BC91: 1 | BD91: 1 | BE91: 1 | BF91: 1 | BG91: 15.487 | BH91: 27.51 | BI91: 0 | BJ91: 0 | BK91: 0 | BL91: 0 | BM91: 463.023 | BN91: 0.01033452869 | BO91: 0.004565480403 | BP91: 12.4393 | BQ91: 44.41 | BR91: 1.5867 | BS91: 0.9761 | BT91: 15445.256
A92: 1956-11-01 | B92: 2010-11-30 | C92: 2005-07-28 | D92: 2010-11-30 | E92: TRUE | F92: 1180.550049 | G92: 45.080002 | H92: 1 | I92: 1180.550049 | J92: -0.002292876432 | K92: 1.043690861 | L92: 2010-11-30 | M92: 1.043690861 | N92: 2010-11-30 | O92: 1.043690861 | P92: 3.904785263 | Q92: 1 | R92: 1 | S92: 1 | T92: 1 | U92: 1 | AB92: 36817.32031 | AC92: 0 | AD92: 0 | AE92: 0 | AF92: 0 | AG92: 0 | AH92: 1 | AI92: 1 | AJ92: 1 | AK92: 1 | AL92: 1 | AM92: 1 | AN92: 36817.32031 | AO92: 0 | AP92: 0 | AQ92: 0 | AR92: 0 | AS92: 0 | AT92: -0.002292876432 | AU92: 0.03451588773 | AV92: FALSE | AW92: FALSE | AX92: FALSE | AY92: FALSE | AZ92: FALSE | BA92: 3.904785263 | BB92: 1 | BC92: 1 | BD92: 1 | BE92: 1 | BF92: 1 | BG92: 15.487 | BH92: 27.51 | BI92: 0 | BJ92: 0 | BK92: 0 | BL92: 0 | BM92: 463.023 | BN92: 0.01033452869 | BO92: 0.004553941436 | BP92: 12.3376 | BQ92: 44.36 | BR92: 1.5961 | BS92: 0.9935 | BT92: 15445.256
A93: 1956-12-01 | B93: 2010-12-31 | C93: 2005-08-04 | D93: 2010-12-31 | E93: TRUE | F93: 1257.640015 | G93: 46.669998 | H93: 1 | I93: 1257.640015 | J93: 0.06325648764 | K93: 1.111843917 | L93: 2010-12-31 | M93: 1.111843917 | N93: 2010-12-31 | O93: 1.111843917 | P93: 4.088634146 | Q93: 1 | R93: 1 | S93: 1 | T93: 1 | U93: 1 | AB93: 38550.78906 | AC93: 0 | AD93: 0 | AE93: 0 | AF93: 0 | AG93: 0 | AH93: 1 | AI93: 1 | AJ93: 1 | AK93: 1 | AL93: 1 | AM93: 1 | AN93: 38550.78906 | AO93: 0 | AP93: 0 | AQ93: 0 | AR93: 0 | AS93: 0 | AT93: 0.06325648764 | AU93: 0.04600817323 | AV93: FALSE | AW93: FALSE | AX93: FALSE | AY93: FALSE | AZ93: FALSE | BA93: 4.088634146 | BB93: 1 | BC93: 1 | BD93: 1 | BE93: 1 | BF93: 1 | BG93: 15.487 | BH93: 27.63 | BI93: 0 | BJ93: 0 | BK93: 0 | BL93: 0 | BM93: 463.023 | BN93: 0.01033452869 | BO93: 0.004535723357 | BP93: 12.3902 | BQ93: 45.29 | BR93: 1.5595 | BS93: 0.9997 | BT93: 15445.256
A94: 1957-01-01 | B94: 2011-01-31 | C94: 2005-08-11 | D94: 2011-01-31 | E94: TRUE | F94: 1286.119995 | G94: 44.720001 | H94: 1 | I94: 1286.119995 | J94: 0.02239296944 | K94: 1.13702226 | L94: 2011-01-31 | M94: 1.13702226 | N94: 2011-01-31 | O94: 1.13702226 | P94: 3.922276195 | Q94: 1 | R94: 1 | S94: 1 | T94: 1 | U94: 1 | AB94: 36982.23828 | AC94: 0 | AD94: 0 | AE94: 0 | AF94: 0 | AG94: 0 | AH94: 1 | AI94: 1 | AJ94: 1 | AK94: 1 | AL94: 1 | AM94: 1 | AN94: 36982.23828 | AO94: 0 | AP94: 0 | AQ94: 0 | AR94: 0 | AS94: 0 | AT94: 0.02239296944 | AU94: -0.04153881743 | AV94: FALSE | AW94: FALSE | AX94: FALSE | AY94: FALSE | AZ94: FALSE | BA94: 3.922276195 | BB94: 1 | BC94: 1 | BD94: 1 | BE94: 1 | BF94: 1 | BG94: 15.7 | BH94: 27.67 | BI94: 0 | BJ94: 0 | BK94: 0 | BL94: 0 | BM94: 472.864 | BN94: 0.01027928826 | BO94: 0.004521061364 | BP94: 12.128 | BQ94: 45.29 | BR94: 1.5782 | BS94: 0.9997 | BT94: 15502.925
A95: 1957-02-01 | B95: 2011-02-28 | C95: 2005-08-18 | D95: 2011-02-28 | E95: TRUE | F95: 1327.219971 | G95: 43.259998 | H95: 1 | I95: 1327.219971 | J95: 0.03145657708 | K95: 1.173357585 | L95: 2011-02-28 | M95: 1.173357585 | N95: 2011-02-28 | O95: 1.173357585 | P95: 3.926249241 | Q95: 1 | R95: 1 | S95: 1 | T95: 1 | U95: 1 | AB95: 37019.69922 | AC95: 0 | AD95: 0 | AE95: 0 | AF95: 0 | AG95: 0 | AH95: 1 | AI95: 1 | AJ95: 1 | AK95: 1 | AL95: 1 | AM95: 1 | AN95: 37019.69922 | AO95: 0 | AP95: 0 | AQ95: 0 | AR95: 0 | AS95: 0 | AT95: 0.03145657708 | AU95: 0.001012431362 | AV95: FALSE | AW95: FALSE | AX95: FALSE | AY95: FALSE | AZ95: FALSE | BA95: 3.926249241 | BB95: 1 | BC95: 1 | BD95: 1 | BE95: 1 | BF95: 1 | BG95: 15.7 | BH95: 27.8 | BI95: 0 | BJ95: 0 | BK95: 0 | BL95: 0 | BM95: 472.864 | BN95: 0.01027928826 | BO95: 0.004506575093 | BP95: 12.0649 | BQ95: 45.65 | BR95: 1.6124 | BS95: 0.9388 | BT95: 15502.925
A96: 1957-03-01 | B96: 2011-03-31 | C96: 2005-08-25 | D96: 2011-03-31 | E96: TRUE | F96: 1325.829956 | G96: 44.110001 | H96: 1 | I96: 1325.829956 | J96: -0.00104786202 | K96: 1.172128712 | L96: 2011-03-31 | M96: 1.172128712 | N96: 2011-03-31 | O96: 1.172128712 | P96: 3.970879933 | Q96: 1 | R96: 1 | S96: 1 | T96: 1 | U96: 1 | AB96: 37440.51172 | AC96: 0 | AD96: 0 | AE96: 0 | AF96: 0 | AG96: 0 | AH96: 1 | AI96: 1 | AJ96: 1 | AK96: 1 | AL96: 1 | AM96: 1 | AN96: 37440.51172 | AO96: 0 | AP96: 0 | AQ96: 0 | AR96: 0 | AS96: 0 | AT96: -0.00104786202 | AU96: 0.01130313694 | AV96: FALSE | AW96: FALSE | AX96: FALSE | AY96: FALSE | AZ96: FALSE | BA96: 3.970879933 | BB96: 1 | BC96: 1 | BD96: 1 | BE96: 1 | BF96: 1 | BG96: 15.7 | BH96: 27.86 | BI96: 0 | BJ96: 0 | BK96: 0 | BL96: 0 | BM96: 472.864 | BN96: 0.01027928826 | BO96: 0.00448338011 | BP96: 11.9963 | BQ96: 44.82 | BR96: 1.6159 | BS96: 0.9284 | BT96: 15502.925
A97: 1957-04-01 | B97: 2011-04-30 | C97: 2005-09-01 | D97: 2011-04-30 | E97: TRUE | F97: 1363.609985 | G97: 45.740002 | H97: 1 | I97: 1363.609985 | J97: 0.02809693855 | K97: 1.205528966 | L97: 2011-04-30 | M97: 1.205528966 | N97: 2011-04-30 | O97: 1.205528966 | P97: 3.920195628 | Q97: 1 | R97: 1 | S97: 1 | T97: 1 | U97: 1 | AB97: 36962.62109 | AC97: 0 | AD97: 0 | AE97: 0 | AF97: 0 | AG97: 0 | AH97: 1 | AI97: 1 | AJ97: 1 | AK97: 1 | AL97: 1 | AM97: 1 | AN97: 36962.62109 | AO97: 0 | AP97: 0 | AQ97: 0 | AR97: 0 | AS97: 0 | AT97: 0.02809693855 | AU97: -0.01284615792 | AV97: FALSE | AW97: FALSE | AX97: FALSE | AY97: FALSE | AZ97: FALSE | BA97: 3.920195628 | BB97: 1 | BC97: 1 | BD97: 1 | BE97: 1 | BF97: 1 | BG97: 15.81 | BH97: 27.93 | BI97: 0 | BJ97: 0 | BK97: 0 | BL97: 0 | BM97: 475.392 | BN97: 0.01021220972 | BO97: 0.004462433008 | BP97: 11.7059 | BQ97: 44.44 | BR97: 1.6379 | BS97: 0.9243 | BT97: 15716.572
A98: 1957-05-01 | B98: 2011-05-31 | C98: 2005-09-08 | D98: 2011-05-31 | E98: TRUE | F98: 1345.199951 | G98: 47.43 | H98: 1 | I98: 1345.199951 | J98: -0.01359291933 | K98: 1.189253176 | L98: 2011-05-31 | M98: 1.189253176 | N98: 2011-05-31 | O98: 1.189253176 | P98: 3.800367476 | Q98: 1 | R98: 1 | S98: 1 | T98: 1 | U98: 1 | AB98: 35832.78906 | AC98: 0 | AD98: 0 | AE98: 0 | AF98: 0 | AG98: 0 | AH98: 1 | AI98: 1 | AJ98: 1 | AK98: 1 | AL98: 1 | AM98: 1 | AN98: 35832.78906 | AO98: 0 | AP98: 0 | AQ98: 0 | AR98: 0 | AS98: 0 | AT98: -0.01359291933 | AU98: -0.03104379146 | AV98: FALSE | AW98: FALSE | AX98: FALSE | AY98: FALSE | AZ98: FALSE | BA98: 3.800367476 | BB98: 1 | BC98: 1 | BD98: 1 | BE98: 1 | BF98: 1 | BG98: 15.81 | BH98: 28 | BI98: 0 | BJ98: 0 | BK98: 0 | BL98: 0 | BM98: 475.392 | BN98: 0.01021220972 | BO98: 0.00444827985 | BP98: 11.6542 | BQ98: 44.24 | BR98: 1.6332 | BS98: 0.8666 | BT98: 15716.572
A99: 1957-06-01 | B99: 2011-06-30 | C99: 2005-09-15 | D99: 2011-06-30 | E99: TRUE | F99: 1320.640015 | G99: 47.369999 | H99: 1 | I99: 1320.640015 | J99: -0.01842618552 | K99: 1.167540432 | L99: 2011-06-30 | M99: 1.167540432 | N99: 2011-06-30 | O99: 1.167540432 | P99: 3.877289629 | Q99: 1 | R99: 1 | S99: 1 | T99: 1 | U99: 1 | AB99: 36558.07031 | AC99: 0 | AD99: 0 | AE99: 0 | AF99: 0 | AG99: 0 | AH99: 1 | AI99: 1 | AJ99: 1 | AK99: 1 | AL99: 1 | AM99: 1 | AN99: 36558.07031 | AO99: 0 | AP99: 0 | AQ99: 0 | AR99: 0 | AS99: 0 | AT99: -0.01842618552 | AU99: 0.02003859398 | AV99: FALSE | AW99: FALSE | AX99: FALSE | AY99: FALSE | AZ99: FALSE | BA99: 3.877289629 | BB99: 1 | BC99: 1 | BD99: 1 | BE99: 1 | BF99: 1 | BG99: 15.81 | BH99: 28.11 | BI99: 0 | BJ99: 0 | BK99: 0 | BL99: 0 | BM99: 475.392 | BN99: 0.01021220972 | BO99: 0.00444827985 | BP99: 11.8055 | BQ99: 44.84 | BR99: 1.6219 | BS99: 0.8401 | BT99: 15716.572
A100: 1957-07-01 | B100: 2011-07-31 | C100: 2005-09-22 | D100: 2011-07-31 | E100: TRUE | F100: 1292.280029 | G100: 47.91 | H100: 1 | I100: 1292.280029 | J100: -0.02170835635 | K100: 1.142468172 | L100: 2011-07-31 | M100: 1.142468172 | N100: 2011-07-31 | O100: 1.142468172 | P100: 3.818031581 | Q100: 1 | R100: 1 | S100: 1 | T100: 1 | U100: 1 | AB100: 35999.33984 | AC100: 0 | AD100: 0 | AE100: 0 | AF100: 0 | AG100: 0 | AH100: 1 | AI100: 1 | AJ100: 1 | AK100: 1 | AL100: 1 | AM100: 1 | AN100: 35999.33984 | AO100: 0 | AP100: 0 | AQ100: 0 | AR100: 0 | AS100: 0 | AT100: -0.02170835635 | AU100: -0.0154013632 | AV100: FALSE | AW100: FALSE | AX100: FALSE | AY100: FALSE | AZ100: FALSE | BA100: 3.818031581 | BB100: 1 | BC100: 1 | BD100: 1 | BE100: 1 | BF100: 1 | BG100: 15.904 | BH100: 28.19 | BI100: 0 | BJ100: 0 | BK100: 0 | BL100: 0 | BM100: 482.723 | BN100: 0.01014682455 | BO100: 0.004436655649 | BP100: 11.6741 | BQ100: 44.62 | BR100: 1.6158 | BS100: 0.8479 | BT100: 15837.248
A101: 1957-08-01 | B101: 2011-08-31 | C101: 2005-09-29 | D101: 2011-08-31 | E101: TRUE | F101: 1218.890015 | G101: 45.220001 | H101: 1 | I101: 1218.890015 | J101: -0.05846750175 | K101: 1.077586139 | L101: 2011-08-31 | M101: 1.077586139 | N101: 2011-08-31 | O101: 1.077586139 | P101: 3.788522081 | Q101: 1 | R101: 1 | S101: 1 | T101: 1 | U101: 1 | AB101: 35721.10156 | AC101: 0 | AD101: 0 | AE101: 0 | AF101: 0 | AG101: 0 | AH101: 1 | AI101: 1 | AJ101: 1 | AK101: 1 | AL101: 1 | AM101: 1 | AN101: 35721.10156 | AO101: 0 | AP101: 0 | AQ101: 0 | AR101: 0 | AS101: 0 | AT101: -0.05846750175 | AU101: -0.007759006259 | AV101: FALSE | AW101: FALSE | AX101: FALSE | AY101: FALSE | AZ101: FALSE | BA101: 3.788522081 | BB101: 1 | BC101: 1 | BD101: 1 | BE101: 1 | BF101: 1 | BG101: 15.904 | BH101: 28.28 | BI101: 0 | BJ101: 0 | BK101: 0 | BL101: 0 | BM101: 482.723 | BN101: 0.01014682455 | BO101: 0.004422704395 | BP101: 12.2366 | BQ101: 44.06 | BR101: 1.6356 | BS101: 0.7813 | BT101: 15837.248
A102: 1957-09-01 | B102: 2011-09-30 | C102: 2005-10-06 | D102: 2011-09-30 | E102: TRUE | F102: 1131.420044 | G102: 42.419998 | H102: 1 | I102: 1131.420044 | J102: -0.07446710096 | K102: 1.000256415 | L102: 2011-09-30 | M102: 1.000256415 | N102: 2011-09-30 | O102: 1.000256415 | P102: 3.553303656 | Q102: 1 | R102: 1 | S102: 1 | T102: 1 | U102: 1 | AB102: 33503.28125 | AC102: 0 | AD102: 0 | AE102: 0 | AF102: 0 | AG102: 0 | AH102: 1 | AI102: 1 | AJ102: 1 | AK102: 1 | AL102: 1 | AM102: 1 | AN102: 33503.28125 | AO102: 0 | AP102: 0 | AQ102: 0 | AR102: 0 | AS102: 0 | AT102: -0.07446710096 | AU102: -0.06409821257 | AV102: FALSE | AW102: FALSE | AX102: FALSE | AY102: FALSE | AZ102: FALSE | BA102: 3.553303656 | BB102: 1 | BC102: 1 | BD102: 1 | BE102: 1 | BF102: 1 | BG102: 15.904 | BH102: 28.32 | BI102: 0 | BJ102: 0 | BK102: 0 | BL102: 0 | BM102: 482.723 | BN102: 0.01014682455 | BO102: 0.004413121092 | BP102: 13.0637 | BQ102: 45.66 | BR102: 1.5771 | BS102: 0.7951 | BT102: 15837.248
A103: 1957-10-01 | B103: 2011-10-31 | C103: 2005-10-13 | D103: 2011-10-31 | E103: TRUE | F103: 1253.300049 | G103: 41.060001 | H103: 1 | I103: 1253.300049 | J103: 0.1023065919 | K103: 1.108007076 | L103: 2011-10-31 | M103: 1.108007076 | N103: 2011-10-31 | O103: 1.108007076 | P103: 3.835069694 | Q103: 1 | R103: 1 | S103: 1 | T103: 1 | U103: 1 | AB103: 36159.98828 | AC103: 0 | AD103: 0 | AE103: 0 | AF103: 0 | AG103: 0 | AH103: 1 | AI103: 1 | AJ103: 1 | AK103: 1 | AL103: 1 | AM103: 1 | AN103: 36159.98828 | AO103: 0 | AP103: 0 | AQ103: 0 | AR103: 0 | AS103: 0 | AT103: 0.1023065919 | AU103: 0.07630982964 | AV103: FALSE | AW103: FALSE | AX103: FALSE | AY103: FALSE | AZ103: FALSE | BA103: 3.835069694 | BB103: 1 | BC103: 1 | BD103: 1 | BE103: 1 | BF103: 1 | BG103: 15.915 | BH103: 28.32 | BI103: 0 | BJ103: 0 | BK103: 0 | BL103: 0 | BM103: 477.398 | BN103: 0.01013140431 | BO103: 0.00441014333 | BP103: 13.4379 | BQ103: 49.05 | BR103: 1.5768 | BS103: 0.9048 | BT103: 16059.096
A104: 1957-11-01 | B104: 2011-11-30 | C104: 2005-10-20 | D104: 2011-11-30 | E104: TRUE | F104: 1246.959961 | G104: 41.720001 | H104: 1 | I104: 1246.959961 | J104: -0.00507155381 | K104: 1.102401983 | L104: 2011-11-30 | M104: 1.102401983 | N104: 2011-11-30 | O104: 1.102401983 | P104: 3.906039735 | Q104: 1 | R104: 1 | S104: 1 | T104: 1 | U104: 1 | AB104: 36829.14844 | AC104: 0 | AD104: 0 | AE104: 0 | AF104: 0 | AG104: 0 | AH104: 1 | AI104: 1 | AJ104: 1 | AK104: 1 | AL104: 1 | AM104: 1 | AN104: 36829.14844 | AO104: 0 | AP104: 0 | AQ104: 0 | AR104: 0 | AS104: 0 | AT104: -0.00507155381 | AU104: 0.01833639733 | AV104: FALSE | AW104: FALSE | AX104: FALSE | AY104: FALSE | AZ104: FALSE | BA104: 3.906039735 | BB104: 1 | BC104: 1 | BD104: 1 | BE104: 1 | BF104: 1 | BG104: 15.915 | BH104: 28.41 | BI104: 0 | BJ104: 0 | BK104: 0 | BL104: 0 | BM104: 477.398 | BN104: 0.01013140431 | BO104: 0.004402009077 | BP104: 13.6955 | BQ104: 49.26 | BR104: 1.5806 | BS104: 0.8901 | BT104: 16059.096
A105: 1957-12-01 | B105: 2011-12-31 | C105: 2005-10-27 | D105: 2011-12-31 | E105: TRUE | F105: 1257.599976 | G105: 39.990002 | H105: 1 | I105: 1257.599976 | J105: 0.008496565686 | K105: 1.111808519 | L105: 2011-12-31 | M105: 1.111808519 | N105: 2011-12-31 | O105: 1.111808519 | P105: 3.93238157 | Q105: 1 | R105: 1 | S105: 1 | T105: 1 | U105: 1 | AB105: 37077.51953 | AC105: 0 | AD105: 0 | AE105: 0 | AF105: 0 | AG105: 0 | AH105: 1 | AI105: 1 | AJ105: 1 | AK105: 1 | AL105: 1 | AM105: 1 | AN105: 37077.51953 | AO105: 0 | AP105: 0 | AQ105: 0 | AR105: 0 | AS105: 0 | AT105: 0.008496565686 | AU105: 0.006721234628 | AV105: FALSE | AW105: FALSE | AX105: FALSE | AY105: FALSE | AZ105: FALSE | BA105: 3.93238157 | BB105: 1 | BC105: 1 | BD105: 1 | BE105: 1 | BF105: 1 | BG105: 15.915 | BH105: 28.47 | BI105: 0 | BJ105: 0 | BK105: 0 | BL105: 0 | BM105: 477.398 | BN105: 0.01013140431 | BO105: 0.004400962931 | BP105: 13.7746 | BQ105: 51.36 | BR105: 1.5587 | BS105: 0.9135 | BT105: 16059.096
A106: 1958-01-01 | B106: 2012-01-31 | C106: 2005-11-03 | D106: 2012-01-31 | E106: TRUE | F106: 1312.410034 | G106: 41.700001 | H106: 1 | I106: 1312.410034 | J106: 0.042660044 | K106: 1.160264539 | L106: 2012-01-31 | M106: 1.160264539 | N106: 2012-01-31 | O106: 1.160264539 | P106: 3.968988696 | Q106: 1 | R106: 1 | S106: 1 | T106: 1 | U106: 1 | AB106: 37422.67969 | AC106: 0 | AD106: 0 | AE106: 0 | AF106: 0 | AG106: 0 | AH106: 1 | AI106: 1 | AJ106: 1 | AK106: 1 | AL106: 1 | AM106: 1 | AN106: 37422.67969 | AO106: 0 | AP106: 0 | AQ106: 0 | AR106: 0 | AS106: 0 | AT106: 0.042660044 | AU106: 0.009266086004 | AV106: FALSE | AW106: FALSE | AX106: FALSE | AY106: FALSE | AZ106: FALSE | BA106: 3.968988696 | BB106: 1 | BC106: 1 | BD106: 1 | BE106: 1 | BF106: 1 | BG106: 16.087 | BH106: 28.64 | BI106: 0 | BJ106: 0 | BK106: 0 | BL106: 0 | BM106: 470.17 | BN106: 0.01006846557 | BO106: 0.004389006417 | BP106: 13.3829 | BQ106: 53.01 | BR106: 1.5524 | BS106: 0.9374 | BT106: 16268.022
A107: 1958-02-01 | B107: 2012-02-29 | C107: 2005-11-10 | D107: 2012-02-29 | E107: TRUE | F107: 1365.680054 | G107: 40.84 | H107: 1 | I107: 1365.680054 | J107: 0.03978734502 | K107: 1.207359055 | L107: 2012-02-29 | M107: 1.207359055 | N107: 2012-02-29 | O107: 1.207359055 | P107: 4.01077694 | Q107: 1 | R107: 1 | S107: 1 | T107: 1 | U107: 1 | AB107: 37816.69141 | AC107: 0 | AD107: 0 | AE107: 0 | AF107: 0 | AG107: 0 | AH107: 1 | AI107: 1 | AJ107: 1 | AK107: 1 | AL107: 1 | AM107: 1 | AN107: 37816.69141 | AO107: 0 | AP107: 0 | AQ107: 0 | AR107: 0 | AS107: 0 | AT107: 0.03978734502 | AU107: 0.01047364735 | AV107: FALSE | AW107: FALSE | AX107: FALSE | AY107: FALSE | AZ107: FALSE | BA107: 4.01077694 | BB107: 1 | BC107: 1 | BD107: 1 | BE107: 1 | BF107: 1 | BG107: 16.087 | BH107: 28.7 | BI107: 0 | BJ107: 0 | BK107: 0 | BL107: 0 | BM107: 470.17 | BN107: 0.01006846557 | BO107: 0.004379645161 | BP107: 12.7833 | BQ107: 49.2738 | BR107: 1.5804 | BS107: 0.9141 | BT107: 16268.022
A108: 1958-03-01 | B108: 2012-03-31 | C108: 2005-11-17 | D108: 2012-03-31 | E108: TRUE | F108: 1408.469971 | G108: 42.099998 | H108: 1 | I108: 1408.469971 | J108: 0.03085147563 | K108: 1.245188409 | L108: 2012-03-31 | M108: 1.245188409 | N108: 2012-03-31 | O108: 1.245188409 | P108: 4.191558416 | Q108: 1 | R108: 1 | S108: 1 | T108: 1 | U108: 1 | AB108: 39521.23828 | AC108: 0 | AD108: 0 | AE108: 0 | AF108: 0 | AG108: 0 | AH108: 1 | AI108: 1 | AJ108: 1 | AK108: =IF(AK$7,INDEX($BN108:$BT108,AK$7),1) -> 1 | AL108: 1 | AM108: 1 | AN108: 39521.23828 | AO108: 0 | AP108: 0 | AQ108: 0 | AR108: 0 | AS108: 0 | AT108: 0.03085147563 | AU108: 0.04408762866 | AV108: FALSE | AW108: FALSE | AX108: FALSE | AY108: FALSE | AZ108: FALSE | BA108: 4.191558416 | BB108: 1 | BC108: 1 | BD108: 1 | BE108: 1 | BF108: 1 | BG108: 16.087 | BH108: 28.87 | BI108: 0 | BJ108: 0 | BK108: 0 | BL108: 0 | BM108: 470.17 | BN108: 0.01006846557 | BO108: 0.004370495658 | BP108: 12.7523 | BQ108: 49.14 | BR108: 1.5824 | BS108: 0.9051 | BT108: 16268.022
A109: 1958-04-01 | B109: 2012-04-30 | C109: 2005-11-24 | D109: 2012-04-30 | E109: TRUE | F109: 1397.910034 | G109: 43.439999 | H109: 1 | I109: 1397.910034 | J109: -0.007525699884 | K109: 1.235852668 | L109: 2012-04-30 | M109: 1.235852668 | N109: 2012-04-30 | O109: 1.235852668 | P109: 4.185169642 | Q109: 1 | R109: 1 | S109: 1 | T109: 1 | U109: 1 | AB109: 39461 | AC109: 0 | AD109: 0 | AE109: 0 | AF109: 0 | AG109: 0 | AH109: =IF(AH$7,INDEX($BN109:$BT109,AH$7),1) -> 1 | AI109: 1 | AJ109: 1 | AK109: 1 | AL109: 1 | AM109: 1 | AN109: 39461 | AO109: 0 | AP109: 0 | AQ109: 0 | AR109: 0 | AS109: 0 | AT109: -0.007525699884 | AU109: -0.001525363018 | AV109: FALSE | AW109: FALSE | AX109: FALSE | AY109: FALSE | AZ109: FALSE | BA109: 4.185169642 | BB109: 1 | BC109: 1 | BD109: 1 | BE109: 1 | BF109: 1 | BG109: 16.134 | BH109: 28.94 | BI109: 0 | BJ109: 0 | BK109: 0 | BL109: 0 | BM109: 474.672 | BN109: 0.01002878261 | BO109: 0.004363249224 | BP109: 13.0559 | BQ109: 50.89 | BR109: 1.6 | BS109: 0.9026 | BT109: 16380.378
A110: 1958-05-01 | B110: 2012-05-31 | C110: 2005-12-01 | D110: 2012-05-31 | E110: TRUE | F110: 1310.329956 | G110: 44.09 | H110: 1 | I110: 1310.329956 | J110: -0.06469930807 | K110: 1.158425601 | L110: 2012-05-31 | M110: 1.158425601 | N110: 2012-05-31 | O110: 1.158425601 | P110: 4.016743552 | Q110: 1 | R110: 1 | S110: 1 | T110: 1 | U110: 1 | AB110: 37872.94922 | AC110: 0 | AD110: 0 | AE110: 0 | AF110: 0 | AG110: 0 | AH110: 1 | AI110: 1 | AJ110: 1 | AK110: 1 | AL110: 1 | AM110: 1 | AN110: 37872.94922 | AO110: 0 | AP110: 0 | AQ110: 0 | AR110: 0 | AS110: 0 | AT110: -0.06469930807 | AU110: -0.04107572606 | AV110: FALSE | AW110: FALSE | AX110: FALSE | AY110: FALSE | AZ110: FALSE | BA110: 4.016743552 | BB110: 1 | BC110: 1 | BD110: 1 | BE110: 1 | BF110: 1 | BG110: 16.134 | BH110: 28.94 | BI110: 0 | BJ110: 0 | BK110: 0 | BL110: 0 | BM110: 474.672 | BN110: 0.01002878261 | BO110: 0.004372291912 | BP110: 13.6199 | BQ110: 52.5 | BR110: 1.5924 | BS110: 0.9087 | BT110: 16380.378
A111: 1958-06-01 | B111: 2012-06-30 | C111: 2005-12-08 | D111: 2012-06-30 | E111: TRUE | F111: 1362.160034 | G111: 45.240002 | H111: 1 | I111: 1362.160034 | J111: 0.03879271978 | K111: 1.204247105 | L111: 2012-06-30 | M111: 1.204247105 | N111: 2012-06-30 | O111: 1.204247105 | P111: 4.263499139 | Q111: 1 | R111: 1 | S111: 1 | T111: 1 | U111: 1 | AB111: 40199.55078 | AC111: 0 | AD111: 0 | AE111: 0 | AF111: 0 | AG111: 0 | AH111: 1 | AI111: 1 | AJ111: 1 | AK111: 1 | AL111: 1 | AM111: 1 | AN111: 40199.55078 | AO111: 0 | AP111: 0 | AQ111: 0 | AR111: 0 | AS111: 0 | AT111: 0.03879271978 | AU111: 0.05961870463 | AV111: FALSE | AW111: FALSE | AX111: FALSE | AY111: FALSE | AZ111: FALSE | BA111: 4.263499139 | BB111: 1 | BC111: 1 | BD111: 1 | BE111: 1 | BF111: 1 | BG111: 16.134 | BH111: 28.91 | BI111: 0 | BJ111: 0 | BK111: 0 | BL111: 0 | BM111: 474.672 | BN111: 0.01002878261 | BO111: 0.004375908001 | BP111: 13.9193 | BQ111: 55.44 | BR111: 1.5556 | BS111: 0.9671 | BT111: 16380.378
A112: 1958-07-01 | B112: 2012-07-31 | C112: 2005-12-15 | D112: 2012-07-31 | E112: TRUE | F112: 1379.319946 | G112: 47.189999 | H112: 1 | I112: 1379.319946 | J112: 0.01251888486 | K112: 1.219417697 | L112: 2012-07-31 | M112: 1.219417697 | N112: 2012-07-31 | O112: 1.219417697 | P112: 4.317030034 | Q112: 1 | R112: 1 | S112: 1 | T112: 1 | U112: 1 | AB112: 40704.28125 | AC112: 0 | AD112: 0 | AE112: 0 | AF112: 0 | AG112: 0 | AH112: 1 | AI112: 1 | AJ112: 1 | AK112: 1 | AL112: 1 | AM112: 1 | AN112: 40704.28125 | AO112: 0 | AP112: 0 | AQ112: 0 | AR112: 0 | AS112: 0 | AT112: 0.01251888486 | AU112: 0.01247745637 | AV112: FALSE | AW112: FALSE | AX112: FALSE | AY112: FALSE | AZ112: FALSE | BA112: 4.317030034 | BB112: 1 | BC112: 1 | BD112: 1 | BE112: 1 | BF112: 1 | BG112: 16.232 | BH112: 28.89 | BI112: 0 | BJ112: 0 | BK112: 0 | BL112: 0 | BM112: 488.446 | BN112: 0.009977550511 | BO112: 0.00437464456 | BP112: 13.3638 | BQ112: 55.57 | BR112: 1.5593 | BS112: 0.9485 | BT112: 16485.807
A113: 1958-08-01 | B113: 2012-08-31 | C113: 2005-12-22 | D113: 2012-08-31 | E113: TRUE | F113: 1406.579956 | G113: 47.75 | H113: 1 | I113: 1406.579956 | J113: 0.01957060987 | K113: 1.2435175 | L113: 2012-08-31 | M113: 1.2435175 | N113: 2012-08-31 | O113: 1.2435175 | P113: 4.180996079 | Q113: 1 | R113: 1 | S113: 1 | T113: 1 | U113: 1 | AB113: 39421.64844 | AC113: 0 | AD113: 0 | AE113: 0 | AF113: 0 | AG113: 0 | AH113: 1 | AI113: 1 | AJ113: 1 | AK113: 1 | AL113: 1 | AM113: 1 | AN113: 39421.64844 | AO113: 0 | AP113: 0 | AQ113: 0 | AR113: 0 | AS113: 0 | AT113: 0.01957060987 | AU113: -0.03201815918 | AV113: FALSE | AW113: FALSE | AX113: FALSE | AY113: FALSE | AZ113: FALSE | BA113: 4.180996079 | BB113: 1 | BC113: 1 | BD113: 1 | BE113: 1 | BF113: 1 | BG113: 16.232 | BH113: 28.94 | BI113: 0 | BJ113: 0 | BK113: 0 | BL113: 0 | BM113: 488.446 | BN113: 0.009977550511 | BO113: 0.004349376734 | BP113: 13.1793 | BQ113: 55.47 | BR113: 1.5722 | BS113: 0.9767 | BT113: 16485.807
A114: 1958-09-01 | B114: 2012-09-30 | C114: 2005-12-29 | D114: 2012-09-30 | E114: TRUE | F114: 1440.670044 | G114: 50.060001 | H114: 1 | I114: 1440.670044 | J114: 0.02394711887 | K114: 1.273655581 | L114: 2012-09-30 | M114: 1.273655581 | N114: 2012-09-30 | O114: 1.273655581 | P114: 4.327101023 | Q114: 1 | R114: 1 | S114: 1 | T114: 1 | U114: 1 | AB114: 40799.23828 | AC114: 0 | AD114: 0 | AE114: 0 | AF114: 0 | AG114: 0 | AH114: 1 | AI114: 1 | AJ114: 1 | AK114: 1 | AL114: 1 | AM114: 1 | AN114: 40799.23828 | AO114: 0 | AP114: 0 | AQ114: 0 | AR114: 0 | AS114: 0 | AT114: 0.02394711887 | AU114: 0.0343482935 | AV114: FALSE | AW114: FALSE | AX114: FALSE | AY114: FALSE | AZ114: FALSE | BA114: 4.327101023 | BB114: 1 | BC114: 1 | BD114: 1 | BE114: 1 | BF114: 1 | BG114: 16.232 | BH114: 28.91 | BI114: 0 | BJ114: 0 | BK114: 0 | BL114: 0 | BM114: 488.446 | BN114: 0.009977550511 | BO114: 0.004328723243 | BP114: 12.9235 | BQ114: 55.52 | BR114: 1.6126 | BS114: 0.9546 | BT114: 16485.807
A115: 1958-10-01 | B115: 2012-10-31 | C115: 2006-01-05 | D115: 2012-10-31 | E115: TRUE | F115: 1412.160034 | G115: 51.330002 | H115: 1 | I115: 1412.160034 | J115: -0.01998784252 | K115: 1.248450689 | L115: 2012-10-31 | M115: 1.248450689 | N115: 2012-10-31 | O115: 1.248450689 | P115: 4.414145536 | Q115: 1 | R115: 1 | S115: 1 | T115: 1 | U115: 1 | AB115: 41619.96094 | AC115: 0 | AD115: 0 | AE115: 0 | AF115: 0 | AG115: 0 | AH115: 1 | AI115: 1 | AJ115: 1 | AK115: 1 | AL115: 1 | AM115: 1 | AN115: 41619.96094 | AO115: 0 | AP115: 0 | AQ115: 0 | AR115: 0 | AS115: 0 | AT115: -0.01998784252 | AU115: 0.01991647077 | AV115: FALSE | AW115: FALSE | AX115: FALSE | AY115: FALSE | AZ115: FALSE | BA115: 4.414145536 | BB115: 1 | BC115: 1 | BD115: 1 | BE115: 1 | BF115: 1 | BG115: 16.309 | BH115: 28.91 | BI115: 0 | BJ115: 0 | BK115: 0 | BL115: 0 | BM115: 502.14 | BN115: 0.009926839195 | BO115: 0.004317080963 | BP115: 12.8976 | BQ115: 52.46 | BR115: 1.608 | BS115: 0.9376 | BT115: 16583.025
A116: 1958-11-01 | B116: 2012-11-30 | C116: 2006-01-12 | D116: 2012-11-30 | E116: TRUE | F116: 1416.180054 | G116: 52.48 | H116: 1 | I116: 1416.180054 | J116: 0.002842672792 | K116: 1.252004675 | L116: 2012-11-30 | M116: 1.252004675 | N116: 2012-11-30 | O116: 1.252004675 | P116: 4.436795214 | Q116: 1 | R116: 1 | S116: 1 | T116: 1 | U116: 1 | AB116: 41833.51953 | AC116: 0 | AD116: 0 | AE116: 0 | AF116: 0 | AG116: 0 | AH116: 1 | AI116: 1 | AJ116: 1 | AK116: 1 | AL116: 1 | AM116: 1 | AN116: 41833.51953 | AO116: 0 | AP116: 0 | AQ116: 0 | AR116: 0 | AS116: 0 | AT116: 0.002842672792 | AU116: 0.005118038408 | AV116: FALSE | AW116: FALSE | AX116: FALSE | AY116: FALSE | AZ116: FALSE | BA116: 4.436795214 | BB116: 1 | BC116: 1 | BD116: 1 | BE116: 1 | BF116: 1 | BG116: 16.309 | BH116: 28.95 | BI116: 0 | BJ116: 0 | BK116: 0 | BL116: 0 | BM116: 502.14 | BN116: 0.009926839195 | BO116: 0.004324343024 | BP116: 13.0639 | BQ116: 53.76 | BR116: 1.5968 | BS116: 0.9326 | BT116: 16583.025
A117: 1958-12-01 | B117: 2012-12-31 | C117: 2006-01-19 | D117: 2012-12-31 | E117: TRUE | F117: 1426.189941 | G117: 55.209999 | H117: 1 | I117: 1426.189941 | J117: 0.007043367612 | K117: 1.260854132 | L117: 2012-12-31 | M117: 1.260854132 | N117: 2012-12-31 | O117: 1.260854132 | P117: 4.635369226 | Q117: 1 | R117: 1 | S117: 1 | T117: 1 | U117: 1 | Y117: =LOOKUP($A117,INDIRECT("'"&Y$5&"'!A:A"),INDIRECT("'"&Y$5&"'!"&Y$7&":"&Y$7)) ->  | AB117: 43705.82812 | AC117: 0 | AD117: 0 | AE117: 0 | AF117: 0 | AG117: 0 | AH117: 1 | AI117: 1 | AJ117: 1 | AK117: 1 | AL117: 1 | AM117: 1 | AN117: 43705.82812 | AO117: 0 | AP117: 0 | AQ117: 0 | AR117: 0 | AS117: 0 | AT117: 0.007043367612 | AU117: 0.04378353908 | AV117: FALSE | AW117: FALSE | AX117: FALSE | AY117: FALSE | AZ117: FALSE | BA117: 4.635369226 | BB117: 1 | BC117: 1 | BD117: 1 | BE117: 1 | BF117: 1 | BG117: 16.309 | BH117: 28.97 | BI117: 0 | BJ117: 0 | BK117: 0 | BL117: 0 | BM117: 502.14 | BN117: 0.009926839195 | BO117: 0.004324866686 | BP117: 12.8651 | BQ117: 54.26 | BR117: 1.6145 | BS117: 0.9264 | BT117: 16583.025
A118: 1959-01-01 | B118: 2013-01-31 | C118: 2006-01-26 | D118: 2013-01-31 | E118: TRUE | F118: 1498.109985 | G118: 55.450001 | H118: 1 | I118: 1498.109985 | J118: 0.04919779205 | K118: 1.324436606 | L118: 2013-01-31 | M118: 1.324436606 | N118: 2013-01-31 | O118: 1.324436606 | P118: 4.802117439 | Q118: 1 | R118: 1 | S118: 1 | T118: 1 | U118: 1 | AB118: 45278.05859 | AC118: 0 | AD118: 0 | AE118: 0 | AF118: 0 | AG118: 0 | AH118: 1 | AI118: 1 | AJ118: 1 | AK118: 1 | AL118: 1 | AM118: 1 | AN118: 45278.05859 | AO118: 0 | AP118: 0 | AQ118: 0 | AR118: 0 | AS118: 0 | AT118: 0.04919779205 | AU118: 0.03534109749 | AV118: FALSE | AW118: FALSE | AX118: FALSE | AY118: FALSE | AZ118: FALSE | BA118: 4.802117439 | BB118: 1 | BC118: 1 | BD118: 1 | BE118: 1 | BF118: 1 | BG118: 16.347 | BH118: 29.01 | BI118: 0 | BJ118: 0 | BK118: 0 | BL118: 0 | BM118: 512.913 | BN118: 0.009887382711 | BO118: 0.004316316973 | BP118: 12.6964 | BQ118: 54.26 | BR118: 1.5965 | BS118: 0.9264 | BT118: 16783.69
A119: 1959-02-01 | B119: 2013-02-28 | C119: 2006-02-02 | D119: 2013-02-28 | E119: TRUE | F119: 1514.680054 | G119: 55.41 | H119: 1 | I119: 1514.680054 | J119: 0.01099992755 | K119: 1.339085735 | L119: 2013-02-28 | M119: 1.339085735 | N119: 2013-02-28 | O119: 1.339085735 | P119: 4.679400439 | Q119: 1 | R119: 1 | S119: 1 | T119: 1 | U119: 1 | AB119: 44120.98828 | AC119: 0 | AD119: 0 | AE119: 0 | AF119: 0 | AG119: 0 | AH119: 1 | AI119: 1 | AJ119: 1 | AK119: 1 | AL119: 1 | AM119: 1 | AN119: 44120.98828 | AO119: 0 | AP119: 0 | AQ119: 0 | AR119: 0 | AS119: 0 | AT119: 0.01099992755 | AU119: -0.02588696343 | AV119: FALSE | AW119: FALSE | AX119: FALSE | AY119: FALSE | AZ119: FALSE | BA119: 4.679400439 | BB119: 1 | BC119: 1 | BD119: 1 | BE119: 1 | BF119: 1 | BG119: 16.347 | BH119: 29 | BI119: 0 | BJ119: 0 | BK119: 0 | BL119: 0 | BM119: 512.913 | BN119: 0.009887382711 | BO119: 0.004293006263 | BP119: 12.7249 | BQ119: 53.16 | BR119: 1.5474 | BS119: 0.903 | BT119: 16783.69
A120: 1959-03-01 | B120: 2013-03-31 | C120: 2006-02-09 | D120: 2013-03-31 | E120: TRUE | F120: 1569.189941 | G120: 55.439999 | H120: 1 | I120: 1569.189941 | J120: 0.03535529388 | K120: 1.387276382 | L120: 2013-03-31 | M120: 1.387276382 | N120: 2013-03-31 | O120: 1.387276382 | P120: 4.674744642 | Q120: 1 | R120: 1 | S120: 1 | T120: 1 | U120: 1 | AB120: 44077.08984 | AC120: 0 | AD120: 0 | AE120: 0 | AF120: 0 | AG120: 0 | AH120: 1 | AI120: 1 | AJ120: 1 | AK120: 1 | AL120: 1 | AM120: 1 | AN120: 44077.08984 | AO120: 0 | AP120: 0 | AQ120: 0 | AR120: 0 | AS120: 0 | AT120: 0.03535529388 | AU120: -0.0009954511835 | AV120: FALSE | AW120: FALSE | AX120: FALSE | AY120: FALSE | AZ120: FALSE | BA120: 4.674744642 | BB120: 1 | BC120: 1 | BD120: 1 | BE120: 1 | BF120: 1 | BG120: 16.347 | BH120: 28.97 | BI120: 0 | BJ120: 0 | BK120: 0 | BL120: 0 | BM120: 512.913 | BN120: 0.009887382711 | BO120: 0.00430511189 | BP120: 12.5 | BQ120: 54.9 | BR120: 1.508 | BS120: 0.9448 | BT120: 16783.69
